Workbook

Sheet HDCP Go Order (hidden)
A1: 4.05
B3: Pro | C3: P | D3: 1
B5: Semi-Pro | C5: SP | D5: 2
B7: Non-Pro | C7: NP | D7: 3
F11: Enter riders on the Riders sheet then use this sheet to set up the order of go by Division.
F13: Change the numbers in the drop down boxes to set the go order by Division. Use 1-3, do not duplicate numbers.
H17: Macros must be enabled on startup. All pages have an update button. Press as often as you want. Warning: Never use cut, copy or paste functions. EVER! Guaranteed corruption!

Sheet Go Order
A1: 4.06
B3: Mens Pro | C3: MP | D3: 3
B5: Mens Semi-Pro | C5: MSP | D5: 7
B7: Mens Non-Pro | C7: MNP | D7: 11
B9: Ladies Pro | C9: LP | D9: 1
B11: Ladies Semi-Pro | C11: LSP | D11: 5 | F11: Enter riders on the Riders sheet then use this sheet to set up the order of go by Division.
B13: Ladies Non-Pro | C13: LNP | D13: 9 | F13: Change the blue numbers in the drop down boxes to set the go order by Division. Use 1-18, do not duplicate numbers.
B15: Mens Platinum Pro | C15: MPP | D15: 4
B17: Mens Platinum Semi-Pro | C17: MPSP | D17: 8 | H17: Macros must be enabled on startup. All pages have an update button. Press as often as you want. Warning: Never use cut, copy or paste functions. EVER! Guaranteed corruption!
B19: Mens Platinum Non-Pro | C19: MPNP | D19: 12
B21: Mens Platinum Plus | C21: MP+ | D21: 14
B23: Ladies Platinum Pro | C23: LPP | D23: 2
B25: Ladies Platinum Semi-Pro | C25: LPSP | D25: 6
B27: Ladies Platinum Non-Pro | C27: LPNP | D27: 10
B29: Ladies Platinum Plus | C29: LP+ | D29: 13
B31: Mens Novice | C31: MNOV | D31: 15
B33: Ladies Novice | C33: LNOV | D33: 16
B35: Outlaws | C35: OUT | D35: 17
B37: Li'l Bandits | C37: LB | D37: 18
B39: Non Member | C39: NM | D39: 19

Sheet Riders
A1: Set the order of go by Division first, then tweek the order as necessary by renumbering the Final Go Order column. Decimals and duplicate numbers are allowed.
G3: Type of Match
G4: Local
B5: Club name | E5: Date | G5: Point multiplier
A6: Sin City Mounted Shooters | E6: 2013-05-19 | G6: =+IF(G4="State-Regional",2,(IF(G4="National",3,1))) -> 1
A7: Shoot | B7: MSA May 19 2013 3,1,7,16
A8: # OF RIDERS | B8: Final Go Order | C8: MSA # | D8: Division | E8: Rider | F8: SR,JR,PW | G8: Alias, Horse Name, Other | H8: Time Stage 1 | I8: Penalty | J8: Total -Stage 1 | K8: check | L8: Time Stage 2 | M8: Penalty | N8: Total - Stage 2 | O8: Total 1&2 | P8: check | Q8: Time Stage 3 | R8: Penalty | S8: Total - Stage 3 | T8: Total stages 1-2-3 | U8: check | V8: Time Stage 4 | W8: Penalty | X8: Total -Stage 4 | Y8: check | Z8: Time Stage 5 | AA8: Penalty | AB8: Total - Stage 5 | AC8: check | AD8: Time Stage 6 | AE8: Penalty | AF8: check | AG8: Total -Stage 6 | AH8: Total stages 4-5-6 | AI8: Grand Total | AJ8: TTL Penalty | AK8: Team Shoot A | AL8: Team Shoot B | AM8: Team Shoot C | AN8: Team Shoot D | AO8: Team Shoot E | AP8: Team Shoot F | AQ8: Jackpot stages? | AR8: Sort go by Div
A9: 1 | B9: 1 | C9: 105 | D9: LPP | E9: Diane Holmes | G9: Billie | H9: 11.152 | J9: =IF(SUM(H9+I9)>60,60,SUM(H9+I9)) -> 11.152 | L9: 17.469 | M9: 5 | N9: =IF(SUM(L9+M9)>60,60,SUM(L9+M9)) -> 22.469 | O9: =SUM(J9+N9) -> 33.621 | Q9: 17.68 | S9: =IF(SUM(Q9+R9)>60,60,SUM(Q9+R9)) -> 17.68 | T9: =SUM(O9+S9) -> 51.301 | V9: 11.24 | X9: =IF(SUM(V9+W9)>60,60,SUM(V9+W9)) -> 11.24 | AB9: =IF(SUM(Z9+AA9)>60,60,SUM(Z9+AA9)) -> 0 | AG9: =IF(SUM(AD9+AE9)>60,60,SUM(AD9+AE9)) -> 0 | AH9: =+X9+AB9+AG9 -> 11.24 | AI9: =+T9+AH9 -> 62.541 | AJ9: =IF(E9<>"",SUM(I9+M9+R9+W9+AA9+AE9),"") -> 5 | AQ9: N | AR9: =IF(D9="",99,VLOOKUP(D9,'Go Order'!$C$3:$D$37,2,FALSE)) -> 2
A10: 2 | B10: 2 | C10: 1787 | D10: MSP | E10: Lance Ujifusa | G10: Cash | H10: 10.744 | J10: =IF(SUM(H10+I10)>60,60,SUM(H10+I10)) -> 10.744 | L10: 16.915 | M10: 5 | N10: =IF(SUM(L10+M10)>60,60,SUM(L10+M10)) -> 21.915 | O10: =SUM(J10+N10) -> 32.659 | Q10: 22.27 | R10: 10 | S10: =IF(SUM(Q10+R10)>60,60,SUM(Q10+R10)) -> 32.27 | T10: =SUM(O10+S10) -> 64.929 | V10: 10.507 | W10: 10 | X10: =IF(SUM(V10+W10)>60,60,SUM(V10+W10)) -> 20.507 | AB10: =IF(SUM(Z10+AA10)>60,60,SUM(Z10+AA10)) -> 0 | AG10: =IF(SUM(AD10+AE10)>60,60,SUM(AD10+AE10)) -> 0 | AH10: =+X10+AB10+AG10 -> 20.507 | AI10: =+T10+AH10 -> 85.436 | AJ10: =IF(E10<>"",SUM(I10+M10+R10+W10+AA10+AE10),"") -> 25 | AQ10: N | AR10: =IF(D10="",99,VLOOKUP(D10,'Go Order'!$C$3:$D$37,2,FALSE)) -> 7
A11: 3 | B11: 3 | C11: 1786 | D11: LNP | E11: Kathy Ujifusa | G11: Garth | H11: 13.937 | I11: 10 | J11: =IF(SUM(H11+I11)>60,60,SUM(H11+I11)) -> 23.937 | L11: 20.896 | N11: =IF(SUM(L11+M11)>60,60,SUM(L11+M11)) -> 20.896 | O11: =SUM(J11+N11) -> 44.833 | Q11: 23.131 | R11: 10 | S11: =IF(SUM(Q11+R11)>60,60,SUM(Q11+R11)) -> 33.131 | T11: =SUM(O11+S11) -> 77.964 | V11: 17.47 | X11: =IF(SUM(V11+W11)>60,60,SUM(V11+W11)) -> 17.47 | AB11: =IF(SUM(Z11+AA11)>60,60,SUM(Z11+AA11)) -> 0 | AG11: =IF(SUM(AD11+AE11)>60,60,SUM(AD11+AE11)) -> 0 | AH11: =+X11+AB11+AG11 -> 17.47 | AI11: =+T11+AH11 -> 95.434 | AJ11: =IF(E11<>"",SUM(I11+M11+R11+W11+AA11+AE11),"") -> 20 | AQ11: N | AR11: =IF(D11="",99,VLOOKUP(D11,'Go Order'!$C$3:$D$37,2,FALSE)) -> 9
A12: 4 | B12: 4 | C12: 2108 | D12: LNP | E12: Trudy Lawrence | G12: Ricky | H12: 28.86 | I12: 5 | J12: =IF(SUM(H12+I12)>60,60,SUM(H12+I12)) -> 33.86 | L12: 26.951 | M12: 20 | N12: =IF(SUM(L12+M12)>60,60,SUM(L12+M12)) -> 46.951 | O12: =SUM(J12+N12) -> 80.811 | Q12: 23.596 | S12: =IF(SUM(Q12+R12)>60,60,SUM(Q12+R12)) -> 23.596 | T12: =SUM(O12+S12) -> 104.407 | V12: 15.386 | X12: =IF(SUM(V12+W12)>60,60,SUM(V12+W12)) -> 15.386 | AB12: =IF(SUM(Z12+AA12)>60,60,SUM(Z12+AA12)) -> 0 | AG12: =IF(SUM(AD12+AE12)>60,60,SUM(AD12+AE12)) -> 0 | AH12: =+X12+AB12+AG12 -> 15.386 | AI12: =+T12+AH12 -> 119.793 | AJ12: =IF(E12<>"",SUM(I12+M12+R12+W12+AA12+AE12),"") -> 25 | AQ12: N | AR12: =IF(D12="",99,VLOOKUP(D12,'Go Order'!$C$3:$D$37,2,FALSE)) -> 9
A13: 5 | B13: 5 | C13: 2219 | D13: LNP | E13: Shannon Riuz | G13: Dolly | H13: 11.525 | J13: =IF(SUM(H13+I13)>60,60,SUM(H13+I13)) -> 11.525 | L13: 17.376 | N13: =IF(SUM(L13+M13)>60,60,SUM(L13+M13)) -> 17.376 | O13: =SUM(J13+N13) -> 28.901 | Q13: 18.056 | R13: 10 | S13: =IF(SUM(Q13+R13)>60,60,SUM(Q13+R13)) -> 28.056 | T13: =SUM(O13+S13) -> 56.957 | V13: 11.637 | X13: =IF(SUM(V13+W13)>60,60,SUM(V13+W13)) -> 11.637 | AB13: =IF(SUM(Z13+AA13)>60,60,SUM(Z13+AA13)) -> 0 | AG13: =IF(SUM(AD13+AE13)>60,60,SUM(AD13+AE13)) -> 0 | AH13: =+X13+AB13+AG13 -> 11.637 | AI13: =+T13+AH13 -> 68.594 | AJ13: =IF(E13<>"",SUM(I13+M13+R13+W13+AA13+AE13),"") -> 10 | AQ13: N | AR13: =IF(D13="",99,VLOOKUP(D13,'Go Order'!$C$3:$D$37,2,FALSE)) -> 9
A14: 6 | B14: 6 | C14: 1783 | D14: LNP | E14: Stephanie Brewer | G14: IMA Texas Bootie | H14: 18.525 | I14: 5 | J14: =IF(SUM(H14+I14)>60,60,SUM(H14+I14)) -> 23.525 | L14: 27.403 | N14: =IF(SUM(L14+M14)>60,60,SUM(L14+M14)) -> 27.403 | O14: =SUM(J14+N14) -> 50.928 | Q14: 27.079 | R14: 15 | S14: =IF(SUM(Q14+R14)>60,60,SUM(Q14+R14)) -> 42.079 | T14: =SUM(O14+S14) -> 93.007 | V14: 18.423 | W14: 15 | X14: =IF(SUM(V14+W14)>60,60,SUM(V14+W14)) -> 33.423 | AB14: =IF(SUM(Z14+AA14)>60,60,SUM(Z14+AA14)) -> 0 | AG14: =IF(SUM(AD14+AE14)>60,60,SUM(AD14+AE14)) -> 0 | AH14: =+X14+AB14+AG14 -> 33.423 | AI14: =+T14+AH14 -> 126.43 | AJ14: =IF(E14<>"",SUM(I14+M14+R14+W14+AA14+AE14),"") -> 35 | AQ14: N | AR14: =IF(D14="",99,VLOOKUP(D14,'Go Order'!$C$3:$D$37,2,FALSE)) -> 9
A15: 7 | B15: 7 | C15: 1794 | D15: LNP | E15: Sammi O | G15: Joe | H15: 14.583 | I15: 5 | J15: =IF(SUM(H15+I15)>60,60,SUM(H15+I15)) -> 19.583 | L15: 20.46 | M15: 5 | N15: =IF(SUM(L15+M15)>60,60,SUM(L15+M15)) -> 25.46 | O15: =SUM(J15+N15) -> 45.043 | Q15: 22.076 | S15: =IF(SUM(Q15+R15)>60,60,SUM(Q15+R15)) -> 22.076 | T15: =SUM(O15+S15) -> 67.119 | V15: 14.489 | W15: 5 | X15: =IF(SUM(V15+W15)>60,60,SUM(V15+W15)) -> 19.489 | AB15: =IF(SUM(Z15+AA15)>60,60,SUM(Z15+AA15)) -> 0 | AG15: =IF(SUM(AD15+AE15)>60,60,SUM(AD15+AE15)) -> 0 | AH15: =+X15+AB15+AG15 -> 19.489 | AI15: =+T15+AH15 -> 86.608 | AJ15: =IF(E15<>"",SUM(I15+M15+R15+W15+AA15+AE15),"") -> 15 | AQ15: N | AR15: =IF(D15="",99,VLOOKUP(D15,'Go Order'!$C$3:$D$37,2,FALSE)) -> 9
A16: 8 | B16: 8 | C16: 1791 | D16: LNP | E16: Jasmine Ufifusa | G16: Garth | H16: 13.218 | J16: =IF(SUM(H16+I16)>60,60,SUM(H16+I16)) -> 13.218 | L16: 19.26 | N16: =IF(SUM(L16+M16)>60,60,SUM(L16+M16)) -> 19.26 | O16: =SUM(J16+N16) -> 32.478 | Q16: 20.11 | S16: =IF(SUM(Q16+R16)>60,60,SUM(Q16+R16)) -> 20.11 | T16: =SUM(O16+S16) -> 52.588 | V16: 11.393 | W16: 20 | X16: =IF(SUM(V16+W16)>60,60,SUM(V16+W16)) -> 31.393 | AB16: =IF(SUM(Z16+AA16)>60,60,SUM(Z16+AA16)) -> 0 | AG16: =IF(SUM(AD16+AE16)>60,60,SUM(AD16+AE16)) -> 0 | AH16: =+X16+AB16+AG16 -> 31.393 | AI16: =+T16+AH16 -> 83.981 | AJ16: =IF(E16<>"",SUM(I16+M16+R16+W16+AA16+AE16),"") -> 20 | AQ16: N | AR16: =IF(D16="",99,VLOOKUP(D16,'Go Order'!$C$3:$D$37,2,FALSE)) -> 9
A17: 9 | B17: 9 | C17: 2218 | D17: MNP | E17: Tim Ruiz | G17: Jess | H17: 12.334 | J17: =IF(SUM(H17+I17)>60,60,SUM(H17+I17)) -> 12.334 | L17: 16.377 | N17: =IF(SUM(L17+M17)>60,60,SUM(L17+M17)) -> 16.377 | O17: =SUM(J17+N17) -> 28.711 | Q17: 17.582 | S17: =IF(SUM(Q17+R17)>60,60,SUM(Q17+R17)) -> 17.582 | T17: =SUM(O17+S17) -> 46.293 | V17: 12.039 | X17: =IF(SUM(V17+W17)>60,60,SUM(V17+W17)) -> 12.039 | AB17: =IF(SUM(Z17+AA17)>60,60,SUM(Z17+AA17)) -> 0 | AG17: =IF(SUM(AD17+AE17)>60,60,SUM(AD17+AE17)) -> 0 | AH17: =+X17+AB17+AG17 -> 12.039 | AI17: =+T17+AH17 -> 58.332 | AJ17: =IF(E17<>"",SUM(I17+M17+R17+W17+AA17+AE17),"") -> 0 | AQ17: N | AR17: =IF(D17="",99,VLOOKUP(D17,'Go Order'!$C$3:$D$37,2,FALSE)) -> 11
A18: 10 | B18: 10 | C18: 1784 | D18: MNP | E18: Chad Brewer | G18: Peanut | H18: 10.967 | I18: 15 | J18: =IF(SUM(H18+I18)>60,60,SUM(H18+I18)) -> 25.967 | L18: 18.708 | N18: =IF(SUM(L18+M18)>60,60,SUM(L18+M18)) -> 18.708 | O18: =SUM(J18+N18) -> 44.675 | Q18: 19.704 | S18: =IF(SUM(Q18+R18)>60,60,SUM(Q18+R18)) -> 19.704 | T18: =SUM(O18+S18) -> 64.379 | V18: 13.437 | W18: 5 | X18: =IF(SUM(V18+W18)>60,60,SUM(V18+W18)) -> 18.437 | AB18: =IF(SUM(Z18+AA18)>60,60,SUM(Z18+AA18)) -> 0 | AG18: =IF(SUM(AD18+AE18)>60,60,SUM(AD18+AE18)) -> 0 | AH18: =+X18+AB18+AG18 -> 18.437 | AI18: =+T18+AH18 -> 82.816 | AJ18: =IF(E18<>"",SUM(I18+M18+R18+W18+AA18+AE18),"") -> 20 | AQ18: N | AR18: =IF(D18="",99,VLOOKUP(D18,'Go Order'!$C$3:$D$37,2,FALSE)) -> 11
A19: 11 | B19: 11 | C19: 1792 | D19: MSP | E19: Joel Ostrovsky | G19: Turbo | H19: 10.901 | I19: 5 | J19: =IF(SUM(H19+I19)>60,60,SUM(H19+I19)) -> 15.901 | L19: 17.473 | N19: =IF(SUM(L19+M19)>60,60,SUM(L19+M19)) -> 17.473 | O19: =SUM(J19+N19) -> 33.374 | Q19: 18.787 | S19: =IF(SUM(Q19+R19)>60,60,SUM(Q19+R19)) -> 18.787 | T19: =SUM(O19+S19) -> 52.161 | V19: 12.364 | X19: =IF(SUM(V19+W19)>60,60,SUM(V19+W19)) -> 12.364 | AB19: =IF(SUM(Z19+AA19)>60,60,SUM(Z19+AA19)) -> 0 | AG19: =IF(SUM(AD19+AE19)>60,60,SUM(AD19+AE19)) -> 0 | AH19: =+X19+AB19+AG19 -> 12.364 | AI19: =+T19+AH19 -> 64.525 | AJ19: =IF(E19<>"",SUM(I19+M19+R19+W19+AA19+AE19),"") -> 5 | AQ19: N | AR19: =IF(D19="",99,VLOOKUP(D19,'Go Order'!$C$3:$D$37,2,FALSE)) -> 7
A20: 12 | B20: 12 | C20: 1795 | D20: OUT | E20: Mitch | G20: Turbo | H20: 62.917 | J20: =IF(SUM(H20+I20)>60,60,SUM(H20+I20)) -> 60 | L20: 66.468 | N20: =IF(SUM(L20+M20)>60,60,SUM(L20+M20)) -> 60 | O20: =SUM(J20+N20) -> 120 | Q20: 48.887 | S20: =IF(SUM(Q20+R20)>60,60,SUM(Q20+R20)) -> 48.887 | T20: =SUM(O20+S20) -> 168.887 | V20: 38.666 | X20: =IF(SUM(V20+W20)>60,60,SUM(V20+W20)) -> 38.666 | AB20: =IF(SUM(Z20+AA20)>60,60,SUM(Z20+AA20)) -> 0 | AG20: =IF(SUM(AD20+AE20)>60,60,SUM(AD20+AE20)) -> 0 | AH20: =+X20+AB20+AG20 -> 38.666 | AI20: =+T20+AH20 -> 207.553 | AJ20: =IF(E20<>"",SUM(I20+M20+R20+W20+AA20+AE20),"") -> 0 | AQ20: N | AR20: =IF(D20="",99,VLOOKUP(D20,'Go Order'!$C$3:$D$37,2,FALSE)) -> 17
A21: 13 | B21: 200 | J21: =IF(SUM(H21+I21)>60,60,SUM(H21+I21)) -> 0 | N21: =IF(SUM(L21+M21)>60,60,SUM(L21+M21)) -> 0 | O21: =SUM(J21+N21) -> 0 | S21: =IF(SUM(Q21+R21)>60,60,SUM(Q21+R21)) -> 0 | T21: =SUM(O21+S21) -> 0 | X21: =IF(SUM(V21+W21)>60,60,SUM(V21+W21)) -> 0 | AB21: =IF(SUM(Z21+AA21)>60,60,SUM(Z21+AA21)) -> 0 | AG21: =IF(SUM(AD21+AE21)>60,60,SUM(AD21+AE21)) -> 0 | AH21: =+X21+AB21+AG21 -> 0 | AI21: =+T21+AH21 -> 0 | AJ21: =IF(E21<>"",SUM(I21+M21+R21+W21+AA21+AE21),"") ->  | AQ21: N | AR21: =IF(D21="",99,VLOOKUP(D21,'Go Order'!$C$3:$D$37,2,FALSE)) -> 99
A22: 14 | B22: 14 | J22: =IF(SUM(H22+I22)>60,60,SUM(H22+I22)) -> 0 | N22: =IF(SUM(L22+M22)>60,60,SUM(L22+M22)) -> 0 | O22: =SUM(J22+N22) -> 0 | S22: =IF(SUM(Q22+R22)>60,60,SUM(Q22+R22)) -> 0 | T22: =SUM(O22+S22) -> 0 | X22: =IF(SUM(V22+W22)>60,60,SUM(V22+W22)) -> 0 | AB22: =IF(SUM(Z22+AA22)>60,60,SUM(Z22+AA22)) -> 0 | AG22: =IF(SUM(AD22+AE22)>60,60,SUM(AD22+AE22)) -> 0 | AH22: =+X22+AB22+AG22 -> 0 | AI22: =+T22+AH22 -> 0 | AJ22: =IF(E22<>"",SUM(I22+M22+R22+W22+AA22+AE22),"") ->  | AQ22: N | AR22: =IF(D22="",99,VLOOKUP(D22,'Go Order'!$C$3:$D$37,2,FALSE)) -> 99
A23: 15 | B23: 15 | J23: =IF(SUM(H23+I23)>60,60,SUM(H23+I23)) -> 0 | N23: =IF(SUM(L23+M23)>60,60,SUM(L23+M23)) -> 0 | O23: =SUM(J23+N23) -> 0 | S23: =IF(SUM(Q23+R23)>60,60,SUM(Q23+R23)) -> 0 | T23: =SUM(O23+S23) -> 0 | X23: =IF(SUM(V23+W23)>60,60,SUM(V23+W23)) -> 0 | AB23: =IF(SUM(Z23+AA23)>60,60,SUM(Z23+AA23)) -> 0 | AG23: =IF(SUM(AD23+AE23)>60,60,SUM(AD23+AE23)) -> 0 | AH23: =+X23+AB23+AG23 -> 0 | AI23: =+T23+AH23 -> 0 | AJ23: =IF(E23<>"",SUM(I23+M23+R23+W23+AA23+AE23),"") -> 0 | AQ23: N | AR23: =IF(D23="",99,VLOOKUP(D23,'Go Order'!$C$3:$D$37,2,FALSE)) -> 99
A24: 16 | B24: 16 | J24: =IF(SUM(H24+I24)>60,60,SUM(H24+I24)) -> 0 | N24: =IF(SUM(L24+M24)>60,60,SUM(L24+M24)) -> 0 | O24: =SUM(J24+N24) -> 0 | S24: =IF(SUM(Q24+R24)>60,60,SUM(Q24+R24)) -> 0 | T24: =SUM(O24+S24) -> 0 | X24: =IF(SUM(V24+W24)>60,60,SUM(V24+W24)) -> 0 | AB24: =IF(SUM(Z24+AA24)>60,60,SUM(Z24+AA24)) -> 0 | AG24: =IF(SUM(AD24+AE24)>60,60,SUM(AD24+AE24)) -> 0 | AH24: =+X24+AB24+AG24 -> 0 | AI24: =+T24+AH24 -> 0 | AJ24: =IF(E24<>"",SUM(I24+M24+R24+W24+AA24+AE24),"") -> 0 | AQ24: N | AR24: =IF(D24="",99,VLOOKUP(D24,'Go Order'!$C$3:$D$37,2,FALSE)) -> 99
A25: 17 | B25: 17 | J25: =IF(SUM(H25+I25)>60,60,SUM(H25+I25)) -> 0 | N25: =IF(SUM(L25+M25)>60,60,SUM(L25+M25)) -> 0 | O25: =SUM(J25+N25) -> 0 | S25: =IF(SUM(Q25+R25)>60,60,SUM(Q25+R25)) -> 0 | T25: =SUM(O25+S25) -> 0 | X25: =IF(SUM(V25+W25)>60,60,SUM(V25+W25)) -> 0 | AB25: =IF(SUM(Z25+AA25)>60,60,SUM(Z25+AA25)) -> 0 | AG25: =IF(SUM(AD25+AE25)>60,60,SUM(AD25+AE25)) -> 0 | AH25: =+X25+AB25+AG25 -> 0 | AI25: =+T25+AH25 -> 0 | AJ25: =IF(E25<>"",SUM(I25+M25+R25+W25+AA25+AE25),"") -> 0 | AQ25: N | AR25: =IF(D25="",99,VLOOKUP(D25,'Go Order'!$C$3:$D$37,2,FALSE)) -> 99
A26: 18 | B26: 18 | J26: =IF(SUM(H26+I26)>60,60,SUM(H26+I26)) -> 0 | N26: =IF(SUM(L26+M26)>60,60,SUM(L26+M26)) -> 0 | O26: =SUM(J26+N26) -> 0 | S26: =IF(SUM(Q26+R26)>60,60,SUM(Q26+R26)) -> 0 | T26: =SUM(O26+S26) -> 0 | X26: =IF(SUM(V26+W26)>60,60,SUM(V26+W26)) -> 0 | AB26: =IF(SUM(Z26+AA26)>60,60,SUM(Z26+AA26)) -> 0 | AG26: =IF(SUM(AD26+AE26)>60,60,SUM(AD26+AE26)) -> 0 | AH26: =+X26+AB26+AG26 -> 0 | AI26: =+T26+AH26 -> 0 | AJ26: =IF(E26<>"",SUM(I26+M26+R26+W26+AA26+AE26),"") -> 0 | AQ26: N | AR26: =IF(D26="",99,VLOOKUP(D26,'Go Order'!$C$3:$D$37,2,FALSE)) -> 99
A27: 19 | B27: 19 | J27: =IF(SUM(H27+I27)>60,60,SUM(H27+I27)) -> 0 | N27: =IF(SUM(L27+M27)>60,60,SUM(L27+M27)) -> 0 | O27: =SUM(J27+N27) -> 0 | S27: =IF(SUM(Q27+R27)>60,60,SUM(Q27+R27)) -> 0 | T27: =SUM(O27+S27) -> 0 | X27: =IF(SUM(V27+W27)>60,60,SUM(V27+W27)) -> 0 | AB27: =IF(SUM(Z27+AA27)>60,60,SUM(Z27+AA27)) -> 0 | AG27: =IF(SUM(AD27+AE27)>60,60,SUM(AD27+AE27)) -> 0 | AH27: =+X27+AB27+AG27 -> 0 | AI27: =+T27+AH27 -> 0 | AJ27: =IF(E27<>"",SUM(I27+M27+R27+W27+AA27+AE27),"") ->  | AQ27: N | AR27: =IF(D27="",99,VLOOKUP(D27,'Go Order'!$C$3:$D$37,2,FALSE)) -> 99
A28: 20 | B28: 20 | J28: =IF(SUM(H28+I28)>60,60,SUM(H28+I28)) -> 0 | N28: =IF(SUM(L28+M28)>60,60,SUM(L28+M28)) -> 0 | O28: =SUM(J28+N28) -> 0 | S28: =IF(SUM(Q28+R28)>60,60,SUM(Q28+R28)) -> 0 | T28: =SUM(O28+S28) -> 0 | X28: =IF(SUM(V28+W28)>60,60,SUM(V28+W28)) -> 0 | AB28: =IF(SUM(Z28+AA28)>60,60,SUM(Z28+AA28)) -> 0 | AG28: =IF(SUM(AD28+AE28)>60,60,SUM(AD28+AE28)) -> 0 | AH28: =+X28+AB28+AG28 -> 0 | AI28: =+T28+AH28 -> 0 | AJ28: =IF(E28<>"",SUM(I28+M28+R28+W28+AA28+AE28),"") ->  | AQ28: N | AR28: =IF(D28="",99,VLOOKUP(D28,'Go Order'!$C$3:$D$37,2,FALSE)) -> 99
A29: 21 | B29: 21 | J29: =IF(SUM(H29+I29)>60,60,SUM(H29+I29)) -> 0 | N29: =IF(SUM(L29+M29)>60,60,SUM(L29+M29)) -> 0 | O29: =SUM(J29+N29) -> 0 | S29: =IF(SUM(Q29+R29)>60,60,SUM(Q29+R29)) -> 0 | T29: =SUM(O29+S29) -> 0 | X29: =IF(SUM(V29+W29)>60,60,SUM(V29+W29)) -> 0 | AB29: =IF(SUM(Z29+AA29)>60,60,SUM(Z29+AA29)) -> 0 | AG29: =IF(SUM(AD29+AE29)>60,60,SUM(AD29+AE29)) -> 0 | AH29: =+X29+AB29+AG29 -> 0 | AI29: =+T29+AH29 -> 0 | AJ29: =IF(E29<>"",SUM(I29+M29+R29+W29+AA29+AE29),"") ->  | AQ29: N | AR29: =IF(D29="",99,VLOOKUP(D29,'Go Order'!$C$3:$D$37,2,FALSE)) -> 99
A30: 22 | B30: 22 | J30: =IF(SUM(H30+I30)>60,60,SUM(H30+I30)) -> 0 | N30: =IF(SUM(L30+M30)>60,60,SUM(L30+M30)) -> 0 | O30: =SUM(J30+N30) -> 0 | S30: =IF(SUM(Q30+R30)>60,60,SUM(Q30+R30)) -> 0 | T30: =SUM(O30+S30) -> 0 | X30: =IF(SUM(V30+W30)>60,60,SUM(V30+W30)) -> 0 | AB30: =IF(SUM(Z30+AA30)>60,60,SUM(Z30+AA30)) -> 0 | AG30: =IF(SUM(AD30+AE30)>60,60,SUM(AD30+AE30)) -> 0 | AH30: =+X30+AB30+AG30 -> 0 | AI30: =+T30+AH30 -> 0 | AJ30: =IF(E30<>"",SUM(I30+M30+R30+W30+AA30+AE30),"") ->  | AQ30: N | AR30: =IF(D30="",99,VLOOKUP(D30,'Go Order'!$C$3:$D$37,2,FALSE)) -> 99
A31: 23 | B31: 23 | J31: =IF(SUM(H31+I31)>60,60,SUM(H31+I31)) -> 0 | N31: =IF(SUM(L31+M31)>60,60,SUM(L31+M31)) -> 0 | O31: =SUM(J31+N31) -> 0 | S31: =IF(SUM(Q31+R31)>60,60,SUM(Q31+R31)) -> 0 | T31: =SUM(O31+S31) -> 0 | X31: =IF(SUM(V31+W31)>60,60,SUM(V31+W31)) -> 0 | AB31: =IF(SUM(Z31+AA31)>60,60,SUM(Z31+AA31)) -> 0 | AG31: =IF(SUM(AD31+AE31)>60,60,SUM(AD31+AE31)) -> 0 | AH31: =+X31+AB31+AG31 -> 0 | AI31: =+T31+AH31 -> 0 | AJ31: =IF(E31<>"",SUM(I31+M31+R31+W31+AA31+AE31),"") ->  | AQ31: N | AR31: =IF(D31="",99,VLOOKUP(D31,'Go Order'!$C$3:$D$37,2,FALSE)) -> 99
A32: 24 | B32: 24 | J32: =IF(SUM(H32+I32)>60,60,SUM(H32+I32)) -> 0 | N32: =IF(SUM(L32+M32)>60,60,SUM(L32+M32)) -> 0 | O32: =SUM(J32+N32) -> 0 | S32: =IF(SUM(Q32+R32)>60,60,SUM(Q32+R32)) -> 0 | T32: =SUM(O32+S32) -> 0 | X32: =IF(SUM(V32+W32)>60,60,SUM(V32+W32)) -> 0 | AB32: =IF(SUM(Z32+AA32)>60,60,SUM(Z32+AA32)) -> 0 | AG32: =IF(SUM(AD32+AE32)>60,60,SUM(AD32+AE32)) -> 0 | AH32: =+X32+AB32+AG32 -> 0 | AI32: =+T32+AH32 -> 0 | AJ32: =IF(E32<>"",SUM(I32+M32+R32+W32+AA32+AE32),"") ->  | AQ32: N | AR32: =IF(D32="",99,VLOOKUP(D32,'Go Order'!$C$3:$D$37,2,FALSE)) -> 99
A33: 25 | B33: 25 | J33: =IF(SUM(H33+I33)>60,60,SUM(H33+I33)) -> 0 | N33: =IF(SUM(L33+M33)>60,60,SUM(L33+M33)) -> 0 | O33: =SUM(J33+N33) -> 0 | S33: =IF(SUM(Q33+R33)>60,60,SUM(Q33+R33)) -> 0 | T33: =SUM(O33+S33) -> 0 | X33: =IF(SUM(V33+W33)>60,60,SUM(V33+W33)) -> 0 | AB33: =IF(SUM(Z33+AA33)>60,60,SUM(Z33+AA33)) -> 0 | AG33: =IF(SUM(AD33+AE33)>60,60,SUM(AD33+AE33)) -> 0 | AH33: =+X33+AB33+AG33 -> 0 | AI33: =+T33+AH33 -> 0 | AJ33: =IF(E33<>"",SUM(I33+M33+R33+W33+AA33+AE33),"") ->  | AQ33: N | AR33: =IF(D33="",99,VLOOKUP(D33,'Go Order'!$C$3:$D$37,2,FALSE)) -> 99
A34: 26 | B34: 26 | J34: =IF(SUM(H34+I34)>60,60,SUM(H34+I34)) -> 0 | N34: =IF(SUM(L34+M34)>60,60,SUM(L34+M34)) -> 0 | O34: =SUM(J34+N34) -> 0 | S34: =IF(SUM(Q34+R34)>60,60,SUM(Q34+R34)) -> 0 | T34: =SUM(O34+S34) -> 0 | X34: =IF(SUM(V34+W34)>60,60,SUM(V34+W34)) -> 0 | AB34: =IF(SUM(Z34+AA34)>60,60,SUM(Z34+AA34)) -> 0 | AG34: =IF(SUM(AD34+AE34)>60,60,SUM(AD34+AE34)) -> 0 | AH34: =+X34+AB34+AG34 -> 0 | AI34: =+T34+AH34 -> 0 | AJ34: =IF(E34<>"",SUM(I34+M34+R34+W34+AA34+AE34),"") ->  | AQ34: N | AR34: =IF(D34="",99,VLOOKUP(D34,'Go Order'!$C$3:$D$37,2,FALSE)) -> 99
A35: 27 | B35: 27 | J35: =IF(SUM(H35+I35)>60,60,SUM(H35+I35)) -> 0 | N35: =IF(SUM(L35+M35)>60,60,SUM(L35+M35)) -> 0 | O35: =SUM(J35+N35) -> 0 | S35: =IF(SUM(Q35+R35)>60,60,SUM(Q35+R35)) -> 0 | T35: =+J35+N35+S35 -> 0 | X35: =IF(SUM(V35+W35)>60,60,SUM(V35+W35)) -> 0 | AB35: =IF(SUM(Z35+AA35)>60,60,SUM(Z35+AA35)) -> 0 | AG35: =IF(SUM(AD35+AE35)>60,60,SUM(AD35+AE35)) -> 0 | AH35: =+X35+AB35+AG35 -> 0 | AI35: =+T35+AH35 -> 0 | AJ35: =IF(E35<>"",SUM(I35+M35+R35+W35+AA35+AE35),"") ->  | AQ35: N | AR35: =IF(D35="",99,VLOOKUP(D35,'Go Order'!$C$3:$D$37,2,FALSE)) -> 99
A36: 28 | B36: 28 | J36: =IF(SUM(H36+I36)>60,60,SUM(H36+I36)) -> 0 | N36: =IF(SUM(L36+M36)>60,60,SUM(L36+M36)) -> 0 | O36: =SUM(J36+N36) -> 0 | S36: =IF(SUM(Q36+R36)>60,60,SUM(Q36+R36)) -> 0 | T36: =SUM(O36+S36) -> 0 | X36: =IF(SUM(V36+W36)>60,60,SUM(V36+W36)) -> 0 | AB36: =IF(SUM(Z36+AA36)>60,60,SUM(Z36+AA36)) -> 0 | AG36: =IF(SUM(AD36+AE36)>60,60,SUM(AD36+AE36)) -> 0 | AH36: =+X36+AB36+AG36 -> 0 | AI36: =+T36+AH36 -> 0 | AJ36: =IF(E36<>"",SUM(I36+M36+R36+W36+AA36+AE36),"") ->  | AQ36: N | AR36: =IF(D36="",99,VLOOKUP(D36,'Go Order'!$C$3:$D$37,2,FALSE)) -> 99
A37: 29 | B37: 29 | J37: =IF(SUM(H37+I37)>60,60,SUM(H37+I37)) -> 0 | N37: =IF(SUM(L37+M37)>60,60,SUM(L37+M37)) -> 0 | O37: =SUM(J37+N37) -> 0 | S37: =IF(SUM(Q37+R37)>60,60,SUM(Q37+R37)) -> 0 | T37: =SUM(O37+S37) -> 0 | X37: =IF(SUM(V37+W37)>60,60,SUM(V37+W37)) -> 0 | AB37: =IF(SUM(Z37+AA37)>60,60,SUM(Z37+AA37)) -> 0 | AG37: =IF(SUM(AD37+AE37)>60,60,SUM(AD37+AE37)) -> 0 | AH37: =+X37+AB37+AG37 -> 0 | AI37: =+T37+AH37 -> 0 | AJ37: =IF(E37<>"",SUM(I37+M37+R37+W37+AA37+AE37),"") ->  | AQ37: N | AR37: =IF(D37="",99,VLOOKUP(D37,'Go Order'!$C$3:$D$37,2,FALSE)) -> 99
A38: 30 | B38: 30 | J38: =IF(SUM(H38+I38)>60,60,SUM(H38+I38)) -> 0 | N38: =IF(SUM(L38+M38)>60,60,SUM(L38+M38)) -> 0 | O38: =SUM(J38+N38) -> 0 | S38: =IF(SUM(Q38+R38)>60,60,SUM(Q38+R38)) -> 0 | T38: =SUM(O38+S38) -> 0 | X38: =IF(SUM(V38+W38)>60,60,SUM(V38+W38)) -> 0 | AB38: =IF(SUM(Z38+AA38)>60,60,SUM(Z38+AA38)) -> 0 | AG38: =IF(SUM(AD38+AE38)>60,60,SUM(AD38+AE38)) -> 0 | AH38: =+X38+AB38+AG38 -> 0 | AI38: =+T38+AH38 -> 0 | AJ38: =IF(E38<>"",SUM(I38+M38+R38+W38+AA38+AE38),"") ->  | AQ38: N | AR38: =IF(D38="",99,VLOOKUP(D38,'Go Order'!$C$3:$D$37,2,FALSE)) -> 99
A39: 31 | B39: 31 | J39: =IF(SUM(H39+I39)>60,60,SUM(H39+I39)) -> 0 | N39: =IF(SUM(L39+M39)>60,60,SUM(L39+M39)) -> 0 | O39: =SUM(J39+N39) -> 0 | S39: =IF(SUM(Q39+R39)>60,60,SUM(Q39+R39)) -> 0 | T39: =SUM(O39+S39) -> 0 | X39: =IF(SUM(V39+W39)>60,60,SUM(V39+W39)) -> 0 | AB39: =IF(SUM(Z39+AA39)>60,60,SUM(Z39+AA39)) -> 0 | AG39: =IF(SUM(AD39+AE39)>60,60,SUM(AD39+AE39)) -> 0 | AH39: =+X39+AB39+AG39 -> 0 | AI39: =+T39+AH39 -> 0 | AJ39: =IF(E39<>"",SUM(I39+M39+R39+W39+AA39+AE39),"") ->  | AQ39: N | AR39: =IF(D39="",99,VLOOKUP(D39,'Go Order'!$C$3:$D$37,2,FALSE)) -> 99
A40: 32 | B40: 32 | J40: =IF(SUM(H40+I40)>60,60,SUM(H40+I40)) -> 0 | N40: =IF(SUM(L40+M40)>60,60,SUM(L40+M40)) -> 0 | O40: =SUM(J40+N40) -> 0 | S40: =IF(SUM(Q40+R40)>60,60,SUM(Q40+R40)) -> 0 | T40: =SUM(O40+S40) -> 0 | X40: =IF(SUM(V40+W40)>60,60,SUM(V40+W40)) -> 0 | AB40: =IF(SUM(Z40+AA40)>60,60,SUM(Z40+AA40)) -> 0 | AG40: =IF(SUM(AD40+AE40)>60,60,SUM(AD40+AE40)) -> 0 | AH40: =+X40+AB40+AG40 -> 0 | AI40: =+T40+AH40 -> 0 | AJ40: =IF(E40<>"",SUM(I40+M40+R40+W40+AA40+AE40),"") ->  | AQ40: N | AR40: =IF(D40="",99,VLOOKUP(D40,'Go Order'!$C$3:$D$37,2,FALSE)) -> 99
A41: 33 | B41: 33 | J41: =IF(SUM(H41+I41)>60,60,SUM(H41+I41)) -> 0 | N41: =IF(SUM(L41+M41)>60,60,SUM(L41+M41)) -> 0 | O41: =SUM(J41+N41) -> 0 | S41: =IF(SUM(Q41+R41)>60,60,SUM(Q41+R41)) -> 0 | T41: =SUM(O41+S41) -> 0 | X41: =IF(SUM(V41+W41)>60,60,SUM(V41+W41)) -> 0 | AB41: =IF(SUM(Z41+AA41)>60,60,SUM(Z41+AA41)) -> 0 | AG41: =IF(SUM(AD41+AE41)>60,60,SUM(AD41+AE41)) -> 0 | AH41: =+X41+AB41+AG41 -> 0 | AI41: =+T41+AH41 -> 0 | AJ41: =IF(E41<>"",SUM(I41+M41+R41+W41+AA41+AE41),"") ->  | AQ41: N | AR41: =IF(D41="",99,VLOOKUP(D41,'Go Order'!$C$3:$D$37,2,FALSE)) -> 99
A42: 34 | B42: 34 | J42: =IF(SUM(H42+I42)>60,60,SUM(H42+I42)) -> 0 | N42: =IF(SUM(L42+M42)>60,60,SUM(L42+M42)) -> 0 | O42: =SUM(J42+N42) -> 0 | S42: =IF(SUM(Q42+R42)>60,60,SUM(Q42+R42)) -> 0 | T42: =SUM(O42+S42) -> 0 | X42: =IF(SUM(V42+W42)>60,60,SUM(V42+W42)) -> 0 | AB42: =IF(SUM(Z42+AA42)>60,60,SUM(Z42+AA42)) -> 0 | AG42: =IF(SUM(AD42+AE42)>60,60,SUM(AD42+AE42)) -> 0 | AH42: =+X42+AB42+AG42 -> 0 | AI42: =+T42+AH42 -> 0 | AJ42: =IF(E42<>"",SUM(I42+M42+R42+W42+AA42+AE42),"") ->  | AQ42: N | AR42: =IF(D42="",99,VLOOKUP(D42,'Go Order'!$C$3:$D$37,2,FALSE)) -> 99
A43: 35 | B43: 35 | J43: =IF(SUM(H43+I43)>60,60,SUM(H43+I43)) -> 0 | N43: =IF(SUM(L43+M43)>60,60,SUM(L43+M43)) -> 0 | O43: =SUM(J43+N43) -> 0 | S43: =IF(SUM(Q43+R43)>60,60,SUM(Q43+R43)) -> 0 | T43: =SUM(O43+S43) -> 0 | X43: =IF(SUM(V43+W43)>60,60,SUM(V43+W43)) -> 0 | AB43: =IF(SUM(Z43+AA43)>60,60,SUM(Z43+AA43)) -> 0 | AG43: =IF(SUM(AD43+AE43)>60,60,SUM(AD43+AE43)) -> 0 | AH43: =+X43+AB43+AG43 -> 0 | AI43: =+T43+AH43 -> 0 | AJ43: =IF(E43<>"",SUM(I43+M43+R43+W43+AA43+AE43),"") ->  | AQ43: N | AR43: =IF(D43="",99,VLOOKUP(D43,'Go Order'!$C$3:$D$37,2,FALSE)) -> 99
A44: 36 | B44: 36 | J44: =IF(SUM(H44+I44)>60,60,SUM(H44+I44)) -> 0 | N44: =IF(SUM(L44+M44)>60,60,SUM(L44+M44)) -> 0 | O44: =SUM(J44+N44) -> 0 | S44: =IF(SUM(Q44+R44)>60,60,SUM(Q44+R44)) -> 0 | T44: =SUM(O44+S44) -> 0 | X44: =IF(SUM(V44+W44)>60,60,SUM(V44+W44)) -> 0 | AB44: =IF(SUM(Z44+AA44)>60,60,SUM(Z44+AA44)) -> 0 | AG44: =IF(SUM(AD44+AE44)>60,60,SUM(AD44+AE44)) -> 0 | AH44: =+X44+AB44+AG44 -> 0 | AI44: =+T44+AH44 -> 0 | AJ44: =IF(E44<>"",SUM(I44+M44+R44+W44+AA44+AE44),"") ->  | AQ44: N | AR44: =IF(D44="",99,VLOOKUP(D44,'Go Order'!$C$3:$D$37,2,FALSE)) -> 99
A45: 37 | B45: 37 | J45: =IF(SUM(H45+I45)>60,60,SUM(H45+I45)) -> 0 | N45: =IF(SUM(L45+M45)>60,60,SUM(L45+M45)) -> 0 | O45: =SUM(J45+N45) -> 0 | S45: =IF(SUM(Q45+R45)>60,60,SUM(Q45+R45)) -> 0 | T45: =SUM(O45+S45) -> 0 | X45: =IF(SUM(V45+W45)>60,60,SUM(V45+W45)) -> 0 | AB45: =IF(SUM(Z45+AA45)>60,60,SUM(Z45+AA45)) -> 0 | AG45: =IF(SUM(AD45+AE45)>60,60,SUM(AD45+AE45)) -> 0 | AH45: =+X45+AB45+AG45 -> 0 | AI45: =+T45+AH45 -> 0 | AJ45: =IF(E45<>"",SUM(I45+M45+R45+W45+AA45+AE45),"") ->  | AQ45: N | AR45: =IF(D45="",99,VLOOKUP(D45,'Go Order'!$C$3:$D$37,2,FALSE)) -> 99
A46: 38 | B46: 38 | J46: =IF(SUM(H46+I46)>60,60,SUM(H46+I46)) -> 0 | N46: =IF(SUM(L46+M46)>60,60,SUM(L46+M46)) -> 0 | O46: =SUM(J46+N46) -> 0 | S46: =IF(SUM(Q46+R46)>60,60,SUM(Q46+R46)) -> 0 | T46: =SUM(O46+S46) -> 0 | X46: =IF(SUM(V46+W46)>60,60,SUM(V46+W46)) -> 0 | AB46: =IF(SUM(Z46+AA46)>60,60,SUM(Z46+AA46)) -> 0 | AG46: =IF(SUM(AD46+AE46)>60,60,SUM(AD46+AE46)) -> 0 | AH46: =+X46+AB46+AG46 -> 0 | AI46: =+T46+AH46 -> 0 | AJ46: =IF(E46<>"",SUM(I46+M46+R46+W46+AA46+AE46),"") ->  | AQ46: N | AR46: =IF(D46="",99,VLOOKUP(D46,'Go Order'!$C$3:$D$37,2,FALSE)) -> 99
A47: 39 | B47: 39 | J47: =IF(SUM(H47+I47)>60,60,SUM(H47+I47)) -> 0 | N47: =IF(SUM(L47+M47)>60,60,SUM(L47+M47)) -> 0 | O47: =SUM(J47+N47) -> 0 | S47: =IF(SUM(Q47+R47)>60,60,SUM(Q47+R47)) -> 0 | T47: =SUM(O47+S47) -> 0 | X47: =IF(SUM(V47+W47)>60,60,SUM(V47+W47)) -> 0 | AB47: =IF(SUM(Z47+AA47)>60,60,SUM(Z47+AA47)) -> 0 | AG47: =IF(SUM(AD47+AE47)>60,60,SUM(AD47+AE47)) -> 0 | AH47: =+X47+AB47+AG47 -> 0 | AI47: =+T47+AH47 -> 0 | AJ47: =IF(E47<>"",SUM(I47+M47+R47+W47+AA47+AE47),"") ->  | AQ47: N | AR47: =IF(D47="",99,VLOOKUP(D47,'Go Order'!$C$3:$D$37,2,FALSE)) -> 99
A48: 40 | B48: 40 | J48: =IF(SUM(H48+I48)>60,60,SUM(H48+I48)) -> 0 | N48: =IF(SUM(L48+M48)>60,60,SUM(L48+M48)) -> 0 | O48: =SUM(J48+N48) -> 0 | S48: =IF(SUM(Q48+R48)>60,60,SUM(Q48+R48)) -> 0 | T48: =SUM(O48+S48) -> 0 | X48: =IF(SUM(V48+W48)>60,60,SUM(V48+W48)) -> 0 | AB48: =IF(SUM(Z48+AA48)>60,60,SUM(Z48+AA48)) -> 0 | AG48: =IF(SUM(AD48+AE48)>60,60,SUM(AD48+AE48)) -> 0 | AH48: =+X48+AB48+AG48 -> 0 | AI48: =+T48+AH48 -> 0 | AJ48: =IF(E48<>"",SUM(I48+M48+R48+W48+AA48+AE48),"") ->  | AQ48: N | AR48: =IF(D48="",99,VLOOKUP(D48,'Go Order'!$C$3:$D$37,2,FALSE)) -> 99
A49: 41 | B49: 41 | J49: =IF(SUM(H49+I49)>60,60,SUM(H49+I49)) -> 0 | N49: =IF(SUM(L49+M49)>60,60,SUM(L49+M49)) -> 0 | O49: =SUM(J49+N49) -> 0 | S49: =IF(SUM(Q49+R49)>60,60,SUM(Q49+R49)) -> 0 | T49: =SUM(O49+S49) -> 0 | X49: =IF(SUM(V49+W49)>60,60,SUM(V49+W49)) -> 0 | AB49: =IF(SUM(Z49+AA49)>60,60,SUM(Z49+AA49)) -> 0 | AG49: =IF(SUM(AD49+AE49)>60,60,SUM(AD49+AE49)) -> 0 | AH49: =+X49+AB49+AG49 -> 0 | AI49: =+T49+AH49 -> 0 | AJ49: =IF(E49<>"",SUM(I49+M49+R49+W49+AA49+AE49),"") ->  | AQ49: N | AR49: =IF(D49="",99,VLOOKUP(D49,'Go Order'!$C$3:$D$37,2,FALSE)) -> 99
A50: 42 | B50: 42 | J50: =IF(SUM(H50+I50)>60,60,SUM(H50+I50)) -> 0 | N50: =IF(SUM(L50+M50)>60,60,SUM(L50+M50)) -> 0 | O50: =SUM(J50+N50) -> 0 | S50: =IF(SUM(Q50+R50)>60,60,SUM(Q50+R50)) -> 0 | T50: =SUM(O50+S50) -> 0 | X50: =IF(SUM(V50+W50)>60,60,SUM(V50+W50)) -> 0 | AB50: =IF(SUM(Z50+AA50)>60,60,SUM(Z50+AA50)) -> 0 | AG50: =IF(SUM(AD50+AE50)>60,60,SUM(AD50+AE50)) -> 0 | AH50: =+X50+AB50+AG50 -> 0 | AI50: =+T50+AH50 -> 0 | AJ50: =IF(E50<>"",SUM(I50+M50+R50+W50+AA50+AE50),"") ->  | AQ50: N | AR50: =IF(D50="",99,VLOOKUP(D50,'Go Order'!$C$3:$D$37,2,FALSE)) -> 99
A51: 43 | B51: 43 | J51: =IF(SUM(H51+I51)>60,60,SUM(H51+I51)) -> 0 | N51: =IF(SUM(L51+M51)>60,60,SUM(L51+M51)) -> 0 | O51: =SUM(J51+N51) -> 0 | S51: =IF(SUM(Q51+R51)>60,60,SUM(Q51+R51)) -> 0 | T51: =SUM(O51+S51) -> 0 | X51: =IF(SUM(V51+W51)>60,60,SUM(V51+W51)) -> 0 | AB51: =IF(SUM(Z51+AA51)>60,60,SUM(Z51+AA51)) -> 0 | AG51: =IF(SUM(AD51+AE51)>60,60,SUM(AD51+AE51)) -> 0 | AH51: =+X51+AB51+AG51 -> 0 | AI51: =+T51+AH51 -> 0 | AJ51: =IF(E51<>"",SUM(I51+M51+R51+W51+AA51+AE51),"") ->  | AQ51: N | AR51: =IF(D51="",99,VLOOKUP(D51,'Go Order'!$C$3:$D$37,2,FALSE)) -> 99
A52: 44 | B52: 44 | J52: =IF(SUM(H52+I52)>60,60,SUM(H52+I52)) -> 0 | N52: =IF(SUM(L52+M52)>60,60,SUM(L52+M52)) -> 0 | O52: =SUM(J52+N52) -> 0 | S52: =IF(SUM(Q52+R52)>60,60,SUM(Q52+R52)) -> 0 | T52: =SUM(O52+S52) -> 0 | X52: =IF(SUM(V52+W52)>60,60,SUM(V52+W52)) -> 0 | AB52: =IF(SUM(Z52+AA52)>60,60,SUM(Z52+AA52)) -> 0 | AG52: =IF(SUM(AD52+AE52)>60,60,SUM(AD52+AE52)) -> 0 | AH52: =+X52+AB52+AG52 -> 0 | AI52: =+T52+AH52 -> 0 | AJ52: =IF(E52<>"",SUM(I52+M52+R52+W52+AA52+AE52),"") ->  | AQ52: N | AR52: =IF(D52="",99,VLOOKUP(D52,'Go Order'!$C$3:$D$37,2,FALSE)) -> 99
A53: 45 | B53: 45 | J53: =IF(SUM(H53+I53)>60,60,SUM(H53+I53)) -> 0 | N53: =IF(SUM(L53+M53)>60,60,SUM(L53+M53)) -> 0 | O53: =SUM(J53+N53) -> 0 | S53: =IF(SUM(Q53+R53)>60,60,SUM(Q53+R53)) -> 0 | T53: =SUM(O53+S53) -> 0 | X53: =IF(SUM(V53+W53)>60,60,SUM(V53+W53)) -> 0 | AB53: =IF(SUM(Z53+AA53)>60,60,SUM(Z53+AA53)) -> 0 | AG53: =IF(SUM(AD53+AE53)>60,60,SUM(AD53+AE53)) -> 0 | AH53: =+X53+AB53+AG53 -> 0 | AI53: =+T53+AH53 -> 0 | AJ53: =IF(E53<>"",SUM(I53+M53+R53+W53+AA53+AE53),"") ->  | AQ53: N | AR53: =IF(D53="",99,VLOOKUP(D53,'Go Order'!$C$3:$D$37,2,FALSE)) -> 99
A54: 46 | B54: 46 | J54: =IF(SUM(H54+I54)>60,60,SUM(H54+I54)) -> 0 | N54: =IF(SUM(L54+M54)>60,60,SUM(L54+M54)) -> 0 | O54: =SUM(J54+N54) -> 0 | S54: =IF(SUM(Q54+R54)>60,60,SUM(Q54+R54)) -> 0 | T54: =SUM(O54+S54) -> 0 | X54: =IF(SUM(V54+W54)>60,60,SUM(V54+W54)) -> 0 | AB54: =IF(SUM(Z54+AA54)>60,60,SUM(Z54+AA54)) -> 0 | AG54: =IF(SUM(AD54+AE54)>60,60,SUM(AD54+AE54)) -> 0 | AH54: =+X54+AB54+AG54 -> 0 | AI54: =+T54+AH54 -> 0 | AJ54: =IF(E54<>"",SUM(I54+M54+R54+W54+AA54+AE54),"") ->  | AQ54: N | AR54: =IF(D54="",99,VLOOKUP(D54,'Go Order'!$C$3:$D$37,2,FALSE)) -> 99
A55: 47 | B55: 47 | J55: =IF(SUM(H55+I55)>60,60,SUM(H55+I55)) -> 0 | N55: =IF(SUM(L55+M55)>60,60,SUM(L55+M55)) -> 0 | O55: =SUM(J55+N55) -> 0 | S55: =IF(SUM(Q55+R55)>60,60,SUM(Q55+R55)) -> 0 | T55: =SUM(O55+S55) -> 0 | X55: =IF(SUM(V55+W55)>60,60,SUM(V55+W55)) -> 0 | AB55: =IF(SUM(Z55+AA55)>60,60,SUM(Z55+AA55)) -> 0 | AG55: =IF(SUM(AD55+AE55)>60,60,SUM(AD55+AE55)) -> 0 | AH55: =+X55+AB55+AG55 -> 0 | AI55: =+T55+AH55 -> 0 | AJ55: =IF(E55<>"",SUM(I55+M55+R55+W55+AA55+AE55),"") ->  | AQ55: N | AR55: =IF(D55="",99,VLOOKUP(D55,'Go Order'!$C$3:$D$37,2,FALSE)) -> 99
A56: 48 | B56: 48 | J56: =IF(SUM(H56+I56)>60,60,SUM(H56+I56)) -> 0 | N56: =IF(SUM(L56+M56)>60,60,SUM(L56+M56)) -> 0 | O56: =SUM(J56+N56) -> 0 | S56: =IF(SUM(Q56+R56)>60,60,SUM(Q56+R56)) -> 0 | T56: =SUM(O56+S56) -> 0 | X56: =IF(SUM(V56+W56)>60,60,SUM(V56+W56)) -> 0 | AB56: =IF(SUM(Z56+AA56)>60,60,SUM(Z56+AA56)) -> 0 | AG56: =IF(SUM(AD56+AE56)>60,60,SUM(AD56+AE56)) -> 0 | AH56: =+X56+AB56+AG56 -> 0 | AI56: =+T56+AH56 -> 0 | AJ56: =IF(E56<>"",SUM(I56+M56+R56+W56+AA56+AE56),"") ->  | AQ56: N | AR56: =IF(D56="",99,VLOOKUP(D56,'Go Order'!$C$3:$D$37,2,FALSE)) -> 99
A57: 49 | B57: 49 | J57: =IF(SUM(H57+I57)>60,60,SUM(H57+I57)) -> 0 | N57: =IF(SUM(L57+M57)>60,60,SUM(L57+M57)) -> 0 | O57: =SUM(J57+N57) -> 0 | S57: =IF(SUM(Q57+R57)>60,60,SUM(Q57+R57)) -> 0 | T57: =SUM(O57+S57) -> 0 | X57: =IF(SUM(V57+W57)>60,60,SUM(V57+W57)) -> 0 | AB57: =IF(SUM(Z57+AA57)>60,60,SUM(Z57+AA57)) -> 0 | AG57: =IF(SUM(AD57+AE57)>60,60,SUM(AD57+AE57)) -> 0 | AH57: =+X57+AB57+AG57 -> 0 | AI57: =+T57+AH57 -> 0 | AJ57: =IF(E57<>"",SUM(I57+M57+R57+W57+AA57+AE57),"") ->  | AQ57: N | AR57: =IF(D57="",99,VLOOKUP(D57,'Go Order'!$C$3:$D$37,2,FALSE)) -> 99
A58: 50 | B58: 50 | J58: =IF(SUM(H58+I58)>60,60,SUM(H58+I58)) -> 0 | N58: =IF(SUM(L58+M58)>60,60,SUM(L58+M58)) -> 0 | O58: =SUM(J58+N58) -> 0 | S58: =IF(SUM(Q58+R58)>60,60,SUM(Q58+R58)) -> 0 | T58: =SUM(O58+S58) -> 0 | X58: =IF(SUM(V58+W58)>60,60,SUM(V58+W58)) -> 0 | AB58: =IF(SUM(Z58+AA58)>60,60,SUM(Z58+AA58)) -> 0 | AG58: =IF(SUM(AD58+AE58)>60,60,SUM(AD58+AE58)) -> 0 | AH58: =+X58+AB58+AG58 -> 0 | AI58: =+T58+AH58 -> 0 | AJ58: =IF(E58<>"",SUM(I58+M58+R58+W58+AA58+AE58),"") ->  | AQ58: N | AR58: =IF(D58="",99,VLOOKUP(D58,'Go Order'!$C$3:$D$37,2,FALSE)) -> 99
A59: 51 | B59: 51 | J59: =IF(SUM(H59+I59)>60,60,SUM(H59+I59)) -> 0 | N59: =IF(SUM(L59+M59)>60,60,SUM(L59+M59)) -> 0 | O59: =SUM(J59+N59) -> 0 | S59: =IF(SUM(Q59+R59)>60,60,SUM(Q59+R59)) -> 0 | T59: =SUM(O59+S59) -> 0 | X59: =IF(SUM(V59+W59)>60,60,SUM(V59+W59)) -> 0 | AB59: =IF(SUM(Z59+AA59)>60,60,SUM(Z59+AA59)) -> 0 | AG59: =IF(SUM(AD59+AE59)>60,60,SUM(AD59+AE59)) -> 0 | AH59: =+X59+AB59+AG59 -> 0 | AI59: =+T59+AH59 -> 0 | AJ59: =IF(E59<>"",SUM(I59+M59+R59+W59+AA59+AE59),"") ->  | AQ59: N | AR59: =IF(D59="",99,VLOOKUP(D59,'Go Order'!$C$3:$D$37,2,FALSE)) -> 99
A60: 52 | B60: 52 | J60: =IF(SUM(H60+I60)>60,60,SUM(H60+I60)) -> 0 | N60: =IF(SUM(L60+M60)>60,60,SUM(L60+M60)) -> 0 | O60: =SUM(J60+N60) -> 0 | S60: =IF(SUM(Q60+R60)>60,60,SUM(Q60+R60)) -> 0 | T60: =SUM(O60+S60) -> 0 | X60: =IF(SUM(V60+W60)>60,60,SUM(V60+W60)) -> 0 | AB60: =IF(SUM(Z60+AA60)>60,60,SUM(Z60+AA60)) -> 0 | AG60: =IF(SUM(AD60+AE60)>60,60,SUM(AD60+AE60)) -> 0 | AH60: =+X60+AB60+AG60 -> 0 | AI60: =+T60+AH60 -> 0 | AJ60: =IF(E60<>"",SUM(I60+M60+R60+W60+AA60+AE60),"") ->  | AQ60: N | AR60: =IF(D60="",99,VLOOKUP(D60,'Go Order'!$C$3:$D$37,2,FALSE)) -> 99
A61: 53 | B61: 53 | J61: =IF(SUM(H61+I61)>60,60,SUM(H61+I61)) -> 0 | N61: =IF(SUM(L61+M61)>60,60,SUM(L61+M61)) -> 0 | O61: =SUM(J61+N61) -> 0 | S61: =IF(SUM(Q61+R61)>60,60,SUM(Q61+R61)) -> 0 | T61: =SUM(O61+S61) -> 0 | X61: =IF(SUM(V61+W61)>60,60,SUM(V61+W61)) -> 0 | AB61: =IF(SUM(Z61+AA61)>60,60,SUM(Z61+AA61)) -> 0 | AG61: =IF(SUM(AD61+AE61)>60,60,SUM(AD61+AE61)) -> 0 | AH61: =+X61+AB61+AG61 -> 0 | AI61: =+T61+AH61 -> 0 | AJ61: =IF(E61<>"",SUM(I61+M61+R61+W61+AA61+AE61),"") ->  | AQ61: N | AR61: =IF(D61="",99,VLOOKUP(D61,'Go Order'!$C$3:$D$37,2,FALSE)) -> 99
A62: 54 | B62: 54 | J62: =IF(SUM(H62+I62)>60,60,SUM(H62+I62)) -> 0 | N62: =IF(SUM(L62+M62)>60,60,SUM(L62+M62)) -> 0 | O62: =SUM(J62+N62) -> 0 | S62: =IF(SUM(Q62+R62)>60,60,SUM(Q62+R62)) -> 0 | T62: =SUM(O62+S62) -> 0 | X62: =IF(SUM(V62+W62)>60,60,SUM(V62+W62)) -> 0 | AB62: =IF(SUM(Z62+AA62)>60,60,SUM(Z62+AA62)) -> 0 | AG62: =IF(SUM(AD62+AE62)>60,60,SUM(AD62+AE62)) -> 0 | AH62: =+X62+AB62+AG62 -> 0 | AI62: =+T62+AH62 -> 0 | AJ62: =IF(E62<>"",SUM(I62+M62+R62+W62+AA62+AE62),"") ->  | AQ62: N | AR62: =IF(D62="",99,VLOOKUP(D62,'Go Order'!$C$3:$D$37,2,FALSE)) -> 99
A63: 55 | B63: 55 | J63: =IF(SUM(H63+I63)>60,60,SUM(H63+I63)) -> 0 | N63: =IF(SUM(L63+M63)>60,60,SUM(L63+M63)) -> 0 | O63: =SUM(J63+N63) -> 0 | S63: =IF(SUM(Q63+R63)>60,60,SUM(Q63+R63)) -> 0 | T63: =SUM(O63+S63) -> 0 | X63: =IF(SUM(V63+W63)>60,60,SUM(V63+W63)) -> 0 | AB63: =IF(SUM(Z63+AA63)>60,60,SUM(Z63+AA63)) -> 0 | AG63: =IF(SUM(AD63+AE63)>60,60,SUM(AD63+AE63)) -> 0 | AH63: =+X63+AB63+AG63 -> 0 | AI63: =+T63+AH63 -> 0 | AJ63: =IF(E63<>"",SUM(I63+M63+R63+W63+AA63+AE63),"") ->  | AQ63: N | AR63: =IF(D63="",99,VLOOKUP(D63,'Go Order'!$C$3:$D$37,2,FALSE)) -> 99
A64: 56 | B64: 56 | J64: =IF(SUM(H64+I64)>60,60,SUM(H64+I64)) -> 0 | N64: =IF(SUM(L64+M64)>60,60,SUM(L64+M64)) -> 0 | O64: =SUM(J64+N64) -> 0 | S64: =IF(SUM(Q64+R64)>60,60,SUM(Q64+R64)) -> 0 | T64: =SUM(O64+S64) -> 0 | X64: =IF(SUM(V64+W64)>60,60,SUM(V64+W64)) -> 0 | AB64: =IF(SUM(Z64+AA64)>60,60,SUM(Z64+AA64)) -> 0 | AG64: =IF(SUM(AD64+AE64)>60,60,SUM(AD64+AE64)) -> 0 | AH64: =+X64+AB64+AG64 -> 0 | AI64: =+T64+AH64 -> 0 | AJ64: =IF(E64<>"",SUM(I64+M64+R64+W64+AA64+AE64),"") ->  | AQ64: N | AR64: =IF(D64="",99,VLOOKUP(D64,'Go Order'!$C$3:$D$37,2,FALSE)) -> 99
A65: 57 | B65: 57 | J65: =IF(SUM(H65+I65)>60,60,SUM(H65+I65)) -> 0 | N65: =IF(SUM(L65+M65)>60,60,SUM(L65+M65)) -> 0 | O65: =SUM(J65+N65) -> 0 | S65: =IF(SUM(Q65+R65)>60,60,SUM(Q65+R65)) -> 0 | T65: =SUM(O65+S65) -> 0 | X65: =IF(SUM(V65+W65)>60,60,SUM(V65+W65)) -> 0 | AB65: =IF(SUM(Z65+AA65)>60,60,SUM(Z65+AA65)) -> 0 | AG65: =IF(SUM(AD65+AE65)>60,60,SUM(AD65+AE65)) -> 0 | AH65: =+X65+AB65+AG65 -> 0 | AI65: =+T65+AH65 -> 0 | AJ65: =IF(E65<>"",SUM(I65+M65+R65+W65+AA65+AE65),"") ->  | AQ65: N | AR65: =IF(D65="",99,VLOOKUP(D65,'Go Order'!$C$3:$D$37,2,FALSE)) -> 99
A66: 58 | B66: 58 | J66: =IF(SUM(H66+I66)>60,60,SUM(H66+I66)) -> 0 | N66: =IF(SUM(L66+M66)>60,60,SUM(L66+M66)) -> 0 | O66: =SUM(J66+N66) -> 0 | S66: =IF(SUM(Q66+R66)>60,60,SUM(Q66+R66)) -> 0 | T66: =SUM(O66+S66) -> 0 | X66: =IF(SUM(V66+W66)>60,60,SUM(V66+W66)) -> 0 | AB66: =IF(SUM(Z66+AA66)>60,60,SUM(Z66+AA66)) -> 0 | AG66: =IF(SUM(AD66+AE66)>60,60,SUM(AD66+AE66)) -> 0 | AH66: =+X66+AB66+AG66 -> 0 | AI66: =+T66+AH66 -> 0 | AJ66: =IF(E66<>"",SUM(I66+M66+R66+W66+AA66+AE66),"") ->  | AQ66: N | AR66: =IF(D66="",99,VLOOKUP(D66,'Go Order'!$C$3:$D$37,2,FALSE)) -> 99
A67: 59 | B67: 59 | J67: =IF(SUM(H67+I67)>60,60,SUM(H67+I67)) -> 0 | N67: =IF(SUM(L67+M67)>60,60,SUM(L67+M67)) -> 0 | O67: =SUM(J67+N67) -> 0 | S67: =IF(SUM(Q67+R67)>60,60,SUM(Q67+R67)) -> 0 | T67: =SUM(O67+S67) -> 0 | X67: =IF(SUM(V67+W67)>60,60,SUM(V67+W67)) -> 0 | AB67: =IF(SUM(Z67+AA67)>60,60,SUM(Z67+AA67)) -> 0 | AG67: =IF(SUM(AD67+AE67)>60,60,SUM(AD67+AE67)) -> 0 | AH67: =+X67+AB67+AG67 -> 0 | AI67: =+T67+AH67 -> 0 | AJ67: =IF(E67<>"",SUM(I67+M67+R67+W67+AA67+AE67),"") ->  | AQ67: N | AR67: =IF(D67="",99,VLOOKUP(D67,'Go Order'!$C$3:$D$37,2,FALSE)) -> 99
A68: 60 | B68: 60 | J68: =IF(SUM(H68+I68)>60,60,SUM(H68+I68)) -> 0 | N68: =IF(SUM(L68+M68)>60,60,SUM(L68+M68)) -> 0 | O68: =SUM(J68+N68) -> 0 | S68: =IF(SUM(Q68+R68)>60,60,SUM(Q68+R68)) -> 0 | T68: =SUM(O68+S68) -> 0 | X68: =IF(SUM(V68+W68)>60,60,SUM(V68+W68)) -> 0 | AB68: =IF(SUM(Z68+AA68)>60,60,SUM(Z68+AA68)) -> 0 | AG68: =IF(SUM(AD68+AE68)>60,60,SUM(AD68+AE68)) -> 0 | AH68: =+X68+AB68+AG68 -> 0 | AI68: =+T68+AH68 -> 0 | AJ68: =IF(E68<>"",SUM(I68+M68+R68+W68+AA68+AE68),"") ->  | AQ68: N | AR68: =IF(D68="",99,VLOOKUP(D68,'Go Order'!$C$3:$D$37,2,FALSE)) -> 99
A69: 61 | B69: 61 | J69: =IF(SUM(H69+I69)>60,60,SUM(H69+I69)) -> 0 | N69: =IF(SUM(L69+M69)>60,60,SUM(L69+M69)) -> 0 | O69: =SUM(J69+N69) -> 0 | S69: =IF(SUM(Q69+R69)>60,60,SUM(Q69+R69)) -> 0 | T69: =SUM(O69+S69) -> 0 | X69: =IF(SUM(V69+W69)>60,60,SUM(V69+W69)) -> 0 | AB69: =IF(SUM(Z69+AA69)>60,60,SUM(Z69+AA69)) -> 0 | AG69: =IF(SUM(AD69+AE69)>60,60,SUM(AD69+AE69)) -> 0 | AH69: =+X69+AB69+AG69 -> 0 | AI69: =+T69+AH69 -> 0 | AJ69: =IF(E69<>"",SUM(I69+M69+R69+W69+AA69+AE69),"") ->  | AQ69: N | AR69: =IF(D69="",99,VLOOKUP(D69,'Go Order'!$C$3:$D$37,2,FALSE)) -> 99
A70: 62 | B70: 62 | J70: =IF(SUM(H70+I70)>60,60,SUM(H70+I70)) -> 0 | N70: =IF(SUM(L70+M70)>60,60,SUM(L70+M70)) -> 0 | O70: =SUM(J70+N70) -> 0 | S70: =IF(SUM(Q70+R70)>60,60,SUM(Q70+R70)) -> 0 | T70: =SUM(O70+S70) -> 0 | X70: =IF(SUM(V70+W70)>60,60,SUM(V70+W70)) -> 0 | AB70: =IF(SUM(Z70+AA70)>60,60,SUM(Z70+AA70)) -> 0 | AG70: =IF(SUM(AD70+AE70)>60,60,SUM(AD70+AE70)) -> 0 | AH70: =+X70+AB70+AG70 -> 0 | AI70: =+T70+AH70 -> 0 | AJ70: =IF(E70<>"",SUM(I70+M70+R70+W70+AA70+AE70),"") ->  | AQ70: N | AR70: =IF(D70="",99,VLOOKUP(D70,'Go Order'!$C$3:$D$37,2,FALSE)) -> 99
A71: 63 | B71: 63 | J71: =IF(SUM(H71+I71)>60,60,SUM(H71+I71)) -> 0 | N71: =IF(SUM(L71+M71)>60,60,SUM(L71+M71)) -> 0 | O71: =SUM(J71+N71) -> 0 | S71: =IF(SUM(Q71+R71)>60,60,SUM(Q71+R71)) -> 0 | T71: =SUM(O71+S71) -> 0 | X71: =IF(SUM(V71+W71)>60,60,SUM(V71+W71)) -> 0 | AB71: =IF(SUM(Z71+AA71)>60,60,SUM(Z71+AA71)) -> 0 | AG71: =IF(SUM(AD71+AE71)>60,60,SUM(AD71+AE71)) -> 0 | AH71: =+X71+AB71+AG71 -> 0 | AI71: =+T71+AH71 -> 0 | AJ71: =IF(E71<>"",SUM(I71+M71+R71+W71+AA71+AE71),"") ->  | AQ71: N | AR71: =IF(D71="",99,VLOOKUP(D71,'Go Order'!$C$3:$D$37,2,FALSE)) -> 99
A72: 64 | B72: 64 | J72: =IF(SUM(H72+I72)>60,60,SUM(H72+I72)) -> 0 | N72: =IF(SUM(L72+M72)>60,60,SUM(L72+M72)) -> 0 | O72: =SUM(J72+N72) -> 0 | S72: =IF(SUM(Q72+R72)>60,60,SUM(Q72+R72)) -> 0 | T72: =SUM(O72+S72) -> 0 | X72: =IF(SUM(V72+W72)>60,60,SUM(V72+W72)) -> 0 | AB72: =IF(SUM(Z72+AA72)>60,60,SUM(Z72+AA72)) -> 0 | AG72: =IF(SUM(AD72+AE72)>60,60,SUM(AD72+AE72)) -> 0 | AH72: =+X72+AB72+AG72 -> 0 | AI72: =+T72+AH72 -> 0 | AJ72: =IF(E72<>"",SUM(I72+M72+R72+W72+AA72+AE72),"") ->  | AQ72: N | AR72: =IF(D72="",99,VLOOKUP(D72,'Go Order'!$C$3:$D$37,2,FALSE)) -> 99
A73: 65 | B73: 65 | J73: =IF(SUM(H73+I73)>60,60,SUM(H73+I73)) -> 0 | N73: =IF(SUM(L73+M73)>60,60,SUM(L73+M73)) -> 0 | O73: =SUM(J73+N73) -> 0 | S73: =IF(SUM(Q73+R73)>60,60,SUM(Q73+R73)) -> 0 | T73: =SUM(O73+S73) -> 0 | X73: =IF(SUM(V73+W73)>60,60,SUM(V73+W73)) -> 0 | AB73: =IF(SUM(Z73+AA73)>60,60,SUM(Z73+AA73)) -> 0 | AG73: =IF(SUM(AD73+AE73)>60,60,SUM(AD73+AE73)) -> 0 | AH73: =+X73+AB73+AG73 -> 0 | AI73: =+T73+AH73 -> 0 | AJ73: =IF(E73<>"",SUM(I73+M73+R73+W73+AA73+AE73),"") ->  | AQ73: N | AR73: =IF(D73="",99,VLOOKUP(D73,'Go Order'!$C$3:$D$37,2,FALSE)) -> 99
A74: 66 | B74: 66 | J74: =IF(SUM(H74+I74)>60,60,SUM(H74+I74)) -> 0 | N74: =IF(SUM(L74+M74)>60,60,SUM(L74+M74)) -> 0 | O74: =SUM(J74+N74) -> 0 | S74: =IF(SUM(Q74+R74)>60,60,SUM(Q74+R74)) -> 0 | T74: =SUM(O74+S74) -> 0 | X74: =IF(SUM(V74+W74)>60,60,SUM(V74+W74)) -> 0 | AB74: =IF(SUM(Z74+AA74)>60,60,SUM(Z74+AA74)) -> 0 | AG74: =IF(SUM(AD74+AE74)>60,60,SUM(AD74+AE74)) -> 0 | AH74: =+X74+AB74+AG74 -> 0 | AI74: =+T74+AH74 -> 0 | AJ74: =IF(E74<>"",SUM(I74+M74+R74+W74+AA74+AE74),"") ->  | AQ74: N | AR74: =IF(D74="",99,VLOOKUP(D74,'Go Order'!$C$3:$D$37,2,FALSE)) -> 99
A75: 67 | B75: 67 | J75: =IF(SUM(H75+I75)>60,60,SUM(H75+I75)) -> 0 | N75: =IF(SUM(L75+M75)>60,60,SUM(L75+M75)) -> 0 | O75: =SUM(J75+N75) -> 0 | S75: =IF(SUM(Q75+R75)>60,60,SUM(Q75+R75)) -> 0 | T75: =SUM(O75+S75) -> 0 | X75: =IF(SUM(V75+W75)>60,60,SUM(V75+W75)) -> 0 | AB75: =IF(SUM(Z75+AA75)>60,60,SUM(Z75+AA75)) -> 0 | AG75: =IF(SUM(AD75+AE75)>60,60,SUM(AD75+AE75)) -> 0 | AH75: =+X75+AB75+AG75 -> 0 | AI75: =+T75+AH75 -> 0 | AJ75: =IF(E75<>"",SUM(I75+M75+R75+W75+AA75+AE75),"") ->  | AQ75: N | AR75: =IF(D75="",99,VLOOKUP(D75,'Go Order'!$C$3:$D$37,2,FALSE)) -> 99
A76: 68 | B76: 68 | J76: =IF(SUM(H76+I76)>60,60,SUM(H76+I76)) -> 0 | N76: =IF(SUM(L76+M76)>60,60,SUM(L76+M76)) -> 0 | O76: =SUM(J76+N76) -> 0 | S76: =IF(SUM(Q76+R76)>60,60,SUM(Q76+R76)) -> 0 | T76: =SUM(O76+S76) -> 0 | X76: =IF(SUM(V76+W76)>60,60,SUM(V76+W76)) -> 0 | AB76: =IF(SUM(Z76+AA76)>60,60,SUM(Z76+AA76)) -> 0 | AG76: =IF(SUM(AD76+AE76)>60,60,SUM(AD76+AE76)) -> 0 | AH76: =+X76+AB76+AG76 -> 0 | AI76: =+T76+AH76 -> 0 | AJ76: =IF(E76<>"",SUM(I76+M76+R76+W76+AA76+AE76),"") ->  | AQ76: N | AR76: =IF(D76="",99,VLOOKUP(D76,'Go Order'!$C$3:$D$37,2,FALSE)) -> 99
A77: 69 | B77: 69 | J77: =IF(SUM(H77+I77)>60,60,SUM(H77+I77)) -> 0 | N77: =IF(SUM(L77+M77)>60,60,SUM(L77+M77)) -> 0 | O77: =SUM(J77+N77) -> 0 | S77: =IF(SUM(Q77+R77)>60,60,SUM(Q77+R77)) -> 0 | T77: =SUM(O77+S77) -> 0 | X77: =IF(SUM(V77+W77)>60,60,SUM(V77+W77)) -> 0 | AB77: =IF(SUM(Z77+AA77)>60,60,SUM(Z77+AA77)) -> 0 | AG77: =IF(SUM(AD77+AE77)>60,60,SUM(AD77+AE77)) -> 0 | AH77: =+X77+AB77+AG77 -> 0 | AI77: =+T77+AH77 -> 0 | AJ77: =IF(E77<>"",SUM(I77+M77+R77+W77+AA77+AE77),"") ->  | AQ77: N | AR77: =IF(D77="",99,VLOOKUP(D77,'Go Order'!$C$3:$D$37,2,FALSE)) -> 99
A78: 70 | B78: 70 | J78: =IF(SUM(H78+I78)>60,60,SUM(H78+I78)) -> 0 | N78: =IF(SUM(L78+M78)>60,60,SUM(L78+M78)) -> 0 | O78: =SUM(J78+N78) -> 0 | S78: =IF(SUM(Q78+R78)>60,60,SUM(Q78+R78)) -> 0 | T78: =SUM(O78+S78) -> 0 | X78: =IF(SUM(V78+W78)>60,60,SUM(V78+W78)) -> 0 | AB78: =IF(SUM(Z78+AA78)>60,60,SUM(Z78+AA78)) -> 0 | AG78: =IF(SUM(AD78+AE78)>60,60,SUM(AD78+AE78)) -> 0 | AH78: =+X78+AB78+AG78 -> 0 | AI78: =+T78+AH78 -> 0 | AJ78: =IF(E78<>"",SUM(I78+M78+R78+W78+AA78+AE78),"") ->  | AQ78: N | AR78: =IF(D78="",99,VLOOKUP(D78,'Go Order'!$C$3:$D$37,2,FALSE)) -> 99
A79: 71 | B79: 71 | J79: =IF(SUM(H79+I79)>60,60,SUM(H79+I79)) -> 0 | N79: =IF(SUM(L79+M79)>60,60,SUM(L79+M79)) -> 0 | O79: =SUM(J79+N79) -> 0 | S79: =IF(SUM(Q79+R79)>60,60,SUM(Q79+R79)) -> 0 | T79: =SUM(O79+S79) -> 0 | X79: =IF(SUM(V79+W79)>60,60,SUM(V79+W79)) -> 0 | AB79: =IF(SUM(Z79+AA79)>60,60,SUM(Z79+AA79)) -> 0 | AG79: =IF(SUM(AD79+AE79)>60,60,SUM(AD79+AE79)) -> 0 | AH79: =+X79+AB79+AG79 -> 0 | AI79: =+T79+AH79 -> 0 | AJ79: =IF(E79<>"",SUM(I79+M79+R79+W79+AA79+AE79),"") ->  | AQ79: N | AR79: =IF(D79="",99,VLOOKUP(D79,'Go Order'!$C$3:$D$37,2,FALSE)) -> 99
A80: 72 | B80: 72 | J80: =IF(SUM(H80+I80)>60,60,SUM(H80+I80)) -> 0 | N80: =IF(SUM(L80+M80)>60,60,SUM(L80+M80)) -> 0 | O80: =SUM(J80+N80) -> 0 | S80: =IF(SUM(Q80+R80)>60,60,SUM(Q80+R80)) -> 0 | T80: =SUM(O80+S80) -> 0 | X80: =IF(SUM(V80+W80)>60,60,SUM(V80+W80)) -> 0 | AB80: =IF(SUM(Z80+AA80)>60,60,SUM(Z80+AA80)) -> 0 | AG80: =IF(SUM(AD80+AE80)>60,60,SUM(AD80+AE80)) -> 0 | AH80: =+X80+AB80+AG80 -> 0 | AI80: =+T80+AH80 -> 0 | AJ80: =IF(E80<>"",SUM(I80+M80+R80+W80+AA80+AE80),"") ->  | AQ80: N | AR80: =IF(D80="",99,VLOOKUP(D80,'Go Order'!$C$3:$D$37,2,FALSE)) -> 99
A81: 73 | B81: 73 | J81: =IF(SUM(H81+I81)>60,60,SUM(H81+I81)) -> 0 | N81: =IF(SUM(L81+M81)>60,60,SUM(L81+M81)) -> 0 | O81: =SUM(J81+N81) -> 0 | S81: =IF(SUM(Q81+R81)>60,60,SUM(Q81+R81)) -> 0 | T81: =SUM(O81+S81) -> 0 | X81: =IF(SUM(V81+W81)>60,60,SUM(V81+W81)) -> 0 | AB81: =IF(SUM(Z81+AA81)>60,60,SUM(Z81+AA81)) -> 0 | AG81: =IF(SUM(AD81+AE81)>60,60,SUM(AD81+AE81)) -> 0 | AH81: =+X81+AB81+AG81 -> 0 | AI81: =+T81+AH81 -> 0 | AJ81: =IF(E81<>"",SUM(I81+M81+R81+W81+AA81+AE81),"") ->  | AQ81: N | AR81: =IF(D81="",99,VLOOKUP(D81,'Go Order'!$C$3:$D$37,2,FALSE)) -> 99
A82: 74 | B82: 74 | J82: =IF(SUM(H82+I82)>60,60,SUM(H82+I82)) -> 0 | N82: =IF(SUM(L82+M82)>60,60,SUM(L82+M82)) -> 0 | O82: =SUM(J82+N82) -> 0 | S82: =IF(SUM(Q82+R82)>60,60,SUM(Q82+R82)) -> 0 | T82: =SUM(O82+S82) -> 0 | X82: =IF(SUM(V82+W82)>60,60,SUM(V82+W82)) -> 0 | AB82: =IF(SUM(Z82+AA82)>60,60,SUM(Z82+AA82)) -> 0 | AG82: =IF(SUM(AD82+AE82)>60,60,SUM(AD82+AE82)) -> 0 | AH82: =+X82+AB82+AG82 -> 0 | AI82: =+T82+AH82 -> 0 | AJ82: =IF(E82<>"",SUM(I82+M82+R82+W82+AA82+AE82),"") ->  | AQ82: N | AR82: =IF(D82="",99,VLOOKUP(D82,'Go Order'!$C$3:$D$37,2,FALSE)) -> 99
A83: 75 | B83: 75 | J83: =IF(SUM(H83+I83)>60,60,SUM(H83+I83)) -> 0 | N83: =IF(SUM(L83+M83)>60,60,SUM(L83+M83)) -> 0 | O83: =SUM(J83+N83) -> 0 | S83: =IF(SUM(Q83+R83)>60,60,SUM(Q83+R83)) -> 0 | T83: =SUM(O83+S83) -> 0 | X83: =IF(SUM(V83+W83)>60,60,SUM(V83+W83)) -> 0 | AB83: =IF(SUM(Z83+AA83)>60,60,SUM(Z83+AA83)) -> 0 | AG83: =IF(SUM(AD83+AE83)>60,60,SUM(AD83+AE83)) -> 0 | AH83: =+X83+AB83+AG83 -> 0 | AI83: =+T83+AH83 -> 0 | AJ83: =IF(E83<>"",SUM(I83+M83+R83+W83+AA83+AE83),"") ->  | AQ83: N | AR83: =IF(D83="",99,VLOOKUP(D83,'Go Order'!$C$3:$D$37,2,FALSE)) -> 99
A84: 76 | B84: 76 | J84: =IF(SUM(H84+I84)>60,60,SUM(H84+I84)) -> 0 | N84: =IF(SUM(L84+M84)>60,60,SUM(L84+M84)) -> 0 | O84: =SUM(J84+N84) -> 0 | S84: =IF(SUM(Q84+R84)>60,60,SUM(Q84+R84)) -> 0 | T84: =SUM(O84+S84) -> 0 | X84: =IF(SUM(V84+W84)>60,60,SUM(V84+W84)) -> 0 | AB84: =IF(SUM(Z84+AA84)>60,60,SUM(Z84+AA84)) -> 0 | AG84: =IF(SUM(AD84+AE84)>60,60,SUM(AD84+AE84)) -> 0 | AH84: =+X84+AB84+AG84 -> 0 | AI84: =+T84+AH84 -> 0 | AJ84: =IF(E84<>"",SUM(I84+M84+R84+W84+AA84+AE84),"") ->  | AQ84: N | AR84: =IF(D84="",99,VLOOKUP(D84,'Go Order'!$C$3:$D$37,2,FALSE)) -> 99
A85: 77 | B85: 77 | J85: =IF(SUM(H85+I85)>60,60,SUM(H85+I85)) -> 0 | N85: =IF(SUM(L85+M85)>60,60,SUM(L85+M85)) -> 0 | O85: =SUM(J85+N85) -> 0 | S85: =IF(SUM(Q85+R85)>60,60,SUM(Q85+R85)) -> 0 | T85: =SUM(O85+S85) -> 0 | X85: =IF(SUM(V85+W85)>60,60,SUM(V85+W85)) -> 0 | AB85: =IF(SUM(Z85+AA85)>60,60,SUM(Z85+AA85)) -> 0 | AG85: =IF(SUM(AD85+AE85)>60,60,SUM(AD85+AE85)) -> 0 | AH85: =+X85+AB85+AG85 -> 0 | AI85: =+T85+AH85 -> 0 | AJ85: =IF(E85<>"",SUM(I85+M85+R85+W85+AA85+AE85),"") ->  | AQ85: N | AR85: =IF(D85="",99,VLOOKUP(D85,'Go Order'!$C$3:$D$37,2,FALSE)) -> 99
A86: 78 | B86: 78 | J86: =IF(SUM(H86+I86)>60,60,SUM(H86+I86)) -> 0 | N86: =IF(SUM(L86+M86)>60,60,SUM(L86+M86)) -> 0 | O86: =SUM(J86+N86) -> 0 | S86: =IF(SUM(Q86+R86)>60,60,SUM(Q86+R86)) -> 0 | T86: =SUM(O86+S86) -> 0 | X86: =IF(SUM(V86+W86)>60,60,SUM(V86+W86)) -> 0 | AB86: =IF(SUM(Z86+AA86)>60,60,SUM(Z86+AA86)) -> 0 | AG86: =IF(SUM(AD86+AE86)>60,60,SUM(AD86+AE86)) -> 0 | AH86: =+X86+AB86+AG86 -> 0 | AI86: =+T86+AH86 -> 0 | AJ86: =IF(E86<>"",SUM(I86+M86+R86+W86+AA86+AE86),"") ->  | AQ86: N | AR86: =IF(D86="",99,VLOOKUP(D86,'Go Order'!$C$3:$D$37,2,FALSE)) -> 99
A87: 79 | B87: 79 | J87: =IF(SUM(H87+I87)>60,60,SUM(H87+I87)) -> 0 | N87: =IF(SUM(L87+M87)>60,60,SUM(L87+M87)) -> 0 | O87: =SUM(J87+N87) -> 0 | S87: =IF(SUM(Q87+R87)>60,60,SUM(Q87+R87)) -> 0 | T87: =SUM(O87+S87) -> 0 | X87: =IF(SUM(V87+W87)>60,60,SUM(V87+W87)) -> 0 | AB87: =IF(SUM(Z87+AA87)>60,60,SUM(Z87+AA87)) -> 0 | AG87: =IF(SUM(AD87+AE87)>60,60,SUM(AD87+AE87)) -> 0 | AH87: =+X87+AB87+AG87 -> 0 | AI87: =+T87+AH87 -> 0 | AJ87: =IF(E87<>"",SUM(I87+M87+R87+W87+AA87+AE87),"") ->  | AQ87: N | AR87: =IF(D87="",99,VLOOKUP(D87,'Go Order'!$C$3:$D$37,2,FALSE)) -> 99
A88: 80 | B88: 80 | J88: =IF(SUM(H88+I88)>60,60,SUM(H88+I88)) -> 0 | N88: =IF(SUM(L88+M88)>60,60,SUM(L88+M88)) -> 0 | O88: =SUM(J88+N88) -> 0 | S88: =IF(SUM(Q88+R88)>60,60,SUM(Q88+R88)) -> 0 | T88: =SUM(O88+S88) -> 0 | X88: =IF(SUM(V88+W88)>60,60,SUM(V88+W88)) -> 0 | AB88: =IF(SUM(Z88+AA88)>60,60,SUM(Z88+AA88)) -> 0 | AG88: =IF(SUM(AD88+AE88)>60,60,SUM(AD88+AE88)) -> 0 | AH88: =+X88+AB88+AG88 -> 0 | AI88: =+T88+AH88 -> 0 | AJ88: =IF(E88<>"",SUM(I88+M88+R88+W88+AA88+AE88),"") ->  | AQ88: N | AR88: =IF(D88="",99,VLOOKUP(D88,'Go Order'!$C$3:$D$37,2,FALSE)) -> 99
A89: 81 | B89: 81 | J89: =IF(SUM(H89+I89)>60,60,SUM(H89+I89)) -> 0 | N89: =IF(SUM(L89+M89)>60,60,SUM(L89+M89)) -> 0 | O89: =SUM(J89+N89) -> 0 | S89: =IF(SUM(Q89+R89)>60,60,SUM(Q89+R89)) -> 0 | T89: =SUM(O89+S89) -> 0 | X89: =IF(SUM(V89+W89)>60,60,SUM(V89+W89)) -> 0 | AB89: =IF(SUM(Z89+AA89)>60,60,SUM(Z89+AA89)) -> 0 | AG89: =IF(SUM(AD89+AE89)>60,60,SUM(AD89+AE89)) -> 0 | AH89: =+X89+AB89+AG89 -> 0 | AI89: =+T89+AH89 -> 0 | AJ89: =IF(E89<>"",SUM(I89+M89+R89+W89+AA89+AE89),"") ->  | AQ89: N | AR89: =IF(D89="",99,VLOOKUP(D89,'Go Order'!$C$3:$D$37,2,FALSE)) -> 99
A90: 82 | B90: 82 | J90: =IF(SUM(H90+I90)>60,60,SUM(H90+I90)) -> 0 | N90: =IF(SUM(L90+M90)>60,60,SUM(L90+M90)) -> 0 | O90: =SUM(J90+N90) -> 0 | S90: =IF(SUM(Q90+R90)>60,60,SUM(Q90+R90)) -> 0 | T90: =SUM(O90+S90) -> 0 | X90: =IF(SUM(V90+W90)>60,60,SUM(V90+W90)) -> 0 | AB90: =IF(SUM(Z90+AA90)>60,60,SUM(Z90+AA90)) -> 0 | AG90: =IF(SUM(AD90+AE90)>60,60,SUM(AD90+AE90)) -> 0 | AH90: =+X90+AB90+AG90 -> 0 | AI90: =+T90+AH90 -> 0 | AJ90: =IF(E90<>"",SUM(I90+M90+R90+W90+AA90+AE90),"") ->  | AQ90: N | AR90: =IF(D90="",99,VLOOKUP(D90,'Go Order'!$C$3:$D$37,2,FALSE)) -> 99
A91: 83 | B91: 83 | J91: =IF(SUM(H91+I91)>60,60,SUM(H91+I91)) -> 0 | N91: =IF(SUM(L91+M91)>60,60,SUM(L91+M91)) -> 0 | O91: =SUM(J91+N91) -> 0 | S91: =IF(SUM(Q91+R91)>60,60,SUM(Q91+R91)) -> 0 | T91: =SUM(O91+S91) -> 0 | X91: =IF(SUM(V91+W91)>60,60,SUM(V91+W91)) -> 0 | AB91: =IF(SUM(Z91+AA91)>60,60,SUM(Z91+AA91)) -> 0 | AG91: =IF(SUM(AD91+AE91)>60,60,SUM(AD91+AE91)) -> 0 | AH91: =+X91+AB91+AG91 -> 0 | AI91: =+T91+AH91 -> 0 | AJ91: =IF(E91<>"",SUM(I91+M91+R91+W91+AA91+AE91),"") ->  | AQ91: N | AR91: =IF(D91="",99,VLOOKUP(D91,'Go Order'!$C$3:$D$37,2,FALSE)) -> 99
A92: 84 | B92: 84 | J92: =IF(SUM(H92+I92)>60,60,SUM(H92+I92)) -> 0 | N92: =IF(SUM(L92+M92)>60,60,SUM(L92+M92)) -> 0 | O92: =SUM(J92+N92) -> 0 | S92: =IF(SUM(Q92+R92)>60,60,SUM(Q92+R92)) -> 0 | T92: =SUM(O92+S92) -> 0 | X92: =IF(SUM(V92+W92)>60,60,SUM(V92+W92)) -> 0 | AB92: =IF(SUM(Z92+AA92)>60,60,SUM(Z92+AA92)) -> 0 | AG92: =IF(SUM(AD92+AE92)>60,60,SUM(AD92+AE92)) -> 0 | AH92: =+X92+AB92+AG92 -> 0 | AI92: =+T92+AH92 -> 0 | AJ92: =IF(E92<>"",SUM(I92+M92+R92+W92+AA92+AE92),"") ->  | AQ92: N | AR92: =IF(D92="",99,VLOOKUP(D92,'Go Order'!$C$3:$D$37,2,FALSE)) -> 99
A93: 85 | B93: 85 | J93: =IF(SUM(H93+I93)>60,60,SUM(H93+I93)) -> 0 | N93: =IF(SUM(L93+M93)>60,60,SUM(L93+M93)) -> 0 | O93: =SUM(J93+N93) -> 0 | S93: =IF(SUM(Q93+R93)>60,60,SUM(Q93+R93)) -> 0 | T93: =SUM(O93+S93) -> 0 | X93: =IF(SUM(V93+W93)>60,60,SUM(V93+W93)) -> 0 | AB93: =IF(SUM(Z93+AA93)>60,60,SUM(Z93+AA93)) -> 0 | AG93: =IF(SUM(AD93+AE93)>60,60,SUM(AD93+AE93)) -> 0 | AH93: =+X93+AB93+AG93 -> 0 | AI93: =+T93+AH93 -> 0 | AJ93: =IF(E93<>"",SUM(I93+M93+R93+W93+AA93+AE93),"") ->  | AQ93: N | AR93: =IF(D93="",99,VLOOKUP(D93,'Go Order'!$C$3:$D$37,2,FALSE)) -> 99
A94: 86 | B94: 86 | J94: =IF(SUM(H94+I94)>60,60,SUM(H94+I94)) -> 0 | N94: =IF(SUM(L94+M94)>60,60,SUM(L94+M94)) -> 0 | O94: =SUM(J94+N94) -> 0 | S94: =IF(SUM(Q94+R94)>60,60,SUM(Q94+R94)) -> 0 | T94: =SUM(O94+S94) -> 0 | X94: =IF(SUM(V94+W94)>60,60,SUM(V94+W94)) -> 0 | AB94: =IF(SUM(Z94+AA94)>60,60,SUM(Z94+AA94)) -> 0 | AG94: =IF(SUM(AD94+AE94)>60,60,SUM(AD94+AE94)) -> 0 | AH94: =+X94+AB94+AG94 -> 0 | AI94: =+T94+AH94 -> 0 | AJ94: =IF(E94<>"",SUM(I94+M94+R94+W94+AA94+AE94),"") ->  | AQ94: N | AR94: =IF(D94="",99,VLOOKUP(D94,'Go Order'!$C$3:$D$37,2,FALSE)) -> 99
A95: 87 | B95: 87 | J95: =IF(SUM(H95+I95)>60,60,SUM(H95+I95)) -> 0 | N95: =IF(SUM(L95+M95)>60,60,SUM(L95+M95)) -> 0 | O95: =SUM(J95+N95) -> 0 | S95: =IF(SUM(Q95+R95)>60,60,SUM(Q95+R95)) -> 0 | T95: =SUM(O95+S95) -> 0 | X95: =IF(SUM(V95+W95)>60,60,SUM(V95+W95)) -> 0 | AB95: =IF(SUM(Z95+AA95)>60,60,SUM(Z95+AA95)) -> 0 | AG95: =IF(SUM(AD95+AE95)>60,60,SUM(AD95+AE95)) -> 0 | AH95: =+X95+AB95+AG95 -> 0 | AI95: =+T95+AH95 -> 0 | AJ95: =IF(E95<>"",SUM(I95+M95+R95+W95+AA95+AE95),"") ->  | AQ95: N | AR95: =IF(D95="",99,VLOOKUP(D95,'Go Order'!$C$3:$D$37,2,FALSE)) -> 99
A96: 88 | B96: 88 | J96: =IF(SUM(H96+I96)>60,60,SUM(H96+I96)) -> 0 | N96: =IF(SUM(L96+M96)>60,60,SUM(L96+M96)) -> 0 | O96: =SUM(J96+N96) -> 0 | S96: =IF(SUM(Q96+R96)>60,60,SUM(Q96+R96)) -> 0 | T96: =SUM(O96+S96) -> 0 | X96: =IF(SUM(V96+W96)>60,60,SUM(V96+W96)) -> 0 | AB96: =IF(SUM(Z96+AA96)>60,60,SUM(Z96+AA96)) -> 0 | AG96: =IF(SUM(AD96+AE96)>60,60,SUM(AD96+AE96)) -> 0 | AH96: =+X96+AB96+AG96 -> 0 | AI96: =+T96+AH96 -> 0 | AJ96: =IF(E96<>"",SUM(I96+M96+R96+W96+AA96+AE96),"") ->  | AQ96: N | AR96: =IF(D96="",99,VLOOKUP(D96,'Go Order'!$C$3:$D$37,2,FALSE)) -> 99
A97: 89 | B97: 89 | J97: =IF(SUM(H97+I97)>60,60,SUM(H97+I97)) -> 0 | N97: =IF(SUM(L97+M97)>60,60,SUM(L97+M97)) -> 0 | O97: =SUM(J97+N97) -> 0 | S97: =IF(SUM(Q97+R97)>60,60,SUM(Q97+R97)) -> 0 | T97: =SUM(O97+S97) -> 0 | X97: =IF(SUM(V97+W97)>60,60,SUM(V97+W97)) -> 0 | AB97: =IF(SUM(Z97+AA97)>60,60,SUM(Z97+AA97)) -> 0 | AG97: =IF(SUM(AD97+AE97)>60,60,SUM(AD97+AE97)) -> 0 | AH97: =+X97+AB97+AG97 -> 0 | AI97: =+T97+AH97 -> 0 | AJ97: =IF(E97<>"",SUM(I97+M97+R97+W97+AA97+AE97),"") ->  | AQ97: N | AR97: =IF(D97="",99,VLOOKUP(D97,'Go Order'!$C$3:$D$37,2,FALSE)) -> 99
A98: 90 | B98: 90 | J98: =IF(SUM(H98+I98)>60,60,SUM(H98+I98)) -> 0 | N98: =IF(SUM(L98+M98)>60,60,SUM(L98+M98)) -> 0 | O98: =SUM(J98+N98) -> 0 | S98: =IF(SUM(Q98+R98)>60,60,SUM(Q98+R98)) -> 0 | T98: =SUM(O98+S98) -> 0 | X98: =IF(SUM(V98+W98)>60,60,SUM(V98+W98)) -> 0 | AB98: =IF(SUM(Z98+AA98)>60,60,SUM(Z98+AA98)) -> 0 | AG98: =IF(SUM(AD98+AE98)>60,60,SUM(AD98+AE98)) -> 0 | AH98: =+X98+AB98+AG98 -> 0 | AI98: =+T98+AH98 -> 0 | AJ98: =IF(E98<>"",SUM(I98+M98+R98+W98+AA98+AE98),"") ->  | AQ98: N | AR98: =IF(D98="",99,VLOOKUP(D98,'Go Order'!$C$3:$D$37,2,FALSE)) -> 99
A99: 91 | B99: 91 | J99: =IF(SUM(H99+I99)>60,60,SUM(H99+I99)) -> 0 | N99: =IF(SUM(L99+M99)>60,60,SUM(L99+M99)) -> 0 | O99: =SUM(J99+N99) -> 0 | S99: =IF(SUM(Q99+R99)>60,60,SUM(Q99+R99)) -> 0 | T99: =SUM(O99+S99) -> 0 | X99: =IF(SUM(V99+W99)>60,60,SUM(V99+W99)) -> 0 | AB99: =IF(SUM(Z99+AA99)>60,60,SUM(Z99+AA99)) -> 0 | AG99: =IF(SUM(AD99+AE99)>60,60,SUM(AD99+AE99)) -> 0 | AH99: =+X99+AB99+AG99 -> 0 | AI99: =+T99+AH99 -> 0 | AJ99: =IF(E99<>"",SUM(I99+M99+R99+W99+AA99+AE99),"") ->  | AQ99: N | AR99: =IF(D99="",99,VLOOKUP(D99,'Go Order'!$C$3:$D$37,2,FALSE)) -> 99
A100: 92 | B100: 92 | J100: =IF(SUM(H100+I100)>60,60,SUM(H100+I100)) -> 0 | N100: =IF(SUM(L100+M100)>60,60,SUM(L100+M100)) -> 0 | O100: =SUM(J100+N100) -> 0 | S100: =IF(SUM(Q100+R100)>60,60,SUM(Q100+R100)) -> 0 | T100: =SUM(O100+S100) -> 0 | X100: =IF(SUM(V100+W100)>60,60,SUM(V100+W100)) -> 0 | AB100: =IF(SUM(Z100+AA100)>60,60,SUM(Z100+AA100)) -> 0 | AG100: =IF(SUM(AD100+AE100)>60,60,SUM(AD100+AE100)) -> 0 | AH100: =+X100+AB100+AG100 -> 0 | AI100: =+T100+AH100 -> 0 | AJ100: =IF(E100<>"",SUM(I100+M100+R100+W100+AA100+AE100),"") ->  | AQ100: N | AR100: =IF(D100="",99,VLOOKUP(D100,'Go Order'!$C$3:$D$37,2,FALSE)) -> 99
A101: 93 | B101: 93 | J101: =IF(SUM(H101+I101)>60,60,SUM(H101+I101)) -> 0 | N101: =IF(SUM(L101+M101)>60,60,SUM(L101+M101)) -> 0 | O101: =SUM(J101+N101) -> 0 | S101: =IF(SUM(Q101+R101)>60,60,SUM(Q101+R101)) -> 0 | T101: =SUM(O101+S101) -> 0 | X101: =IF(SUM(V101+W101)>60,60,SUM(V101+W101)) -> 0 | AB101: =IF(SUM(Z101+AA101)>60,60,SUM(Z101+AA101)) -> 0 | AG101: =IF(SUM(AD101+AE101)>60,60,SUM(AD101+AE101)) -> 0 | AH101: =+X101+AB101+AG101 -> 0 | AI101: =+T101+AH101 -> 0 | AJ101: =IF(E101<>"",SUM(I101+M101+R101+W101+AA101+AE101),"") ->  | AQ101: N | AR101: =IF(D101="",99,VLOOKUP(D101,'Go Order'!$C$3:$D$37,2,FALSE)) -> 99
A102: 94 | B102: 94 | J102: =IF(SUM(H102+I102)>60,60,SUM(H102+I102)) -> 0 | N102: =IF(SUM(L102+M102)>60,60,SUM(L102+M102)) -> 0 | O102: =SUM(J102+N102) -> 0 | S102: =IF(SUM(Q102+R102)>60,60,SUM(Q102+R102)) -> 0 | T102: =SUM(O102+S102) -> 0 | X102: =IF(SUM(V102+W102)>60,60,SUM(V102+W102)) -> 0 | AB102: =IF(SUM(Z102+AA102)>60,60,SUM(Z102+AA102)) -> 0 | AG102: =IF(SUM(AD102+AE102)>60,60,SUM(AD102+AE102)) -> 0 | AH102: =+X102+AB102+AG102 -> 0 | AI102: =+T102+AH102 -> 0 | AJ102: =IF(E102<>"",SUM(I102+M102+R102+W102+AA102+AE102),"") ->  | AQ102: N | AR102: =IF(D102="",99,VLOOKUP(D102,'Go Order'!$C$3:$D$37,2,FALSE)) -> 99
A103: 95 | B103: 95 | J103: =IF(SUM(H103+I103)>60,60,SUM(H103+I103)) -> 0 | N103: =IF(SUM(L103+M103)>60,60,SUM(L103+M103)) -> 0 | O103: =SUM(J103+N103) -> 0 | S103: =IF(SUM(Q103+R103)>60,60,SUM(Q103+R103)) -> 0 | T103: =SUM(O103+S103) -> 0 | X103: =IF(SUM(V103+W103)>60,60,SUM(V103+W103)) -> 0 | AB103: =IF(SUM(Z103+AA103)>60,60,SUM(Z103+AA103)) -> 0 | AG103: =IF(SUM(AD103+AE103)>60,60,SUM(AD103+AE103)) -> 0 | AH103: =+X103+AB103+AG103 -> 0 | AI103: =+T103+AH103 -> 0 | AJ103: =IF(E103<>"",SUM(I103+M103+R103+W103+AA103+AE103),"") ->  | AQ103: N | AR103: =IF(D103="",99,VLOOKUP(D103,'Go Order'!$C$3:$D$37,2,FALSE)) -> 99
A104: 96 | B104: 96 | J104: =IF(SUM(H104+I104)>60,60,SUM(H104+I104)) -> 0 | N104: =IF(SUM(L104+M104)>60,60,SUM(L104+M104)) -> 0 | O104: =SUM(J104+N104) -> 0 | S104: =IF(SUM(Q104+R104)>60,60,SUM(Q104+R104)) -> 0 | T104: =SUM(O104+S104) -> 0 | X104: =IF(SUM(V104+W104)>60,60,SUM(V104+W104)) -> 0 | AB104: =IF(SUM(Z104+AA104)>60,60,SUM(Z104+AA104)) -> 0 | AG104: =IF(SUM(AD104+AE104)>60,60,SUM(AD104+AE104)) -> 0 | AH104: =+X104+AB104+AG104 -> 0 | AI104: =+T104+AH104 -> 0 | AJ104: =IF(E104<>"",SUM(I104+M104+R104+W104+AA104+AE104),"") ->  | AQ104: N | AR104: =IF(D104="",99,VLOOKUP(D104,'Go Order'!$C$3:$D$37,2,FALSE)) -> 99
A105: 97 | B105: 97 | J105: =IF(SUM(H105+I105)>60,60,SUM(H105+I105)) -> 0 | N105: =IF(SUM(L105+M105)>60,60,SUM(L105+M105)) -> 0 | O105: =SUM(J105+N105) -> 0 | S105: =IF(SUM(Q105+R105)>60,60,SUM(Q105+R105)) -> 0 | T105: =SUM(O105+S105) -> 0 | X105: =IF(SUM(V105+W105)>60,60,SUM(V105+W105)) -> 0 | AB105: =IF(SUM(Z105+AA105)>60,60,SUM(Z105+AA105)) -> 0 | AG105: =IF(SUM(AD105+AE105)>60,60,SUM(AD105+AE105)) -> 0 | AH105: =+X105+AB105+AG105 -> 0 | AI105: =+T105+AH105 -> 0 | AJ105: =IF(E105<>"",SUM(I105+M105+R105+W105+AA105+AE105),"") ->  | AQ105: N | AR105: =IF(D105="",99,VLOOKUP(D105,'Go Order'!$C$3:$D$37,2,FALSE)) -> 99
A106: 98 | B106: 98 | J106: =IF(SUM(H106+I106)>60,60,SUM(H106+I106)) -> 0 | N106: =IF(SUM(L106+M106)>60,60,SUM(L106+M106)) -> 0 | O106: =SUM(J106+N106) -> 0 | S106: =IF(SUM(Q106+R106)>60,60,SUM(Q106+R106)) -> 0 | T106: =SUM(O106+S106) -> 0 | X106: =IF(SUM(V106+W106)>60,60,SUM(V106+W106)) -> 0 | AB106: =IF(SUM(Z106+AA106)>60,60,SUM(Z106+AA106)) -> 0 | AG106: =IF(SUM(AD106+AE106)>60,60,SUM(AD106+AE106)) -> 0 | AH106: =+X106+AB106+AG106 -> 0 | AI106: =+T106+AH106 -> 0 | AJ106: =IF(E106<>"",SUM(I106+M106+R106+W106+AA106+AE106),"") ->  | AQ106: N | AR106: =IF(D106="",99,VLOOKUP(D106,'Go Order'!$C$3:$D$37,2,FALSE)) -> 99
A107: 99 | B107: 99 | J107: =IF(SUM(H107+I107)>60,60,SUM(H107+I107)) -> 0 | N107: =IF(SUM(L107+M107)>60,60,SUM(L107+M107)) -> 0 | O107: =SUM(J107+N107) -> 0 | S107: =IF(SUM(Q107+R107)>60,60,SUM(Q107+R107)) -> 0 | T107: =SUM(O107+S107) -> 0 | X107: =IF(SUM(V107+W107)>60,60,SUM(V107+W107)) -> 0 | AB107: =IF(SUM(Z107+AA107)>60,60,SUM(Z107+AA107)) -> 0 | AG107: =IF(SUM(AD107+AE107)>60,60,SUM(AD107+AE107)) -> 0 | AH107: =+X107+AB107+AG107 -> 0 | AI107: =+T107+AH107 -> 0 | AJ107: =IF(E107<>"",SUM(I107+M107+R107+W107+AA107+AE107),"") ->  | AQ107: N | AR107: =IF(D107="",99,VLOOKUP(D107,'Go Order'!$C$3:$D$37,2,FALSE)) -> 99
A108: 100 | B108: 100 | J108: =IF(SUM(H108+I108)>60,60,SUM(H108+I108)) -> 0 | N108: =IF(SUM(L108+M108)>60,60,SUM(L108+M108)) -> 0 | O108: =SUM(J108+N108) -> 0 | S108: =IF(SUM(Q108+R108)>60,60,SUM(Q108+R108)) -> 0 | T108: =SUM(O108+S108) -> 0 | X108: =IF(SUM(V108+W108)>60,60,SUM(V108+W108)) -> 0 | AB108: =IF(SUM(Z108+AA108)>60,60,SUM(Z108+AA108)) -> 0 | AG108: =IF(SUM(AD108+AE108)>60,60,SUM(AD108+AE108)) -> 0 | AH108: =+X108+AB108+AG108 -> 0 | AI108: =+T108+AH108 -> 0 | AJ108: =IF(E108<>"",SUM(I108+M108+R108+W108+AA108+AE108),"") ->  | AQ108: N | AR108: =IF(D108="",99,VLOOKUP(D108,'Go Order'!$C$3:$D$37,2,FALSE)) -> 99
A109: 101 | B109: 101 | J109: =IF(SUM(H109+I109)>60,60,SUM(H109+I109)) -> 0 | N109: =IF(SUM(L109+M109)>60,60,SUM(L109+M109)) -> 0 | O109: =SUM(J109+N109) -> 0 | S109: =IF(SUM(Q109+R109)>60,60,SUM(Q109+R109)) -> 0 | T109: =SUM(O109+S109) -> 0 | X109: =IF(SUM(V109+W109)>60,60,SUM(V109+W109)) -> 0 | AB109: =IF(SUM(Z109+AA109)>60,60,SUM(Z109+AA109)) -> 0 | AG109: =IF(SUM(AD109+AE109)>60,60,SUM(AD109+AE109)) -> 0 | AH109: =+X109+AB109+AG109 -> 0 | AI109: =+T109+AH109 -> 0 | AJ109: =IF(E109<>"",SUM(I109+M109+R109+W109+AA109+AE109),"") ->  | AQ109: N | AR109: =IF(D109="",99,VLOOKUP(D109,'Go Order'!$C$3:$D$37,2,FALSE)) -> 99
A110: 102 | B110: 102 | J110: =IF(SUM(H110+I110)>60,60,SUM(H110+I110)) -> 0 | N110: =IF(SUM(L110+M110)>60,60,SUM(L110+M110)) -> 0 | O110: =SUM(J110+N110) -> 0 | S110: =IF(SUM(Q110+R110)>60,60,SUM(Q110+R110)) -> 0 | T110: =SUM(O110+S110) -> 0 | X110: =IF(SUM(V110+W110)>60,60,SUM(V110+W110)) -> 0 | AB110: =IF(SUM(Z110+AA110)>60,60,SUM(Z110+AA110)) -> 0 | AG110: =IF(SUM(AD110+AE110)>60,60,SUM(AD110+AE110)) -> 0 | AH110: =+X110+AB110+AG110 -> 0 | AI110: =+T110+AH110 -> 0 | AJ110: =IF(E110<>"",SUM(I110+M110+R110+W110+AA110+AE110),"") ->  | AQ110: N | AR110: =IF(D110="",99,VLOOKUP(D110,'Go Order'!$C$3:$D$37,2,FALSE)) -> 99
A111: 103 | B111: 103 | J111: =IF(SUM(H111+I111)>60,60,SUM(H111+I111)) -> 0 | N111: =IF(SUM(L111+M111)>60,60,SUM(L111+M111)) -> 0 | O111: =SUM(J111+N111) -> 0 | S111: =IF(SUM(Q111+R111)>60,60,SUM(Q111+R111)) -> 0 | T111: =SUM(O111+S111) -> 0 | X111: =IF(SUM(V111+W111)>60,60,SUM(V111+W111)) -> 0 | AB111: =IF(SUM(Z111+AA111)>60,60,SUM(Z111+AA111)) -> 0 | AG111: =IF(SUM(AD111+AE111)>60,60,SUM(AD111+AE111)) -> 0 | AH111: =+X111+AB111+AG111 -> 0 | AI111: =+T111+AH111 -> 0 | AJ111: =IF(E111<>"",SUM(I111+M111+R111+W111+AA111+AE111),"") ->  | AQ111: N | AR111: =IF(D111="",99,VLOOKUP(D111,'Go Order'!$C$3:$D$37,2,FALSE)) -> 99
A112: 104 | B112: 104 | J112: =IF(SUM(H112+I112)>60,60,SUM(H112+I112)) -> 0 | N112: =IF(SUM(L112+M112)>60,60,SUM(L112+M112)) -> 0 | O112: =SUM(J112+N112) -> 0 | S112: =IF(SUM(Q112+R112)>60,60,SUM(Q112+R112)) -> 0 | T112: =SUM(O112+S112) -> 0 | X112: =IF(SUM(V112+W112)>60,60,SUM(V112+W112)) -> 0 | AB112: =IF(SUM(Z112+AA112)>60,60,SUM(Z112+AA112)) -> 0 | AG112: =IF(SUM(AD112+AE112)>60,60,SUM(AD112+AE112)) -> 0 | AH112: =+X112+AB112+AG112 -> 0 | AI112: =+T112+AH112 -> 0 | AJ112: =IF(E112<>"",SUM(I112+M112+R112+W112+AA112+AE112),"") ->  | AQ112: N | AR112: =IF(D112="",99,VLOOKUP(D112,'Go Order'!$C$3:$D$37,2,FALSE)) -> 99
A113: 105 | B113: 105 | J113: =IF(SUM(H113+I113)>60,60,SUM(H113+I113)) -> 0 | N113: =IF(SUM(L113+M113)>60,60,SUM(L113+M113)) -> 0 | O113: =SUM(J113+N113) -> 0 | S113: =IF(SUM(Q113+R113)>60,60,SUM(Q113+R113)) -> 0 | T113: =SUM(O113+S113) -> 0 | X113: =IF(SUM(V113+W113)>60,60,SUM(V113+W113)) -> 0 | AB113: =IF(SUM(Z113+AA113)>60,60,SUM(Z113+AA113)) -> 0 | AG113: =IF(SUM(AD113+AE113)>60,60,SUM(AD113+AE113)) -> 0 | AH113: =+X113+AB113+AG113 -> 0 | AI113: =+T113+AH113 -> 0 | AJ113: =IF(E113<>"",SUM(I113+M113+R113+W113+AA113+AE113),"") ->  | AQ113: N | AR113: =IF(D113="",99,VLOOKUP(D113,'Go Order'!$C$3:$D$37,2,FALSE)) -> 99
A114: 106 | B114: 106 | J114: =IF(SUM(H114+I114)>60,60,SUM(H114+I114)) -> 0 | N114: =IF(SUM(L114+M114)>60,60,SUM(L114+M114)) -> 0 | O114: =SUM(J114+N114) -> 0 | S114: =IF(SUM(Q114+R114)>60,60,SUM(Q114+R114)) -> 0 | T114: =SUM(O114+S114) -> 0 | X114: =IF(SUM(V114+W114)>60,60,SUM(V114+W114)) -> 0 | AB114: =IF(SUM(Z114+AA114)>60,60,SUM(Z114+AA114)) -> 0 | AG114: =IF(SUM(AD114+AE114)>60,60,SUM(AD114+AE114)) -> 0 | AH114: =+X114+AB114+AG114 -> 0 | AI114: =+T114+AH114 -> 0 | AJ114: =IF(E114<>"",SUM(I114+M114+R114+W114+AA114+AE114),"") ->  | AQ114: N | AR114: =IF(D114="",99,VLOOKUP(D114,'Go Order'!$C$3:$D$37,2,FALSE)) -> 99
A115: 107 | B115: 107 | J115: =IF(SUM(H115+I115)>60,60,SUM(H115+I115)) -> 0 | N115: =IF(SUM(L115+M115)>60,60,SUM(L115+M115)) -> 0 | O115: =SUM(J115+N115) -> 0 | S115: =IF(SUM(Q115+R115)>60,60,SUM(Q115+R115)) -> 0 | T115: =SUM(O115+S115) -> 0 | X115: =IF(SUM(V115+W115)>60,60,SUM(V115+W115)) -> 0 | AB115: =IF(SUM(Z115+AA115)>60,60,SUM(Z115+AA115)) -> 0 | AG115: =IF(SUM(AD115+AE115)>60,60,SUM(AD115+AE115)) -> 0 | AH115: =+X115+AB115+AG115 -> 0 | AI115: =+T115+AH115 -> 0 | AJ115: =IF(E115<>"",SUM(I115+M115+R115+W115+AA115+AE115),"") ->  | AQ115: N | AR115: =IF(D115="",99,VLOOKUP(D115,'Go Order'!$C$3:$D$37,2,FALSE)) -> 99
A116: 108 | B116: 108 | J116: =IF(SUM(H116+I116)>60,60,SUM(H116+I116)) -> 0 | N116: =IF(SUM(L116+M116)>60,60,SUM(L116+M116)) -> 0 | O116: =SUM(J116+N116) -> 0 | S116: =IF(SUM(Q116+R116)>60,60,SUM(Q116+R116)) -> 0 | T116: =SUM(O116+S116) -> 0 | X116: =IF(SUM(V116+W116)>60,60,SUM(V116+W116)) -> 0 | AB116: =IF(SUM(Z116+AA116)>60,60,SUM(Z116+AA116)) -> 0 | AG116: =IF(SUM(AD116+AE116)>60,60,SUM(AD116+AE116)) -> 0 | AH116: =+X116+AB116+AG116 -> 0 | AI116: =+T116+AH116 -> 0 | AJ116: =IF(E116<>"",SUM(I116+M116+R116+W116+AA116+AE116),"") ->  | AQ116: N | AR116: =IF(D116="",99,VLOOKUP(D116,'Go Order'!$C$3:$D$37,2,FALSE)) -> 99
A117: 109 | B117: 109 | J117: =IF(SUM(H117+I117)>60,60,SUM(H117+I117)) -> 0 | N117: =IF(SUM(L117+M117)>60,60,SUM(L117+M117)) -> 0 | O117: =SUM(J117+N117) -> 0 | S117: =IF(SUM(Q117+R117)>60,60,SUM(Q117+R117)) -> 0 | T117: =SUM(O117+S117) -> 0 | X117: =IF(SUM(V117+W117)>60,60,SUM(V117+W117)) -> 0 | AB117: =IF(SUM(Z117+AA117)>60,60,SUM(Z117+AA117)) -> 0 | AG117: =IF(SUM(AD117+AE117)>60,60,SUM(AD117+AE117)) -> 0 | AH117: =+X117+AB117+AG117 -> 0 | AI117: =+T117+AH117 -> 0 | AJ117: =IF(E117<>"",SUM(I117+M117+R117+W117+AA117+AE117),"") ->  | AQ117: N | AR117: =IF(D117="",99,VLOOKUP(D117,'Go Order'!$C$3:$D$37,2,FALSE)) -> 99
A118: 110 | B118: 110 | J118: =IF(SUM(H118+I118)>60,60,SUM(H118+I118)) -> 0 | N118: =IF(SUM(L118+M118)>60,60,SUM(L118+M118)) -> 0 | O118: =SUM(J118+N118) -> 0 | S118: =IF(SUM(Q118+R118)>60,60,SUM(Q118+R118)) -> 0 | T118: =SUM(O118+S118) -> 0 | X118: =IF(SUM(V118+W118)>60,60,SUM(V118+W118)) -> 0 | AB118: =IF(SUM(Z118+AA118)>60,60,SUM(Z118+AA118)) -> 0 | AG118: =IF(SUM(AD118+AE118)>60,60,SUM(AD118+AE118)) -> 0 | AH118: =+X118+AB118+AG118 -> 0 | AI118: =+T118+AH118 -> 0 | AJ118: =IF(E118<>"",SUM(I118+M118+R118+W118+AA118+AE118),"") ->  | AQ118: N | AR118: =IF(D118="",99,VLOOKUP(D118,'Go Order'!$C$3:$D$37,2,FALSE)) -> 99
A119: 111 | B119: 111 | J119: =IF(SUM(H119+I119)>60,60,SUM(H119+I119)) -> 0 | N119: =IF(SUM(L119+M119)>60,60,SUM(L119+M119)) -> 0 | O119: =SUM(J119+N119) -> 0 | S119: =IF(SUM(Q119+R119)>60,60,SUM(Q119+R119)) -> 0 | T119: =SUM(O119+S119) -> 0 | X119: =IF(SUM(V119+W119)>60,60,SUM(V119+W119)) -> 0 | AB119: =IF(SUM(Z119+AA119)>60,60,SUM(Z119+AA119)) -> 0 | AG119: =IF(SUM(AD119+AE119)>60,60,SUM(AD119+AE119)) -> 0 | AH119: =+X119+AB119+AG119 -> 0 | AI119: =+T119+AH119 -> 0 | AJ119: =IF(E119<>"",SUM(I119+M119+R119+W119+AA119+AE119),"") ->  | AQ119: N | AR119: =IF(D119="",99,VLOOKUP(D119,'Go Order'!$C$3:$D$37,2,FALSE)) -> 99
A120: 112 | B120: 112 | J120: =IF(SUM(H120+I120)>60,60,SUM(H120+I120)) -> 0 | N120: =IF(SUM(L120+M120)>60,60,SUM(L120+M120)) -> 0 | O120: =SUM(J120+N120) -> 0 | S120: =IF(SUM(Q120+R120)>60,60,SUM(Q120+R120)) -> 0 | T120: =SUM(O120+S120) -> 0 | X120: =IF(SUM(V120+W120)>60,60,SUM(V120+W120)) -> 0 | AB120: =IF(SUM(Z120+AA120)>60,60,SUM(Z120+AA120)) -> 0 | AG120: =IF(SUM(AD120+AE120)>60,60,SUM(AD120+AE120)) -> 0 | AH120: =+X120+AB120+AG120 -> 0 | AI120: =+T120+AH120 -> 0 | AJ120: =IF(E120<>"",SUM(I120+M120+R120+W120+AA120+AE120),"") ->  | AQ120: N | AR120: =IF(D120="",99,VLOOKUP(D120,'Go Order'!$C$3:$D$37,2,FALSE)) -> 99
A121: 113 | B121: 113 | J121: =IF(SUM(H121+I121)>60,60,SUM(H121+I121)) -> 0 | N121: =IF(SUM(L121+M121)>60,60,SUM(L121+M121)) -> 0 | O121: =SUM(J121+N121) -> 0 | S121: =IF(SUM(Q121+R121)>60,60,SUM(Q121+R121)) -> 0 | T121: =SUM(O121+S121) -> 0 | X121: =IF(SUM(V121+W121)>60,60,SUM(V121+W121)) -> 0 | AB121: =IF(SUM(Z121+AA121)>60,60,SUM(Z121+AA121)) -> 0 | AG121: =IF(SUM(AD121+AE121)>60,60,SUM(AD121+AE121)) -> 0 | AH121: =+X121+AB121+AG121 -> 0 | AI121: =+T121+AH121 -> 0 | AJ121: =IF(E121<>"",SUM(I121+M121+R121+W121+AA121+AE121),"") ->  | AQ121: N | AR121: =IF(D121="",99,VLOOKUP(D121,'Go Order'!$C$3:$D$37,2,FALSE)) -> 99
A122: 114 | B122: 114 | J122: =IF(SUM(H122+I122)>60,60,SUM(H122+I122)) -> 0 | N122: =IF(SUM(L122+M122)>60,60,SUM(L122+M122)) -> 0 | O122: =SUM(J122+N122) -> 0 | S122: =IF(SUM(Q122+R122)>60,60,SUM(Q122+R122)) -> 0 | T122: =SUM(O122+S122) -> 0 | X122: =IF(SUM(V122+W122)>60,60,SUM(V122+W122)) -> 0 | AB122: =IF(SUM(Z122+AA122)>60,60,SUM(Z122+AA122)) -> 0 | AG122: =IF(SUM(AD122+AE122)>60,60,SUM(AD122+AE122)) -> 0 | AH122: =+X122+AB122+AG122 -> 0 | AI122: =+T122+AH122 -> 0 | AJ122: =IF(E122<>"",SUM(I122+M122+R122+W122+AA122+AE122),"") ->  | AQ122: N | AR122: =IF(D122="",99,VLOOKUP(D122,'Go Order'!$C$3:$D$37,2,FALSE)) -> 99
A123: 115 | B123: 115 | J123: =IF(SUM(H123+I123)>60,60,SUM(H123+I123)) -> 0 | N123: =IF(SUM(L123+M123)>60,60,SUM(L123+M123)) -> 0 | O123: =SUM(J123+N123) -> 0 | S123: =IF(SUM(Q123+R123)>60,60,SUM(Q123+R123)) -> 0 | T123: =SUM(O123+S123) -> 0 | X123: =IF(SUM(V123+W123)>60,60,SUM(V123+W123)) -> 0 | AB123: =IF(SUM(Z123+AA123)>60,60,SUM(Z123+AA123)) -> 0 | AG123: =IF(SUM(AD123+AE123)>60,60,SUM(AD123+AE123)) -> 0 | AH123: =+X123+AB123+AG123 -> 0 | AI123: =+T123+AH123 -> 0 | AJ123: =IF(E123<>"",SUM(I123+M123+R123+W123+AA123+AE123),"") ->  | AQ123: N | AR123: =IF(D123="",99,VLOOKUP(D123,'Go Order'!$C$3:$D$37,2,FALSE)) -> 99
A124: 116 | B124: 116 | J124: =IF(SUM(H124+I124)>60,60,SUM(H124+I124)) -> 0 | N124: =IF(SUM(L124+M124)>60,60,SUM(L124+M124)) -> 0 | O124: =SUM(J124+N124) -> 0 | S124: =IF(SUM(Q124+R124)>60,60,SUM(Q124+R124)) -> 0 | T124: =SUM(O124+S124) -> 0 | X124: =IF(SUM(V124+W124)>60,60,SUM(V124+W124)) -> 0 | AB124: =IF(SUM(Z124+AA124)>60,60,SUM(Z124+AA124)) -> 0 | AG124: =IF(SUM(AD124+AE124)>60,60,SUM(AD124+AE124)) -> 0 | AH124: =+X124+AB124+AG124 -> 0 | AI124: =+T124+AH124 -> 0 | AJ124: =IF(E124<>"",SUM(I124+M124+R124+W124+AA124+AE124),"") ->  | AQ124: N | AR124: =IF(D124="",99,VLOOKUP(D124,'Go Order'!$C$3:$D$37,2,FALSE)) -> 99
A125: 117 | B125: 117 | J125: =IF(SUM(H125+I125)>60,60,SUM(H125+I125)) -> 0 | N125: =IF(SUM(L125+M125)>60,60,SUM(L125+M125)) -> 0 | O125: =SUM(J125+N125) -> 0 | S125: =IF(SUM(Q125+R125)>60,60,SUM(Q125+R125)) -> 0 | T125: =SUM(O125+S125) -> 0 | X125: =IF(SUM(V125+W125)>60,60,SUM(V125+W125)) -> 0 | AB125: =IF(SUM(Z125+AA125)>60,60,SUM(Z125+AA125)) -> 0 | AG125: =IF(SUM(AD125+AE125)>60,60,SUM(AD125+AE125)) -> 0 | AH125: =+X125+AB125+AG125 -> 0 | AI125: =+T125+AH125 -> 0 | AJ125: =IF(E125<>"",SUM(I125+M125+R125+W125+AA125+AE125),"") ->  | AQ125: N | AR125: =IF(D125="",99,VLOOKUP(D125,'Go Order'!$C$3:$D$37,2,FALSE)) -> 99
A126: 118 | B126: 118 | J126: =IF(SUM(H126+I126)>60,60,SUM(H126+I126)) -> 0 | N126: =IF(SUM(L126+M126)>60,60,SUM(L126+M126)) -> 0 | O126: =SUM(J126+N126) -> 0 | S126: =IF(SUM(Q126+R126)>60,60,SUM(Q126+R126)) -> 0 | T126: =SUM(O126+S126) -> 0 | X126: =IF(SUM(V126+W126)>60,60,SUM(V126+W126)) -> 0 | AB126: =IF(SUM(Z126+AA126)>60,60,SUM(Z126+AA126)) -> 0 | AG126: =IF(SUM(AD126+AE126)>60,60,SUM(AD126+AE126)) -> 0 | AH126: =+X126+AB126+AG126 -> 0 | AI126: =+T126+AH126 -> 0 | AJ126: =IF(E126<>"",SUM(I126+M126+R126+W126+AA126+AE126),"") ->  | AQ126: N | AR126: =IF(D126="",99,VLOOKUP(D126,'Go Order'!$C$3:$D$37,2,FALSE)) -> 99
A127: 119 | B127: 119 | J127: =IF(SUM(H127+I127)>60,60,SUM(H127+I127)) -> 0 | N127: =IF(SUM(L127+M127)>60,60,SUM(L127+M127)) -> 0 | O127: =SUM(J127+N127) -> 0 | S127: =IF(SUM(Q127+R127)>60,60,SUM(Q127+R127)) -> 0 | T127: =SUM(O127+S127) -> 0 | X127: =IF(SUM(V127+W127)>60,60,SUM(V127+W127)) -> 0 | AB127: =IF(SUM(Z127+AA127)>60,60,SUM(Z127+AA127)) -> 0 | AG127: =IF(SUM(AD127+AE127)>60,60,SUM(AD127+AE127)) -> 0 | AH127: =+X127+AB127+AG127 -> 0 | AI127: =+T127+AH127 -> 0 | AJ127: =IF(E127<>"",SUM(I127+M127+R127+W127+AA127+AE127),"") ->  | AQ127: N | AR127: =IF(D127="",99,VLOOKUP(D127,'Go Order'!$C$3:$D$37,2,FALSE)) -> 99
A128: 120 | B128: 120 | J128: =IF(SUM(H128+I128)>60,60,SUM(H128+I128)) -> 0 | N128: =IF(SUM(L128+M128)>60,60,SUM(L128+M128)) -> 0 | O128: =SUM(J128+N128) -> 0 | S128: =IF(SUM(Q128+R128)>60,60,SUM(Q128+R128)) -> 0 | T128: =SUM(O128+S128) -> 0 | X128: =IF(SUM(V128+W128)>60,60,SUM(V128+W128)) -> 0 | AB128: =IF(SUM(Z128+AA128)>60,60,SUM(Z128+AA128)) -> 0 | AG128: =IF(SUM(AD128+AE128)>60,60,SUM(AD128+AE128)) -> 0 | AH128: =+X128+AB128+AG128 -> 0 | AI128: =+T128+AH128 -> 0 | AJ128: =IF(E128<>"",SUM(I128+M128+R128+W128+AA128+AE128),"") ->  | AQ128: N | AR128: =IF(D128="",99,VLOOKUP(D128,'Go Order'!$C$3:$D$37,2,FALSE)) -> 99
A129: 121 | B129: 121 | J129: =IF(SUM(H129+I129)>60,60,SUM(H129+I129)) -> 0 | N129: =IF(SUM(L129+M129)>60,60,SUM(L129+M129)) -> 0 | O129: =SUM(J129+N129) -> 0 | S129: =IF(SUM(Q129+R129)>60,60,SUM(Q129+R129)) -> 0 | T129: =SUM(O129+S129) -> 0 | X129: =IF(SUM(V129+W129)>60,60,SUM(V129+W129)) -> 0 | AB129: =IF(SUM(Z129+AA129)>60,60,SUM(Z129+AA129)) -> 0 | AG129: =IF(SUM(AD129+AE129)>60,60,SUM(AD129+AE129)) -> 0 | AH129: =+X129+AB129+AG129 -> 0 | AI129: =+T129+AH129 -> 0 | AJ129: =IF(E129<>"",SUM(I129+M129+R129+W129+AA129+AE129),"") ->  | AQ129: N | AR129: =IF(D129="",99,VLOOKUP(D129,'Go Order'!$C$3:$D$37,2,FALSE)) -> 99
A130: 122 | B130: 122 | J130: =IF(SUM(H130+I130)>60,60,SUM(H130+I130)) -> 0 | N130: =IF(SUM(L130+M130)>60,60,SUM(L130+M130)) -> 0 | O130: =SUM(J130+N130) -> 0 | S130: =IF(SUM(Q130+R130)>60,60,SUM(Q130+R130)) -> 0 | T130: =SUM(O130+S130) -> 0 | X130: =IF(SUM(V130+W130)>60,60,SUM(V130+W130)) -> 0 | AB130: =IF(SUM(Z130+AA130)>60,60,SUM(Z130+AA130)) -> 0 | AG130: =IF(SUM(AD130+AE130)>60,60,SUM(AD130+AE130)) -> 0 | AH130: =+X130+AB130+AG130 -> 0 | AI130: =+T130+AH130 -> 0 | AJ130: =IF(E130<>"",SUM(I130+M130+R130+W130+AA130+AE130),"") ->  | AQ130: N | AR130: =IF(D130="",99,VLOOKUP(D130,'Go Order'!$C$3:$D$37,2,FALSE)) -> 99
A131: 123 | B131: 123 | J131: =IF(SUM(H131+I131)>60,60,SUM(H131+I131)) -> 0 | N131: =IF(SUM(L131+M131)>60,60,SUM(L131+M131)) -> 0 | O131: =SUM(J131+N131) -> 0 | S131: =IF(SUM(Q131+R131)>60,60,SUM(Q131+R131)) -> 0 | T131: =SUM(O131+S131) -> 0 | X131: =IF(SUM(V131+W131)>60,60,SUM(V131+W131)) -> 0 | AB131: =IF(SUM(Z131+AA131)>60,60,SUM(Z131+AA131)) -> 0 | AG131: =IF(SUM(AD131+AE131)>60,60,SUM(AD131+AE131)) -> 0 | AH131: =+X131+AB131+AG131 -> 0 | AI131: =+T131+AH131 -> 0 | AJ131: =IF(E131<>"",SUM(I131+M131+R131+W131+AA131+AE131),"") ->  | AQ131: N | AR131: =IF(D131="",99,VLOOKUP(D131,'Go Order'!$C$3:$D$37,2,FALSE)) -> 99
A132: 124 | B132: 124 | J132: =IF(SUM(H132+I132)>60,60,SUM(H132+I132)) -> 0 | N132: =IF(SUM(L132+M132)>60,60,SUM(L132+M132)) -> 0 | O132: =SUM(J132+N132) -> 0 | S132: =IF(SUM(Q132+R132)>60,60,SUM(Q132+R132)) -> 0 | T132: =SUM(O132+S132) -> 0 | X132: =IF(SUM(V132+W132)>60,60,SUM(V132+W132)) -> 0 | AB132: =IF(SUM(Z132+AA132)>60,60,SUM(Z132+AA132)) -> 0 | AG132: =IF(SUM(AD132+AE132)>60,60,SUM(AD132+AE132)) -> 0 | AH132: =+X132+AB132+AG132 -> 0 | AI132: =+T132+AH132 -> 0 | AJ132: =IF(E132<>"",SUM(I132+M132+R132+W132+AA132+AE132),"") ->  | AQ132: N | AR132: =IF(D132="",99,VLOOKUP(D132,'Go Order'!$C$3:$D$37,2,FALSE)) -> 99
A133: 125 | B133: 125 | J133: =IF(SUM(H133+I133)>60,60,SUM(H133+I133)) -> 0 | N133: =IF(SUM(L133+M133)>60,60,SUM(L133+M133)) -> 0 | O133: =SUM(J133+N133) -> 0 | S133: =IF(SUM(Q133+R133)>60,60,SUM(Q133+R133)) -> 0 | T133: =SUM(O133+S133) -> 0 | X133: =IF(SUM(V133+W133)>60,60,SUM(V133+W133)) -> 0 | AB133: =IF(SUM(Z133+AA133)>60,60,SUM(Z133+AA133)) -> 0 | AG133: =IF(SUM(AD133+AE133)>60,60,SUM(AD133+AE133)) -> 0 | AH133: =+X133+AB133+AG133 -> 0 | AI133: =+T133+AH133 -> 0 | AJ133: =IF(E133<>"",SUM(I133+M133+R133+W133+AA133+AE133),"") ->  | AQ133: N | AR133: =IF(D133="",99,VLOOKUP(D133,'Go Order'!$C$3:$D$37,2,FALSE)) -> 99
A134: 126 | B134: 126 | J134: =IF(SUM(H134+I134)>60,60,SUM(H134+I134)) -> 0 | N134: =IF(SUM(L134+M134)>60,60,SUM(L134+M134)) -> 0 | O134: =SUM(J134+N134) -> 0 | S134: =IF(SUM(Q134+R134)>60,60,SUM(Q134+R134)) -> 0 | T134: =SUM(O134+S134) -> 0 | X134: =IF(SUM(V134+W134)>60,60,SUM(V134+W134)) -> 0 | AB134: =IF(SUM(Z134+AA134)>60,60,SUM(Z134+AA134)) -> 0 | AG134: =IF(SUM(AD134+AE134)>60,60,SUM(AD134+AE134)) -> 0 | AH134: =+X134+AB134+AG134 -> 0 | AI134: =+T134+AH134 -> 0 | AJ134: =IF(E134<>"",SUM(I134+M134+R134+W134+AA134+AE134),"") ->  | AQ134: N | AR134: =IF(D134="",99,VLOOKUP(D134,'Go Order'!$C$3:$D$37,2,FALSE)) -> 99
A135: 127 | B135: 127 | J135: =IF(SUM(H135+I135)>60,60,SUM(H135+I135)) -> 0 | N135: =IF(SUM(L135+M135)>60,60,SUM(L135+M135)) -> 0 | O135: =SUM(J135+N135) -> 0 | S135: =IF(SUM(Q135+R135)>60,60,SUM(Q135+R135)) -> 0 | T135: =SUM(O135+S135) -> 0 | X135: =IF(SUM(V135+W135)>60,60,SUM(V135+W135)) -> 0 | AB135: =IF(SUM(Z135+AA135)>60,60,SUM(Z135+AA135)) -> 0 | AG135: =IF(SUM(AD135+AE135)>60,60,SUM(AD135+AE135)) -> 0 | AH135: =+X135+AB135+AG135 -> 0 | AI135: =+T135+AH135 -> 0 | AJ135: =IF(E135<>"",SUM(I135+M135+R135+W135+AA135+AE135),"") ->  | AQ135: N | AR135: =IF(D135="",99,VLOOKUP(D135,'Go Order'!$C$3:$D$37,2,FALSE)) -> 99
A136: 128 | B136: 128 | J136: =IF(SUM(H136+I136)>60,60,SUM(H136+I136)) -> 0 | N136: =IF(SUM(L136+M136)>60,60,SUM(L136+M136)) -> 0 | O136: =SUM(J136+N136) -> 0 | S136: =IF(SUM(Q136+R136)>60,60,SUM(Q136+R136)) -> 0 | T136: =SUM(O136+S136) -> 0 | X136: =IF(SUM(V136+W136)>60,60,SUM(V136+W136)) -> 0 | AB136: =IF(SUM(Z136+AA136)>60,60,SUM(Z136+AA136)) -> 0 | AG136: =IF(SUM(AD136+AE136)>60,60,SUM(AD136+AE136)) -> 0 | AH136: =+X136+AB136+AG136 -> 0 | AI136: =+T136+AH136 -> 0 | AJ136: =IF(E136<>"",SUM(I136+M136+R136+W136+AA136+AE136),"") ->  | AQ136: N | AR136: =IF(D136="",99,VLOOKUP(D136,'Go Order'!$C$3:$D$37,2,FALSE)) -> 99
A137: 129 | B137: 129 | J137: =IF(SUM(H137+I137)>60,60,SUM(H137+I137)) -> 0 | N137: =IF(SUM(L137+M137)>60,60,SUM(L137+M137)) -> 0 | O137: =SUM(J137+N137) -> 0 | S137: =IF(SUM(Q137+R137)>60,60,SUM(Q137+R137)) -> 0 | T137: =SUM(O137+S137) -> 0 | X137: =IF(SUM(V137+W137)>60,60,SUM(V137+W137)) -> 0 | AB137: =IF(SUM(Z137+AA137)>60,60,SUM(Z137+AA137)) -> 0 | AG137: =IF(SUM(AD137+AE137)>60,60,SUM(AD137+AE137)) -> 0 | AH137: =+X137+AB137+AG137 -> 0 | AI137: =+T137+AH137 -> 0 | AJ137: =IF(E137<>"",SUM(I137+M137+R137+W137+AA137+AE137),"") ->  | AQ137: N | AR137: =IF(D137="",99,VLOOKUP(D137,'Go Order'!$C$3:$D$37,2,FALSE)) -> 99
A138: 130 | B138: 130 | J138: =IF(SUM(H138+I138)>60,60,SUM(H138+I138)) -> 0 | N138: =IF(SUM(L138+M138)>60,60,SUM(L138+M138)) -> 0 | O138: =SUM(J138+N138) -> 0 | S138: =IF(SUM(Q138+R138)>60,60,SUM(Q138+R138)) -> 0 | T138: =SUM(O138+S138) -> 0 | X138: =IF(SUM(V138+W138)>60,60,SUM(V138+W138)) -> 0 | AB138: =IF(SUM(Z138+AA138)>60,60,SUM(Z138+AA138)) -> 0 | AG138: =IF(SUM(AD138+AE138)>60,60,SUM(AD138+AE138)) -> 0 | AH138: =+X138+AB138+AG138 -> 0 | AI138: =+T138+AH138 -> 0 | AJ138: =IF(E138<>"",SUM(I138+M138+R138+W138+AA138+AE138),"") ->  | AQ138: N | AR138: =IF(D138="",99,VLOOKUP(D138,'Go Order'!$C$3:$D$37,2,FALSE)) -> 99
A139: 131 | B139: 131 | J139: =IF(SUM(H139+I139)>60,60,SUM(H139+I139)) -> 0 | N139: =IF(SUM(L139+M139)>60,60,SUM(L139+M139)) -> 0 | O139: =SUM(J139+N139) -> 0 | S139: =IF(SUM(Q139+R139)>60,60,SUM(Q139+R139)) -> 0 | T139: =SUM(O139+S139) -> 0 | X139: =IF(SUM(V139+W139)>60,60,SUM(V139+W139)) -> 0 | AB139: =IF(SUM(Z139+AA139)>60,60,SUM(Z139+AA139)) -> 0 | AG139: =IF(SUM(AD139+AE139)>60,60,SUM(AD139+AE139)) -> 0 | AH139: =+X139+AB139+AG139 -> 0 | AI139: =+T139+AH139 -> 0 | AJ139: =IF(E139<>"",SUM(I139+M139+R139+W139+AA139+AE139),"") ->  | AQ139: N | AR139: =IF(D139="",99,VLOOKUP(D139,'Go Order'!$C$3:$D$37,2,FALSE)) -> 99
A140: 132 | B140: 132 | J140: =IF(SUM(H140+I140)>60,60,SUM(H140+I140)) -> 0 | N140: =IF(SUM(L140+M140)>60,60,SUM(L140+M140)) -> 0 | O140: =SUM(J140+N140) -> 0 | S140: =IF(SUM(Q140+R140)>60,60,SUM(Q140+R140)) -> 0 | T140: =SUM(O140+S140) -> 0 | X140: =IF(SUM(V140+W140)>60,60,SUM(V140+W140)) -> 0 | AB140: =IF(SUM(Z140+AA140)>60,60,SUM(Z140+AA140)) -> 0 | AG140: =IF(SUM(AD140+AE140)>60,60,SUM(AD140+AE140)) -> 0 | AH140: =+X140+AB140+AG140 -> 0 | AI140: =+T140+AH140 -> 0 | AJ140: =IF(E140<>"",SUM(I140+M140+R140+W140+AA140+AE140),"") ->  | AQ140: N | AR140: =IF(D140="",99,VLOOKUP(D140,'Go Order'!$C$3:$D$37,2,FALSE)) -> 99
A141: 133 | B141: 133 | J141: =IF(SUM(H141+I141)>60,60,SUM(H141+I141)) -> 0 | N141: =IF(SUM(L141+M141)>60,60,SUM(L141+M141)) -> 0 | O141: =SUM(J141+N141) -> 0 | S141: =IF(SUM(Q141+R141)>60,60,SUM(Q141+R141)) -> 0 | T141: =SUM(O141+S141) -> 0 | X141: =IF(SUM(V141+W141)>60,60,SUM(V141+W141)) -> 0 | AB141: =IF(SUM(Z141+AA141)>60,60,SUM(Z141+AA141)) -> 0 | AG141: =IF(SUM(AD141+AE141)>60,60,SUM(AD141+AE141)) -> 0 | AH141: =+X141+AB141+AG141 -> 0 | AI141: =+T141+AH141 -> 0 | AJ141: =IF(E141<>"",SUM(I141+M141+R141+W141+AA141+AE141),"") ->  | AQ141: N | AR141: =IF(D141="",99,VLOOKUP(D141,'Go Order'!$C$3:$D$37,2,FALSE)) -> 99
A142: 134 | B142: 134 | J142: =IF(SUM(H142+I142)>60,60,SUM(H142+I142)) -> 0 | N142: =IF(SUM(L142+M142)>60,60,SUM(L142+M142)) -> 0 | O142: =SUM(J142+N142) -> 0 | S142: =IF(SUM(Q142+R142)>60,60,SUM(Q142+R142)) -> 0 | T142: =SUM(O142+S142) -> 0 | X142: =IF(SUM(V142+W142)>60,60,SUM(V142+W142)) -> 0 | AB142: =IF(SUM(Z142+AA142)>60,60,SUM(Z142+AA142)) -> 0 | AG142: =IF(SUM(AD142+AE142)>60,60,SUM(AD142+AE142)) -> 0 | AH142: =+X142+AB142+AG142 -> 0 | AI142: =+T142+AH142 -> 0 | AJ142: =IF(E142<>"",SUM(I142+M142+R142+W142+AA142+AE142),"") ->  | AQ142: N | AR142: =IF(D142="",99,VLOOKUP(D142,'Go Order'!$C$3:$D$37,2,FALSE)) -> 99
A143: 135 | B143: 135 | J143: =IF(SUM(H143+I143)>60,60,SUM(H143+I143)) -> 0 | N143: =IF(SUM(L143+M143)>60,60,SUM(L143+M143)) -> 0 | O143: =SUM(J143+N143) -> 0 | S143: =IF(SUM(Q143+R143)>60,60,SUM(Q143+R143)) -> 0 | T143: =SUM(O143+S143) -> 0 | X143: =IF(SUM(V143+W143)>60,60,SUM(V143+W143)) -> 0 | AB143: =IF(SUM(Z143+AA143)>60,60,SUM(Z143+AA143)) -> 0 | AG143: =IF(SUM(AD143+AE143)>60,60,SUM(AD143+AE143)) -> 0 | AH143: =+X143+AB143+AG143 -> 0 | AI143: =+T143+AH143 -> 0 | AJ143: =IF(E143<>"",SUM(I143+M143+R143+W143+AA143+AE143),"") ->  | AQ143: N | AR143: =IF(D143="",99,VLOOKUP(D143,'Go Order'!$C$3:$D$37,2,FALSE)) -> 99
A144: 136 | B144: 136 | J144: =IF(SUM(H144+I144)>60,60,SUM(H144+I144)) -> 0 | N144: =IF(SUM(L144+M144)>60,60,SUM(L144+M144)) -> 0 | O144: =SUM(J144+N144) -> 0 | S144: =IF(SUM(Q144+R144)>60,60,SUM(Q144+R144)) -> 0 | T144: =SUM(O144+S144) -> 0 | X144: =IF(SUM(V144+W144)>60,60,SUM(V144+W144)) -> 0 | AB144: =IF(SUM(Z144+AA144)>60,60,SUM(Z144+AA144)) -> 0 | AG144: =IF(SUM(AD144+AE144)>60,60,SUM(AD144+AE144)) -> 0 | AH144: =+X144+AB144+AG144 -> 0 | AI144: =+T144+AH144 -> 0 | AJ144: =IF(E144<>"",SUM(I144+M144+R144+W144+AA144+AE144),"") ->  | AQ144: N | AR144: =IF(D144="",99,VLOOKUP(D144,'Go Order'!$C$3:$D$37,2,FALSE)) -> 99
A145: 137 | B145: 137 | J145: =IF(SUM(H145+I145)>60,60,SUM(H145+I145)) -> 0 | N145: =IF(SUM(L145+M145)>60,60,SUM(L145+M145)) -> 0 | O145: =SUM(J145+N145) -> 0 | S145: =IF(SUM(Q145+R145)>60,60,SUM(Q145+R145)) -> 0 | T145: =SUM(O145+S145) -> 0 | X145: =IF(SUM(V145+W145)>60,60,SUM(V145+W145)) -> 0 | AB145: =IF(SUM(Z145+AA145)>60,60,SUM(Z145+AA145)) -> 0 | AG145: =IF(SUM(AD145+AE145)>60,60,SUM(AD145+AE145)) -> 0 | AH145: =+X145+AB145+AG145 -> 0 | AI145: =+T145+AH145 -> 0 | AJ145: =IF(E145<>"",SUM(I145+M145+R145+W145+AA145+AE145),"") ->  | AQ145: N | AR145: =IF(D145="",99,VLOOKUP(D145,'Go Order'!$C$3:$D$37,2,FALSE)) -> 99
A146: 138 | B146: 138 | J146: =IF(SUM(H146+I146)>60,60,SUM(H146+I146)) -> 0 | N146: =IF(SUM(L146+M146)>60,60,SUM(L146+M146)) -> 0 | O146: =SUM(J146+N146) -> 0 | S146: =IF(SUM(Q146+R146)>60,60,SUM(Q146+R146)) -> 0 | T146: =SUM(O146+S146) -> 0 | X146: =IF(SUM(V146+W146)>60,60,SUM(V146+W146)) -> 0 | AB146: =IF(SUM(Z146+AA146)>60,60,SUM(Z146+AA146)) -> 0 | AG146: =IF(SUM(AD146+AE146)>60,60,SUM(AD146+AE146)) -> 0 | AH146: =+X146+AB146+AG146 -> 0 | AI146: =+T146+AH146 -> 0 | AJ146: =IF(E146<>"",SUM(I146+M146+R146+W146+AA146+AE146),"") ->  | AQ146: N | AR146: =IF(D146="",99,VLOOKUP(D146,'Go Order'!$C$3:$D$37,2,FALSE)) -> 99
A147: 139 | B147: 139 | J147: =IF(SUM(H147+I147)>60,60,SUM(H147+I147)) -> 0 | N147: =IF(SUM(L147+M147)>60,60,SUM(L147+M147)) -> 0 | O147: =SUM(J147+N147) -> 0 | S147: =IF(SUM(Q147+R147)>60,60,SUM(Q147+R147)) -> 0 | T147: =SUM(O147+S147) -> 0 | X147: =IF(SUM(V147+W147)>60,60,SUM(V147+W147)) -> 0 | AB147: =IF(SUM(Z147+AA147)>60,60,SUM(Z147+AA147)) -> 0 | AG147: =IF(SUM(AD147+AE147)>60,60,SUM(AD147+AE147)) -> 0 | AH147: =+X147+AB147+AG147 -> 0 | AI147: =+T147+AH147 -> 0 | AJ147: =IF(E147<>"",SUM(I147+M147+R147+W147+AA147+AE147),"") ->  | AQ147: N | AR147: =IF(D147="",99,VLOOKUP(D147,'Go Order'!$C$3:$D$37,2,FALSE)) -> 99
A148: 140 | B148: 140 | J148: =IF(SUM(H148+I148)>60,60,SUM(H148+I148)) -> 0 | N148: =IF(SUM(L148+M148)>60,60,SUM(L148+M148)) -> 0 | O148: =SUM(J148+N148) -> 0 | S148: =IF(SUM(Q148+R148)>60,60,SUM(Q148+R148)) -> 0 | T148: =SUM(O148+S148) -> 0 | X148: =IF(SUM(V148+W148)>60,60,SUM(V148+W148)) -> 0 | AB148: =IF(SUM(Z148+AA148)>60,60,SUM(Z148+AA148)) -> 0 | AG148: =IF(SUM(AD148+AE148)>60,60,SUM(AD148+AE148)) -> 0 | AH148: =+X148+AB148+AG148 -> 0 | AI148: =+T148+AH148 -> 0 | AJ148: =IF(E148<>"",SUM(I148+M148+R148+W148+AA148+AE148),"") ->  | AQ148: N | AR148: =IF(D148="",99,VLOOKUP(D148,'Go Order'!$C$3:$D$37,2,FALSE)) -> 99
A149: 141 | B149: 141 | J149: =IF(SUM(H149+I149)>60,60,SUM(H149+I149)) -> 0 | N149: =IF(SUM(L149+M149)>60,60,SUM(L149+M149)) -> 0 | O149: =SUM(J149+N149) -> 0 | S149: =IF(SUM(Q149+R149)>60,60,SUM(Q149+R149)) -> 0 | T149: =SUM(O149+S149) -> 0 | X149: =IF(SUM(V149+W149)>60,60,SUM(V149+W149)) -> 0 | AB149: =IF(SUM(Z149+AA149)>60,60,SUM(Z149+AA149)) -> 0 | AG149: =IF(SUM(AD149+AE149)>60,60,SUM(AD149+AE149)) -> 0 | AH149: =+X149+AB149+AG149 -> 0 | AI149: =+T149+AH149 -> 0 | AJ149: =IF(E149<>"",SUM(I149+M149+R149+W149+AA149+AE149),"") ->  | AQ149: N | AR149: =IF(D149="",99,VLOOKUP(D149,'Go Order'!$C$3:$D$37,2,FALSE)) -> 99
A150: 142 | B150: 142 | J150: =IF(SUM(H150+I150)>60,60,SUM(H150+I150)) -> 0 | N150: =IF(SUM(L150+M150)>60,60,SUM(L150+M150)) -> 0 | O150: =SUM(J150+N150) -> 0 | S150: =IF(SUM(Q150+R150)>60,60,SUM(Q150+R150)) -> 0 | T150: =SUM(O150+S150) -> 0 | X150: =IF(SUM(V150+W150)>60,60,SUM(V150+W150)) -> 0 | AB150: =IF(SUM(Z150+AA150)>60,60,SUM(Z150+AA150)) -> 0 | AG150: =IF(SUM(AD150+AE150)>60,60,SUM(AD150+AE150)) -> 0 | AH150: =+X150+AB150+AG150 -> 0 | AI150: =+T150+AH150 -> 0 | AJ150: =IF(E150<>"",SUM(I150+M150+R150+W150+AA150+AE150),"") ->  | AQ150: N | AR150: =IF(D150="",99,VLOOKUP(D150,'Go Order'!$C$3:$D$37,2,FALSE)) -> 99
A151: 143 | B151: 143 | J151: =IF(SUM(H151+I151)>60,60,SUM(H151+I151)) -> 0 | N151: =IF(SUM(L151+M151)>60,60,SUM(L151+M151)) -> 0 | O151: =SUM(J151+N151) -> 0 | S151: =IF(SUM(Q151+R151)>60,60,SUM(Q151+R151)) -> 0 | T151: =SUM(O151+S151) -> 0 | X151: =IF(SUM(V151+W151)>60,60,SUM(V151+W151)) -> 0 | AB151: =IF(SUM(Z151+AA151)>60,60,SUM(Z151+AA151)) -> 0 | AG151: =IF(SUM(AD151+AE151)>60,60,SUM(AD151+AE151)) -> 0 | AH151: =+X151+AB151+AG151 -> 0 | AI151: =+T151+AH151 -> 0 | AJ151: =IF(E151<>"",SUM(I151+M151+R151+W151+AA151+AE151),"") ->  | AQ151: N | AR151: =IF(D151="",99,VLOOKUP(D151,'Go Order'!$C$3:$D$37,2,FALSE)) -> 99
A152: 144 | B152: 144 | J152: =IF(SUM(H152+I152)>60,60,SUM(H152+I152)) -> 0 | N152: =IF(SUM(L152+M152)>60,60,SUM(L152+M152)) -> 0 | O152: =SUM(J152+N152) -> 0 | S152: =IF(SUM(Q152+R152)>60,60,SUM(Q152+R152)) -> 0 | T152: =SUM(O152+S152) -> 0 | X152: =IF(SUM(V152+W152)>60,60,SUM(V152+W152)) -> 0 | AB152: =IF(SUM(Z152+AA152)>60,60,SUM(Z152+AA152)) -> 0 | AG152: =IF(SUM(AD152+AE152)>60,60,SUM(AD152+AE152)) -> 0 | AH152: =+X152+AB152+AG152 -> 0 | AI152: =+T152+AH152 -> 0 | AJ152: =IF(E152<>"",SUM(I152+M152+R152+W152+AA152+AE152),"") ->  | AQ152: N | AR152: =IF(D152="",99,VLOOKUP(D152,'Go Order'!$C$3:$D$37,2,FALSE)) -> 99
A153: 145 | B153: 145 | J153: =IF(SUM(H153+I153)>60,60,SUM(H153+I153)) -> 0 | N153: =IF(SUM(L153+M153)>60,60,SUM(L153+M153)) -> 0 | O153: =SUM(J153+N153) -> 0 | S153: =IF(SUM(Q153+R153)>60,60,SUM(Q153+R153)) -> 0 | T153: =SUM(O153+S153) -> 0 | X153: =IF(SUM(V153+W153)>60,60,SUM(V153+W153)) -> 0 | AB153: =IF(SUM(Z153+AA153)>60,60,SUM(Z153+AA153)) -> 0 | AG153: =IF(SUM(AD153+AE153)>60,60,SUM(AD153+AE153)) -> 0 | AH153: =+X153+AB153+AG153 -> 0 | AI153: =+T153+AH153 -> 0 | AJ153: =IF(E153<>"",SUM(I153+M153+R153+W153+AA153+AE153),"") ->  | AQ153: N | AR153: =IF(D153="",99,VLOOKUP(D153,'Go Order'!$C$3:$D$37,2,FALSE)) -> 99
A154: 146 | B154: 146 | J154: =IF(SUM(H154+I154)>60,60,SUM(H154+I154)) -> 0 | N154: =IF(SUM(L154+M154)>60,60,SUM(L154+M154)) -> 0 | O154: =SUM(J154+N154) -> 0 | S154: =IF(SUM(Q154+R154)>60,60,SUM(Q154+R154)) -> 0 | T154: =SUM(O154+S154) -> 0 | X154: =IF(SUM(V154+W154)>60,60,SUM(V154+W154)) -> 0 | AB154: =IF(SUM(Z154+AA154)>60,60,SUM(Z154+AA154)) -> 0 | AG154: =IF(SUM(AD154+AE154)>60,60,SUM(AD154+AE154)) -> 0 | AH154: =+X154+AB154+AG154 -> 0 | AI154: =+T154+AH154 -> 0 | AJ154: =IF(E154<>"",SUM(I154+M154+R154+W154+AA154+AE154),"") ->  | AQ154: N | AR154: =IF(D154="",99,VLOOKUP(D154,'Go Order'!$C$3:$D$37,2,FALSE)) -> 99
A155: 147 | B155: 147 | J155: =IF(SUM(H155+I155)>60,60,SUM(H155+I155)) -> 0 | N155: =IF(SUM(L155+M155)>60,60,SUM(L155+M155)) -> 0 | O155: =SUM(J155+N155) -> 0 | S155: =IF(SUM(Q155+R155)>60,60,SUM(Q155+R155)) -> 0 | T155: =SUM(O155+S155) -> 0 | X155: =IF(SUM(V155+W155)>60,60,SUM(V155+W155)) -> 0 | AB155: =IF(SUM(Z155+AA155)>60,60,SUM(Z155+AA155)) -> 0 | AG155: =IF(SUM(AD155+AE155)>60,60,SUM(AD155+AE155)) -> 0 | AH155: =+X155+AB155+AG155 -> 0 | AI155: =+T155+AH155 -> 0 | AJ155: =IF(E155<>"",SUM(I155+M155+R155+W155+AA155+AE155),"") ->  | AQ155: N | AR155: =IF(D155="",99,VLOOKUP(D155,'Go Order'!$C$3:$D$37,2,FALSE)) -> 99
A156: 148 | B156: 148 | J156: =IF(SUM(H156+I156)>60,60,SUM(H156+I156)) -> 0 | N156: =IF(SUM(L156+M156)>60,60,SUM(L156+M156)) -> 0 | O156: =SUM(J156+N156) -> 0 | S156: =IF(SUM(Q156+R156)>60,60,SUM(Q156+R156)) -> 0 | T156: =SUM(O156+S156) -> 0 | X156: =IF(SUM(V156+W156)>60,60,SUM(V156+W156)) -> 0 | AB156: =IF(SUM(Z156+AA156)>60,60,SUM(Z156+AA156)) -> 0 | AG156: =IF(SUM(AD156+AE156)>60,60,SUM(AD156+AE156)) -> 0 | AH156: =+X156+AB156+AG156 -> 0 | AI156: =+T156+AH156 -> 0 | AJ156: =IF(E156<>"",SUM(I156+M156+R156+W156+AA156+AE156),"") ->  | AQ156: N | AR156: =IF(D156="",99,VLOOKUP(D156,'Go Order'!$C$3:$D$37,2,FALSE)) -> 99
A157: 149 | B157: 149 | J157: =IF(SUM(H157+I157)>60,60,SUM(H157+I157)) -> 0 | N157: =IF(SUM(L157+M157)>60,60,SUM(L157+M157)) -> 0 | O157: =SUM(J157+N157) -> 0 | S157: =IF(SUM(Q157+R157)>60,60,SUM(Q157+R157)) -> 0 | T157: =SUM(O157+S157) -> 0 | X157: =IF(SUM(V157+W157)>60,60,SUM(V157+W157)) -> 0 | AB157: =IF(SUM(Z157+AA157)>60,60,SUM(Z157+AA157)) -> 0 | AG157: =IF(SUM(AD157+AE157)>60,60,SUM(AD157+AE157)) -> 0 | AH157: =+X157+AB157+AG157 -> 0 | AI157: =+T157+AH157 -> 0 | AJ157: =IF(E157<>"",SUM(I157+M157+R157+W157+AA157+AE157),"") ->  | AQ157: N | AR157: =IF(D157="",99,VLOOKUP(D157,'Go Order'!$C$3:$D$37,2,FALSE)) -> 99
A158: 150 | B158: 150 | J158: =IF(SUM(H158+I158)>60,60,SUM(H158+I158)) -> 0 | N158: =IF(SUM(L158+M158)>60,60,SUM(L158+M158)) -> 0 | O158: =SUM(J158+N158) -> 0 | S158: =IF(SUM(Q158+R158)>60,60,SUM(Q158+R158)) -> 0 | T158: =SUM(O158+S158) -> 0 | X158: =IF(SUM(V158+W158)>60,60,SUM(V158+W158)) -> 0 | AB158: =IF(SUM(Z158+AA158)>60,60,SUM(Z158+AA158)) -> 0 | AG158: =IF(SUM(AD158+AE158)>60,60,SUM(AD158+AE158)) -> 0 | AH158: =+X158+AB158+AG158 -> 0 | AI158: =+T158+AH158 -> 0 | AJ158: =IF(E158<>"",SUM(I158+M158+R158+W158+AA158+AE158),"") ->  | AQ158: N | AR158: =IF(D158="",99,VLOOKUP(D158,'Go Order'!$C$3:$D$37,2,FALSE)) -> 99
A159: 151 | B159: 151 | J159: =IF(SUM(H159+I159)>60,60,SUM(H159+I159)) -> 0 | N159: =IF(SUM(L159+M159)>60,60,SUM(L159+M159)) -> 0 | O159: =SUM(J159+N159) -> 0 | S159: =IF(SUM(Q159+R159)>60,60,SUM(Q159+R159)) -> 0 | T159: =SUM(O159+S159) -> 0 | X159: =IF(SUM(V159+W159)>60,60,SUM(V159+W159)) -> 0 | AB159: =IF(SUM(Z159+AA159)>60,60,SUM(Z159+AA159)) -> 0 | AG159: =IF(SUM(AD159+AE159)>60,60,SUM(AD159+AE159)) -> 0 | AH159: =+X159+AB159+AG159 -> 0 | AI159: =+T159+AH159 -> 0 | AJ159: =IF(E159<>"",SUM(I159+M159+R159+W159+AA159+AE159),"") ->  | AQ159: N | AR159: =IF(D159="",99,VLOOKUP(D159,'Go Order'!$C$3:$D$37,2,FALSE)) -> 99
A160: 152 | B160: 152 | J160: =IF(SUM(H160+I160)>60,60,SUM(H160+I160)) -> 0 | N160: =IF(SUM(L160+M160)>60,60,SUM(L160+M160)) -> 0 | O160: =SUM(J160+N160) -> 0 | S160: =IF(SUM(Q160+R160)>60,60,SUM(Q160+R160)) -> 0 | T160: =SUM(O160+S160) -> 0 | X160: =IF(SUM(V160+W160)>60,60,SUM(V160+W160)) -> 0 | AB160: =IF(SUM(Z160+AA160)>60,60,SUM(Z160+AA160)) -> 0 | AG160: =IF(SUM(AD160+AE160)>60,60,SUM(AD160+AE160)) -> 0 | AH160: =+X160+AB160+AG160 -> 0 | AI160: =+T160+AH160 -> 0 | AJ160: =IF(E160<>"",SUM(I160+M160+R160+W160+AA160+AE160),"") ->  | AQ160: N | AR160: =IF(D160="",99,VLOOKUP(D160,'Go Order'!$C$3:$D$37,2,FALSE)) -> 99
A161: 153 | B161: 153 | J161: =IF(SUM(H161+I161)>60,60,SUM(H161+I161)) -> 0 | N161: =IF(SUM(L161+M161)>60,60,SUM(L161+M161)) -> 0 | O161: =SUM(J161+N161) -> 0 | S161: =IF(SUM(Q161+R161)>60,60,SUM(Q161+R161)) -> 0 | T161: =SUM(O161+S161) -> 0 | X161: =IF(SUM(V161+W161)>60,60,SUM(V161+W161)) -> 0 | AB161: =IF(SUM(Z161+AA161)>60,60,SUM(Z161+AA161)) -> 0 | AG161: =IF(SUM(AD161+AE161)>60,60,SUM(AD161+AE161)) -> 0 | AH161: =+X161+AB161+AG161 -> 0 | AI161: =+T161+AH161 -> 0 | AJ161: =IF(E161<>"",SUM(I161+M161+R161+W161+AA161+AE161),"") ->  | AQ161: N | AR161: =IF(D161="",99,VLOOKUP(D161,'Go Order'!$C$3:$D$37,2,FALSE)) -> 99
A162: 154 | B162: 154 | J162: =IF(SUM(H162+I162)>60,60,SUM(H162+I162)) -> 0 | N162: =IF(SUM(L162+M162)>60,60,SUM(L162+M162)) -> 0 | O162: =SUM(J162+N162) -> 0 | S162: =IF(SUM(Q162+R162)>60,60,SUM(Q162+R162)) -> 0 | T162: =SUM(O162+S162) -> 0 | X162: =IF(SUM(V162+W162)>60,60,SUM(V162+W162)) -> 0 | AB162: =IF(SUM(Z162+AA162)>60,60,SUM(Z162+AA162)) -> 0 | AG162: =IF(SUM(AD162+AE162)>60,60,SUM(AD162+AE162)) -> 0 | AH162: =+X162+AB162+AG162 -> 0 | AI162: =+T162+AH162 -> 0 | AJ162: =IF(E162<>"",SUM(I162+M162+R162+W162+AA162+AE162),"") ->  | AQ162: N | AR162: =IF(D162="",99,VLOOKUP(D162,'Go Order'!$C$3:$D$37,2,FALSE)) -> 99
A163: 155 | B163: 155 | J163: =IF(SUM(H163+I163)>60,60,SUM(H163+I163)) -> 0 | N163: =IF(SUM(L163+M163)>60,60,SUM(L163+M163)) -> 0 | O163: =SUM(J163+N163) -> 0 | S163: =IF(SUM(Q163+R163)>60,60,SUM(Q163+R163)) -> 0 | T163: =SUM(O163+S163) -> 0 | X163: =IF(SUM(V163+W163)>60,60,SUM(V163+W163)) -> 0 | AB163: =IF(SUM(Z163+AA163)>60,60,SUM(Z163+AA163)) -> 0 | AG163: =IF(SUM(AD163+AE163)>60,60,SUM(AD163+AE163)) -> 0 | AH163: =+X163+AB163+AG163 -> 0 | AI163: =+T163+AH163 -> 0 | AJ163: =IF(E163<>"",SUM(I163+M163+R163+W163+AA163+AE163),"") ->  | AQ163: N | AR163: =IF(D163="",99,VLOOKUP(D163,'Go Order'!$C$3:$D$37,2,FALSE)) -> 99
A164: 156 | B164: 156 | J164: =IF(SUM(H164+I164)>60,60,SUM(H164+I164)) -> 0 | N164: =IF(SUM(L164+M164)>60,60,SUM(L164+M164)) -> 0 | O164: =SUM(J164+N164) -> 0 | S164: =IF(SUM(Q164+R164)>60,60,SUM(Q164+R164)) -> 0 | T164: =SUM(O164+S164) -> 0 | X164: =IF(SUM(V164+W164)>60,60,SUM(V164+W164)) -> 0 | AB164: =IF(SUM(Z164+AA164)>60,60,SUM(Z164+AA164)) -> 0 | AG164: =IF(SUM(AD164+AE164)>60,60,SUM(AD164+AE164)) -> 0 | AH164: =+X164+AB164+AG164 -> 0 | AI164: =+T164+AH164 -> 0 | AJ164: =IF(E164<>"",SUM(I164+M164+R164+W164+AA164+AE164),"") ->  | AQ164: N | AR164: =IF(D164="",99,VLOOKUP(D164,'Go Order'!$C$3:$D$37,2,FALSE)) -> 99
A165: 157 | B165: 157 | J165: =IF(SUM(H165+I165)>60,60,SUM(H165+I165)) -> 0 | N165: =IF(SUM(L165+M165)>60,60,SUM(L165+M165)) -> 0 | O165: =SUM(J165+N165) -> 0 | S165: =IF(SUM(Q165+R165)>60,60,SUM(Q165+R165)) -> 0 | T165: =SUM(O165+S165) -> 0 | X165: =IF(SUM(V165+W165)>60,60,SUM(V165+W165)) -> 0 | AB165: =IF(SUM(Z165+AA165)>60,60,SUM(Z165+AA165)) -> 0 | AG165: =IF(SUM(AD165+AE165)>60,60,SUM(AD165+AE165)) -> 0 | AH165: =+X165+AB165+AG165 -> 0 | AI165: =+T165+AH165 -> 0 | AJ165: =IF(E165<>"",SUM(I165+M165+R165+W165+AA165+AE165),"") ->  | AQ165: N | AR165: =IF(D165="",99,VLOOKUP(D165,'Go Order'!$C$3:$D$37,2,FALSE)) -> 99
A166: 158 | B166: 158 | J166: =IF(SUM(H166+I166)>60,60,SUM(H166+I166)) -> 0 | N166: =IF(SUM(L166+M166)>60,60,SUM(L166+M166)) -> 0 | O166: =SUM(J166+N166) -> 0 | S166: =IF(SUM(Q166+R166)>60,60,SUM(Q166+R166)) -> 0 | T166: =SUM(O166+S166) -> 0 | X166: =IF(SUM(V166+W166)>60,60,SUM(V166+W166)) -> 0 | AB166: =IF(SUM(Z166+AA166)>60,60,SUM(Z166+AA166)) -> 0 | AG166: =IF(SUM(AD166+AE166)>60,60,SUM(AD166+AE166)) -> 0 | AH166: =+X166+AB166+AG166 -> 0 | AI166: =+T166+AH166 -> 0 | AJ166: =IF(E166<>"",SUM(I166+M166+R166+W166+AA166+AE166),"") ->  | AQ166: N | AR166: =IF(D166="",99,VLOOKUP(D166,'Go Order'!$C$3:$D$37,2,FALSE)) -> 99
A167: 159 | B167: 159 | J167: =IF(SUM(H167+I167)>60,60,SUM(H167+I167)) -> 0 | N167: =IF(SUM(L167+M167)>60,60,SUM(L167+M167)) -> 0 | O167: =SUM(J167+N167) -> 0 | S167: =IF(SUM(Q167+R167)>60,60,SUM(Q167+R167)) -> 0 | T167: =SUM(O167+S167) -> 0 | X167: =IF(SUM(V167+W167)>60,60,SUM(V167+W167)) -> 0 | AB167: =IF(SUM(Z167+AA167)>60,60,SUM(Z167+AA167)) -> 0 | AG167: =IF(SUM(AD167+AE167)>60,60,SUM(AD167+AE167)) -> 0 | AH167: =+X167+AB167+AG167 -> 0 | AI167: =+T167+AH167 -> 0 | AJ167: =IF(E167<>"",SUM(I167+M167+R167+W167+AA167+AE167),"") ->  | AQ167: N | AR167: =IF(D167="",99,VLOOKUP(D167,'Go Order'!$C$3:$D$37,2,FALSE)) -> 99
A168: 160 | B168: 160 | J168: =IF(SUM(H168+I168)>60,60,SUM(H168+I168)) -> 0 | N168: =IF(SUM(L168+M168)>60,60,SUM(L168+M168)) -> 0 | O168: =SUM(J168+N168) -> 0 | S168: =IF(SUM(Q168+R168)>60,60,SUM(Q168+R168)) -> 0 | T168: =SUM(O168+S168) -> 0 | X168: =IF(SUM(V168+W168)>60,60,SUM(V168+W168)) -> 0 | AB168: =IF(SUM(Z168+AA168)>60,60,SUM(Z168+AA168)) -> 0 | AG168: =IF(SUM(AD168+AE168)>60,60,SUM(AD168+AE168)) -> 0 | AH168: =+X168+AB168+AG168 -> 0 | AI168: =+T168+AH168 -> 0 | AJ168: =IF(E168<>"",SUM(I168+M168+R168+W168+AA168+AE168),"") ->  | AQ168: N | AR168: =IF(D168="",99,VLOOKUP(D168,'Go Order'!$C$3:$D$37,2,FALSE)) -> 99
A169: 161 | B169: 161 | J169: =IF(SUM(H169+I169)>60,60,SUM(H169+I169)) -> 0 | N169: =IF(SUM(L169+M169)>60,60,SUM(L169+M169)) -> 0 | O169: =SUM(J169+N169) -> 0 | S169: =IF(SUM(Q169+R169)>60,60,SUM(Q169+R169)) -> 0 | T169: =SUM(O169+S169) -> 0 | X169: =IF(SUM(V169+W169)>60,60,SUM(V169+W169)) -> 0 | AB169: =IF(SUM(Z169+AA169)>60,60,SUM(Z169+AA169)) -> 0 | AG169: =IF(SUM(AD169+AE169)>60,60,SUM(AD169+AE169)) -> 0 | AH169: =+X169+AB169+AG169 -> 0 | AI169: =+T169+AH169 -> 0 | AJ169: =IF(E169<>"",SUM(I169+M169+R169+W169+AA169+AE169),"") ->  | AQ169: N | AR169: =IF(D169="",99,VLOOKUP(D169,'Go Order'!$C$3:$D$37,2,FALSE)) -> 99
A170: 162 | B170: 162 | J170: =IF(SUM(H170+I170)>60,60,SUM(H170+I170)) -> 0 | N170: =IF(SUM(L170+M170)>60,60,SUM(L170+M170)) -> 0 | O170: =SUM(J170+N170) -> 0 | S170: =IF(SUM(Q170+R170)>60,60,SUM(Q170+R170)) -> 0 | T170: =SUM(O170+S170) -> 0 | X170: =IF(SUM(V170+W170)>60,60,SUM(V170+W170)) -> 0 | AB170: =IF(SUM(Z170+AA170)>60,60,SUM(Z170+AA170)) -> 0 | AG170: =IF(SUM(AD170+AE170)>60,60,SUM(AD170+AE170)) -> 0 | AH170: =+X170+AB170+AG170 -> 0 | AI170: =+T170+AH170 -> 0 | AJ170: =IF(E170<>"",SUM(I170+M170+R170+W170+AA170+AE170),"") ->  | AQ170: N | AR170: =IF(D170="",99,VLOOKUP(D170,'Go Order'!$C$3:$D$37,2,FALSE)) -> 99
A171: 163 | B171: 163 | J171: =IF(SUM(H171+I171)>60,60,SUM(H171+I171)) -> 0 | N171: =IF(SUM(L171+M171)>60,60,SUM(L171+M171)) -> 0 | O171: =SUM(J171+N171) -> 0 | S171: =IF(SUM(Q171+R171)>60,60,SUM(Q171+R171)) -> 0 | T171: =SUM(O171+S171) -> 0 | X171: =IF(SUM(V171+W171)>60,60,SUM(V171+W171)) -> 0 | AB171: =IF(SUM(Z171+AA171)>60,60,SUM(Z171+AA171)) -> 0 | AG171: =IF(SUM(AD171+AE171)>60,60,SUM(AD171+AE171)) -> 0 | AH171: =+X171+AB171+AG171 -> 0 | AI171: =+T171+AH171 -> 0 | AJ171: =IF(E171<>"",SUM(I171+M171+R171+W171+AA171+AE171),"") ->  | AQ171: N | AR171: =IF(D171="",99,VLOOKUP(D171,'Go Order'!$C$3:$D$37,2,FALSE)) -> 99
A172: 164 | B172: 164 | J172: =IF(SUM(H172+I172)>60,60,SUM(H172+I172)) -> 0 | N172: =IF(SUM(L172+M172)>60,60,SUM(L172+M172)) -> 0 | O172: =SUM(J172+N172) -> 0 | S172: =IF(SUM(Q172+R172)>60,60,SUM(Q172+R172)) -> 0 | T172: =SUM(O172+S172) -> 0 | X172: =IF(SUM(V172+W172)>60,60,SUM(V172+W172)) -> 0 | AB172: =IF(SUM(Z172+AA172)>60,60,SUM(Z172+AA172)) -> 0 | AG172: =IF(SUM(AD172+AE172)>60,60,SUM(AD172+AE172)) -> 0 | AH172: =+X172+AB172+AG172 -> 0 | AI172: =+T172+AH172 -> 0 | AJ172: =IF(E172<>"",SUM(I172+M172+R172+W172+AA172+AE172),"") ->  | AQ172: N | AR172: =IF(D172="",99,VLOOKUP(D172,'Go Order'!$C$3:$D$37,2,FALSE)) -> 99
A173: 165 | B173: 165 | J173: =IF(SUM(H173+I173)>60,60,SUM(H173+I173)) -> 0 | N173: =IF(SUM(L173+M173)>60,60,SUM(L173+M173)) -> 0 | O173: =SUM(J173+N173) -> 0 | S173: =IF(SUM(Q173+R173)>60,60,SUM(Q173+R173)) -> 0 | T173: =SUM(O173+S173) -> 0 | X173: =IF(SUM(V173+W173)>60,60,SUM(V173+W173)) -> 0 | AB173: =IF(SUM(Z173+AA173)>60,60,SUM(Z173+AA173)) -> 0 | AG173: =IF(SUM(AD173+AE173)>60,60,SUM(AD173+AE173)) -> 0 | AH173: =+X173+AB173+AG173 -> 0 | AI173: =+T173+AH173 -> 0 | AJ173: =IF(E173<>"",SUM(I173+M173+R173+W173+AA173+AE173),"") ->  | AQ173: N | AR173: =IF(D173="",99,VLOOKUP(D173,'Go Order'!$C$3:$D$37,2,FALSE)) -> 99
A174: 166 | B174: 166 | J174: =IF(SUM(H174+I174)>60,60,SUM(H174+I174)) -> 0 | N174: =IF(SUM(L174+M174)>60,60,SUM(L174+M174)) -> 0 | O174: =SUM(J174+N174) -> 0 | S174: =IF(SUM(Q174+R174)>60,60,SUM(Q174+R174)) -> 0 | T174: =SUM(O174+S174) -> 0 | X174: =IF(SUM(V174+W174)>60,60,SUM(V174+W174)) -> 0 | AB174: =IF(SUM(Z174+AA174)>60,60,SUM(Z174+AA174)) -> 0 | AG174: =IF(SUM(AD174+AE174)>60,60,SUM(AD174+AE174)) -> 0 | AH174: =+X174+AB174+AG174 -> 0 | AI174: =+T174+AH174 -> 0 | AJ174: =IF(E174<>"",SUM(I174+M174+R174+W174+AA174+AE174),"") ->  | AQ174: N | AR174: =IF(D174="",99,VLOOKUP(D174,'Go Order'!$C$3:$D$37,2,FALSE)) -> 99
A175: 167 | B175: 167 | J175: =IF(SUM(H175+I175)>60,60,SUM(H175+I175)) -> 0 | N175: =IF(SUM(L175+M175)>60,60,SUM(L175+M175)) -> 0 | O175: =SUM(J175+N175) -> 0 | S175: =IF(SUM(Q175+R175)>60,60,SUM(Q175+R175)) -> 0 | T175: =SUM(O175+S175) -> 0 | X175: =IF(SUM(V175+W175)>60,60,SUM(V175+W175)) -> 0 | AB175: =IF(SUM(Z175+AA175)>60,60,SUM(Z175+AA175)) -> 0 | AG175: =IF(SUM(AD175+AE175)>60,60,SUM(AD175+AE175)) -> 0 | AH175: =+X175+AB175+AG175 -> 0 | AI175: =+T175+AH175 -> 0 | AJ175: =IF(E175<>"",SUM(I175+M175+R175+W175+AA175+AE175),"") ->  | AQ175: N | AR175: =IF(D175="",99,VLOOKUP(D175,'Go Order'!$C$3:$D$37,2,FALSE)) -> 99
A176: 168 | B176: 168 | J176: =IF(SUM(H176+I176)>60,60,SUM(H176+I176)) -> 0 | N176: =IF(SUM(L176+M176)>60,60,SUM(L176+M176)) -> 0 | O176: =SUM(J176+N176) -> 0 | S176: =IF(SUM(Q176+R176)>60,60,SUM(Q176+R176)) -> 0 | T176: =SUM(O176+S176) -> 0 | X176: =IF(SUM(V176+W176)>60,60,SUM(V176+W176)) -> 0 | AB176: =IF(SUM(Z176+AA176)>60,60,SUM(Z176+AA176)) -> 0 | AG176: =IF(SUM(AD176+AE176)>60,60,SUM(AD176+AE176)) -> 0 | AH176: =+X176+AB176+AG176 -> 0 | AI176: =+T176+AH176 -> 0 | AJ176: =IF(E176<>"",SUM(I176+M176+R176+W176+AA176+AE176),"") ->  | AQ176: N | AR176: =IF(D176="",99,VLOOKUP(D176,'Go Order'!$C$3:$D$37,2,FALSE)) -> 99
A177: 169 | B177: 169 | J177: =IF(SUM(H177+I177)>60,60,SUM(H177+I177)) -> 0 | N177: =IF(SUM(L177+M177)>60,60,SUM(L177+M177)) -> 0 | O177: =SUM(J177+N177) -> 0 | S177: =IF(SUM(Q177+R177)>60,60,SUM(Q177+R177)) -> 0 | T177: =SUM(O177+S177) -> 0 | X177: =IF(SUM(V177+W177)>60,60,SUM(V177+W177)) -> 0 | AB177: =IF(SUM(Z177+AA177)>60,60,SUM(Z177+AA177)) -> 0 | AG177: =IF(SUM(AD177+AE177)>60,60,SUM(AD177+AE177)) -> 0 | AH177: =+X177+AB177+AG177 -> 0 | AI177: =+T177+AH177 -> 0 | AJ177: =IF(E177<>"",SUM(I177+M177+R177+W177+AA177+AE177),"") ->  | AQ177: N | AR177: =IF(D177="",99,VLOOKUP(D177,'Go Order'!$C$3:$D$37,2,FALSE)) -> 99
A178: 170 | B178: 170 | J178: =IF(SUM(H178+I178)>60,60,SUM(H178+I178)) -> 0 | N178: =IF(SUM(L178+M178)>60,60,SUM(L178+M178)) -> 0 | O178: =SUM(J178+N178) -> 0 | S178: =IF(SUM(Q178+R178)>60,60,SUM(Q178+R178)) -> 0 | T178: =SUM(O178+S178) -> 0 | X178: =IF(SUM(V178+W178)>60,60,SUM(V178+W178)) -> 0 | AB178: =IF(SUM(Z178+AA178)>60,60,SUM(Z178+AA178)) -> 0 | AG178: =IF(SUM(AD178+AE178)>60,60,SUM(AD178+AE178)) -> 0 | AH178: =+X178+AB178+AG178 -> 0 | AI178: =+T178+AH178 -> 0 | AJ178: =IF(E178<>"",SUM(I178+M178+R178+W178+AA178+AE178),"") ->  | AQ178: N | AR178: =IF(D178="",99,VLOOKUP(D178,'Go Order'!$C$3:$D$37,2,FALSE)) -> 99
A179: 171 | B179: 171 | J179: =IF(SUM(H179+I179)>60,60,SUM(H179+I179)) -> 0 | N179: =IF(SUM(L179+M179)>60,60,SUM(L179+M179)) -> 0 | O179: =SUM(J179+N179) -> 0 | S179: =IF(SUM(Q179+R179)>60,60,SUM(Q179+R179)) -> 0 | T179: =SUM(O179+S179) -> 0 | X179: =IF(SUM(V179+W179)>60,60,SUM(V179+W179)) -> 0 | AB179: =IF(SUM(Z179+AA179)>60,60,SUM(Z179+AA179)) -> 0 | AG179: =IF(SUM(AD179+AE179)>60,60,SUM(AD179+AE179)) -> 0 | AH179: =+X179+AB179+AG179 -> 0 | AI179: =+T179+AH179 -> 0 | AJ179: =IF(E179<>"",SUM(I179+M179+R179+W179+AA179+AE179),"") ->  | AQ179: N | AR179: =IF(D179="",99,VLOOKUP(D179,'Go Order'!$C$3:$D$37,2,FALSE)) -> 99
A180: 172 | B180: 172 | J180: =IF(SUM(H180+I180)>60,60,SUM(H180+I180)) -> 0 | N180: =IF(SUM(L180+M180)>60,60,SUM(L180+M180)) -> 0 | O180: =SUM(J180+N180) -> 0 | S180: =IF(SUM(Q180+R180)>60,60,SUM(Q180+R180)) -> 0 | T180: =SUM(O180+S180) -> 0 | X180: =IF(SUM(V180+W180)>60,60,SUM(V180+W180)) -> 0 | AB180: =IF(SUM(Z180+AA180)>60,60,SUM(Z180+AA180)) -> 0 | AG180: =IF(SUM(AD180+AE180)>60,60,SUM(AD180+AE180)) -> 0 | AH180: =+X180+AB180+AG180 -> 0 | AI180: =+T180+AH180 -> 0 | AJ180: =IF(E180<>"",SUM(I180+M180+R180+W180+AA180+AE180),"") ->  | AQ180: N | AR180: =IF(D180="",99,VLOOKUP(D180,'Go Order'!$C$3:$D$37,2,FALSE)) -> 99
A181: 173 | B181: 173 | J181: =IF(SUM(H181+I181)>60,60,SUM(H181+I181)) -> 0 | N181: =IF(SUM(L181+M181)>60,60,SUM(L181+M181)) -> 0 | O181: =SUM(J181+N181) -> 0 | S181: =IF(SUM(Q181+R181)>60,60,SUM(Q181+R181)) -> 0 | T181: =SUM(O181+S181) -> 0 | X181: =IF(SUM(V181+W181)>60,60,SUM(V181+W181)) -> 0 | AB181: =IF(SUM(Z181+AA181)>60,60,SUM(Z181+AA181)) -> 0 | AG181: =IF(SUM(AD181+AE181)>60,60,SUM(AD181+AE181)) -> 0 | AH181: =+X181+AB181+AG181 -> 0 | AI181: =+T181+AH181 -> 0 | AJ181: =IF(E181<>"",SUM(I181+M181+R181+W181+AA181+AE181),"") ->  | AQ181: N | AR181: =IF(D181="",99,VLOOKUP(D181,'Go Order'!$C$3:$D$37,2,FALSE)) -> 99
A182: 174 | B182: 174 | J182: =IF(SUM(H182+I182)>60,60,SUM(H182+I182)) -> 0 | N182: =IF(SUM(L182+M182)>60,60,SUM(L182+M182)) -> 0 | O182: =SUM(J182+N182) -> 0 | S182: =IF(SUM(Q182+R182)>60,60,SUM(Q182+R182)) -> 0 | T182: =SUM(O182+S182) -> 0 | X182: =IF(SUM(V182+W182)>60,60,SUM(V182+W182)) -> 0 | AB182: =IF(SUM(Z182+AA182)>60,60,SUM(Z182+AA182)) -> 0 | AG182: =IF(SUM(AD182+AE182)>60,60,SUM(AD182+AE182)) -> 0 | AH182: =+X182+AB182+AG182 -> 0 | AI182: =+T182+AH182 -> 0 | AJ182: =IF(E182<>"",SUM(I182+M182+R182+W182+AA182+AE182),"") ->  | AQ182: N | AR182: =IF(D182="",99,VLOOKUP(D182,'Go Order'!$C$3:$D$37,2,FALSE)) -> 99
A183: 175 | B183: 175 | J183: =IF(SUM(H183+I183)>60,60,SUM(H183+I183)) -> 0 | N183: =IF(SUM(L183+M183)>60,60,SUM(L183+M183)) -> 0 | O183: =SUM(J183+N183) -> 0 | S183: =IF(SUM(Q183+R183)>60,60,SUM(Q183+R183)) -> 0 | T183: =SUM(O183+S183) -> 0 | X183: =IF(SUM(V183+W183)>60,60,SUM(V183+W183)) -> 0 | AB183: =IF(SUM(Z183+AA183)>60,60,SUM(Z183+AA183)) -> 0 | AG183: =IF(SUM(AD183+AE183)>60,60,SUM(AD183+AE183)) -> 0 | AH183: =+X183+AB183+AG183 -> 0 | AI183: =+T183+AH183 -> 0 | AJ183: =IF(E183<>"",SUM(I183+M183+R183+W183+AA183+AE183),"") ->  | AQ183: N | AR183: =IF(D183="",99,VLOOKUP(D183,'Go Order'!$C$3:$D$37,2,FALSE)) -> 99
A184: 176 | B184: 176 | J184: =IF(SUM(H184+I184)>60,60,SUM(H184+I184)) -> 0 | N184: =IF(SUM(L184+M184)>60,60,SUM(L184+M184)) -> 0 | O184: =SUM(J184+N184) -> 0 | S184: =IF(SUM(Q184+R184)>60,60,SUM(Q184+R184)) -> 0 | T184: =SUM(O184+S184) -> 0 | X184: =IF(SUM(V184+W184)>60,60,SUM(V184+W184)) -> 0 | AB184: =IF(SUM(Z184+AA184)>60,60,SUM(Z184+AA184)) -> 0 | AG184: =IF(SUM(AD184+AE184)>60,60,SUM(AD184+AE184)) -> 0 | AH184: =+X184+AB184+AG184 -> 0 | AI184: =+T184+AH184 -> 0 | AJ184: =IF(E184<>"",SUM(I184+M184+R184+W184+AA184+AE184),"") ->  | AQ184: N | AR184: =IF(D184="",99,VLOOKUP(D184,'Go Order'!$C$3:$D$37,2,FALSE)) -> 99
A185: 177 | B185: 177 | J185: =IF(SUM(H185+I185)>60,60,SUM(H185+I185)) -> 0 | N185: =IF(SUM(L185+M185)>60,60,SUM(L185+M185)) -> 0 | O185: =SUM(J185+N185) -> 0 | S185: =IF(SUM(Q185+R185)>60,60,SUM(Q185+R185)) -> 0 | T185: =SUM(O185+S185) -> 0 | X185: =IF(SUM(V185+W185)>60,60,SUM(V185+W185)) -> 0 | AB185: =IF(SUM(Z185+AA185)>60,60,SUM(Z185+AA185)) -> 0 | AG185: =IF(SUM(AD185+AE185)>60,60,SUM(AD185+AE185)) -> 0 | AH185: =+X185+AB185+AG185 -> 0 | AI185: =+T185+AH185 -> 0 | AJ185: =IF(E185<>"",SUM(I185+M185+R185+W185+AA185+AE185),"") ->  | AQ185: N | AR185: =IF(D185="",99,VLOOKUP(D185,'Go Order'!$C$3:$D$37,2,FALSE)) -> 99
A186: 178 | B186: 178 | J186: =IF(SUM(H186+I186)>60,60,SUM(H186+I186)) -> 0 | N186: =IF(SUM(L186+M186)>60,60,SUM(L186+M186)) -> 0 | O186: =SUM(J186+N186) -> 0 | S186: =IF(SUM(Q186+R186)>60,60,SUM(Q186+R186)) -> 0 | T186: =SUM(O186+S186) -> 0 | X186: =IF(SUM(V186+W186)>60,60,SUM(V186+W186)) -> 0 | AB186: =IF(SUM(Z186+AA186)>60,60,SUM(Z186+AA186)) -> 0 | AG186: =IF(SUM(AD186+AE186)>60,60,SUM(AD186+AE186)) -> 0 | AH186: =+X186+AB186+AG186 -> 0 | AI186: =+T186+AH186 -> 0 | AJ186: =IF(E186<>"",SUM(I186+M186+R186+W186+AA186+AE186),"") ->  | AQ186: N | AR186: =IF(D186="",99,VLOOKUP(D186,'Go Order'!$C$3:$D$37,2,FALSE)) -> 99
A187: 179 | B187: 179 | J187: =IF(SUM(H187+I187)>60,60,SUM(H187+I187)) -> 0 | N187: =IF(SUM(L187+M187)>60,60,SUM(L187+M187)) -> 0 | O187: =SUM(J187+N187) -> 0 | S187: =IF(SUM(Q187+R187)>60,60,SUM(Q187+R187)) -> 0 | T187: =SUM(O187+S187) -> 0 | X187: =IF(SUM(V187+W187)>60,60,SUM(V187+W187)) -> 0 | AB187: =IF(SUM(Z187+AA187)>60,60,SUM(Z187+AA187)) -> 0 | AG187: =IF(SUM(AD187+AE187)>60,60,SUM(AD187+AE187)) -> 0 | AH187: =+X187+AB187+AG187 -> 0 | AI187: =+T187+AH187 -> 0 | AJ187: =IF(E187<>"",SUM(I187+M187+R187+W187+AA187+AE187),"") ->  | AQ187: N | AR187: =IF(D187="",99,VLOOKUP(D187,'Go Order'!$C$3:$D$37,2,FALSE)) -> 99
A188: 180 | B188: 180 | J188: =IF(SUM(H188+I188)>60,60,SUM(H188+I188)) -> 0 | N188: =IF(SUM(L188+M188)>60,60,SUM(L188+M188)) -> 0 | O188: =SUM(J188+N188) -> 0 | S188: =IF(SUM(Q188+R188)>60,60,SUM(Q188+R188)) -> 0 | T188: =SUM(O188+S188) -> 0 | X188: =IF(SUM(V188+W188)>60,60,SUM(V188+W188)) -> 0 | AB188: =IF(SUM(Z188+AA188)>60,60,SUM(Z188+AA188)) -> 0 | AG188: =IF(SUM(AD188+AE188)>60,60,SUM(AD188+AE188)) -> 0 | AH188: =+X188+AB188+AG188 -> 0 | AI188: =+T188+AH188 -> 0 | AJ188: =IF(E188<>"",SUM(I188+M188+R188+W188+AA188+AE188),"") ->  | AQ188: N | AR188: =IF(D188="",99,VLOOKUP(D188,'Go Order'!$C$3:$D$37,2,FALSE)) -> 99
A189: 181 | B189: 181 | J189: =IF(SUM(H189+I189)>60,60,SUM(H189+I189)) -> 0 | N189: =IF(SUM(L189+M189)>60,60,SUM(L189+M189)) -> 0 | O189: =SUM(J189+N189) -> 0 | S189: =IF(SUM(Q189+R189)>60,60,SUM(Q189+R189)) -> 0 | T189: =SUM(O189+S189) -> 0 | X189: =IF(SUM(V189+W189)>60,60,SUM(V189+W189)) -> 0 | AB189: =IF(SUM(Z189+AA189)>60,60,SUM(Z189+AA189)) -> 0 | AG189: =IF(SUM(AD189+AE189)>60,60,SUM(AD189+AE189)) -> 0 | AH189: =+X189+AB189+AG189 -> 0 | AI189: =+T189+AH189 -> 0 | AJ189: =IF(E189<>"",SUM(I189+M189+R189+W189+AA189+AE189),"") ->  | AQ189: N | AR189: =IF(D189="",99,VLOOKUP(D189,'Go Order'!$C$3:$D$37,2,FALSE)) -> 99
A190: 182 | B190: 182 | J190: =IF(SUM(H190+I190)>60,60,SUM(H190+I190)) -> 0 | N190: =IF(SUM(L190+M190)>60,60,SUM(L190+M190)) -> 0 | O190: =SUM(J190+N190) -> 0 | S190: =IF(SUM(Q190+R190)>60,60,SUM(Q190+R190)) -> 0 | T190: =SUM(O190+S190) -> 0 | X190: =IF(SUM(V190+W190)>60,60,SUM(V190+W190)) -> 0 | AB190: =IF(SUM(Z190+AA190)>60,60,SUM(Z190+AA190)) -> 0 | AG190: =IF(SUM(AD190+AE190)>60,60,SUM(AD190+AE190)) -> 0 | AH190: =+X190+AB190+AG190 -> 0 | AI190: =+T190+AH190 -> 0 | AJ190: =IF(E190<>"",SUM(I190+M190+R190+W190+AA190+AE190),"") ->  | AQ190: N | AR190: =IF(D190="",99,VLOOKUP(D190,'Go Order'!$C$3:$D$37,2,FALSE)) -> 99
A191: 183 | B191: 183 | J191: =IF(SUM(H191+I191)>60,60,SUM(H191+I191)) -> 0 | N191: =IF(SUM(L191+M191)>60,60,SUM(L191+M191)) -> 0 | O191: =SUM(J191+N191) -> 0 | S191: =IF(SUM(Q191+R191)>60,60,SUM(Q191+R191)) -> 0 | T191: =SUM(O191+S191) -> 0 | X191: =IF(SUM(V191+W191)>60,60,SUM(V191+W191)) -> 0 | AB191: =IF(SUM(Z191+AA191)>60,60,SUM(Z191+AA191)) -> 0 | AG191: =IF(SUM(AD191+AE191)>60,60,SUM(AD191+AE191)) -> 0 | AH191: =+X191+AB191+AG191 -> 0 | AI191: =+T191+AH191 -> 0 | AJ191: =IF(E191<>"",SUM(I191+M191+R191+W191+AA191+AE191),"") ->  | AQ191: N | AR191: =IF(D191="",99,VLOOKUP(D191,'Go Order'!$C$3:$D$37,2,FALSE)) -> 99
A192: 184 | B192: 184 | J192: =IF(SUM(H192+I192)>60,60,SUM(H192+I192)) -> 0 | N192: =IF(SUM(L192+M192)>60,60,SUM(L192+M192)) -> 0 | O192: =SUM(J192+N192) -> 0 | S192: =IF(SUM(Q192+R192)>60,60,SUM(Q192+R192)) -> 0 | T192: =SUM(O192+S192) -> 0 | X192: =IF(SUM(V192+W192)>60,60,SUM(V192+W192)) -> 0 | AB192: =IF(SUM(Z192+AA192)>60,60,SUM(Z192+AA192)) -> 0 | AG192: =IF(SUM(AD192+AE192)>60,60,SUM(AD192+AE192)) -> 0 | AH192: =+X192+AB192+AG192 -> 0 | AI192: =+T192+AH192 -> 0 | AJ192: =IF(E192<>"",SUM(I192+M192+R192+W192+AA192+AE192),"") ->  | AQ192: N | AR192: =IF(D192="",99,VLOOKUP(D192,'Go Order'!$C$3:$D$37,2,FALSE)) -> 99
A193: 185 | B193: 185 | J193: =IF(SUM(H193+I193)>60,60,SUM(H193+I193)) -> 0 | N193: =IF(SUM(L193+M193)>60,60,SUM(L193+M193)) -> 0 | O193: =SUM(J193+N193) -> 0 | S193: =IF(SUM(Q193+R193)>60,60,SUM(Q193+R193)) -> 0 | T193: =SUM(O193+S193) -> 0 | X193: =IF(SUM(V193+W193)>60,60,SUM(V193+W193)) -> 0 | AB193: =IF(SUM(Z193+AA193)>60,60,SUM(Z193+AA193)) -> 0 | AG193: =IF(SUM(AD193+AE193)>60,60,SUM(AD193+AE193)) -> 0 | AH193: =+X193+AB193+AG193 -> 0 | AI193: =+T193+AH193 -> 0 | AJ193: =IF(E193<>"",SUM(I193+M193+R193+W193+AA193+AE193),"") ->  | AQ193: N | AR193: =IF(D193="",99,VLOOKUP(D193,'Go Order'!$C$3:$D$37,2,FALSE)) -> 99
A194: 186 | B194: 186 | J194: =IF(SUM(H194+I194)>60,60,SUM(H194+I194)) -> 0 | N194: =IF(SUM(L194+M194)>60,60,SUM(L194+M194)) -> 0 | O194: =SUM(J194+N194) -> 0 | S194: =IF(SUM(Q194+R194)>60,60,SUM(Q194+R194)) -> 0 | T194: =SUM(O194+S194) -> 0 | X194: =IF(SUM(V194+W194)>60,60,SUM(V194+W194)) -> 0 | AB194: =IF(SUM(Z194+AA194)>60,60,SUM(Z194+AA194)) -> 0 | AG194: =IF(SUM(AD194+AE194)>60,60,SUM(AD194+AE194)) -> 0 | AH194: =+X194+AB194+AG194 -> 0 | AI194: =+T194+AH194 -> 0 | AJ194: =IF(E194<>"",SUM(I194+M194+R194+W194+AA194+AE194),"") ->  | AQ194: N | AR194: =IF(D194="",99,VLOOKUP(D194,'Go Order'!$C$3:$D$37,2,FALSE)) -> 99
A195: 187 | B195: 187 | J195: =IF(SUM(H195+I195)>60,60,SUM(H195+I195)) -> 0 | N195: =IF(SUM(L195+M195)>60,60,SUM(L195+M195)) -> 0 | O195: =SUM(J195+N195) -> 0 | S195: =IF(SUM(Q195+R195)>60,60,SUM(Q195+R195)) -> 0 | T195: =SUM(O195+S195) -> 0 | X195: =IF(SUM(V195+W195)>60,60,SUM(V195+W195)) -> 0 | AB195: =IF(SUM(Z195+AA195)>60,60,SUM(Z195+AA195)) -> 0 | AG195: =IF(SUM(AD195+AE195)>60,60,SUM(AD195+AE195)) -> 0 | AH195: =+X195+AB195+AG195 -> 0 | AI195: =+T195+AH195 -> 0 | AJ195: =IF(E195<>"",SUM(I195+M195+R195+W195+AA195+AE195),"") ->  | AQ195: N | AR195: =IF(D195="",99,VLOOKUP(D195,'Go Order'!$C$3:$D$37,2,FALSE)) -> 99
A196: 188 | B196: 188 | J196: =IF(SUM(H196+I196)>60,60,SUM(H196+I196)) -> 0 | N196: =IF(SUM(L196+M196)>60,60,SUM(L196+M196)) -> 0 | O196: =SUM(J196+N196) -> 0 | S196: =IF(SUM(Q196+R196)>60,60,SUM(Q196+R196)) -> 0 | T196: =SUM(O196+S196) -> 0 | X196: =IF(SUM(V196+W196)>60,60,SUM(V196+W196)) -> 0 | AB196: =IF(SUM(Z196+AA196)>60,60,SUM(Z196+AA196)) -> 0 | AG196: =IF(SUM(AD196+AE196)>60,60,SUM(AD196+AE196)) -> 0 | AH196: =+X196+AB196+AG196 -> 0 | AI196: =+T196+AH196 -> 0 | AJ196: =IF(E196<>"",SUM(I196+M196+R196+W196+AA196+AE196),"") ->  | AQ196: N | AR196: =IF(D196="",99,VLOOKUP(D196,'Go Order'!$C$3:$D$37,2,FALSE)) -> 99
A197: 189 | B197: 189 | J197: =IF(SUM(H197+I197)>60,60,SUM(H197+I197)) -> 0 | N197: =IF(SUM(L197+M197)>60,60,SUM(L197+M197)) -> 0 | O197: =SUM(J197+N197) -> 0 | S197: =IF(SUM(Q197+R197)>60,60,SUM(Q197+R197)) -> 0 | T197: =SUM(O197+S197) -> 0 | X197: =IF(SUM(V197+W197)>60,60,SUM(V197+W197)) -> 0 | AB197: =IF(SUM(Z197+AA197)>60,60,SUM(Z197+AA197)) -> 0 | AG197: =IF(SUM(AD197+AE197)>60,60,SUM(AD197+AE197)) -> 0 | AH197: =+X197+AB197+AG197 -> 0 | AI197: =+T197+AH197 -> 0 | AJ197: =IF(E197<>"",SUM(I197+M197+R197+W197+AA197+AE197),"") ->  | AQ197: N | AR197: =IF(D197="",99,VLOOKUP(D197,'Go Order'!$C$3:$D$37,2,FALSE)) -> 99
A198: 190 | B198: 190 | J198: =IF(SUM(H198+I198)>60,60,SUM(H198+I198)) -> 0 | N198: =IF(SUM(L198+M198)>60,60,SUM(L198+M198)) -> 0 | O198: =SUM(J198+N198) -> 0 | S198: =IF(SUM(Q198+R198)>60,60,SUM(Q198+R198)) -> 0 | T198: =SUM(O198+S198) -> 0 | X198: =IF(SUM(V198+W198)>60,60,SUM(V198+W198)) -> 0 | AB198: =IF(SUM(Z198+AA198)>60,60,SUM(Z198+AA198)) -> 0 | AG198: =IF(SUM(AD198+AE198)>60,60,SUM(AD198+AE198)) -> 0 | AH198: =+X198+AB198+AG198 -> 0 | AI198: =+T198+AH198 -> 0 | AJ198: =IF(E198<>"",SUM(I198+M198+R198+W198+AA198+AE198),"") ->  | AQ198: N | AR198: =IF(D198="",99,VLOOKUP(D198,'Go Order'!$C$3:$D$37,2,FALSE)) -> 99
A199: 191 | B199: 191 | J199: =IF(SUM(H199+I199)>60,60,SUM(H199+I199)) -> 0 | N199: =IF(SUM(L199+M199)>60,60,SUM(L199+M199)) -> 0 | O199: =SUM(J199+N199) -> 0 | S199: =IF(SUM(Q199+R199)>60,60,SUM(Q199+R199)) -> 0 | T199: =SUM(O199+S199) -> 0 | X199: =IF(SUM(V199+W199)>60,60,SUM(V199+W199)) -> 0 | AB199: =IF(SUM(Z199+AA199)>60,60,SUM(Z199+AA199)) -> 0 | AG199: =IF(SUM(AD199+AE199)>60,60,SUM(AD199+AE199)) -> 0 | AH199: =+X199+AB199+AG199 -> 0 | AI199: =+T199+AH199 -> 0 | AJ199: =IF(E199<>"",SUM(I199+M199+R199+W199+AA199+AE199),"") ->  | AQ199: N | AR199: =IF(D199="",99,VLOOKUP(D199,'Go Order'!$C$3:$D$37,2,FALSE)) -> 99
A200: 192 | B200: 192 | J200: =IF(SUM(H200+I200)>60,60,SUM(H200+I200)) -> 0 | N200: =IF(SUM(L200+M200)>60,60,SUM(L200+M200)) -> 0 | O200: =SUM(J200+N200) -> 0 | S200: =IF(SUM(Q200+R200)>60,60,SUM(Q200+R200)) -> 0 | T200: =SUM(O200+S200) -> 0 | X200: =IF(SUM(V200+W200)>60,60,SUM(V200+W200)) -> 0 | AB200: =IF(SUM(Z200+AA200)>60,60,SUM(Z200+AA200)) -> 0 | AG200: =IF(SUM(AD200+AE200)>60,60,SUM(AD200+AE200)) -> 0 | AH200: =+X200+AB200+AG200 -> 0 | AI200: =+T200+AH200 -> 0 | AJ200: =IF(E200<>"",SUM(I200+M200+R200+W200+AA200+AE200),"") ->  | AQ200: N | AR200: =IF(D200="",99,VLOOKUP(D200,'Go Order'!$C$3:$D$37,2,FALSE)) -> 99
A201: 193 | B201: 193 | J201: =IF(SUM(H201+I201)>60,60,SUM(H201+I201)) -> 0 | N201: =IF(SUM(L201+M201)>60,60,SUM(L201+M201)) -> 0 | O201: =SUM(J201+N201) -> 0 | S201: =IF(SUM(Q201+R201)>60,60,SUM(Q201+R201)) -> 0 | T201: =SUM(O201+S201) -> 0 | X201: =IF(SUM(V201+W201)>60,60,SUM(V201+W201)) -> 0 | AB201: =IF(SUM(Z201+AA201)>60,60,SUM(Z201+AA201)) -> 0 | AG201: =IF(SUM(AD201+AE201)>60,60,SUM(AD201+AE201)) -> 0 | AH201: =+X201+AB201+AG201 -> 0 | AI201: =+T201+AH201 -> 0 | AJ201: =IF(E201<>"",SUM(I201+M201+R201+W201+AA201+AE201),"") ->  | AQ201: N | AR201: =IF(D201="",99,VLOOKUP(D201,'Go Order'!$C$3:$D$37,2,FALSE)) -> 99
... 207 more rows

Sheet By Half (hidden)
C1: Name of Shoot: | E1: =+Riders!B7 -> MSA May 19 2013 3,1,7,16 | H1: =+Riders!E6 -> 2013-05-19
B2: Class | C2: Class | D2: Place by Class | E2: WSSA # | F2: Rider | G2: Total stages 1-2-3 | H2: Total stages 4-5-6 | I2: Total Penalty | J2: Sort Field
C3: =+IF(Riders!D94="","",Riders!D94) ->  | D3: =IF(F3="","",IF(C3=C2,D2+1,1)) ->  | E3: =+IF(Riders!C94="","",Riders!C94) ->  | F3: =IF(Riders!E94<>"",Riders!E94,"") ->  | G3: =+Riders!T94 -> 0 | H3: =+Riders!AH94 -> 0 | I3: =+Riders!AJ94 ->  | J3: =IF(OR(C3="BRO",C3="BRL"),2,IF(C3="",9,IF(C3="NM",8,1))) -> 9
C4: =+IF(Riders!D93="","",Riders!D93) ->  | E4: =+IF(Riders!C93="","",Riders!C93) ->  | F4: =IF(Riders!E93<>"",Riders!E93,"") ->  | G4: =+Riders!T93 -> 0 | H4: =+Riders!AH93 -> 0 | I4: =+Riders!AJ93 ->  | J4: 9
C5: =+IF(Riders!D98="","",Riders!D98) ->  | E5: =+IF(Riders!C98="","",Riders!C98) ->  | F5: =IF(Riders!E98<>"",Riders!E98,"") ->  | G5: =+Riders!T98 -> 0 | H5: =+Riders!AH98 -> 0 | I5: =+Riders!AJ98 ->  | J5: 9
C6: =+IF(Riders!D96="","",Riders!D96) ->  | E6: =+IF(Riders!C96="","",Riders!C96) ->  | F6: =IF(Riders!E96<>"",Riders!E96,"") ->  | G6: =+Riders!T96 -> 0 | H6: =+Riders!AH96 -> 0 | I6: =+Riders!AJ96 ->  | J6: 9
C7: =+IF(Riders!D97="","",Riders!D97) ->  | E7: =+IF(Riders!C97="","",Riders!C97) ->  | F7: =IF(Riders!E97<>"",Riders!E97,"") ->  | G7: =+Riders!T97 -> 0 | H7: =+Riders!AH97 -> 0 | I7: =+Riders!AJ97 ->  | J7: 9
C8: =+IF(Riders!D92="","",Riders!D92) ->  | E8: =+IF(Riders!C92="","",Riders!C92) ->  | F8: =IF(Riders!E92<>"",Riders!E92,"") ->  | G8: =+Riders!T92 -> 0 | H8: =+Riders!AH92 -> 0 | I8: =+Riders!AJ92 ->  | J8: 9
C9: =+IF(Riders!D95="","",Riders!D95) ->  | E9: =+IF(Riders!C95="","",Riders!C95) ->  | F9: =IF(Riders!E95<>"",Riders!E95,"") ->  | G9: =+Riders!T95 -> 0 | H9: =+Riders!AH95 -> 0 | I9: =+Riders!AJ95 ->  | J9: 9
C10: =+IF(Riders!D90="","",Riders!D90) ->  | E10: =+IF(Riders!C90="","",Riders!C90) ->  | F10: =IF(Riders!E90<>"",Riders!E90,"") ->  | G10: =+Riders!T90 -> 0 | H10: =+Riders!AH90 -> 0 | I10: =+Riders!AJ90 ->  | J10: 9
C11: =+IF(Riders!D91="","",Riders!D91) ->  | E11: =+IF(Riders!C91="","",Riders!C91) ->  | F11: =IF(Riders!E91<>"",Riders!E91,"") ->  | G11: =+Riders!T91 -> 0 | H11: =+Riders!AH91 -> 0 | I11: =+Riders!AJ91 ->  | J11: 9
C12: =+IF(Riders!D89="","",Riders!D89) ->  | E12: =+IF(Riders!C89="","",Riders!C89) ->  | F12: =IF(Riders!E89<>"",Riders!E89,"") ->  | G12: =+Riders!T89 -> 0 | H12: =+Riders!AH89 -> 0 | I12: =+Riders!AJ89 ->  | J12: 9
C13: =+IF(Riders!D45="","",Riders!D45) ->  | E13: =+IF(Riders!C45="","",Riders!C45) ->  | F13: =IF(Riders!E45<>"",Riders!E45,"") ->  | G13: =+Riders!T45 -> 0 | H13: =+Riders!AH45 -> 0 | I13: =+Riders!AJ45 ->  | J13: 9
C14: =+IF(Riders!D44="","",Riders!D44) ->  | E14: =+IF(Riders!C44="","",Riders!C44) ->  | F14: =IF(Riders!E44<>"",Riders!E44,"") ->  | G14: =+Riders!T44 -> 0 | H14: =+Riders!AH44 -> 0 | I14: =+Riders!AJ44 ->  | J14: 9
C15: =+IF(Riders!D48="","",Riders!D48) ->  | E15: =+IF(Riders!C48="","",Riders!C48) ->  | F15: =IF(Riders!E48<>"",Riders!E48,"") ->  | G15: =+Riders!T48 -> 0 | H15: =+Riders!AH48 -> 0 | I15: =+Riders!AJ48 ->  | J15: 9
C16: =+IF(Riders!D43="","",Riders!D43) ->  | E16: =+IF(Riders!C43="","",Riders!C43) ->  | F16: =IF(Riders!E43<>"",Riders!E43,"") ->  | G16: =+Riders!T43 -> 0 | H16: =+Riders!AH43 -> 0 | I16: =+Riders!AJ43 ->  | J16: 9
C17: =+IF(Riders!D40="","",Riders!D40) ->  | E17: =+IF(Riders!C40="","",Riders!C40) ->  | F17: =IF(Riders!E40<>"",Riders!E40,"") ->  | G17: =+Riders!T40 -> 0 | H17: =+Riders!AH40 -> 0 | I17: =+Riders!AJ40 ->  | J17: 9
C18: =+IF(Riders!D42="","",Riders!D42) ->  | E18: =+IF(Riders!C42="","",Riders!C42) ->  | F18: =IF(Riders!E42<>"",Riders!E42,"") ->  | G18: =+Riders!T42 -> 0 | H18: =+Riders!AH42 -> 0 | I18: =+Riders!AJ42 ->  | J18: 9
C19: =+IF(Riders!D39="","",Riders!D39) ->  | E19: =+IF(Riders!C39="","",Riders!C39) ->  | F19: =IF(Riders!E39<>"",Riders!E39,"") ->  | G19: =+Riders!T39 -> 0 | H19: =+Riders!AH39 -> 0 | I19: =+Riders!AJ39 ->  | J19: 9
C20: =+IF(Riders!D47="","",Riders!D47) ->  | E20: =+IF(Riders!C47="","",Riders!C47) ->  | F20: =IF(Riders!E47<>"",Riders!E47,"") ->  | G20: =+Riders!T47 -> 0 | H20: =+Riders!AH47 -> 0 | I20: =+Riders!AJ47 ->  | J20: 9
C21: =+IF(Riders!D41="","",Riders!D41) ->  | E21: =+IF(Riders!C41="","",Riders!C41) ->  | F21: =IF(Riders!E41<>"",Riders!E41,"") ->  | G21: =+Riders!T41 -> 0 | H21: =+Riders!AH41 -> 0 | I21: =+Riders!AJ41 ->  | J21: 9
C22: =+IF(Riders!D15="","",Riders!D15) -> LNP | D22: 1 | E22: =+IF(Riders!C15="","",Riders!C15) -> 1794 | F22: =IF(Riders!E15<>"",Riders!E15,"") -> Sammi O | G22: =+Riders!T15 -> 67.119 | H22: =+Riders!AH15 -> 19.489 | I22: =+Riders!AJ15 -> 15 | J22: 1
C23: =+IF(Riders!D18="","",Riders!D18) -> MNP | D23: 1 | E23: =+IF(Riders!C18="","",Riders!C18) -> 1784 | F23: =IF(Riders!E18<>"",Riders!E18,"") -> Chad Brewer | G23: =+Riders!T18 -> 64.379 | H23: =+Riders!AH18 -> 18.437 | I23: =+Riders!AJ18 -> 20 | J23: 1
C24: =+IF(Riders!D16="","",Riders!D16) -> LNP | D24: 1 | E24: =+IF(Riders!C16="","",Riders!C16) -> 1791 | F24: =IF(Riders!E16<>"",Riders!E16,"") -> Jasmine Ufifusa | G24: =+Riders!T16 -> 52.588 | H24: =+Riders!AH16 -> 31.393 | I24: =+Riders!AJ16 -> 20 | J24: 1
C25: =+IF(Riders!D23="","",Riders!D23) ->  | D25: 1 | E25: =+IF(Riders!C23="","",Riders!C23) ->  | F25: =IF(Riders!E23<>"",Riders!E23,"") ->  | G25: =+Riders!T23 -> 0 | H25: =+Riders!AH23 -> 0 | I25: =+Riders!AJ23 -> 0 | J25: 9
C26: =+IF(Riders!D14="","",Riders!D14) -> LNP | D26: 1 | E26: =+IF(Riders!C14="","",Riders!C14) -> 1783 | F26: =IF(Riders!E14<>"",Riders!E14,"") -> Stephanie Brewer | G26: =+Riders!T14 -> 93.007 | H26: =+Riders!AH14 -> 33.423 | I26: =+Riders!AJ14 -> 35 | J26: 1
C27: =+IF(Riders!D9="","",Riders!D9) -> LPP | D27: 1 | E27: =+IF(Riders!C9="","",Riders!C9) -> 105 | F27: =IF(Riders!E9<>"",Riders!E9,"") -> Diane Holmes | G27: =+Riders!T9 -> 51.301 | H27: =+Riders!AH9 -> 11.24 | I27: =+Riders!AJ9 -> 5 | J27: 1
C28: =+IF(Riders!D19="","",Riders!D19) -> MSP | D28: 1 | E28: =+IF(Riders!C19="","",Riders!C19) -> 1792 | F28: =IF(Riders!E19<>"",Riders!E19,"") -> Joel Ostrovsky | G28: =+Riders!T19 -> 52.161 | H28: =+Riders!AH19 -> 12.364 | I28: =+Riders!AJ19 -> 5 | J28: 1
C29: =+IF(Riders!D10="","",Riders!D10) -> MSP | D29: 2 | E29: =+IF(Riders!C10="","",Riders!C10) -> 1787 | F29: =IF(Riders!E10<>"",Riders!E10,"") -> Lance Ujifusa | G29: =+Riders!T10 -> 64.929 | H29: =+Riders!AH10 -> 20.507 | I29: =+Riders!AJ10 -> 25 | J29: 1
C30: =+IF(Riders!D20="","",Riders!D20) -> OUT | D30: 1 | E30: =+IF(Riders!C20="","",Riders!C20) -> 1795 | F30: =IF(Riders!E20<>"",Riders!E20,"") -> Mitch | G30: =+Riders!T20 -> 168.887 | H30: =+Riders!AH20 -> 38.666 | I30: =+Riders!AJ20 -> 0 | J30: 1
C31: =+IF(Riders!D21="","",Riders!D21) ->  | E31: =+IF(Riders!C21="","",Riders!C21) ->  | F31: =IF(Riders!E21<>"",Riders!E21,"") ->  | G31: =+Riders!T21 -> 0 | H31: =+Riders!AH21 -> 0 | I31: =+Riders!AJ21 ->  | J31: 9
C32: =+IF(Riders!D17="","",Riders!D17) -> MNP | D32: 1 | E32: =+IF(Riders!C17="","",Riders!C17) -> 2218 | F32: =IF(Riders!E17<>"",Riders!E17,"") -> Tim Ruiz | G32: =+Riders!T17 -> 46.293 | H32: =+Riders!AH17 -> 12.039 | I32: =+Riders!AJ17 -> 0 | J32: 1
C33: =+IF(Riders!D22="","",Riders!D22) ->  | E33: =+IF(Riders!C22="","",Riders!C22) ->  | F33: =IF(Riders!E22<>"",Riders!E22,"") ->  | G33: =+Riders!T22 -> 0 | H33: =+Riders!AH22 -> 0 | I33: =+Riders!AJ22 ->  | J33: 9
C34: =+IF(Riders!D11="","",Riders!D11) -> LNP | D34: 1 | E34: =+IF(Riders!C11="","",Riders!C11) -> 1786 | F34: =IF(Riders!E11<>"",Riders!E11,"") -> Kathy Ujifusa | G34: =+Riders!T11 -> 77.964 | H34: =+Riders!AH11 -> 17.47 | I34: =+Riders!AJ11 -> 20 | J34: 1
C35: =+IF(Riders!D12="","",Riders!D12) -> LNP | D35: =IF(F35="","",IF(C35=C34,D34+1,1)) -> 2 | E35: =+IF(Riders!C12="","",Riders!C12) -> 2108 | F35: =IF(Riders!E12<>"",Riders!E12,"") -> Trudy Lawrence | G35: =+Riders!T12 -> 104.407 | H35: =+Riders!AH12 -> 15.386 | I35: =+Riders!AJ12 -> 25 | J35: =IF(OR(C35="BRO",C35="BRL"),2,IF(C35="",9,IF(C35="NM",8,1))) -> 1
C36: =+IF(Riders!D13="","",Riders!D13) -> LNP | D36: 3 | E36: =+IF(Riders!C13="","",Riders!C13) -> 2219 | F36: =IF(Riders!E13<>"",Riders!E13,"") -> Shannon Riuz | G36: =+Riders!T13 -> 56.957 | H36: =+Riders!AH13 -> 11.637 | I36: =+Riders!AJ13 -> 10 | J36: 1
C37: =+IF(Riders!D34="","",Riders!D34) ->  | E37: =+IF(Riders!C34="","",Riders!C34) ->  | F37: =IF(Riders!E34<>"",Riders!E34,"") ->  | G37: =+Riders!T34 -> 0 | H37: =+Riders!AH34 -> 0 | I37: =+Riders!AJ34 ->  | J37: 9
C38: =+IF(Riders!D30="","",Riders!D30) ->  | E38: =+IF(Riders!C30="","",Riders!C30) ->  | F38: =IF(Riders!E30<>"",Riders!E30,"") ->  | G38: =+Riders!T30 -> 0 | H38: =+Riders!AH30 -> 0 | I38: =+Riders!AJ30 ->  | J38: 9
C39: =+IF(Riders!D38="","",Riders!D38) ->  | E39: =+IF(Riders!C38="","",Riders!C38) ->  | F39: =IF(Riders!E38<>"",Riders!E38,"") ->  | G39: =+Riders!T38 -> 0 | H39: =+Riders!AH38 -> 0 | I39: =+Riders!AJ38 ->  | J39: 9
C40: =+IF(Riders!D31="","",Riders!D31) ->  | E40: =+IF(Riders!C31="","",Riders!C31) ->  | F40: =IF(Riders!E31<>"",Riders!E31,"") ->  | G40: =+Riders!T31 -> 0 | H40: =+Riders!AH31 -> 0 | I40: =+Riders!AJ31 ->  | J40: 9
C41: =+IF(Riders!D32="","",Riders!D32) ->  | E41: =+IF(Riders!C32="","",Riders!C32) ->  | F41: =IF(Riders!E32<>"",Riders!E32,"") ->  | G41: =+Riders!T32 -> 0 | H41: =+Riders!AH32 -> 0 | I41: =+Riders!AJ32 ->  | J41: 9
C42: =+IF(Riders!D35="","",Riders!D35) ->  | E42: =+IF(Riders!C35="","",Riders!C35) ->  | F42: =IF(Riders!E35<>"",Riders!E35,"") ->  | G42: =+Riders!T35 -> 0 | H42: =+Riders!AH35 -> 0 | I42: =+Riders!AJ35 ->  | J42: 9
C43: =+IF(Riders!D33="","",Riders!D33) ->  | E43: =+IF(Riders!C33="","",Riders!C33) ->  | F43: =IF(Riders!E33<>"",Riders!E33,"") ->  | G43: =+Riders!T33 -> 0 | H43: =+Riders!AH33 -> 0 | I43: =+Riders!AJ33 ->  | J43: 9
C44: =+IF(Riders!D28="","",Riders!D28) ->  | E44: =+IF(Riders!C28="","",Riders!C28) ->  | F44: =IF(Riders!E28<>"",Riders!E28,"") ->  | G44: =+Riders!T28 -> 0 | H44: =+Riders!AH28 -> 0 | I44: =+Riders!AJ28 ->  | J44: 9
C45: =+IF(Riders!D26="","",Riders!D26) ->  | E45: =+IF(Riders!C26="","",Riders!C26) ->  | F45: =IF(Riders!E26<>"",Riders!E26,"") ->  | G45: =+Riders!T26 -> 0 | H45: =+Riders!AH26 -> 0 | I45: =+Riders!AJ26 -> 0 | J45: 9
C46: =+IF(Riders!D36="","",Riders!D36) ->  | E46: =+IF(Riders!C36="","",Riders!C36) ->  | F46: =IF(Riders!E36<>"",Riders!E36,"") ->  | G46: =+Riders!T36 -> 0 | H46: =+Riders!AH36 -> 0 | I46: =+Riders!AJ36 ->  | J46: 9
C47: =+IF(Riders!D24="","",Riders!D24) ->  | E47: =+IF(Riders!C24="","",Riders!C24) ->  | F47: =IF(Riders!E24<>"",Riders!E24,"") ->  | G47: =+Riders!T24 -> 0 | H47: =+Riders!AH24 -> 0 | I47: =+Riders!AJ24 -> 0 | J47: 9
C48: =+IF(Riders!D25="","",Riders!D25) ->  | E48: =+IF(Riders!C25="","",Riders!C25) ->  | F48: =IF(Riders!E25<>"",Riders!E25,"") ->  | G48: =+Riders!T25 -> 0 | H48: =+Riders!AH25 -> 0 | I48: =+Riders!AJ25 -> 0 | J48: 9
C49: =+IF(Riders!D37="","",Riders!D37) ->  | E49: =+IF(Riders!C37="","",Riders!C37) ->  | F49: =IF(Riders!E37<>"",Riders!E37,"") ->  | G49: =+Riders!T37 -> 0 | H49: =+Riders!AH37 -> 0 | I49: =+Riders!AJ37 ->  | J49: 9
C50: =+IF(Riders!D27="","",Riders!D27) ->  | E50: =+IF(Riders!C27="","",Riders!C27) ->  | F50: =IF(Riders!E27<>"",Riders!E27,"") ->  | G50: =+Riders!T27 -> 0 | H50: =+Riders!AH27 -> 0 | I50: =+Riders!AJ27 ->  | J50: 9
C51: =+IF(Riders!D29="","",Riders!D29) ->  | E51: =+IF(Riders!C29="","",Riders!C29) ->  | F51: =IF(Riders!E29<>"",Riders!E29,"") ->  | G51: =+Riders!T29 -> 0 | H51: =+Riders!AH29 -> 0 | I51: =+Riders!AJ29 ->  | J51: 9
C52: =+IF(Riders!D85="","",Riders!D85) ->  | E52: =+IF(Riders!C85="","",Riders!C85) ->  | F52: =IF(Riders!E85<>"",Riders!E85,"") ->  | G52: =+Riders!T85 -> 0 | H52: =+Riders!AH85 -> 0 | I52: =+Riders!AJ85 ->  | J52: 9
C53: =+IF(Riders!D87="","",Riders!D87) ->  | E53: =+IF(Riders!C87="","",Riders!C87) ->  | F53: =IF(Riders!E87<>"",Riders!E87,"") ->  | G53: =+Riders!T87 -> 0 | H53: =+Riders!AH87 -> 0 | I53: =+Riders!AJ87 ->  | J53: 9
C54: =+IF(Riders!D88="","",Riders!D88) ->  | E54: =+IF(Riders!C88="","",Riders!C88) ->  | F54: =IF(Riders!E88<>"",Riders!E88,"") ->  | G54: =+Riders!T88 -> 0 | H54: =+Riders!AH88 -> 0 | I54: =+Riders!AJ88 ->  | J54: 9
C55: =+IF(Riders!D86="","",Riders!D86) ->  | E55: =+IF(Riders!C86="","",Riders!C86) ->  | F55: =IF(Riders!E86<>"",Riders!E86,"") ->  | G55: =+Riders!T86 -> 0 | H55: =+Riders!AH86 -> 0 | I55: =+Riders!AJ86 ->  | J55: 9
C56: =+IF(Riders!D81="","",Riders!D81) ->  | E56: =+IF(Riders!C81="","",Riders!C81) ->  | F56: =IF(Riders!E81<>"",Riders!E81,"") ->  | G56: =+Riders!T81 -> 0 | H56: =+Riders!AH81 -> 0 | I56: =+Riders!AJ81 ->  | J56: 9
C57: =+IF(Riders!D80="","",Riders!D80) ->  | E57: =+IF(Riders!C80="","",Riders!C80) ->  | F57: =IF(Riders!E80<>"",Riders!E80,"") ->  | G57: =+Riders!T80 -> 0 | H57: =+Riders!AH80 -> 0 | I57: =+Riders!AJ80 ->  | J57: 9
C58: =+IF(Riders!D83="","",Riders!D83) ->  | E58: =+IF(Riders!C83="","",Riders!C83) ->  | F58: =IF(Riders!E83<>"",Riders!E83,"") ->  | G58: =+Riders!T83 -> 0 | H58: =+Riders!AH83 -> 0 | I58: =+Riders!AJ83 ->  | J58: 9
C59: =+IF(Riders!D79="","",Riders!D79) ->  | E59: =+IF(Riders!C79="","",Riders!C79) ->  | F59: =IF(Riders!E79<>"",Riders!E79,"") ->  | G59: =+Riders!T79 -> 0 | H59: =+Riders!AH79 -> 0 | I59: =+Riders!AJ79 ->  | J59: 9
C60: =+IF(Riders!D84="","",Riders!D84) ->  | E60: =+IF(Riders!C84="","",Riders!C84) ->  | F60: =IF(Riders!E84<>"",Riders!E84,"") ->  | G60: =+Riders!T84 -> 0 | H60: =+Riders!AH84 -> 0 | I60: =+Riders!AJ84 ->  | J60: 9
C61: =+IF(Riders!D82="","",Riders!D82) ->  | E61: =+IF(Riders!C82="","",Riders!C82) ->  | F61: =IF(Riders!E82<>"",Riders!E82,"") ->  | G61: =+Riders!T82 -> 0 | H61: =+Riders!AH82 -> 0 | I61: =+Riders!AJ82 ->  | J61: 9
C62: =+IF(Riders!D77="","",Riders!D77) ->  | E62: =+IF(Riders!C77="","",Riders!C77) ->  | F62: =IF(Riders!E77<>"",Riders!E77,"") ->  | G62: =+Riders!T77 -> 0 | H62: =+Riders!AH77 -> 0 | I62: =+Riders!AJ77 ->  | J62: 9
C63: =+IF(Riders!D76="","",Riders!D76) ->  | E63: =+IF(Riders!C76="","",Riders!C76) ->  | F63: =IF(Riders!E76<>"",Riders!E76,"") ->  | G63: =+Riders!T76 -> 0 | H63: =+Riders!AH76 -> 0 | I63: =+Riders!AJ76 ->  | J63: 9
C64: =+IF(Riders!D75="","",Riders!D75) ->  | E64: =+IF(Riders!C75="","",Riders!C75) ->  | F64: =IF(Riders!E75<>"",Riders!E75,"") ->  | G64: =+Riders!T75 -> 0 | H64: =+Riders!AH75 -> 0 | I64: =+Riders!AJ75 ->  | J64: 9
C65: =+IF(Riders!D78="","",Riders!D78) ->  | E65: =+IF(Riders!C78="","",Riders!C78) ->  | F65: =IF(Riders!E78<>"",Riders!E78,"") ->  | G65: =+Riders!T78 -> 0 | H65: =+Riders!AH78 -> 0 | I65: =+Riders!AJ78 ->  | J65: 9
C66: =+IF(Riders!D71="","",Riders!D71) ->  | E66: =+IF(Riders!C71="","",Riders!C71) ->  | F66: =IF(Riders!E71<>"",Riders!E71,"") ->  | G66: =+Riders!T71 -> 0 | H66: =+Riders!AH71 -> 0 | I66: =+Riders!AJ71 ->  | J66: 9
C67: =+IF(Riders!D73="","",Riders!D73) ->  | D67: =IF(F67="","",IF(C67=C66,D66+1,1)) ->  | E67: =+IF(Riders!C73="","",Riders!C73) ->  | F67: =IF(Riders!E73<>"",Riders!E73,"") ->  | G67: =+Riders!T73 -> 0 | H67: =+Riders!AH73 -> 0 | I67: =+Riders!AJ73 ->  | J67: =IF(OR(C67="BRO",C67="BRL"),2,IF(C67="",9,IF(C67="NM",8,1))) -> 9
C68: =+IF(Riders!D72="","",Riders!D72) ->  | E68: =+IF(Riders!C72="","",Riders!C72) ->  | F68: =IF(Riders!E72<>"",Riders!E72,"") ->  | G68: =+Riders!T72 -> 0 | H68: =+Riders!AH72 -> 0 | I68: =+Riders!AJ72 ->  | J68: 9
C69: =+IF(Riders!D69="","",Riders!D69) ->  | E69: =+IF(Riders!C69="","",Riders!C69) ->  | F69: =IF(Riders!E69<>"",Riders!E69,"") ->  | G69: =+Riders!T69 -> 0 | H69: =+Riders!AH69 -> 0 | I69: =+Riders!AJ69 ->  | J69: 9
C70: =+IF(Riders!D70="","",Riders!D70) ->  | E70: =+IF(Riders!C70="","",Riders!C70) ->  | F70: =IF(Riders!E70<>"",Riders!E70,"") ->  | G70: =+Riders!T70 -> 0 | H70: =+Riders!AH70 -> 0 | I70: =+Riders!AJ70 ->  | J70: 9
C71: =+IF(Riders!D74="","",Riders!D74) ->  | E71: =+IF(Riders!C74="","",Riders!C74) ->  | F71: =IF(Riders!E74<>"",Riders!E74,"") ->  | G71: =+Riders!T74 -> 0 | H71: =+Riders!AH74 -> 0 | I71: =+Riders!AJ74 ->  | J71: 9
C72: =+IF(Riders!D68="","",Riders!D68) ->  | E72: =+IF(Riders!C68="","",Riders!C68) ->  | F72: =IF(Riders!E68<>"",Riders!E68,"") ->  | G72: =+Riders!T68 -> 0 | H72: =+Riders!AH68 -> 0 | I72: =+Riders!AJ68 ->  | J72: 9
C73: =+IF(Riders!D66="","",Riders!D66) ->  | E73: =+IF(Riders!C66="","",Riders!C66) ->  | F73: =IF(Riders!E66<>"",Riders!E66,"") ->  | G73: =+Riders!T66 -> 0 | H73: =+Riders!AH66 -> 0 | I73: =+Riders!AJ66 ->  | J73: 9
C74: =+IF(Riders!D63="","",Riders!D63) ->  | E74: =+IF(Riders!C63="","",Riders!C63) ->  | F74: =IF(Riders!E63<>"",Riders!E63,"") ->  | G74: =+Riders!T63 -> 0 | H74: =+Riders!AH63 -> 0 | I74: =+Riders!AJ63 ->  | J74: 9
C75: =+IF(Riders!D65="","",Riders!D65) ->  | E75: =+IF(Riders!C65="","",Riders!C65) ->  | F75: =IF(Riders!E65<>"",Riders!E65,"") ->  | G75: =+Riders!T65 -> 0 | H75: =+Riders!AH65 -> 0 | I75: =+Riders!AJ65 ->  | J75: 9
C76: =+IF(Riders!D67="","",Riders!D67) ->  | E76: =+IF(Riders!C67="","",Riders!C67) ->  | F76: =IF(Riders!E67<>"",Riders!E67,"") ->  | G76: =+Riders!T67 -> 0 | H76: =+Riders!AH67 -> 0 | I76: =+Riders!AJ67 ->  | J76: 9
C77: =+IF(Riders!D62="","",Riders!D62) ->  | E77: =+IF(Riders!C62="","",Riders!C62) ->  | F77: =IF(Riders!E62<>"",Riders!E62,"") ->  | G77: =+Riders!T62 -> 0 | H77: =+Riders!AH62 -> 0 | I77: =+Riders!AJ62 ->  | J77: 9
C78: =+IF(Riders!D64="","",Riders!D64) ->  | E78: =+IF(Riders!C64="","",Riders!C64) ->  | F78: =IF(Riders!E64<>"",Riders!E64,"") ->  | G78: =+Riders!T64 -> 0 | H78: =+Riders!AH64 -> 0 | I78: =+Riders!AJ64 ->  | J78: 9
C79: =+IF(Riders!D59="","",Riders!D59) ->  | E79: =+IF(Riders!C59="","",Riders!C59) ->  | F79: =IF(Riders!E59<>"",Riders!E59,"") ->  | G79: =+Riders!T59 -> 0 | H79: =+Riders!AH59 -> 0 | I79: =+Riders!AJ59 ->  | J79: 9
C80: =+IF(Riders!D61="","",Riders!D61) ->  | E80: =+IF(Riders!C61="","",Riders!C61) ->  | F80: =IF(Riders!E61<>"",Riders!E61,"") ->  | G80: =+Riders!T61 -> 0 | H80: =+Riders!AH61 -> 0 | I80: =+Riders!AJ61 ->  | J80: 9
C81: =+IF(Riders!D60="","",Riders!D60) ->  | E81: =+IF(Riders!C60="","",Riders!C60) ->  | F81: =IF(Riders!E60<>"",Riders!E60,"") ->  | G81: =+Riders!T60 -> 0 | H81: =+Riders!AH60 -> 0 | I81: =+Riders!AJ60 ->  | J81: 9
C82: =+IF(Riders!D51="","",Riders!D51) ->  | E82: =+IF(Riders!C51="","",Riders!C51) ->  | F82: =IF(Riders!E51<>"",Riders!E51,"") ->  | G82: =+Riders!T51 -> 0 | H82: =+Riders!AH51 -> 0 | I82: =+Riders!AJ51 ->  | J82: 9
C83: =+IF(Riders!D53="","",Riders!D53) ->  | E83: =+IF(Riders!C53="","",Riders!C53) ->  | F83: =IF(Riders!E53<>"",Riders!E53,"") ->  | G83: =+Riders!T53 -> 0 | H83: =+Riders!AH53 -> 0 | I83: =+Riders!AJ53 ->  | J83: 9
C84: =+IF(Riders!D52="","",Riders!D52) ->  | E84: =+IF(Riders!C52="","",Riders!C52) ->  | F84: =IF(Riders!E52<>"",Riders!E52,"") ->  | G84: =+Riders!T52 -> 0 | H84: =+Riders!AH52 -> 0 | I84: =+Riders!AJ52 ->  | J84: 9
C85: =+IF(Riders!D49="","",Riders!D49) ->  | E85: =+IF(Riders!C49="","",Riders!C49) ->  | F85: =IF(Riders!E49<>"",Riders!E49,"") ->  | G85: =+Riders!T49 -> 0 | H85: =+Riders!AH49 -> 0 | I85: =+Riders!AJ49 ->  | J85: 9
C86: =+IF(Riders!D50="","",Riders!D50) ->  | E86: =+IF(Riders!C50="","",Riders!C50) ->  | F86: =IF(Riders!E50<>"",Riders!E50,"") ->  | G86: =+Riders!T50 -> 0 | H86: =+Riders!AH50 -> 0 | I86: =+Riders!AJ50 ->  | J86: 9
C87: =+IF(Riders!D56="","",Riders!D56) ->  | E87: =+IF(Riders!C56="","",Riders!C56) ->  | F87: =IF(Riders!E56<>"",Riders!E56,"") ->  | G87: =+Riders!T56 -> 0 | H87: =+Riders!AH56 -> 0 | I87: =+Riders!AJ56 ->  | J87: 9
C88: =+IF(Riders!D58="","",Riders!D58) ->  | E88: =+IF(Riders!C58="","",Riders!C58) ->  | F88: =IF(Riders!E58<>"",Riders!E58,"") ->  | G88: =+Riders!T58 -> 0 | H88: =+Riders!AH58 -> 0 | I88: =+Riders!AJ58 ->  | J88: 9
C89: =+IF(Riders!D57="","",Riders!D57) ->  | E89: =+IF(Riders!C57="","",Riders!C57) ->  | F89: =IF(Riders!E57<>"",Riders!E57,"") ->  | G89: =+Riders!T57 -> 0 | H89: =+Riders!AH57 -> 0 | I89: =+Riders!AJ57 ->  | J89: 9
C90: =+IF(Riders!D54="","",Riders!D54) ->  | E90: =+IF(Riders!C54="","",Riders!C54) ->  | F90: =IF(Riders!E54<>"",Riders!E54,"") ->  | G90: =+Riders!T54 -> 0 | H90: =+Riders!AH54 -> 0 | I90: =+Riders!AJ54 ->  | J90: 9
C91: =+IF(Riders!D55="","",Riders!D55) ->  | E91: =+IF(Riders!C55="","",Riders!C55) ->  | F91: =IF(Riders!E55<>"",Riders!E55,"") ->  | G91: =+Riders!T55 -> 0 | H91: =+Riders!AH55 -> 0 | I91: =+Riders!AJ55 ->  | J91: 9
C92: =+IF(Riders!D46="","",Riders!D46) ->  | E92: =+IF(Riders!C46="","",Riders!C46) ->  | F92: =IF(Riders!E46<>"",Riders!E46,"") ->  | G92: =+Riders!T46 -> 0 | H92: =+Riders!AH46 -> 0 | I92: =+Riders!AJ46 ->  | J92: 9
C93: =+IF(Riders!D203="","",Riders!D203) ->  | E93: =+IF(Riders!C203="","",Riders!C203) ->  | F93: =IF(Riders!E203<>"",Riders!E203,"") ->  | G93: =+Riders!T203 -> 0 | H93: =+Riders!AH203 -> 0 | I93: =+Riders!AJ203 ->  | J93: 9
C94: =+IF(Riders!D201="","",Riders!D201) ->  | E94: =+IF(Riders!C201="","",Riders!C201) ->  | F94: =IF(Riders!E201<>"",Riders!E201,"") ->  | G94: =+Riders!T201 -> 0 | H94: =+Riders!AH201 -> 0 | I94: =+Riders!AJ201 ->  | J94: 9
C95: =+IF(Riders!D206="","",Riders!D206) ->  | E95: =+IF(Riders!C206="","",Riders!C206) ->  | F95: =IF(Riders!E206<>"",Riders!E206,"") ->  | G95: =+Riders!T206 -> 0 | H95: =+Riders!AH206 -> 0 | I95: =+Riders!AJ206 ->  | J95: 9
C96: =+IF(Riders!D202="","",Riders!D202) ->  | E96: =+IF(Riders!C202="","",Riders!C202) ->  | F96: =IF(Riders!E202<>"",Riders!E202,"") ->  | G96: =+Riders!T202 -> 0 | H96: =+Riders!AH202 -> 0 | I96: =+Riders!AJ202 ->  | J96: 9
C97: =+IF(Riders!D99="","",Riders!D99) ->  | E97: =+IF(Riders!C99="","",Riders!C99) ->  | F97: =IF(Riders!E99<>"",Riders!E99,"") ->  | G97: =+Riders!T99 -> 0 | H97: =+Riders!AH99 -> 0 | I97: =+Riders!AJ99 ->  | J97: 9
C98: =+IF(Riders!D204="","",Riders!D204) ->  | E98: =+IF(Riders!C204="","",Riders!C204) ->  | F98: =IF(Riders!E204<>"",Riders!E204,"") ->  | G98: =+Riders!T204 -> 0 | H98: =+Riders!AH204 -> 0 | I98: =+Riders!AJ204 ->  | J98: 9
C99: =+IF(Riders!D205="","",Riders!D205) ->  | D99: =IF(F99="","",IF(C99=C98,D98+1,1)) ->  | E99: =+IF(Riders!C205="","",Riders!C205) ->  | F99: =IF(Riders!E205<>"",Riders!E205,"") ->  | G99: =+Riders!T205 -> 0 | H99: =+Riders!AH205 -> 0 | I99: =+Riders!AJ205 ->  | J99: 9
C100: =+IF(Riders!D207="","",Riders!D207) ->  | D100: =IF(F100="","",IF(C100=C99,D99+1,1)) ->  | E100: =+IF(Riders!C207="","",Riders!C207) ->  | F100: =IF(Riders!E207<>"",Riders!E207,"") ->  | G100: =+Riders!T207 -> 0 | H100: =+Riders!AH207 -> 0 | I100: =+Riders!AJ207 ->  | J100: 9
C101: =+IF(Riders!D208="","",Riders!D208) ->  | D101: =IF(F101="","",IF(C101=C100,D100+1,1)) ->  | E101: =+IF(Riders!C208="","",Riders!C208) ->  | F101: =IF(Riders!E208<>"",Riders!E208,"") ->  | G101: =+Riders!T208 -> 0 | H101: =+Riders!AH208 -> 0 | I101: =+Riders!AJ208 ->  | J101: 9
C102: =+IF(Riders!#REF!="","",Riders!#REF!) ->  | D102: =IF(F102="","",IF(C102=C101,D101+1,1)) ->  | E102: =+IF(Riders!#REF!="","",Riders!#REF!) ->  | F102: =IF(Riders!#REF!<>"",Riders!#REF!,"") ->  | G102: =+Riders!#REF! ->  | H102: =+Riders!#REF! ->  | I102: =+Riders!#REF! -> 

Sheet By Overall
A1: =IF(Riders!AD9<>"","FINAL",IF(Riders!Z9<>"","Thru Stage 5",IF(Riders!V9<>"","Thru Stage 4",IF(Riders!Q9<>"","Thru Stage 3",IF(Riders!L9<>"","Thru Stage2",IF(Riders!H9<>"","Thru Stage 1"," ")))))) -> Thru Stage 4 | B1: Name of Shoot: | D1: =+Riders!B7 -> MSA May 19 2013 3,1,7,16 | F1: =IF(Riders!E6<>"",Riders!E6,"") -> 2013-05-19 | H1: =IF(Riders!G6=2,"Double",IF(Riders!G6=3,"Triple","Single")) -> Single
A2: Overall Place | B2: MSA # | C2: Division | D2: Rider | E2: Horse Name | F2: Grand Total | G2: Total Penalty | H2: Points Earned | I2: Sort Field | J2: Single Points
A3: 1 | B3: =IF(Riders!C17<>"",Riders!C17,"") -> 2218 | C3: =IF(Riders!D17<>"",Riders!D17,"") -> MNP | D3: =IF(Riders!E17<>"",Riders!E17,"") -> Tim Ruiz | E3: =IF(Riders!G17<>"",Riders!G17,"") -> Jess | F3: =Riders!AI17 -> 58.332 | G3: =Riders!AJ17 -> 0 | H3: =IF(J3=0,"",J3*Riders!$G$6) -> 11 | I3: =IF($C3="OUT",2,IF($C3="LB",3,IF(C3="",9,IF(C3="NM",8,1)))) -> 1 | J3: =IF(D3="",0,IF(C3="OUT",0,IF(C3="LB",0,J4+1))) -> 11
A4: 2 | B4: =IF(Riders!C9<>"",Riders!C9,"") -> 105 | C4: =IF(Riders!D9<>"",Riders!D9,"") -> LPP | D4: =IF(Riders!E9<>"",Riders!E9,"") -> Diane Holmes | E4: =IF(Riders!G9<>"",Riders!G9,"") -> Billie | F4: =Riders!AI9 -> 62.541 | G4: =Riders!AJ9 -> 5 | H4: =IF(J4=0,"",J4*Riders!$G$6) -> 10 | I4: =IF($C4="OUT",2,IF($C4="LB",3,IF(C4="",9,IF(C4="NM",8,1)))) -> 1 | J4: 10
A5: 3 | B5: =IF(Riders!C19<>"",Riders!C19,"") -> 1792 | C5: =IF(Riders!D19<>"",Riders!D19,"") -> MSP | D5: =IF(Riders!E19<>"",Riders!E19,"") -> Joel Ostrovsky | E5: =IF(Riders!G19<>"",Riders!G19,"") -> Turbo | F5: =Riders!AI19 -> 64.525 | G5: =Riders!AJ19 -> 5 | H5: =IF(J5=0,"",J5*Riders!$G$6) -> 9 | I5: =IF($C5="OUT",2,IF($C5="LB",3,IF(C5="",9,IF(C5="NM",8,1)))) -> 1 | J5: 9
A6: 4 | B6: =IF(Riders!C13<>"",Riders!C13,"") -> 2219 | C6: =IF(Riders!D13<>"",Riders!D13,"") -> LNP | D6: =IF(Riders!E13<>"",Riders!E13,"") -> Shannon Riuz | E6: =IF(Riders!G13<>"",Riders!G13,"") -> Dolly | F6: =Riders!AI13 -> 68.594 | G6: =Riders!AJ13 -> 10 | H6: =IF(J6=0,"",J6*Riders!$G$6) -> 8 | I6: =IF($C6="OUT",2,IF($C6="LB",3,IF(C6="",9,IF(C6="NM",8,1)))) -> 1 | J6: 8
A7: 5 | B7: =IF(Riders!C18<>"",Riders!C18,"") -> 1784 | C7: =IF(Riders!D18<>"",Riders!D18,"") -> MNP | D7: =IF(Riders!E18<>"",Riders!E18,"") -> Chad Brewer | E7: =IF(Riders!G18<>"",Riders!G18,"") -> Peanut | F7: =Riders!AI18 -> 82.816 | G7: =Riders!AJ18 -> 20 | H7: =IF(J7=0,"",J7*Riders!$G$6) -> 7 | I7: =IF($C7="OUT",2,IF($C7="LB",3,IF(C7="",9,IF(C7="NM",8,1)))) -> 1 | J7: 7
A8: 6 | B8: =IF(Riders!C16<>"",Riders!C16,"") -> 1791 | C8: =IF(Riders!D16<>"",Riders!D16,"") -> LNP | D8: =IF(Riders!E16<>"",Riders!E16,"") -> Jasmine Ufifusa | E8: =IF(Riders!G16<>"",Riders!G16,"") -> Garth | F8: =Riders!AI16 -> 83.981 | G8: =Riders!AJ16 -> 20 | H8: =IF(J8=0,"",J8*Riders!$G$6) -> 6 | I8: =IF($C8="OUT",2,IF($C8="LB",3,IF(C8="",9,IF(C8="NM",8,1)))) -> 1 | J8: 6
A9: 7 | B9: =IF(Riders!C10<>"",Riders!C10,"") -> 1787 | C9: =IF(Riders!D10<>"",Riders!D10,"") -> MSP | D9: =IF(Riders!E10<>"",Riders!E10,"") -> Lance Ujifusa | E9: =IF(Riders!G10<>"",Riders!G10,"") -> Cash | F9: =Riders!AI10 -> 85.436 | G9: =Riders!AJ10 -> 25 | H9: =IF(J9=0,"",J9*Riders!$G$6) -> 5 | I9: =IF($C9="OUT",2,IF($C9="LB",3,IF(C9="",9,IF(C9="NM",8,1)))) -> 1 | J9: 5
A10: 8 | B10: =IF(Riders!C15<>"",Riders!C15,"") -> 1794 | C10: =IF(Riders!D15<>"",Riders!D15,"") -> LNP | D10: =IF(Riders!E15<>"",Riders!E15,"") -> Sammi O | E10: =IF(Riders!G15<>"",Riders!G15,"") -> Joe | F10: =Riders!AI15 -> 86.608 | G10: =Riders!AJ15 -> 15 | H10: =IF(J10=0,"",J10*Riders!$G$6) -> 4 | I10: =IF($C10="OUT",2,IF($C10="LB",3,IF(C10="",9,IF(C10="NM",8,1)))) -> 1 | J10: 4
A11: 9 | B11: =IF(Riders!C11<>"",Riders!C11,"") -> 1786 | C11: =IF(Riders!D11<>"",Riders!D11,"") -> LNP | D11: =IF(Riders!E11<>"",Riders!E11,"") -> Kathy Ujifusa | E11: =IF(Riders!G11<>"",Riders!G11,"") -> Garth | F11: =Riders!AI11 -> 95.434 | G11: =Riders!AJ11 -> 20 | H11: =IF(J11=0,"",J11*Riders!$G$6) -> 3 | I11: =IF($C11="OUT",2,IF($C11="LB",3,IF(C11="",9,IF(C11="NM",8,1)))) -> 1 | J11: 3
A12: 10 | B12: =IF(Riders!C12<>"",Riders!C12,"") -> 2108 | C12: =IF(Riders!D12<>"",Riders!D12,"") -> LNP | D12: =IF(Riders!E12<>"",Riders!E12,"") -> Trudy Lawrence | E12: =IF(Riders!G12<>"",Riders!G12,"") -> Ricky | F12: =Riders!AI12 -> 119.793 | G12: =Riders!AJ12 -> 25 | H12: =IF(J12=0,"",J12*Riders!$G$6) -> 2 | I12: =IF($C12="OUT",2,IF($C12="LB",3,IF(C12="",9,IF(C12="NM",8,1)))) -> 1 | J12: 2
A13: 11 | B13: =IF(Riders!C14<>"",Riders!C14,"") -> 1783 | C13: =IF(Riders!D14<>"",Riders!D14,"") -> LNP | D13: =IF(Riders!E14<>"",Riders!E14,"") -> Stephanie Brewer | E13: =IF(Riders!G14<>"",Riders!G14,"") -> IMA Texas Bootie | F13: =Riders!AI14 -> 126.43 | G13: =Riders!AJ14 -> 35 | H13: =IF(J13=0,"",J13*Riders!$G$6) -> 1 | I13: =IF($C13="OUT",2,IF($C13="LB",3,IF(C13="",9,IF(C13="NM",8,1)))) -> 1 | J13: 1
A14: 12 | B14: =IF(Riders!C20<>"",Riders!C20,"") -> 1795 | C14: =IF(Riders!D20<>"",Riders!D20,"") -> OUT | D14: =IF(Riders!E20<>"",Riders!E20,"") -> Mitch | E14: =IF(Riders!G20<>"",Riders!G20,"") -> Turbo | F14: =Riders!AI20 -> 207.553 | G14: =Riders!AJ20 -> 0 | H14: =IF(J14=0,"",J14*Riders!$G$6) ->  | I14: =IF($C14="OUT",2,IF($C14="LB",3,IF(C14="",9,IF(C14="NM",8,1)))) -> 2 | J14: 0
A15: 13 | B15: =IF(Riders!C22<>"",Riders!C22,"") ->  | C15: =IF(Riders!D22<>"",Riders!D22,"") ->  | D15: =IF(Riders!E22<>"",Riders!E22,"") ->  | E15: =IF(Riders!G22<>"",Riders!G22,"") ->  | F15: =Riders!AI22 -> 0 | G15: =Riders!AJ22 ->  | H15: =IF(J15=0,"",J15*Riders!$G$6) ->  | I15: =IF($C15="OUT",2,IF($C15="LB",3,IF(C15="",9,IF(C15="NM",8,1)))) -> 9 | J15: 0
A16: 14 | B16: =IF(Riders!C21<>"",Riders!C21,"") ->  | C16: =IF(Riders!D21<>"",Riders!D21,"") ->  | D16: =IF(Riders!E21<>"",Riders!E21,"") ->  | E16: =IF(Riders!G21<>"",Riders!G21,"") ->  | F16: =Riders!AI21 -> 0 | G16: =Riders!AJ21 ->  | H16: =IF(J16=0,"",J16*Riders!$G$6) ->  | I16: =IF($C16="OUT",2,IF($C16="LB",3,IF(C16="",9,IF(C16="NM",8,1)))) -> 9 | J16: 0
A17: 15 | B17: =IF(Riders!C23<>"",Riders!C23,"") ->  | C17: =IF(Riders!D23<>"",Riders!D23,"") ->  | D17: =IF(Riders!E23<>"",Riders!E23,"") ->  | E17: =IF(Riders!G23<>"",Riders!G23,"") ->  | F17: =Riders!AI23 -> 0 | G17: =Riders!AJ23 -> 0 | H17: =IF(J17=0,"",J17*Riders!$G$6) -> 4 | I17: =IF($C17="OUT",2,IF($C17="LB",3,IF(C17="",9,IF(C17="NM",8,1)))) -> 9 | J17: 4
A18: 16 | B18: =IF(Riders!C24<>"",Riders!C24,"") ->  | C18: =IF(Riders!D24<>"",Riders!D24,"") ->  | D18: =IF(Riders!E24<>"",Riders!E24,"") ->  | E18: =IF(Riders!G24<>"",Riders!G24,"") ->  | F18: =Riders!AI24 -> 0 | G18: =Riders!AJ24 -> 0 | H18: =IF(J18=0,"",J18*Riders!$G$6) -> 3 | I18: =IF($C18="OUT",2,IF($C18="LB",3,IF(C18="",9,IF(C18="NM",8,1)))) -> 9 | J18: 3
A19: 17 | B19: =IF(Riders!C25<>"",Riders!C25,"") ->  | C19: =IF(Riders!D25<>"",Riders!D25,"") ->  | D19: =IF(Riders!E25<>"",Riders!E25,"") ->  | E19: =IF(Riders!G25<>"",Riders!G25,"") ->  | F19: =Riders!AI25 -> 0 | G19: =Riders!AJ25 -> 0 | H19: =IF(J19=0,"",J19*Riders!$G$6) -> 2 | I19: =IF($C19="OUT",2,IF($C19="LB",3,IF(C19="",9,IF(C19="NM",8,1)))) -> 9 | J19: 2
A20: 18 | B20: =IF(Riders!C26<>"",Riders!C26,"") ->  | C20: =IF(Riders!D26<>"",Riders!D26,"") ->  | D20: =IF(Riders!E26<>"",Riders!E26,"") ->  | E20: =IF(Riders!G26<>"",Riders!G26,"") ->  | F20: =Riders!AI26 -> 0 | G20: =Riders!AJ26 -> 0 | H20: =IF(J20=0,"",J20*Riders!$G$6) -> 1 | I20: =IF($C20="OUT",2,IF($C20="LB",3,IF(C20="",9,IF(C20="NM",8,1)))) -> 9 | J20: 1
A21: 19 | B21: =IF(Riders!C27<>"",Riders!C27,"") ->  | C21: =IF(Riders!D27<>"",Riders!D27,"") ->  | D21: =IF(Riders!E27<>"",Riders!E27,"") ->  | E21: =IF(Riders!G27<>"",Riders!G27,"") ->  | F21: =Riders!AI27 -> 0 | G21: =Riders!AJ27 ->  | H21: =IF(J21=0,"",J21*Riders!$G$6) ->  | I21: =IF($C21="OUT",2,IF($C21="LB",3,IF(C21="",9,IF(C21="NM",8,1)))) -> 9 | J21: 0
A22: 20 | B22: =IF(Riders!C28<>"",Riders!C28,"") ->  | C22: =IF(Riders!D28<>"",Riders!D28,"") ->  | D22: =IF(Riders!E28<>"",Riders!E28,"") ->  | E22: =IF(Riders!G28<>"",Riders!G28,"") ->  | F22: =Riders!AI28 -> 0 | G22: =Riders!AJ28 ->  | H22: =IF(J22=0,"",J22*Riders!$G$6) ->  | I22: =IF($C22="OUT",2,IF($C22="LB",3,IF(C22="",9,IF(C22="NM",8,1)))) -> 9 | J22: 0
A23: 21 | B23: =IF(Riders!C29<>"",Riders!C29,"") ->  | C23: =IF(Riders!D29<>"",Riders!D29,"") ->  | D23: =IF(Riders!E29<>"",Riders!E29,"") ->  | E23: =IF(Riders!G29<>"",Riders!G29,"") ->  | F23: =Riders!AI29 -> 0 | G23: =Riders!AJ29 ->  | H23: =IF(J23=0,"",J23*Riders!$G$6) ->  | I23: =IF($C23="OUT",2,IF($C23="LB",3,IF(C23="",9,IF(C23="NM",8,1)))) -> 9 | J23: 0
A24: 22 | B24: =IF(Riders!C30<>"",Riders!C30,"") ->  | C24: =IF(Riders!D30<>"",Riders!D30,"") ->  | D24: =IF(Riders!E30<>"",Riders!E30,"") ->  | E24: =IF(Riders!G30<>"",Riders!G30,"") ->  | F24: =Riders!AI30 -> 0 | G24: =Riders!AJ30 ->  | H24: =IF(J24=0,"",J24*Riders!$G$6) ->  | I24: =IF($C24="OUT",2,IF($C24="LB",3,IF(C24="",9,IF(C24="NM",8,1)))) -> 9 | J24: 0
A25: 23 | B25: =IF(Riders!C31<>"",Riders!C31,"") ->  | C25: =IF(Riders!D31<>"",Riders!D31,"") ->  | D25: =IF(Riders!E31<>"",Riders!E31,"") ->  | E25: =IF(Riders!G31<>"",Riders!G31,"") ->  | F25: =Riders!AI31 -> 0 | G25: =Riders!AJ31 ->  | H25: =IF(J25=0,"",J25*Riders!$G$6) ->  | I25: =IF($C25="OUT",2,IF($C25="LB",3,IF(C25="",9,IF(C25="NM",8,1)))) -> 9 | J25: 0
A26: 24 | B26: =IF(Riders!C32<>"",Riders!C32,"") ->  | C26: =IF(Riders!D32<>"",Riders!D32,"") ->  | D26: =IF(Riders!E32<>"",Riders!E32,"") ->  | E26: =IF(Riders!G32<>"",Riders!G32,"") ->  | F26: =Riders!AI32 -> 0 | G26: =Riders!AJ32 ->  | H26: =IF(J26=0,"",J26*Riders!$G$6) ->  | I26: =IF($C26="OUT",2,IF($C26="LB",3,IF(C26="",9,IF(C26="NM",8,1)))) -> 9 | J26: 0
A27: 25 | B27: =IF(Riders!C33<>"",Riders!C33,"") ->  | C27: =IF(Riders!D33<>"",Riders!D33,"") ->  | D27: =IF(Riders!E33<>"",Riders!E33,"") ->  | E27: =IF(Riders!G33<>"",Riders!G33,"") ->  | F27: =Riders!AI33 -> 0 | G27: =Riders!AJ33 ->  | H27: =IF(J27=0,"",J27*Riders!$G$6) ->  | I27: =IF($C27="OUT",2,IF($C27="LB",3,IF(C27="",9,IF(C27="NM",8,1)))) -> 9 | J27: 0
A28: 26 | B28: =IF(Riders!C34<>"",Riders!C34,"") ->  | C28: =IF(Riders!D34<>"",Riders!D34,"") ->  | D28: =IF(Riders!E34<>"",Riders!E34,"") ->  | E28: =IF(Riders!G34<>"",Riders!G34,"") ->  | F28: =Riders!AI34 -> 0 | G28: =Riders!AJ34 ->  | H28: =IF(J28=0,"",J28*Riders!$G$6) ->  | I28: =IF($C28="OUT",2,IF($C28="LB",3,IF(C28="",9,IF(C28="NM",8,1)))) -> 9 | J28: 0
A29: 27 | B29: =IF(Riders!C35<>"",Riders!C35,"") ->  | C29: =IF(Riders!D35<>"",Riders!D35,"") ->  | D29: =IF(Riders!E35<>"",Riders!E35,"") ->  | E29: =IF(Riders!G35<>"",Riders!G35,"") ->  | F29: =Riders!AI35 -> 0 | G29: =Riders!AJ35 ->  | H29: =IF(J29=0,"",J29*Riders!$G$6) ->  | I29: =IF($C29="OUT",2,IF($C29="LB",3,IF(C29="",9,IF(C29="NM",8,1)))) -> 9 | J29: 0
A30: 28 | B30: =IF(Riders!C36<>"",Riders!C36,"") ->  | C30: =IF(Riders!D36<>"",Riders!D36,"") ->  | D30: =IF(Riders!E36<>"",Riders!E36,"") ->  | E30: =IF(Riders!G36<>"",Riders!G36,"") ->  | F30: =Riders!AI36 -> 0 | G30: =Riders!AJ36 ->  | H30: =IF(J30=0,"",J30*Riders!$G$6) ->  | I30: =IF($C30="OUT",2,IF($C30="LB",3,IF(C30="",9,IF(C30="NM",8,1)))) -> 9 | J30: 0
A31: 29 | B31: =IF(Riders!C37<>"",Riders!C37,"") ->  | C31: =IF(Riders!D37<>"",Riders!D37,"") ->  | D31: =IF(Riders!E37<>"",Riders!E37,"") ->  | E31: =IF(Riders!G37<>"",Riders!G37,"") ->  | F31: =Riders!AI37 -> 0 | G31: =Riders!AJ37 ->  | H31: =IF(J31=0,"",J31*Riders!$G$6) ->  | I31: =IF($C31="OUT",2,IF($C31="LB",3,IF(C31="",9,IF(C31="NM",8,1)))) -> 9 | J31: 0
A32: 30 | B32: =IF(Riders!C38<>"",Riders!C38,"") ->  | C32: =IF(Riders!D38<>"",Riders!D38,"") ->  | D32: =IF(Riders!E38<>"",Riders!E38,"") ->  | E32: =IF(Riders!G38<>"",Riders!G38,"") ->  | F32: =Riders!AI38 -> 0 | G32: =Riders!AJ38 ->  | H32: =IF(J32=0,"",J32*Riders!$G$6) ->  | I32: =IF($C32="OUT",2,IF($C32="LB",3,IF(C32="",9,IF(C32="NM",8,1)))) -> 9 | J32: 0
A33: 31 | B33: =IF(Riders!C39<>"",Riders!C39,"") ->  | C33: =IF(Riders!D39<>"",Riders!D39,"") ->  | D33: =IF(Riders!E39<>"",Riders!E39,"") ->  | E33: =IF(Riders!G39<>"",Riders!G39,"") ->  | F33: =Riders!AI39 -> 0 | G33: =Riders!AJ39 ->  | H33: =IF(J33=0,"",J33*Riders!$G$6) ->  | I33: =IF($C33="OUT",2,IF($C33="LB",3,IF(C33="",9,IF(C33="NM",8,1)))) -> 9 | J33: 0
A34: 32 | B34: =IF(Riders!C40<>"",Riders!C40,"") ->  | C34: =IF(Riders!D40<>"",Riders!D40,"") ->  | D34: =IF(Riders!E40<>"",Riders!E40,"") ->  | E34: =IF(Riders!G40<>"",Riders!G40,"") ->  | F34: =Riders!AI40 -> 0 | G34: =Riders!AJ40 ->  | H34: =IF(J34=0,"",J34*Riders!$G$6) ->  | I34: =IF($C34="OUT",2,IF($C34="LB",3,IF(C34="",9,IF(C34="NM",8,1)))) -> 9 | J34: 0
A35: 33 | B35: =IF(Riders!C41<>"",Riders!C41,"") ->  | C35: =IF(Riders!D41<>"",Riders!D41,"") ->  | D35: =IF(Riders!E41<>"",Riders!E41,"") ->  | E35: =IF(Riders!G41<>"",Riders!G41,"") ->  | F35: =Riders!AI41 -> 0 | G35: =Riders!AJ41 ->  | H35: =IF(J35=0,"",J35*Riders!$G$6) ->  | I35: =IF($C35="OUT",2,IF($C35="LB",3,IF(C35="",9,IF(C35="NM",8,1)))) -> 9 | J35: 0
A36: 34 | B36: =IF(Riders!C42<>"",Riders!C42,"") ->  | C36: =IF(Riders!D42<>"",Riders!D42,"") ->  | D36: =IF(Riders!E42<>"",Riders!E42,"") ->  | E36: =IF(Riders!G42<>"",Riders!G42,"") ->  | F36: =Riders!AI42 -> 0 | G36: =Riders!AJ42 ->  | H36: =IF(J36=0,"",J36*Riders!$G$6) ->  | I36: =IF($C36="OUT",2,IF($C36="LB",3,IF(C36="",9,IF(C36="NM",8,1)))) -> 9 | J36: 0
A37: 35 | B37: =IF(Riders!C43<>"",Riders!C43,"") ->  | C37: =IF(Riders!D43<>"",Riders!D43,"") ->  | D37: =IF(Riders!E43<>"",Riders!E43,"") ->  | E37: =IF(Riders!G43<>"",Riders!G43,"") ->  | F37: =Riders!AI43 -> 0 | G37: =Riders!AJ43 ->  | H37: =IF(J37=0,"",J37*Riders!$G$6) ->  | I37: =IF($C37="OUT",2,IF($C37="LB",3,IF(C37="",9,IF(C37="NM",8,1)))) -> 9 | J37: 0
A38: 36 | B38: =IF(Riders!C44<>"",Riders!C44,"") ->  | C38: =IF(Riders!D44<>"",Riders!D44,"") ->  | D38: =IF(Riders!E44<>"",Riders!E44,"") ->  | E38: =IF(Riders!G44<>"",Riders!G44,"") ->  | F38: =Riders!AI44 -> 0 | G38: =Riders!AJ44 ->  | H38: =IF(J38=0,"",J38*Riders!$G$6) ->  | I38: =IF($C38="OUT",2,IF($C38="LB",3,IF(C38="",9,IF(C38="NM",8,1)))) -> 9 | J38: 0
A39: 37 | B39: =IF(Riders!C45<>"",Riders!C45,"") ->  | C39: =IF(Riders!D45<>"",Riders!D45,"") ->  | D39: =IF(Riders!E45<>"",Riders!E45,"") ->  | E39: =IF(Riders!G45<>"",Riders!G45,"") ->  | F39: =Riders!AI45 -> 0 | G39: =Riders!AJ45 ->  | H39: =IF(J39=0,"",J39*Riders!$G$6) ->  | I39: =IF($C39="OUT",2,IF($C39="LB",3,IF(C39="",9,IF(C39="NM",8,1)))) -> 9 | J39: 0
A40: 38 | B40: =IF(Riders!C46<>"",Riders!C46,"") ->  | C40: =IF(Riders!D46<>"",Riders!D46,"") ->  | D40: =IF(Riders!E46<>"",Riders!E46,"") ->  | E40: =IF(Riders!G46<>"",Riders!G46,"") ->  | F40: =Riders!AI46 -> 0 | G40: =Riders!AJ46 ->  | H40: =IF(J40=0,"",J40*Riders!$G$6) ->  | I40: =IF($C40="OUT",2,IF($C40="LB",3,IF(C40="",9,IF(C40="NM",8,1)))) -> 9 | J40: 0
A41: 39 | B41: =IF(Riders!C47<>"",Riders!C47,"") ->  | C41: =IF(Riders!D47<>"",Riders!D47,"") ->  | D41: =IF(Riders!E47<>"",Riders!E47,"") ->  | E41: =IF(Riders!G47<>"",Riders!G47,"") ->  | F41: =Riders!AI47 -> 0 | G41: =Riders!AJ47 ->  | H41: =IF(J41=0,"",J41*Riders!$G$6) ->  | I41: =IF($C41="OUT",2,IF($C41="LB",3,IF(C41="",9,IF(C41="NM",8,1)))) -> 9 | J41: 0
A42: 40 | B42: =IF(Riders!C48<>"",Riders!C48,"") ->  | C42: =IF(Riders!D48<>"",Riders!D48,"") ->  | D42: =IF(Riders!E48<>"",Riders!E48,"") ->  | E42: =IF(Riders!G48<>"",Riders!G48,"") ->  | F42: =Riders!AI48 -> 0 | G42: =Riders!AJ48 ->  | H42: =IF(J42=0,"",J42*Riders!$G$6) ->  | I42: =IF($C42="OUT",2,IF($C42="LB",3,IF(C42="",9,IF(C42="NM",8,1)))) -> 9 | J42: 0
A43: 41 | B43: =IF(Riders!C49<>"",Riders!C49,"") ->  | C43: =IF(Riders!D49<>"",Riders!D49,"") ->  | D43: =IF(Riders!E49<>"",Riders!E49,"") ->  | E43: =IF(Riders!G49<>"",Riders!G49,"") ->  | F43: =Riders!AI49 -> 0 | G43: =Riders!AJ49 ->  | H43: =IF(J43=0,"",J43*Riders!$G$6) ->  | I43: =IF($C43="OUT",2,IF($C43="LB",3,IF(C43="",9,IF(C43="NM",8,1)))) -> 9 | J43: 0
A44: 42 | B44: =IF(Riders!C50<>"",Riders!C50,"") ->  | C44: =IF(Riders!D50<>"",Riders!D50,"") ->  | D44: =IF(Riders!E50<>"",Riders!E50,"") ->  | E44: =IF(Riders!G50<>"",Riders!G50,"") ->  | F44: =Riders!AI50 -> 0 | G44: =Riders!AJ50 ->  | H44: =IF(J44=0,"",J44*Riders!$G$6) ->  | I44: =IF($C44="OUT",2,IF($C44="LB",3,IF(C44="",9,IF(C44="NM",8,1)))) -> 9 | J44: 0
A45: 43 | B45: =IF(Riders!C51<>"",Riders!C51,"") ->  | C45: =IF(Riders!D51<>"",Riders!D51,"") ->  | D45: =IF(Riders!E51<>"",Riders!E51,"") ->  | E45: =IF(Riders!G51<>"",Riders!G51,"") ->  | F45: =Riders!AI51 -> 0 | G45: =Riders!AJ51 ->  | H45: =IF(J45=0,"",J45*Riders!$G$6) ->  | I45: =IF($C45="OUT",2,IF($C45="LB",3,IF(C45="",9,IF(C45="NM",8,1)))) -> 9 | J45: 0
A46: 44 | B46: =IF(Riders!C52<>"",Riders!C52,"") ->  | C46: =IF(Riders!D52<>"",Riders!D52,"") ->  | D46: =IF(Riders!E52<>"",Riders!E52,"") ->  | E46: =IF(Riders!G52<>"",Riders!G52,"") ->  | F46: =Riders!AI52 -> 0 | G46: =Riders!AJ52 ->  | H46: =IF(J46=0,"",J46*Riders!$G$6) ->  | I46: =IF($C46="OUT",2,IF($C46="LB",3,IF(C46="",9,IF(C46="NM",8,1)))) -> 9 | J46: 0
A47: 45 | B47: =IF(Riders!C53<>"",Riders!C53,"") ->  | C47: =IF(Riders!D53<>"",Riders!D53,"") ->  | D47: =IF(Riders!E53<>"",Riders!E53,"") ->  | E47: =IF(Riders!G53<>"",Riders!G53,"") ->  | F47: =Riders!AI53 -> 0 | G47: =Riders!AJ53 ->  | H47: =IF(J47=0,"",J47*Riders!$G$6) ->  | I47: =IF($C47="OUT",2,IF($C47="LB",3,IF(C47="",9,IF(C47="NM",8,1)))) -> 9 | J47: 0
A48: 46 | B48: =IF(Riders!C54<>"",Riders!C54,"") ->  | C48: =IF(Riders!D54<>"",Riders!D54,"") ->  | D48: =IF(Riders!E54<>"",Riders!E54,"") ->  | E48: =IF(Riders!G54<>"",Riders!G54,"") ->  | F48: =Riders!AI54 -> 0 | G48: =Riders!AJ54 ->  | H48: =IF(J48=0,"",J48*Riders!$G$6) ->  | I48: =IF($C48="OUT",2,IF($C48="LB",3,IF(C48="",9,IF(C48="NM",8,1)))) -> 9 | J48: 0
A49: 47 | B49: =IF(Riders!C55<>"",Riders!C55,"") ->  | C49: =IF(Riders!D55<>"",Riders!D55,"") ->  | D49: =IF(Riders!E55<>"",Riders!E55,"") ->  | E49: =IF(Riders!G55<>"",Riders!G55,"") ->  | F49: =Riders!AI55 -> 0 | G49: =Riders!AJ55 ->  | H49: =IF(J49=0,"",J49*Riders!$G$6) ->  | I49: =IF($C49="OUT",2,IF($C49="LB",3,IF(C49="",9,IF(C49="NM",8,1)))) -> 9 | J49: 0
A50: 48 | B50: =IF(Riders!C56<>"",Riders!C56,"") ->  | C50: =IF(Riders!D56<>"",Riders!D56,"") ->  | D50: =IF(Riders!E56<>"",Riders!E56,"") ->  | E50: =IF(Riders!G56<>"",Riders!G56,"") ->  | F50: =Riders!AI56 -> 0 | G50: =Riders!AJ56 ->  | H50: =IF(J50=0,"",J50*Riders!$G$6) ->  | I50: =IF($C50="OUT",2,IF($C50="LB",3,IF(C50="",9,IF(C50="NM",8,1)))) -> 9 | J50: 0
A51: 49 | B51: =IF(Riders!C57<>"",Riders!C57,"") ->  | C51: =IF(Riders!D57<>"",Riders!D57,"") ->  | D51: =IF(Riders!E57<>"",Riders!E57,"") ->  | E51: =IF(Riders!G57<>"",Riders!G57,"") ->  | F51: =Riders!AI57 -> 0 | G51: =Riders!AJ57 ->  | H51: =IF(J51=0,"",J51*Riders!$G$6) ->  | I51: =IF($C51="OUT",2,IF($C51="LB",3,IF(C51="",9,IF(C51="NM",8,1)))) -> 9 | J51: 0
A52: 50 | B52: =IF(Riders!C58<>"",Riders!C58,"") ->  | C52: =IF(Riders!D58<>"",Riders!D58,"") ->  | D52: =IF(Riders!E58<>"",Riders!E58,"") ->  | E52: =IF(Riders!G58<>"",Riders!G58,"") ->  | F52: =Riders!AI58 -> 0 | G52: =Riders!AJ58 ->  | H52: =IF(J52=0,"",J52*Riders!$G$6) ->  | I52: =IF($C52="OUT",2,IF($C52="LB",3,IF(C52="",9,IF(C52="NM",8,1)))) -> 9 | J52: 0
A53: 51 | B53: =IF(Riders!C59<>"",Riders!C59,"") ->  | C53: =IF(Riders!D59<>"",Riders!D59,"") ->  | D53: =IF(Riders!E59<>"",Riders!E59,"") ->  | E53: =IF(Riders!G59<>"",Riders!G59,"") ->  | F53: =Riders!AI59 -> 0 | G53: =Riders!AJ59 ->  | H53: =IF(J53=0,"",J53*Riders!$G$6) ->  | I53: =IF($C53="OUT",2,IF($C53="LB",3,IF(C53="",9,IF(C53="NM",8,1)))) -> 9 | J53: 0
A54: 52 | B54: =IF(Riders!C60<>"",Riders!C60,"") ->  | C54: =IF(Riders!D60<>"",Riders!D60,"") ->  | D54: =IF(Riders!E60<>"",Riders!E60,"") ->  | E54: =IF(Riders!G60<>"",Riders!G60,"") ->  | F54: =Riders!AI60 -> 0 | G54: =Riders!AJ60 ->  | H54: =IF(J54=0,"",J54*Riders!$G$6) ->  | I54: =IF($C54="OUT",2,IF($C54="LB",3,IF(C54="",9,IF(C54="NM",8,1)))) -> 9 | J54: 0
A55: 53 | B55: =IF(Riders!C61<>"",Riders!C61,"") ->  | C55: =IF(Riders!D61<>"",Riders!D61,"") ->  | D55: =IF(Riders!E61<>"",Riders!E61,"") ->  | E55: =IF(Riders!G61<>"",Riders!G61,"") ->  | F55: =Riders!AI61 -> 0 | G55: =Riders!AJ61 ->  | H55: =IF(J55=0,"",J55*Riders!$G$6) ->  | I55: =IF($C55="OUT",2,IF($C55="LB",3,IF(C55="",9,IF(C55="NM",8,1)))) -> 9 | J55: 0
A56: 54 | B56: =IF(Riders!C62<>"",Riders!C62,"") ->  | C56: =IF(Riders!D62<>"",Riders!D62,"") ->  | D56: =IF(Riders!E62<>"",Riders!E62,"") ->  | E56: =IF(Riders!G62<>"",Riders!G62,"") ->  | F56: =Riders!AI62 -> 0 | G56: =Riders!AJ62 ->  | H56: =IF(J56=0,"",J56*Riders!$G$6) ->  | I56: =IF($C56="OUT",2,IF($C56="LB",3,IF(C56="",9,IF(C56="NM",8,1)))) -> 9 | J56: 0
A57: 55 | B57: =IF(Riders!C63<>"",Riders!C63,"") ->  | C57: =IF(Riders!D63<>"",Riders!D63,"") ->  | D57: =IF(Riders!E63<>"",Riders!E63,"") ->  | E57: =IF(Riders!G63<>"",Riders!G63,"") ->  | F57: =Riders!AI63 -> 0 | G57: =Riders!AJ63 ->  | H57: =IF(J57=0,"",J57*Riders!$G$6) ->  | I57: =IF($C57="OUT",2,IF($C57="LB",3,IF(C57="",9,IF(C57="NM",8,1)))) -> 9 | J57: 0
A58: 56 | B58: =IF(Riders!C64<>"",Riders!C64,"") ->  | C58: =IF(Riders!D64<>"",Riders!D64,"") ->  | D58: =IF(Riders!E64<>"",Riders!E64,"") ->  | E58: =IF(Riders!G64<>"",Riders!G64,"") ->  | F58: =Riders!AI64 -> 0 | G58: =Riders!AJ64 ->  | H58: =IF(J58=0,"",J58*Riders!$G$6) ->  | I58: =IF($C58="OUT",2,IF($C58="LB",3,IF(C58="",9,IF(C58="NM",8,1)))) -> 9 | J58: 0
A59: 57 | B59: =IF(Riders!C65<>"",Riders!C65,"") ->  | C59: =IF(Riders!D65<>"",Riders!D65,"") ->  | D59: =IF(Riders!E65<>"",Riders!E65,"") ->  | E59: =IF(Riders!G65<>"",Riders!G65,"") ->  | F59: =Riders!AI65 -> 0 | G59: =Riders!AJ65 ->  | H59: =IF(J59=0,"",J59*Riders!$G$6) ->  | I59: =IF($C59="OUT",2,IF($C59="LB",3,IF(C59="",9,IF(C59="NM",8,1)))) -> 9 | J59: 0
A60: 58 | B60: =IF(Riders!C66<>"",Riders!C66,"") ->  | C60: =IF(Riders!D66<>"",Riders!D66,"") ->  | D60: =IF(Riders!E66<>"",Riders!E66,"") ->  | E60: =IF(Riders!G66<>"",Riders!G66,"") ->  | F60: =Riders!AI66 -> 0 | G60: =Riders!AJ66 ->  | H60: =IF(J60=0,"",J60*Riders!$G$6) ->  | I60: =IF($C60="OUT",2,IF($C60="LB",3,IF(C60="",9,IF(C60="NM",8,1)))) -> 9 | J60: 0
A61: 59 | B61: =IF(Riders!C67<>"",Riders!C67,"") ->  | C61: =IF(Riders!D67<>"",Riders!D67,"") ->  | D61: =IF(Riders!E67<>"",Riders!E67,"") ->  | E61: =IF(Riders!G67<>"",Riders!G67,"") ->  | F61: =Riders!AI67 -> 0 | G61: =Riders!AJ67 ->  | H61: =IF(J61=0,"",J61*Riders!$G$6) ->  | I61: =IF($C61="OUT",2,IF($C61="LB",3,IF(C61="",9,IF(C61="NM",8,1)))) -> 9 | J61: 0
A62: 60 | B62: =IF(Riders!C68<>"",Riders!C68,"") ->  | C62: =IF(Riders!D68<>"",Riders!D68,"") ->  | D62: =IF(Riders!E68<>"",Riders!E68,"") ->  | E62: =IF(Riders!G68<>"",Riders!G68,"") ->  | F62: =Riders!AI68 -> 0 | G62: =Riders!AJ68 ->  | H62: =IF(J62=0,"",J62*Riders!$G$6) ->  | I62: =IF($C62="OUT",2,IF($C62="LB",3,IF(C62="",9,IF(C62="NM",8,1)))) -> 9 | J62: 0
A63: 61 | B63: =IF(Riders!C69<>"",Riders!C69,"") ->  | C63: =IF(Riders!D69<>"",Riders!D69,"") ->  | D63: =IF(Riders!E69<>"",Riders!E69,"") ->  | E63: =IF(Riders!G69<>"",Riders!G69,"") ->  | F63: =Riders!AI69 -> 0 | G63: =Riders!AJ69 ->  | H63: =IF(J63=0,"",J63*Riders!$G$6) ->  | I63: =IF($C63="OUT",2,IF($C63="LB",3,IF(C63="",9,IF(C63="NM",8,1)))) -> 9 | J63: 0
A64: 62 | B64: =IF(Riders!C70<>"",Riders!C70,"") ->  | C64: =IF(Riders!D70<>"",Riders!D70,"") ->  | D64: =IF(Riders!E70<>"",Riders!E70,"") ->  | E64: =IF(Riders!G70<>"",Riders!G70,"") ->  | F64: =Riders!AI70 -> 0 | G64: =Riders!AJ70 ->  | H64: =IF(J64=0,"",J64*Riders!$G$6) ->  | I64: =IF($C64="OUT",2,IF($C64="LB",3,IF(C64="",9,IF(C64="NM",8,1)))) -> 9 | J64: 0
A65: 63 | B65: =IF(Riders!C71<>"",Riders!C71,"") ->  | C65: =IF(Riders!D71<>"",Riders!D71,"") ->  | D65: =IF(Riders!E71<>"",Riders!E71,"") ->  | E65: =IF(Riders!G71<>"",Riders!G71,"") ->  | F65: =Riders!AI71 -> 0 | G65: =Riders!AJ71 ->  | H65: =IF(J65=0,"",J65*Riders!$G$6) ->  | I65: =IF($C65="OUT",2,IF($C65="LB",3,IF(C65="",9,IF(C65="NM",8,1)))) -> 9 | J65: 0
A66: 64 | B66: =IF(Riders!C72<>"",Riders!C72,"") ->  | C66: =IF(Riders!D72<>"",Riders!D72,"") ->  | D66: =IF(Riders!E72<>"",Riders!E72,"") ->  | E66: =IF(Riders!G72<>"",Riders!G72,"") ->  | F66: =Riders!AI72 -> 0 | G66: =Riders!AJ72 ->  | H66: =IF(J66=0,"",J66*Riders!$G$6) ->  | I66: =IF($C66="OUT",2,IF($C66="LB",3,IF(C66="",9,IF(C66="NM",8,1)))) -> 9 | J66: 0
A67: 65 | B67: =IF(Riders!C73<>"",Riders!C73,"") ->  | C67: =IF(Riders!D73<>"",Riders!D73,"") ->  | D67: =IF(Riders!E73<>"",Riders!E73,"") ->  | E67: =IF(Riders!G73<>"",Riders!G73,"") ->  | F67: =Riders!AI73 -> 0 | G67: =Riders!AJ73 ->  | H67: =IF(J67=0,"",J67*Riders!$G$6) ->  | I67: =IF($C67="OUT",2,IF($C67="LB",3,IF(C67="",9,IF(C67="NM",8,1)))) -> 9 | J67: =IF(D67="",0,IF(C67="OUT",0,IF(C67="LB",0,J68+1))) -> 0
A68: 66 | B68: =IF(Riders!C74<>"",Riders!C74,"") ->  | C68: =IF(Riders!D74<>"",Riders!D74,"") ->  | D68: =IF(Riders!E74<>"",Riders!E74,"") ->  | E68: =IF(Riders!G74<>"",Riders!G74,"") ->  | F68: =Riders!AI74 -> 0 | G68: =Riders!AJ74 ->  | H68: =IF(J68=0,"",J68*Riders!$G$6) ->  | I68: =IF($C68="OUT",2,IF($C68="LB",3,IF(C68="",9,IF(C68="NM",8,1)))) -> 9 | J68: 0
A69: 67 | B69: =IF(Riders!C75<>"",Riders!C75,"") ->  | C69: =IF(Riders!D75<>"",Riders!D75,"") ->  | D69: =IF(Riders!E75<>"",Riders!E75,"") ->  | E69: =IF(Riders!G75<>"",Riders!G75,"") ->  | F69: =Riders!AI75 -> 0 | G69: =Riders!AJ75 ->  | H69: =IF(J69=0,"",J69*Riders!$G$6) ->  | I69: =IF($C69="OUT",2,IF($C69="LB",3,IF(C69="",9,IF(C69="NM",8,1)))) -> 9 | J69: 0
A70: 68 | B70: =IF(Riders!C76<>"",Riders!C76,"") ->  | C70: =IF(Riders!D76<>"",Riders!D76,"") ->  | D70: =IF(Riders!E76<>"",Riders!E76,"") ->  | E70: =IF(Riders!G76<>"",Riders!G76,"") ->  | F70: =Riders!AI76 -> 0 | G70: =Riders!AJ76 ->  | H70: =IF(J70=0,"",J70*Riders!$G$6) ->  | I70: =IF($C70="OUT",2,IF($C70="LB",3,IF(C70="",9,IF(C70="NM",8,1)))) -> 9 | J70: 0
A71: 69 | B71: =IF(Riders!C77<>"",Riders!C77,"") ->  | C71: =IF(Riders!D77<>"",Riders!D77,"") ->  | D71: =IF(Riders!E77<>"",Riders!E77,"") ->  | E71: =IF(Riders!G77<>"",Riders!G77,"") ->  | F71: =Riders!AI77 -> 0 | G71: =Riders!AJ77 ->  | H71: =IF(J71=0,"",J71*Riders!$G$6) ->  | I71: =IF($C71="OUT",2,IF($C71="LB",3,IF(C71="",9,IF(C71="NM",8,1)))) -> 9 | J71: 0
A72: 70 | B72: =IF(Riders!C78<>"",Riders!C78,"") ->  | C72: =IF(Riders!D78<>"",Riders!D78,"") ->  | D72: =IF(Riders!E78<>"",Riders!E78,"") ->  | E72: =IF(Riders!G78<>"",Riders!G78,"") ->  | F72: =Riders!AI78 -> 0 | G72: =Riders!AJ78 ->  | H72: =IF(J72=0,"",J72*Riders!$G$6) ->  | I72: =IF($C72="OUT",2,IF($C72="LB",3,IF(C72="",9,IF(C72="NM",8,1)))) -> 9 | J72: 0
A73: 71 | B73: =IF(Riders!C79<>"",Riders!C79,"") ->  | C73: =IF(Riders!D79<>"",Riders!D79,"") ->  | D73: =IF(Riders!E79<>"",Riders!E79,"") ->  | E73: =IF(Riders!G79<>"",Riders!G79,"") ->  | F73: =Riders!AI79 -> 0 | G73: =Riders!AJ79 ->  | H73: =IF(J73=0,"",J73*Riders!$G$6) ->  | I73: =IF($C73="OUT",2,IF($C73="LB",3,IF(C73="",9,IF(C73="NM",8,1)))) -> 9 | J73: 0
A74: 72 | B74: =IF(Riders!C80<>"",Riders!C80,"") ->  | C74: =IF(Riders!D80<>"",Riders!D80,"") ->  | D74: =IF(Riders!E80<>"",Riders!E80,"") ->  | E74: =IF(Riders!G80<>"",Riders!G80,"") ->  | F74: =Riders!AI80 -> 0 | G74: =Riders!AJ80 ->  | H74: =IF(J74=0,"",J74*Riders!$G$6) ->  | I74: =IF($C74="OUT",2,IF($C74="LB",3,IF(C74="",9,IF(C74="NM",8,1)))) -> 9 | J74: 0
A75: 73 | B75: =IF(Riders!C81<>"",Riders!C81,"") ->  | C75: =IF(Riders!D81<>"",Riders!D81,"") ->  | D75: =IF(Riders!E81<>"",Riders!E81,"") ->  | E75: =IF(Riders!G81<>"",Riders!G81,"") ->  | F75: =Riders!AI81 -> 0 | G75: =Riders!AJ81 ->  | H75: =IF(J75=0,"",J75*Riders!$G$6) ->  | I75: =IF($C75="OUT",2,IF($C75="LB",3,IF(C75="",9,IF(C75="NM",8,1)))) -> 9 | J75: 0
A76: 74 | B76: =IF(Riders!C82<>"",Riders!C82,"") ->  | C76: =IF(Riders!D82<>"",Riders!D82,"") ->  | D76: =IF(Riders!E82<>"",Riders!E82,"") ->  | E76: =IF(Riders!G82<>"",Riders!G82,"") ->  | F76: =Riders!AI82 -> 0 | G76: =Riders!AJ82 ->  | H76: =IF(J76=0,"",J76*Riders!$G$6) ->  | I76: =IF($C76="OUT",2,IF($C76="LB",3,IF(C76="",9,IF(C76="NM",8,1)))) -> 9 | J76: 0
A77: 75 | B77: =IF(Riders!C83<>"",Riders!C83,"") ->  | C77: =IF(Riders!D83<>"",Riders!D83,"") ->  | D77: =IF(Riders!E83<>"",Riders!E83,"") ->  | E77: =IF(Riders!G83<>"",Riders!G83,"") ->  | F77: =Riders!AI83 -> 0 | G77: =Riders!AJ83 ->  | H77: =IF(J77=0,"",J77*Riders!$G$6) ->  | I77: =IF($C77="OUT",2,IF($C77="LB",3,IF(C77="",9,IF(C77="NM",8,1)))) -> 9 | J77: 0
A78: 76 | B78: =IF(Riders!C84<>"",Riders!C84,"") ->  | C78: =IF(Riders!D84<>"",Riders!D84,"") ->  | D78: =IF(Riders!E84<>"",Riders!E84,"") ->  | E78: =IF(Riders!G84<>"",Riders!G84,"") ->  | F78: =Riders!AI84 -> 0 | G78: =Riders!AJ84 ->  | H78: =IF(J78=0,"",J78*Riders!$G$6) ->  | I78: =IF($C78="OUT",2,IF($C78="LB",3,IF(C78="",9,IF(C78="NM",8,1)))) -> 9 | J78: 0
A79: 77 | B79: =IF(Riders!C85<>"",Riders!C85,"") ->  | C79: =IF(Riders!D85<>"",Riders!D85,"") ->  | D79: =IF(Riders!E85<>"",Riders!E85,"") ->  | E79: =IF(Riders!G85<>"",Riders!G85,"") ->  | F79: =Riders!AI85 -> 0 | G79: =Riders!AJ85 ->  | H79: =IF(J79=0,"",J79*Riders!$G$6) ->  | I79: =IF($C79="OUT",2,IF($C79="LB",3,IF(C79="",9,IF(C79="NM",8,1)))) -> 9 | J79: 0
A80: 78 | B80: =IF(Riders!C86<>"",Riders!C86,"") ->  | C80: =IF(Riders!D86<>"",Riders!D86,"") ->  | D80: =IF(Riders!E86<>"",Riders!E86,"") ->  | E80: =IF(Riders!G86<>"",Riders!G86,"") ->  | F80: =Riders!AI86 -> 0 | G80: =Riders!AJ86 ->  | H80: =IF(J80=0,"",J80*Riders!$G$6) ->  | I80: =IF($C80="OUT",2,IF($C80="LB",3,IF(C80="",9,IF(C80="NM",8,1)))) -> 9 | J80: 0
A81: 79 | B81: =IF(Riders!C87<>"",Riders!C87,"") ->  | C81: =IF(Riders!D87<>"",Riders!D87,"") ->  | D81: =IF(Riders!E87<>"",Riders!E87,"") ->  | E81: =IF(Riders!G87<>"",Riders!G87,"") ->  | F81: =Riders!AI87 -> 0 | G81: =Riders!AJ87 ->  | H81: =IF(J81=0,"",J81*Riders!$G$6) ->  | I81: =IF($C81="OUT",2,IF($C81="LB",3,IF(C81="",9,IF(C81="NM",8,1)))) -> 9 | J81: 0
A82: 80 | B82: =IF(Riders!C88<>"",Riders!C88,"") ->  | C82: =IF(Riders!D88<>"",Riders!D88,"") ->  | D82: =IF(Riders!E88<>"",Riders!E88,"") ->  | E82: =IF(Riders!G88<>"",Riders!G88,"") ->  | F82: =Riders!AI88 -> 0 | G82: =Riders!AJ88 ->  | H82: =IF(J82=0,"",J82*Riders!$G$6) ->  | I82: =IF($C82="OUT",2,IF($C82="LB",3,IF(C82="",9,IF(C82="NM",8,1)))) -> 9 | J82: 0
A83: 81 | B83: =IF(Riders!C89<>"",Riders!C89,"") ->  | C83: =IF(Riders!D89<>"",Riders!D89,"") ->  | D83: =IF(Riders!E89<>"",Riders!E89,"") ->  | E83: =IF(Riders!G89<>"",Riders!G89,"") ->  | F83: =Riders!AI89 -> 0 | G83: =Riders!AJ89 ->  | H83: =IF(J83=0,"",J83*Riders!$G$6) ->  | I83: =IF($C83="OUT",2,IF($C83="LB",3,IF(C83="",9,IF(C83="NM",8,1)))) -> 9 | J83: 0
A84: 82 | B84: =IF(Riders!C90<>"",Riders!C90,"") ->  | C84: =IF(Riders!D90<>"",Riders!D90,"") ->  | D84: =IF(Riders!E90<>"",Riders!E90,"") ->  | E84: =IF(Riders!G90<>"",Riders!G90,"") ->  | F84: =Riders!AI90 -> 0 | G84: =Riders!AJ90 ->  | H84: =IF(J84=0,"",J84*Riders!$G$6) ->  | I84: =IF($C84="OUT",2,IF($C84="LB",3,IF(C84="",9,IF(C84="NM",8,1)))) -> 9 | J84: 0
A85: 83 | B85: =IF(Riders!C91<>"",Riders!C91,"") ->  | C85: =IF(Riders!D91<>"",Riders!D91,"") ->  | D85: =IF(Riders!E91<>"",Riders!E91,"") ->  | E85: =IF(Riders!G91<>"",Riders!G91,"") ->  | F85: =Riders!AI91 -> 0 | G85: =Riders!AJ91 ->  | H85: =IF(J85=0,"",J85*Riders!$G$6) ->  | I85: =IF($C85="OUT",2,IF($C85="LB",3,IF(C85="",9,IF(C85="NM",8,1)))) -> 9 | J85: 0
A86: 84 | B86: =IF(Riders!C92<>"",Riders!C92,"") ->  | C86: =IF(Riders!D92<>"",Riders!D92,"") ->  | D86: =IF(Riders!E92<>"",Riders!E92,"") ->  | E86: =IF(Riders!G92<>"",Riders!G92,"") ->  | F86: =Riders!AI92 -> 0 | G86: =Riders!AJ92 ->  | H86: =IF(J86=0,"",J86*Riders!$G$6) ->  | I86: =IF($C86="OUT",2,IF($C86="LB",3,IF(C86="",9,IF(C86="NM",8,1)))) -> 9 | J86: 0
A87: 85 | B87: =IF(Riders!C93<>"",Riders!C93,"") ->  | C87: =IF(Riders!D93<>"",Riders!D93,"") ->  | D87: =IF(Riders!E93<>"",Riders!E93,"") ->  | E87: =IF(Riders!G93<>"",Riders!G93,"") ->  | F87: =Riders!AI93 -> 0 | G87: =Riders!AJ93 ->  | H87: =IF(J87=0,"",J87*Riders!$G$6) ->  | I87: =IF($C87="OUT",2,IF($C87="LB",3,IF(C87="",9,IF(C87="NM",8,1)))) -> 9 | J87: 0
A88: 86 | B88: =IF(Riders!C94<>"",Riders!C94,"") ->  | C88: =IF(Riders!D94<>"",Riders!D94,"") ->  | D88: =IF(Riders!E94<>"",Riders!E94,"") ->  | E88: =IF(Riders!G94<>"",Riders!G94,"") ->  | F88: =Riders!AI94 -> 0 | G88: =Riders!AJ94 ->  | H88: =IF(J88=0,"",J88*Riders!$G$6) ->  | I88: =IF($C88="OUT",2,IF($C88="LB",3,IF(C88="",9,IF(C88="NM",8,1)))) -> 9 | J88: 0
A89: 87 | B89: =IF(Riders!C95<>"",Riders!C95,"") ->  | C89: =IF(Riders!D95<>"",Riders!D95,"") ->  | D89: =IF(Riders!E95<>"",Riders!E95,"") ->  | E89: =IF(Riders!G95<>"",Riders!G95,"") ->  | F89: =Riders!AI95 -> 0 | G89: =Riders!AJ95 ->  | H89: =IF(J89=0,"",J89*Riders!$G$6) ->  | I89: =IF($C89="OUT",2,IF($C89="LB",3,IF(C89="",9,IF(C89="NM",8,1)))) -> 9 | J89: 0
A90: 88 | B90: =IF(Riders!C96<>"",Riders!C96,"") ->  | C90: =IF(Riders!D96<>"",Riders!D96,"") ->  | D90: =IF(Riders!E96<>"",Riders!E96,"") ->  | E90: =IF(Riders!G96<>"",Riders!G96,"") ->  | F90: =Riders!AI96 -> 0 | G90: =Riders!AJ96 ->  | H90: =IF(J90=0,"",J90*Riders!$G$6) ->  | I90: =IF($C90="OUT",2,IF($C90="LB",3,IF(C90="",9,IF(C90="NM",8,1)))) -> 9 | J90: 0
A91: 89 | B91: =IF(Riders!C97<>"",Riders!C97,"") ->  | C91: =IF(Riders!D97<>"",Riders!D97,"") ->  | D91: =IF(Riders!E97<>"",Riders!E97,"") ->  | E91: =IF(Riders!G97<>"",Riders!G97,"") ->  | F91: =Riders!AI97 -> 0 | G91: =Riders!AJ97 ->  | H91: =IF(J91=0,"",J91*Riders!$G$6) ->  | I91: =IF($C91="OUT",2,IF($C91="LB",3,IF(C91="",9,IF(C91="NM",8,1)))) -> 9 | J91: 0
A92: 90 | B92: =IF(Riders!C98<>"",Riders!C98,"") ->  | C92: =IF(Riders!D98<>"",Riders!D98,"") ->  | D92: =IF(Riders!E98<>"",Riders!E98,"") ->  | E92: =IF(Riders!G98<>"",Riders!G98,"") ->  | F92: =Riders!AI98 -> 0 | G92: =Riders!AJ98 ->  | H92: =IF(J92=0,"",J92*Riders!$G$6) ->  | I92: =IF($C92="OUT",2,IF($C92="LB",3,IF(C92="",9,IF(C92="NM",8,1)))) -> 9 | J92: 0
A93: 91 | B93: =IF(Riders!C99<>"",Riders!C99,"") ->  | C93: =IF(Riders!D99<>"",Riders!D99,"") ->  | D93: =IF(Riders!E99<>"",Riders!E99,"") ->  | E93: =IF(Riders!G99<>"",Riders!G99,"") ->  | F93: =Riders!AI99 -> 0 | G93: =Riders!AJ99 ->  | H93: =IF(J93=0,"",J93*Riders!$G$6) ->  | I93: =IF($C93="OUT",2,IF($C93="LB",3,IF(C93="",9,IF(C93="NM",8,1)))) -> 9 | J93: 0
A94: 92 | B94: =IF(Riders!C100<>"",Riders!C100,"") ->  | C94: =IF(Riders!D100<>"",Riders!D100,"") ->  | D94: =IF(Riders!E100<>"",Riders!E100,"") ->  | E94: =IF(Riders!G100<>"",Riders!G100,"") ->  | F94: =Riders!AI100 -> 0 | G94: =Riders!AJ100 ->  | H94: =IF(J94=0,"",J94*Riders!$G$6) ->  | I94: =IF($C94="OUT",2,IF($C94="LB",3,IF(C94="",9,IF(C94="NM",8,1)))) -> 9 | J94: 0
A95: 93 | B95: =IF(Riders!C101<>"",Riders!C101,"") ->  | C95: =IF(Riders!D101<>"",Riders!D101,"") ->  | D95: =IF(Riders!E101<>"",Riders!E101,"") ->  | E95: =IF(Riders!G101<>"",Riders!G101,"") ->  | F95: =Riders!AI101 -> 0 | G95: =Riders!AJ101 ->  | H95: =IF(J95=0,"",J95*Riders!$G$6) ->  | I95: =IF($C95="OUT",2,IF($C95="LB",3,IF(C95="",9,IF(C95="NM",8,1)))) -> 9 | J95: 0
A96: 94 | B96: =IF(Riders!C102<>"",Riders!C102,"") ->  | C96: =IF(Riders!D102<>"",Riders!D102,"") ->  | D96: =IF(Riders!E102<>"",Riders!E102,"") ->  | E96: =IF(Riders!G102<>"",Riders!G102,"") ->  | F96: =Riders!AI102 -> 0 | G96: =Riders!AJ102 ->  | H96: =IF(J96=0,"",J96*Riders!$G$6) ->  | I96: =IF($C96="OUT",2,IF($C96="LB",3,IF(C96="",9,IF(C96="NM",8,1)))) -> 9 | J96: 0
A97: 95 | B97: =IF(Riders!C103<>"",Riders!C103,"") ->  | C97: =IF(Riders!D103<>"",Riders!D103,"") ->  | D97: =IF(Riders!E103<>"",Riders!E103,"") ->  | E97: =IF(Riders!G103<>"",Riders!G103,"") ->  | F97: =Riders!AI103 -> 0 | G97: =Riders!AJ103 ->  | H97: =IF(J97=0,"",J97*Riders!$G$6) ->  | I97: =IF($C97="OUT",2,IF($C97="LB",3,IF(C97="",9,IF(C97="NM",8,1)))) -> 9 | J97: 0
A98: 96 | B98: =IF(Riders!C104<>"",Riders!C104,"") ->  | C98: =IF(Riders!D104<>"",Riders!D104,"") ->  | D98: =IF(Riders!E104<>"",Riders!E104,"") ->  | E98: =IF(Riders!G104<>"",Riders!G104,"") ->  | F98: =Riders!AI104 -> 0 | G98: =Riders!AJ104 ->  | H98: =IF(J98=0,"",J98*Riders!$G$6) ->  | I98: =IF($C98="OUT",2,IF($C98="LB",3,IF(C98="",9,IF(C98="NM",8,1)))) -> 9 | J98: 0
A99: 97 | B99: =IF(Riders!C105<>"",Riders!C105,"") ->  | C99: =IF(Riders!D105<>"",Riders!D105,"") ->  | D99: =IF(Riders!E105<>"",Riders!E105,"") ->  | E99: =IF(Riders!G105<>"",Riders!G105,"") ->  | F99: =Riders!AI105 -> 0 | G99: =Riders!AJ105 ->  | H99: =IF(J99=0,"",J99*Riders!$G$6) ->  | I99: =IF($C99="OUT",2,IF($C99="LB",3,IF(C99="",9,IF(C99="NM",8,1)))) -> 9 | J99: 0
A100: 98 | B100: =IF(Riders!C106<>"",Riders!C106,"") ->  | C100: =IF(Riders!D106<>"",Riders!D106,"") ->  | D100: =IF(Riders!E106<>"",Riders!E106,"") ->  | E100: =IF(Riders!G106<>"",Riders!G106,"") ->  | F100: =Riders!AI106 -> 0 | G100: =Riders!AJ106 ->  | H100: =IF(J100=0,"",J100*Riders!$G$6) ->  | I100: =IF($C100="OUT",2,IF($C100="LB",3,IF(C100="",9,IF(C100="NM",8,1)))) -> 9 | J100: 0
A101: 99 | B101: =IF(Riders!C107<>"",Riders!C107,"") ->  | C101: =IF(Riders!D107<>"",Riders!D107,"") ->  | D101: =IF(Riders!E107<>"",Riders!E107,"") ->  | E101: =IF(Riders!G107<>"",Riders!G107,"") ->  | F101: =Riders!AI107 -> 0 | G101: =Riders!AJ107 ->  | H101: =IF(J101=0,"",J101*Riders!$G$6) ->  | I101: =IF($C101="OUT",2,IF($C101="LB",3,IF(C101="",9,IF(C101="NM",8,1)))) -> 9 | J101: 0
A102: 100 | B102: =IF(Riders!C108<>"",Riders!C108,"") ->  | C102: =IF(Riders!D108<>"",Riders!D108,"") ->  | D102: =IF(Riders!E108<>"",Riders!E108,"") ->  | E102: =IF(Riders!G108<>"",Riders!G108,"") ->  | F102: =Riders!AI108 -> 0 | G102: =Riders!AJ108 ->  | H102: =IF(J102=0,"",J102*Riders!$G$6) ->  | I102: =IF($C102="OUT",2,IF($C102="LB",3,IF(C102="",9,IF(C102="NM",8,1)))) -> 9 | J102: 0
A103: 101 | B103: =IF(Riders!C109<>"",Riders!C109,"") ->  | C103: =IF(Riders!D109<>"",Riders!D109,"") ->  | D103: =IF(Riders!E109<>"",Riders!E109,"") ->  | E103: =IF(Riders!G109<>"",Riders!G109,"") ->  | F103: =Riders!AI109 -> 0 | G103: =Riders!AJ109 ->  | H103: =IF(J103=0,"",J103*Riders!$G$6) ->  | I103: =IF($C103="OUT",2,IF($C103="LB",3,IF(C103="",9,IF(C103="NM",8,1)))) -> 9 | J103: 0
A104: 102 | B104: =IF(Riders!C110<>"",Riders!C110,"") ->  | C104: =IF(Riders!D110<>"",Riders!D110,"") ->  | D104: =IF(Riders!E110<>"",Riders!E110,"") ->  | E104: =IF(Riders!G110<>"",Riders!G110,"") ->  | F104: =Riders!AI110 -> 0 | G104: =Riders!AJ110 ->  | H104: =IF(J104=0,"",J104*Riders!$G$6) ->  | I104: =IF($C104="OUT",2,IF($C104="LB",3,IF(C104="",9,IF(C104="NM",8,1)))) -> 9 | J104: 0
A105: 103 | B105: =IF(Riders!C111<>"",Riders!C111,"") ->  | C105: =IF(Riders!D111<>"",Riders!D111,"") ->  | D105: =IF(Riders!E111<>"",Riders!E111,"") ->  | E105: =IF(Riders!G111<>"",Riders!G111,"") ->  | F105: =Riders!AI111 -> 0 | G105: =Riders!AJ111 ->  | H105: =IF(J105=0,"",J105*Riders!$G$6) ->  | I105: =IF($C105="OUT",2,IF($C105="LB",3,IF(C105="",9,IF(C105="NM",8,1)))) -> 9 | J105: 0
A106: 104 | B106: =IF(Riders!C112<>"",Riders!C112,"") ->  | C106: =IF(Riders!D112<>"",Riders!D112,"") ->  | D106: =IF(Riders!E112<>"",Riders!E112,"") ->  | E106: =IF(Riders!G112<>"",Riders!G112,"") ->  | F106: =Riders!AI112 -> 0 | G106: =Riders!AJ112 ->  | H106: =IF(J106=0,"",J106*Riders!$G$6) ->  | I106: =IF($C106="OUT",2,IF($C106="LB",3,IF(C106="",9,IF(C106="NM",8,1)))) -> 9 | J106: 0
A107: 105 | B107: =IF(Riders!C113<>"",Riders!C113,"") ->  | C107: =IF(Riders!D113<>"",Riders!D113,"") ->  | D107: =IF(Riders!E113<>"",Riders!E113,"") ->  | E107: =IF(Riders!G113<>"",Riders!G113,"") ->  | F107: =Riders!AI113 -> 0 | G107: =Riders!AJ113 ->  | H107: =IF(J107=0,"",J107*Riders!$G$6) ->  | I107: =IF($C107="OUT",2,IF($C107="LB",3,IF(C107="",9,IF(C107="NM",8,1)))) -> 9 | J107: 0
A108: 106 | B108: =IF(Riders!C114<>"",Riders!C114,"") ->  | C108: =IF(Riders!D114<>"",Riders!D114,"") ->  | D108: =IF(Riders!E114<>"",Riders!E114,"") ->  | E108: =IF(Riders!G114<>"",Riders!G114,"") ->  | F108: =Riders!AI114 -> 0 | G108: =Riders!AJ114 ->  | H108: =IF(J108=0,"",J108*Riders!$G$6) ->  | I108: =IF($C108="OUT",2,IF($C108="LB",3,IF(C108="",9,IF(C108="NM",8,1)))) -> 9 | J108: 0
A109: 107 | B109: =IF(Riders!C115<>"",Riders!C115,"") ->  | C109: =IF(Riders!D115<>"",Riders!D115,"") ->  | D109: =IF(Riders!E115<>"",Riders!E115,"") ->  | E109: =IF(Riders!G115<>"",Riders!G115,"") ->  | F109: =Riders!AI115 -> 0 | G109: =Riders!AJ115 ->  | H109: =IF(J109=0,"",J109*Riders!$G$6) ->  | I109: =IF($C109="OUT",2,IF($C109="LB",3,IF(C109="",9,IF(C109="NM",8,1)))) -> 9 | J109: 0
A110: 108 | B110: =IF(Riders!C116<>"",Riders!C116,"") ->  | C110: =IF(Riders!D116<>"",Riders!D116,"") ->  | D110: =IF(Riders!E116<>"",Riders!E116,"") ->  | E110: =IF(Riders!G116<>"",Riders!G116,"") ->  | F110: =Riders!AI116 -> 0 | G110: =Riders!AJ116 ->  | H110: =IF(J110=0,"",J110*Riders!$G$6) ->  | I110: =IF($C110="OUT",2,IF($C110="LB",3,IF(C110="",9,IF(C110="NM",8,1)))) -> 9 | J110: 0
A111: 109 | B111: =IF(Riders!C117<>"",Riders!C117,"") ->  | C111: =IF(Riders!D117<>"",Riders!D117,"") ->  | D111: =IF(Riders!E117<>"",Riders!E117,"") ->  | E111: =IF(Riders!G117<>"",Riders!G117,"") ->  | F111: =Riders!AI117 -> 0 | G111: =Riders!AJ117 ->  | H111: =IF(J111=0,"",J111*Riders!$G$6) ->  | I111: =IF($C111="OUT",2,IF($C111="LB",3,IF(C111="",9,IF(C111="NM",8,1)))) -> 9 | J111: 0
A112: 110 | B112: =IF(Riders!C118<>"",Riders!C118,"") ->  | C112: =IF(Riders!D118<>"",Riders!D118,"") ->  | D112: =IF(Riders!E118<>"",Riders!E118,"") ->  | E112: =IF(Riders!G118<>"",Riders!G118,"") ->  | F112: =Riders!AI118 -> 0 | G112: =Riders!AJ118 ->  | H112: =IF(J112=0,"",J112*Riders!$G$6) ->  | I112: =IF($C112="OUT",2,IF($C112="LB",3,IF(C112="",9,IF(C112="NM",8,1)))) -> 9 | J112: 0
A113: 111 | B113: =IF(Riders!C119<>"",Riders!C119,"") ->  | C113: =IF(Riders!D119<>"",Riders!D119,"") ->  | D113: =IF(Riders!E119<>"",Riders!E119,"") ->  | E113: =IF(Riders!G119<>"",Riders!G119,"") ->  | F113: =Riders!AI119 -> 0 | G113: =Riders!AJ119 ->  | H113: =IF(J113=0,"",J113*Riders!$G$6) ->  | I113: =IF($C113="OUT",2,IF($C113="LB",3,IF(C113="",9,IF(C113="NM",8,1)))) -> 9 | J113: 0
A114: 112 | B114: =IF(Riders!C120<>"",Riders!C120,"") ->  | C114: =IF(Riders!D120<>"",Riders!D120,"") ->  | D114: =IF(Riders!E120<>"",Riders!E120,"") ->  | E114: =IF(Riders!G120<>"",Riders!G120,"") ->  | F114: =Riders!AI120 -> 0 | G114: =Riders!AJ120 ->  | H114: =IF(J114=0,"",J114*Riders!$G$6) ->  | I114: =IF($C114="OUT",2,IF($C114="LB",3,IF(C114="",9,IF(C114="NM",8,1)))) -> 9 | J114: 0
A115: 113 | B115: =IF(Riders!C121<>"",Riders!C121,"") ->  | C115: =IF(Riders!D121<>"",Riders!D121,"") ->  | D115: =IF(Riders!E121<>"",Riders!E121,"") ->  | E115: =IF(Riders!G121<>"",Riders!G121,"") ->  | F115: =Riders!AI121 -> 0 | G115: =Riders!AJ121 ->  | H115: =IF(J115=0,"",J115*Riders!$G$6) ->  | I115: =IF($C115="OUT",2,IF($C115="LB",3,IF(C115="",9,IF(C115="NM",8,1)))) -> 9 | J115: 0
A116: 114 | B116: =IF(Riders!C122<>"",Riders!C122,"") ->  | C116: =IF(Riders!D122<>"",Riders!D122,"") ->  | D116: =IF(Riders!E122<>"",Riders!E122,"") ->  | E116: =IF(Riders!G122<>"",Riders!G122,"") ->  | F116: =Riders!AI122 -> 0 | G116: =Riders!AJ122 ->  | H116: =IF(J116=0,"",J116*Riders!$G$6) ->  | I116: =IF($C116="OUT",2,IF($C116="LB",3,IF(C116="",9,IF(C116="NM",8,1)))) -> 9 | J116: 0
A117: 115 | B117: =IF(Riders!C123<>"",Riders!C123,"") ->  | C117: =IF(Riders!D123<>"",Riders!D123,"") ->  | D117: =IF(Riders!E123<>"",Riders!E123,"") ->  | E117: =IF(Riders!G123<>"",Riders!G123,"") ->  | F117: =Riders!AI123 -> 0 | G117: =Riders!AJ123 ->  | H117: =IF(J117=0,"",J117*Riders!$G$6) ->  | I117: =IF($C117="OUT",2,IF($C117="LB",3,IF(C117="",9,IF(C117="NM",8,1)))) -> 9 | J117: 0
A118: 116 | B118: =IF(Riders!C124<>"",Riders!C124,"") ->  | C118: =IF(Riders!D124<>"",Riders!D124,"") ->  | D118: =IF(Riders!E124<>"",Riders!E124,"") ->  | E118: =IF(Riders!G124<>"",Riders!G124,"") ->  | F118: =Riders!AI124 -> 0 | G118: =Riders!AJ124 ->  | H118: =IF(J118=0,"",J118*Riders!$G$6) ->  | I118: =IF($C118="OUT",2,IF($C118="LB",3,IF(C118="",9,IF(C118="NM",8,1)))) -> 9 | J118: 0
A119: 117 | B119: =IF(Riders!C125<>"",Riders!C125,"") ->  | C119: =IF(Riders!D125<>"",Riders!D125,"") ->  | D119: =IF(Riders!E125<>"",Riders!E125,"") ->  | E119: =IF(Riders!G125<>"",Riders!G125,"") ->  | F119: =Riders!AI125 -> 0 | G119: =Riders!AJ125 ->  | H119: =IF(J119=0,"",J119*Riders!$G$6) ->  | I119: =IF($C119="OUT",2,IF($C119="LB",3,IF(C119="",9,IF(C119="NM",8,1)))) -> 9 | J119: 0
A120: 118 | B120: =IF(Riders!C126<>"",Riders!C126,"") ->  | C120: =IF(Riders!D126<>"",Riders!D126,"") ->  | D120: =IF(Riders!E126<>"",Riders!E126,"") ->  | E120: =IF(Riders!G126<>"",Riders!G126,"") ->  | F120: =Riders!AI126 -> 0 | G120: =Riders!AJ126 ->  | H120: =IF(J120=0,"",J120*Riders!$G$6) ->  | I120: =IF($C120="OUT",2,IF($C120="LB",3,IF(C120="",9,IF(C120="NM",8,1)))) -> 9 | J120: 0
A121: 119 | B121: =IF(Riders!C127<>"",Riders!C127,"") ->  | C121: =IF(Riders!D127<>"",Riders!D127,"") ->  | D121: =IF(Riders!E127<>"",Riders!E127,"") ->  | E121: =IF(Riders!G127<>"",Riders!G127,"") ->  | F121: =Riders!AI127 -> 0 | G121: =Riders!AJ127 ->  | H121: =IF(J121=0,"",J121*Riders!$G$6) ->  | I121: =IF($C121="OUT",2,IF($C121="LB",3,IF(C121="",9,IF(C121="NM",8,1)))) -> 9 | J121: 0
A122: 120 | B122: =IF(Riders!C128<>"",Riders!C128,"") ->  | C122: =IF(Riders!D128<>"",Riders!D128,"") ->  | D122: =IF(Riders!E128<>"",Riders!E128,"") ->  | E122: =IF(Riders!G128<>"",Riders!G128,"") ->  | F122: =Riders!AI128 -> 0 | G122: =Riders!AJ128 ->  | H122: =IF(J122=0,"",J122*Riders!$G$6) ->  | I122: =IF($C122="OUT",2,IF($C122="LB",3,IF(C122="",9,IF(C122="NM",8,1)))) -> 9 | J122: 0
A123: 121 | B123: =IF(Riders!C129<>"",Riders!C129,"") ->  | C123: =IF(Riders!D129<>"",Riders!D129,"") ->  | D123: =IF(Riders!E129<>"",Riders!E129,"") ->  | E123: =IF(Riders!G129<>"",Riders!G129,"") ->  | F123: =Riders!AI129 -> 0 | G123: =Riders!AJ129 ->  | H123: =IF(J123=0,"",J123*Riders!$G$6) ->  | I123: =IF($C123="OUT",2,IF($C123="LB",3,IF(C123="",9,IF(C123="NM",8,1)))) -> 9 | J123: 0
A124: 122 | B124: =IF(Riders!C130<>"",Riders!C130,"") ->  | C124: =IF(Riders!D130<>"",Riders!D130,"") ->  | D124: =IF(Riders!E130<>"",Riders!E130,"") ->  | E124: =IF(Riders!G130<>"",Riders!G130,"") ->  | F124: =Riders!AI130 -> 0 | G124: =Riders!AJ130 ->  | H124: =IF(J124=0,"",J124*Riders!$G$6) ->  | I124: =IF($C124="OUT",2,IF($C124="LB",3,IF(C124="",9,IF(C124="NM",8,1)))) -> 9 | J124: 0
A125: 123 | B125: =IF(Riders!C131<>"",Riders!C131,"") ->  | C125: =IF(Riders!D131<>"",Riders!D131,"") ->  | D125: =IF(Riders!E131<>"",Riders!E131,"") ->  | E125: =IF(Riders!G131<>"",Riders!G131,"") ->  | F125: =Riders!AI131 -> 0 | G125: =Riders!AJ131 ->  | H125: =IF(J125=0,"",J125*Riders!$G$6) ->  | I125: =IF($C125="OUT",2,IF($C125="LB",3,IF(C125="",9,IF(C125="NM",8,1)))) -> 9 | J125: 0
A126: 124 | B126: =IF(Riders!C132<>"",Riders!C132,"") ->  | C126: =IF(Riders!D132<>"",Riders!D132,"") ->  | D126: =IF(Riders!E132<>"",Riders!E132,"") ->  | E126: =IF(Riders!G132<>"",Riders!G132,"") ->  | F126: =Riders!AI132 -> 0 | G126: =Riders!AJ132 ->  | H126: =IF(J126=0,"",J126*Riders!$G$6) ->  | I126: =IF($C126="OUT",2,IF($C126="LB",3,IF(C126="",9,IF(C126="NM",8,1)))) -> 9 | J126: 0
A127: 125 | B127: =IF(Riders!C133<>"",Riders!C133,"") ->  | C127: =IF(Riders!D133<>"",Riders!D133,"") ->  | D127: =IF(Riders!E133<>"",Riders!E133,"") ->  | E127: =IF(Riders!G133<>"",Riders!G133,"") ->  | F127: =Riders!AI133 -> 0 | G127: =Riders!AJ133 ->  | H127: =IF(J127=0,"",J127*Riders!$G$6) ->  | I127: =IF($C127="OUT",2,IF($C127="LB",3,IF(C127="",9,IF(C127="NM",8,1)))) -> 9 | J127: 0
A128: 126 | B128: =IF(Riders!C134<>"",Riders!C134,"") ->  | C128: =IF(Riders!D134<>"",Riders!D134,"") ->  | D128: =IF(Riders!E134<>"",Riders!E134,"") ->  | E128: =IF(Riders!G134<>"",Riders!G134,"") ->  | F128: =Riders!AI134 -> 0 | G128: =Riders!AJ134 ->  | H128: =IF(J128=0,"",J128*Riders!$G$6) ->  | I128: =IF($C128="OUT",2,IF($C128="LB",3,IF(C128="",9,IF(C128="NM",8,1)))) -> 9 | J128: 0
A129: 127 | B129: =IF(Riders!C135<>"",Riders!C135,"") ->  | C129: =IF(Riders!D135<>"",Riders!D135,"") ->  | D129: =IF(Riders!E135<>"",Riders!E135,"") ->  | E129: =IF(Riders!G135<>"",Riders!G135,"") ->  | F129: =Riders!AI135 -> 0 | G129: =Riders!AJ135 ->  | H129: =IF(J129=0,"",J129*Riders!$G$6) ->  | I129: =IF($C129="OUT",2,IF($C129="LB",3,IF(C129="",9,IF(C129="NM",8,1)))) -> 9 | J129: 0
A130: 128 | B130: =IF(Riders!C136<>"",Riders!C136,"") ->  | C130: =IF(Riders!D136<>"",Riders!D136,"") ->  | D130: =IF(Riders!E136<>"",Riders!E136,"") ->  | E130: =IF(Riders!G136<>"",Riders!G136,"") ->  | F130: =Riders!AI136 -> 0 | G130: =Riders!AJ136 ->  | H130: =IF(J130=0,"",J130*Riders!$G$6) ->  | I130: =IF($C130="OUT",2,IF($C130="LB",3,IF(C130="",9,IF(C130="NM",8,1)))) -> 9 | J130: 0
A131: 129 | B131: =IF(Riders!C137<>"",Riders!C137,"") ->  | C131: =IF(Riders!D137<>"",Riders!D137,"") ->  | D131: =IF(Riders!E137<>"",Riders!E137,"") ->  | E131: =IF(Riders!G137<>"",Riders!G137,"") ->  | F131: =Riders!AI137 -> 0 | G131: =Riders!AJ137 ->  | H131: =IF(J131=0,"",J131*Riders!$G$6) ->  | I131: =IF($C131="OUT",2,IF($C131="LB",3,IF(C131="",9,IF(C131="NM",8,1)))) -> 9 | J131: =IF(D131="",0,IF(C131="OUT",0,IF(C131="LB",0,J132+1))) -> 0
A132: 130 | B132: =IF(Riders!C138<>"",Riders!C138,"") ->  | C132: =IF(Riders!D138<>"",Riders!D138,"") ->  | D132: =IF(Riders!E138<>"",Riders!E138,"") ->  | E132: =IF(Riders!G138<>"",Riders!G138,"") ->  | F132: =Riders!AI138 -> 0 | G132: =Riders!AJ138 ->  | H132: =IF(J132=0,"",J132*Riders!$G$6) ->  | I132: =IF($C132="OUT",2,IF($C132="LB",3,IF(C132="",9,IF(C132="NM",8,1)))) -> 9 | J132: 0
A133: 131 | B133: =IF(Riders!C139<>"",Riders!C139,"") ->  | C133: =IF(Riders!D139<>"",Riders!D139,"") ->  | D133: =IF(Riders!E139<>"",Riders!E139,"") ->  | E133: =IF(Riders!G139<>"",Riders!G139,"") ->  | F133: =Riders!AI139 -> 0 | G133: =Riders!AJ139 ->  | H133: =IF(J133=0,"",J133*Riders!$G$6) ->  | I133: =IF($C133="OUT",2,IF($C133="LB",3,IF(C133="",9,IF(C133="NM",8,1)))) -> 9 | J133: 0
A134: 132 | B134: =IF(Riders!C140<>"",Riders!C140,"") ->  | C134: =IF(Riders!D140<>"",Riders!D140,"") ->  | D134: =IF(Riders!E140<>"",Riders!E140,"") ->  | E134: =IF(Riders!G140<>"",Riders!G140,"") ->  | F134: =Riders!AI140 -> 0 | G134: =Riders!AJ140 ->  | H134: =IF(J134=0,"",J134*Riders!$G$6) ->  | I134: =IF($C134="OUT",2,IF($C134="LB",3,IF(C134="",9,IF(C134="NM",8,1)))) -> 9 | J134: 0
A135: 133 | B135: =IF(Riders!C141<>"",Riders!C141,"") ->  | C135: =IF(Riders!D141<>"",Riders!D141,"") ->  | D135: =IF(Riders!E141<>"",Riders!E141,"") ->  | E135: =IF(Riders!G141<>"",Riders!G141,"") ->  | F135: =Riders!AI141 -> 0 | G135: =Riders!AJ141 ->  | H135: =IF(J135=0,"",J135*Riders!$G$6) ->  | I135: =IF($C135="OUT",2,IF($C135="LB",3,IF(C135="",9,IF(C135="NM",8,1)))) -> 9 | J135: 0
A136: 134 | B136: =IF(Riders!C142<>"",Riders!C142,"") ->  | C136: =IF(Riders!D142<>"",Riders!D142,"") ->  | D136: =IF(Riders!E142<>"",Riders!E142,"") ->  | E136: =IF(Riders!G142<>"",Riders!G142,"") ->  | F136: =Riders!AI142 -> 0 | G136: =Riders!AJ142 ->  | H136: =IF(J136=0,"",J136*Riders!$G$6) ->  | I136: =IF($C136="OUT",2,IF($C136="LB",3,IF(C136="",9,IF(C136="NM",8,1)))) -> 9 | J136: 0
A137: 135 | B137: =IF(Riders!C143<>"",Riders!C143,"") ->  | C137: =IF(Riders!D143<>"",Riders!D143,"") ->  | D137: =IF(Riders!E143<>"",Riders!E143,"") ->  | E137: =IF(Riders!G143<>"",Riders!G143,"") ->  | F137: =Riders!AI143 -> 0 | G137: =Riders!AJ143 ->  | H137: =IF(J137=0,"",J137*Riders!$G$6) ->  | I137: =IF($C137="OUT",2,IF($C137="LB",3,IF(C137="",9,IF(C137="NM",8,1)))) -> 9 | J137: 0
A138: 136 | B138: =IF(Riders!C144<>"",Riders!C144,"") ->  | C138: =IF(Riders!D144<>"",Riders!D144,"") ->  | D138: =IF(Riders!E144<>"",Riders!E144,"") ->  | E138: =IF(Riders!G144<>"",Riders!G144,"") ->  | F138: =Riders!AI144 -> 0 | G138: =Riders!AJ144 ->  | H138: =IF(J138=0,"",J138*Riders!$G$6) ->  | I138: =IF($C138="OUT",2,IF($C138="LB",3,IF(C138="",9,IF(C138="NM",8,1)))) -> 9 | J138: 0
A139: 137 | B139: =IF(Riders!C145<>"",Riders!C145,"") ->  | C139: =IF(Riders!D145<>"",Riders!D145,"") ->  | D139: =IF(Riders!E145<>"",Riders!E145,"") ->  | E139: =IF(Riders!G145<>"",Riders!G145,"") ->  | F139: =Riders!AI145 -> 0 | G139: =Riders!AJ145 ->  | H139: =IF(J139=0,"",J139*Riders!$G$6) ->  | I139: =IF($C139="OUT",2,IF($C139="LB",3,IF(C139="",9,IF(C139="NM",8,1)))) -> 9 | J139: 0
A140: 138 | B140: =IF(Riders!C146<>"",Riders!C146,"") ->  | C140: =IF(Riders!D146<>"",Riders!D146,"") ->  | D140: =IF(Riders!E146<>"",Riders!E146,"") ->  | E140: =IF(Riders!G146<>"",Riders!G146,"") ->  | F140: =Riders!AI146 -> 0 | G140: =Riders!AJ146 ->  | H140: =IF(J140=0,"",J140*Riders!$G$6) ->  | I140: =IF($C140="OUT",2,IF($C140="LB",3,IF(C140="",9,IF(C140="NM",8,1)))) -> 9 | J140: 0
A141: 139 | B141: =IF(Riders!C147<>"",Riders!C147,"") ->  | C141: =IF(Riders!D147<>"",Riders!D147,"") ->  | D141: =IF(Riders!E147<>"",Riders!E147,"") ->  | E141: =IF(Riders!G147<>"",Riders!G147,"") ->  | F141: =Riders!AI147 -> 0 | G141: =Riders!AJ147 ->  | H141: =IF(J141=0,"",J141*Riders!$G$6) ->  | I141: =IF($C141="OUT",2,IF($C141="LB",3,IF(C141="",9,IF(C141="NM",8,1)))) -> 9 | J141: 0
A142: 140 | B142: =IF(Riders!C148<>"",Riders!C148,"") ->  | C142: =IF(Riders!D148<>"",Riders!D148,"") ->  | D142: =IF(Riders!E148<>"",Riders!E148,"") ->  | E142: =IF(Riders!G148<>"",Riders!G148,"") ->  | F142: =Riders!AI148 -> 0 | G142: =Riders!AJ148 ->  | H142: =IF(J142=0,"",J142*Riders!$G$6) ->  | I142: =IF($C142="OUT",2,IF($C142="LB",3,IF(C142="",9,IF(C142="NM",8,1)))) -> 9 | J142: 0
A143: 141 | B143: =IF(Riders!C149<>"",Riders!C149,"") ->  | C143: =IF(Riders!D149<>"",Riders!D149,"") ->  | D143: =IF(Riders!E149<>"",Riders!E149,"") ->  | E143: =IF(Riders!G149<>"",Riders!G149,"") ->  | F143: =Riders!AI149 -> 0 | G143: =Riders!AJ149 ->  | H143: =IF(J143=0,"",J143*Riders!$G$6) ->  | I143: =IF($C143="OUT",2,IF($C143="LB",3,IF(C143="",9,IF(C143="NM",8,1)))) -> 9 | J143: 0
A144: 142 | B144: =IF(Riders!C150<>"",Riders!C150,"") ->  | C144: =IF(Riders!D150<>"",Riders!D150,"") ->  | D144: =IF(Riders!E150<>"",Riders!E150,"") ->  | E144: =IF(Riders!G150<>"",Riders!G150,"") ->  | F144: =Riders!AI150 -> 0 | G144: =Riders!AJ150 ->  | H144: =IF(J144=0,"",J144*Riders!$G$6) ->  | I144: =IF($C144="OUT",2,IF($C144="LB",3,IF(C144="",9,IF(C144="NM",8,1)))) -> 9 | J144: 0
A145: 143 | B145: =IF(Riders!C151<>"",Riders!C151,"") ->  | C145: =IF(Riders!D151<>"",Riders!D151,"") ->  | D145: =IF(Riders!E151<>"",Riders!E151,"") ->  | E145: =IF(Riders!G151<>"",Riders!G151,"") ->  | F145: =Riders!AI151 -> 0 | G145: =Riders!AJ151 ->  | H145: =IF(J145=0,"",J145*Riders!$G$6) ->  | I145: =IF($C145="OUT",2,IF($C145="LB",3,IF(C145="",9,IF(C145="NM",8,1)))) -> 9 | J145: 0
A146: 144 | B146: =IF(Riders!C152<>"",Riders!C152,"") ->  | C146: =IF(Riders!D152<>"",Riders!D152,"") ->  | D146: =IF(Riders!E152<>"",Riders!E152,"") ->  | E146: =IF(Riders!G152<>"",Riders!G152,"") ->  | F146: =Riders!AI152 -> 0 | G146: =Riders!AJ152 ->  | H146: =IF(J146=0,"",J146*Riders!$G$6) ->  | I146: =IF($C146="OUT",2,IF($C146="LB",3,IF(C146="",9,IF(C146="NM",8,1)))) -> 9 | J146: 0
A147: 145 | B147: =IF(Riders!C153<>"",Riders!C153,"") ->  | C147: =IF(Riders!D153<>"",Riders!D153,"") ->  | D147: =IF(Riders!E153<>"",Riders!E153,"") ->  | E147: =IF(Riders!G153<>"",Riders!G153,"") ->  | F147: =Riders!AI153 -> 0 | G147: =Riders!AJ153 ->  | H147: =IF(J147=0,"",J147*Riders!$G$6) ->  | I147: =IF($C147="OUT",2,IF($C147="LB",3,IF(C147="",9,IF(C147="NM",8,1)))) -> 9 | J147: 0
A148: 146 | B148: =IF(Riders!C154<>"",Riders!C154,"") ->  | C148: =IF(Riders!D154<>"",Riders!D154,"") ->  | D148: =IF(Riders!E154<>"",Riders!E154,"") ->  | E148: =IF(Riders!G154<>"",Riders!G154,"") ->  | F148: =Riders!AI154 -> 0 | G148: =Riders!AJ154 ->  | H148: =IF(J148=0,"",J148*Riders!$G$6) ->  | I148: =IF($C148="OUT",2,IF($C148="LB",3,IF(C148="",9,IF(C148="NM",8,1)))) -> 9 | J148: 0
A149: 147 | B149: =IF(Riders!C155<>"",Riders!C155,"") ->  | C149: =IF(Riders!D155<>"",Riders!D155,"") ->  | D149: =IF(Riders!E155<>"",Riders!E155,"") ->  | E149: =IF(Riders!G155<>"",Riders!G155,"") ->  | F149: =Riders!AI155 -> 0 | G149: =Riders!AJ155 ->  | H149: =IF(J149=0,"",J149*Riders!$G$6) ->  | I149: =IF($C149="OUT",2,IF($C149="LB",3,IF(C149="",9,IF(C149="NM",8,1)))) -> 9 | J149: 0
A150: 148 | B150: =IF(Riders!C156<>"",Riders!C156,"") ->  | C150: =IF(Riders!D156<>"",Riders!D156,"") ->  | D150: =IF(Riders!E156<>"",Riders!E156,"") ->  | E150: =IF(Riders!G156<>"",Riders!G156,"") ->  | F150: =Riders!AI156 -> 0 | G150: =Riders!AJ156 ->  | H150: =IF(J150=0,"",J150*Riders!$G$6) ->  | I150: =IF($C150="OUT",2,IF($C150="LB",3,IF(C150="",9,IF(C150="NM",8,1)))) -> 9 | J150: 0
A151: 149 | B151: =IF(Riders!C157<>"",Riders!C157,"") ->  | C151: =IF(Riders!D157<>"",Riders!D157,"") ->  | D151: =IF(Riders!E157<>"",Riders!E157,"") ->  | E151: =IF(Riders!G157<>"",Riders!G157,"") ->  | F151: =Riders!AI157 -> 0 | G151: =Riders!AJ157 ->  | H151: =IF(J151=0,"",J151*Riders!$G$6) ->  | I151: =IF($C151="OUT",2,IF($C151="LB",3,IF(C151="",9,IF(C151="NM",8,1)))) -> 9 | J151: 0
A152: 150 | B152: =IF(Riders!C158<>"",Riders!C158,"") ->  | C152: =IF(Riders!D158<>"",Riders!D158,"") ->  | D152: =IF(Riders!E158<>"",Riders!E158,"") ->  | E152: =IF(Riders!G158<>"",Riders!G158,"") ->  | F152: =Riders!AI158 -> 0 | G152: =Riders!AJ158 ->  | H152: =IF(J152=0,"",J152*Riders!$G$6) ->  | I152: =IF($C152="OUT",2,IF($C152="LB",3,IF(C152="",9,IF(C152="NM",8,1)))) -> 9 | J152: 0
A153: 151 | B153: =IF(Riders!C159<>"",Riders!C159,"") ->  | C153: =IF(Riders!D159<>"",Riders!D159,"") ->  | D153: =IF(Riders!E159<>"",Riders!E159,"") ->  | E153: =IF(Riders!G159<>"",Riders!G159,"") ->  | F153: =Riders!AI159 -> 0 | G153: =Riders!AJ159 ->  | H153: =IF(J153=0,"",J153*Riders!$G$6) ->  | I153: =IF($C153="OUT",2,IF($C153="LB",3,IF(C153="",9,IF(C153="NM",8,1)))) -> 9 | J153: 0
A154: 152 | B154: =IF(Riders!C160<>"",Riders!C160,"") ->  | C154: =IF(Riders!D160<>"",Riders!D160,"") ->  | D154: =IF(Riders!E160<>"",Riders!E160,"") ->  | E154: =IF(Riders!G160<>"",Riders!G160,"") ->  | F154: =Riders!AI160 -> 0 | G154: =Riders!AJ160 ->  | H154: =IF(J154=0,"",J154*Riders!$G$6) ->  | I154: =IF($C154="OUT",2,IF($C154="LB",3,IF(C154="",9,IF(C154="NM",8,1)))) -> 9 | J154: 0
A155: 153 | B155: =IF(Riders!C161<>"",Riders!C161,"") ->  | C155: =IF(Riders!D161<>"",Riders!D161,"") ->  | D155: =IF(Riders!E161<>"",Riders!E161,"") ->  | E155: =IF(Riders!G161<>"",Riders!G161,"") ->  | F155: =Riders!AI161 -> 0 | G155: =Riders!AJ161 ->  | H155: =IF(J155=0,"",J155*Riders!$G$6) ->  | I155: =IF($C155="OUT",2,IF($C155="LB",3,IF(C155="",9,IF(C155="NM",8,1)))) -> 9 | J155: 0
A156: 154 | B156: =IF(Riders!C162<>"",Riders!C162,"") ->  | C156: =IF(Riders!D162<>"",Riders!D162,"") ->  | D156: =IF(Riders!E162<>"",Riders!E162,"") ->  | E156: =IF(Riders!G162<>"",Riders!G162,"") ->  | F156: =Riders!AI162 -> 0 | G156: =Riders!AJ162 ->  | H156: =IF(J156=0,"",J156*Riders!$G$6) ->  | I156: =IF($C156="OUT",2,IF($C156="LB",3,IF(C156="",9,IF(C156="NM",8,1)))) -> 9 | J156: 0
A157: 155 | B157: =IF(Riders!C163<>"",Riders!C163,"") ->  | C157: =IF(Riders!D163<>"",Riders!D163,"") ->  | D157: =IF(Riders!E163<>"",Riders!E163,"") ->  | E157: =IF(Riders!G163<>"",Riders!G163,"") ->  | F157: =Riders!AI163 -> 0 | G157: =Riders!AJ163 ->  | H157: =IF(J157=0,"",J157*Riders!$G$6) ->  | I157: =IF($C157="OUT",2,IF($C157="LB",3,IF(C157="",9,IF(C157="NM",8,1)))) -> 9 | J157: 0
A158: 156 | B158: =IF(Riders!C164<>"",Riders!C164,"") ->  | C158: =IF(Riders!D164<>"",Riders!D164,"") ->  | D158: =IF(Riders!E164<>"",Riders!E164,"") ->  | E158: =IF(Riders!G164<>"",Riders!G164,"") ->  | F158: =Riders!AI164 -> 0 | G158: =Riders!AJ164 ->  | H158: =IF(J158=0,"",J158*Riders!$G$6) ->  | I158: =IF($C158="OUT",2,IF($C158="LB",3,IF(C158="",9,IF(C158="NM",8,1)))) -> 9 | J158: 0
A159: 157 | B159: =IF(Riders!C165<>"",Riders!C165,"") ->  | C159: =IF(Riders!D165<>"",Riders!D165,"") ->  | D159: =IF(Riders!E165<>"",Riders!E165,"") ->  | E159: =IF(Riders!G165<>"",Riders!G165,"") ->  | F159: =Riders!AI165 -> 0 | G159: =Riders!AJ165 ->  | H159: =IF(J159=0,"",J159*Riders!$G$6) ->  | I159: =IF($C159="OUT",2,IF($C159="LB",3,IF(C159="",9,IF(C159="NM",8,1)))) -> 9 | J159: 0
A160: 158 | B160: =IF(Riders!C166<>"",Riders!C166,"") ->  | C160: =IF(Riders!D166<>"",Riders!D166,"") ->  | D160: =IF(Riders!E166<>"",Riders!E166,"") ->  | E160: =IF(Riders!G166<>"",Riders!G166,"") ->  | F160: =Riders!AI166 -> 0 | G160: =Riders!AJ166 ->  | H160: =IF(J160=0,"",J160*Riders!$G$6) ->  | I160: =IF($C160="OUT",2,IF($C160="LB",3,IF(C160="",9,IF(C160="NM",8,1)))) -> 9 | J160: 0
A161: 159 | B161: =IF(Riders!C167<>"",Riders!C167,"") ->  | C161: =IF(Riders!D167<>"",Riders!D167,"") ->  | D161: =IF(Riders!E167<>"",Riders!E167,"") ->  | E161: =IF(Riders!G167<>"",Riders!G167,"") ->  | F161: =Riders!AI167 -> 0 | G161: =Riders!AJ167 ->  | H161: =IF(J161=0,"",J161*Riders!$G$6) ->  | I161: =IF($C161="OUT",2,IF($C161="LB",3,IF(C161="",9,IF(C161="NM",8,1)))) -> 9 | J161: 0
A162: 160 | B162: =IF(Riders!C168<>"",Riders!C168,"") ->  | C162: =IF(Riders!D168<>"",Riders!D168,"") ->  | D162: =IF(Riders!E168<>"",Riders!E168,"") ->  | E162: =IF(Riders!G168<>"",Riders!G168,"") ->  | F162: =Riders!AI168 -> 0 | G162: =Riders!AJ168 ->  | H162: =IF(J162=0,"",J162*Riders!$G$6) ->  | I162: =IF($C162="OUT",2,IF($C162="LB",3,IF(C162="",9,IF(C162="NM",8,1)))) -> 9 | J162: 0
A163: 161 | B163: =IF(Riders!C169<>"",Riders!C169,"") ->  | C163: =IF(Riders!D169<>"",Riders!D169,"") ->  | D163: =IF(Riders!E169<>"",Riders!E169,"") ->  | E163: =IF(Riders!G169<>"",Riders!G169,"") ->  | F163: =Riders!AI169 -> 0 | G163: =Riders!AJ169 ->  | H163: =IF(J163=0,"",J163*Riders!$G$6) ->  | I163: =IF($C163="OUT",2,IF($C163="LB",3,IF(C163="",9,IF(C163="NM",8,1)))) -> 9 | J163: 0
A164: 162 | B164: =IF(Riders!C170<>"",Riders!C170,"") ->  | C164: =IF(Riders!D170<>"",Riders!D170,"") ->  | D164: =IF(Riders!E170<>"",Riders!E170,"") ->  | E164: =IF(Riders!G170<>"",Riders!G170,"") ->  | F164: =Riders!AI170 -> 0 | G164: =Riders!AJ170 ->  | H164: =IF(J164=0,"",J164*Riders!$G$6) ->  | I164: =IF($C164="OUT",2,IF($C164="LB",3,IF(C164="",9,IF(C164="NM",8,1)))) -> 9 | J164: 0
A165: 163 | B165: =IF(Riders!C171<>"",Riders!C171,"") ->  | C165: =IF(Riders!D171<>"",Riders!D171,"") ->  | D165: =IF(Riders!E171<>"",Riders!E171,"") ->  | E165: =IF(Riders!G171<>"",Riders!G171,"") ->  | F165: =Riders!AI171 -> 0 | G165: =Riders!AJ171 ->  | H165: =IF(J165=0,"",J165*Riders!$G$6) ->  | I165: =IF($C165="OUT",2,IF($C165="LB",3,IF(C165="",9,IF(C165="NM",8,1)))) -> 9 | J165: 0
A166: 164 | B166: =IF(Riders!C172<>"",Riders!C172,"") ->  | C166: =IF(Riders!D172<>"",Riders!D172,"") ->  | D166: =IF(Riders!E172<>"",Riders!E172,"") ->  | E166: =IF(Riders!G172<>"",Riders!G172,"") ->  | F166: =Riders!AI172 -> 0 | G166: =Riders!AJ172 ->  | H166: =IF(J166=0,"",J166*Riders!$G$6) ->  | I166: =IF($C166="OUT",2,IF($C166="LB",3,IF(C166="",9,IF(C166="NM",8,1)))) -> 9 | J166: 0
A167: 165 | B167: =IF(Riders!C173<>"",Riders!C173,"") ->  | C167: =IF(Riders!D173<>"",Riders!D173,"") ->  | D167: =IF(Riders!E173<>"",Riders!E173,"") ->  | E167: =IF(Riders!G173<>"",Riders!G173,"") ->  | F167: =Riders!AI173 -> 0 | G167: =Riders!AJ173 ->  | H167: =IF(J167=0,"",J167*Riders!$G$6) ->  | I167: =IF($C167="OUT",2,IF($C167="LB",3,IF(C167="",9,IF(C167="NM",8,1)))) -> 9 | J167: 0
A168: 166 | B168: =IF(Riders!C174<>"",Riders!C174,"") ->  | C168: =IF(Riders!D174<>"",Riders!D174,"") ->  | D168: =IF(Riders!E174<>"",Riders!E174,"") ->  | E168: =IF(Riders!G174<>"",Riders!G174,"") ->  | F168: =Riders!AI174 -> 0 | G168: =Riders!AJ174 ->  | H168: =IF(J168=0,"",J168*Riders!$G$6) ->  | I168: =IF($C168="OUT",2,IF($C168="LB",3,IF(C168="",9,IF(C168="NM",8,1)))) -> 9 | J168: 0
A169: 167 | B169: =IF(Riders!C175<>"",Riders!C175,"") ->  | C169: =IF(Riders!D175<>"",Riders!D175,"") ->  | D169: =IF(Riders!E175<>"",Riders!E175,"") ->  | E169: =IF(Riders!G175<>"",Riders!G175,"") ->  | F169: =Riders!AI175 -> 0 | G169: =Riders!AJ175 ->  | H169: =IF(J169=0,"",J169*Riders!$G$6) ->  | I169: =IF($C169="OUT",2,IF($C169="LB",3,IF(C169="",9,IF(C169="NM",8,1)))) -> 9 | J169: 0
A170: 168 | B170: =IF(Riders!C176<>"",Riders!C176,"") ->  | C170: =IF(Riders!D176<>"",Riders!D176,"") ->  | D170: =IF(Riders!E176<>"",Riders!E176,"") ->  | E170: =IF(Riders!G176<>"",Riders!G176,"") ->  | F170: =Riders!AI176 -> 0 | G170: =Riders!AJ176 ->  | H170: =IF(J170=0,"",J170*Riders!$G$6) ->  | I170: =IF($C170="OUT",2,IF($C170="LB",3,IF(C170="",9,IF(C170="NM",8,1)))) -> 9 | J170: 0
A171: 169 | B171: =IF(Riders!C177<>"",Riders!C177,"") ->  | C171: =IF(Riders!D177<>"",Riders!D177,"") ->  | D171: =IF(Riders!E177<>"",Riders!E177,"") ->  | E171: =IF(Riders!G177<>"",Riders!G177,"") ->  | F171: =Riders!AI177 -> 0 | G171: =Riders!AJ177 ->  | H171: =IF(J171=0,"",J171*Riders!$G$6) ->  | I171: =IF($C171="OUT",2,IF($C171="LB",3,IF(C171="",9,IF(C171="NM",8,1)))) -> 9 | J171: 0
A172: 170 | B172: =IF(Riders!C178<>"",Riders!C178,"") ->  | C172: =IF(Riders!D178<>"",Riders!D178,"") ->  | D172: =IF(Riders!E178<>"",Riders!E178,"") ->  | E172: =IF(Riders!G178<>"",Riders!G178,"") ->  | F172: =Riders!AI178 -> 0 | G172: =Riders!AJ178 ->  | H172: =IF(J172=0,"",J172*Riders!$G$6) ->  | I172: =IF($C172="OUT",2,IF($C172="LB",3,IF(C172="",9,IF(C172="NM",8,1)))) -> 9 | J172: 0
A173: 171 | B173: =IF(Riders!C179<>"",Riders!C179,"") ->  | C173: =IF(Riders!D179<>"",Riders!D179,"") ->  | D173: =IF(Riders!E179<>"",Riders!E179,"") ->  | E173: =IF(Riders!G179<>"",Riders!G179,"") ->  | F173: =Riders!AI179 -> 0 | G173: =Riders!AJ179 ->  | H173: =IF(J173=0,"",J173*Riders!$G$6) ->  | I173: =IF($C173="OUT",2,IF($C173="LB",3,IF(C173="",9,IF(C173="NM",8,1)))) -> 9 | J173: 0
A174: 172 | B174: =IF(Riders!C180<>"",Riders!C180,"") ->  | C174: =IF(Riders!D180<>"",Riders!D180,"") ->  | D174: =IF(Riders!E180<>"",Riders!E180,"") ->  | E174: =IF(Riders!G180<>"",Riders!G180,"") ->  | F174: =Riders!AI180 -> 0 | G174: =Riders!AJ180 ->  | H174: =IF(J174=0,"",J174*Riders!$G$6) ->  | I174: =IF($C174="OUT",2,IF($C174="LB",3,IF(C174="",9,IF(C174="NM",8,1)))) -> 9 | J174: 0
A175: 173 | B175: =IF(Riders!C181<>"",Riders!C181,"") ->  | C175: =IF(Riders!D181<>"",Riders!D181,"") ->  | D175: =IF(Riders!E181<>"",Riders!E181,"") ->  | E175: =IF(Riders!G181<>"",Riders!G181,"") ->  | F175: =Riders!AI181 -> 0 | G175: =Riders!AJ181 ->  | H175: =IF(J175=0,"",J175*Riders!$G$6) ->  | I175: =IF($C175="OUT",2,IF($C175="LB",3,IF(C175="",9,IF(C175="NM",8,1)))) -> 9 | J175: 0
A176: 174 | B176: =IF(Riders!C182<>"",Riders!C182,"") ->  | C176: =IF(Riders!D182<>"",Riders!D182,"") ->  | D176: =IF(Riders!E182<>"",Riders!E182,"") ->  | E176: =IF(Riders!G182<>"",Riders!G182,"") ->  | F176: =Riders!AI182 -> 0 | G176: =Riders!AJ182 ->  | H176: =IF(J176=0,"",J176*Riders!$G$6) ->  | I176: =IF($C176="OUT",2,IF($C176="LB",3,IF(C176="",9,IF(C176="NM",8,1)))) -> 9 | J176: 0
A177: 175 | B177: =IF(Riders!C183<>"",Riders!C183,"") ->  | C177: =IF(Riders!D183<>"",Riders!D183,"") ->  | D177: =IF(Riders!E183<>"",Riders!E183,"") ->  | E177: =IF(Riders!G183<>"",Riders!G183,"") ->  | F177: =Riders!AI183 -> 0 | G177: =Riders!AJ183 ->  | H177: =IF(J177=0,"",J177*Riders!$G$6) ->  | I177: =IF($C177="OUT",2,IF($C177="LB",3,IF(C177="",9,IF(C177="NM",8,1)))) -> 9 | J177: 0
A178: 176 | B178: =IF(Riders!C184<>"",Riders!C184,"") ->  | C178: =IF(Riders!D184<>"",Riders!D184,"") ->  | D178: =IF(Riders!E184<>"",Riders!E184,"") ->  | E178: =IF(Riders!G184<>"",Riders!G184,"") ->  | F178: =Riders!AI184 -> 0 | G178: =Riders!AJ184 ->  | H178: =IF(J178=0,"",J178*Riders!$G$6) ->  | I178: =IF($C178="OUT",2,IF($C178="LB",3,IF(C178="",9,IF(C178="NM",8,1)))) -> 9 | J178: 0
A179: 177 | B179: =IF(Riders!C185<>"",Riders!C185,"") ->  | C179: =IF(Riders!D185<>"",Riders!D185,"") ->  | D179: =IF(Riders!E185<>"",Riders!E185,"") ->  | E179: =IF(Riders!G185<>"",Riders!G185,"") ->  | F179: =Riders!AI185 -> 0 | G179: =Riders!AJ185 ->  | H179: =IF(J179=0,"",J179*Riders!$G$6) ->  | I179: =IF($C179="OUT",2,IF($C179="LB",3,IF(C179="",9,IF(C179="NM",8,1)))) -> 9 | J179: 0
A180: 178 | B180: =IF(Riders!C186<>"",Riders!C186,"") ->  | C180: =IF(Riders!D186<>"",Riders!D186,"") ->  | D180: =IF(Riders!E186<>"",Riders!E186,"") ->  | E180: =IF(Riders!G186<>"",Riders!G186,"") ->  | F180: =Riders!AI186 -> 0 | G180: =Riders!AJ186 ->  | H180: =IF(J180=0,"",J180*Riders!$G$6) ->  | I180: =IF($C180="OUT",2,IF($C180="LB",3,IF(C180="",9,IF(C180="NM",8,1)))) -> 9 | J180: 0
A181: 179 | B181: =IF(Riders!C187<>"",Riders!C187,"") ->  | C181: =IF(Riders!D187<>"",Riders!D187,"") ->  | D181: =IF(Riders!E187<>"",Riders!E187,"") ->  | E181: =IF(Riders!G187<>"",Riders!G187,"") ->  | F181: =Riders!AI187 -> 0 | G181: =Riders!AJ187 ->  | H181: =IF(J181=0,"",J181*Riders!$G$6) ->  | I181: =IF($C181="OUT",2,IF($C181="LB",3,IF(C181="",9,IF(C181="NM",8,1)))) -> 9 | J181: 0
A182: 180 | B182: =IF(Riders!C188<>"",Riders!C188,"") ->  | C182: =IF(Riders!D188<>"",Riders!D188,"") ->  | D182: =IF(Riders!E188<>"",Riders!E188,"") ->  | E182: =IF(Riders!G188<>"",Riders!G188,"") ->  | F182: =Riders!AI188 -> 0 | G182: =Riders!AJ188 ->  | H182: =IF(J182=0,"",J182*Riders!$G$6) ->  | I182: =IF($C182="OUT",2,IF($C182="LB",3,IF(C182="",9,IF(C182="NM",8,1)))) -> 9 | J182: 0
A183: 181 | B183: =IF(Riders!C189<>"",Riders!C189,"") ->  | C183: =IF(Riders!D189<>"",Riders!D189,"") ->  | D183: =IF(Riders!E189<>"",Riders!E189,"") ->  | E183: =IF(Riders!G189<>"",Riders!G189,"") ->  | F183: =Riders!AI189 -> 0 | G183: =Riders!AJ189 ->  | H183: =IF(J183=0,"",J183*Riders!$G$6) ->  | I183: =IF($C183="OUT",2,IF($C183="LB",3,IF(C183="",9,IF(C183="NM",8,1)))) -> 9 | J183: 0
A184: 182 | B184: =IF(Riders!C190<>"",Riders!C190,"") ->  | C184: =IF(Riders!D190<>"",Riders!D190,"") ->  | D184: =IF(Riders!E190<>"",Riders!E190,"") ->  | E184: =IF(Riders!G190<>"",Riders!G190,"") ->  | F184: =Riders!AI190 -> 0 | G184: =Riders!AJ190 ->  | H184: =IF(J184=0,"",J184*Riders!$G$6) ->  | I184: =IF($C184="OUT",2,IF($C184="LB",3,IF(C184="",9,IF(C184="NM",8,1)))) -> 9 | J184: 0
A185: 183 | B185: =IF(Riders!C191<>"",Riders!C191,"") ->  | C185: =IF(Riders!D191<>"",Riders!D191,"") ->  | D185: =IF(Riders!E191<>"",Riders!E191,"") ->  | E185: =IF(Riders!G191<>"",Riders!G191,"") ->  | F185: =Riders!AI191 -> 0 | G185: =Riders!AJ191 ->  | H185: =IF(J185=0,"",J185*Riders!$G$6) ->  | I185: =IF($C185="OUT",2,IF($C185="LB",3,IF(C185="",9,IF(C185="NM",8,1)))) -> 9 | J185: 0
A186: 184 | B186: =IF(Riders!C192<>"",Riders!C192,"") ->  | C186: =IF(Riders!D192<>"",Riders!D192,"") ->  | D186: =IF(Riders!E192<>"",Riders!E192,"") ->  | E186: =IF(Riders!G192<>"",Riders!G192,"") ->  | F186: =Riders!AI192 -> 0 | G186: =Riders!AJ192 ->  | H186: =IF(J186=0,"",J186*Riders!$G$6) ->  | I186: =IF($C186="OUT",2,IF($C186="LB",3,IF(C186="",9,IF(C186="NM",8,1)))) -> 9 | J186: 0
A187: 185 | B187: =IF(Riders!C193<>"",Riders!C193,"") ->  | C187: =IF(Riders!D193<>"",Riders!D193,"") ->  | D187: =IF(Riders!E193<>"",Riders!E193,"") ->  | E187: =IF(Riders!G193<>"",Riders!G193,"") ->  | F187: =Riders!AI193 -> 0 | G187: =Riders!AJ193 ->  | H187: =IF(J187=0,"",J187*Riders!$G$6) ->  | I187: =IF($C187="OUT",2,IF($C187="LB",3,IF(C187="",9,IF(C187="NM",8,1)))) -> 9 | J187: 0
A188: 186 | B188: =IF(Riders!C194<>"",Riders!C194,"") ->  | C188: =IF(Riders!D194<>"",Riders!D194,"") ->  | D188: =IF(Riders!E194<>"",Riders!E194,"") ->  | E188: =IF(Riders!G194<>"",Riders!G194,"") ->  | F188: =Riders!AI194 -> 0 | G188: =Riders!AJ194 ->  | H188: =IF(J188=0,"",J188*Riders!$G$6) ->  | I188: =IF($C188="OUT",2,IF($C188="LB",3,IF(C188="",9,IF(C188="NM",8,1)))) -> 9 | J188: 0
A189: 187 | B189: =IF(Riders!C195<>"",Riders!C195,"") ->  | C189: =IF(Riders!D195<>"",Riders!D195,"") ->  | D189: =IF(Riders!E195<>"",Riders!E195,"") ->  | E189: =IF(Riders!G195<>"",Riders!G195,"") ->  | F189: =Riders!AI195 -> 0 | G189: =Riders!AJ195 ->  | H189: =IF(J189=0,"",J189*Riders!$G$6) ->  | I189: =IF($C189="OUT",2,IF($C189="LB",3,IF(C189="",9,IF(C189="NM",8,1)))) -> 9 | J189: 0
A190: 188 | B190: =IF(Riders!C196<>"",Riders!C196,"") ->  | C190: =IF(Riders!D196<>"",Riders!D196,"") ->  | D190: =IF(Riders!E196<>"",Riders!E196,"") ->  | E190: =IF(Riders!G196<>"",Riders!G196,"") ->  | F190: =Riders!AI196 -> 0 | G190: =Riders!AJ196 ->  | H190: =IF(J190=0,"",J190*Riders!$G$6) ->  | I190: =IF($C190="OUT",2,IF($C190="LB",3,IF(C190="",9,IF(C190="NM",8,1)))) -> 9 | J190: 0
A191: 189 | B191: =IF(Riders!C197<>"",Riders!C197,"") ->  | C191: =IF(Riders!D197<>"",Riders!D197,"") ->  | D191: =IF(Riders!E197<>"",Riders!E197,"") ->  | E191: =IF(Riders!G197<>"",Riders!G197,"") ->  | F191: =Riders!AI197 -> 0 | G191: =Riders!AJ197 ->  | H191: =IF(J191=0,"",J191*Riders!$G$6) ->  | I191: =IF($C191="OUT",2,IF($C191="LB",3,IF(C191="",9,IF(C191="NM",8,1)))) -> 9 | J191: 0
A192: 190 | B192: =IF(Riders!C198<>"",Riders!C198,"") ->  | C192: =IF(Riders!D198<>"",Riders!D198,"") ->  | D192: =IF(Riders!E198<>"",Riders!E198,"") ->  | E192: =IF(Riders!G198<>"",Riders!G198,"") ->  | F192: =Riders!AI198 -> 0 | G192: =Riders!AJ198 ->  | H192: =IF(J192=0,"",J192*Riders!$G$6) ->  | I192: =IF($C192="OUT",2,IF($C192="LB",3,IF(C192="",9,IF(C192="NM",8,1)))) -> 9 | J192: 0
A193: 191 | B193: =IF(Riders!C199<>"",Riders!C199,"") ->  | C193: =IF(Riders!D199<>"",Riders!D199,"") ->  | D193: =IF(Riders!E199<>"",Riders!E199,"") ->  | E193: =IF(Riders!G199<>"",Riders!G199,"") ->  | F193: =Riders!AI199 -> 0 | G193: =Riders!AJ199 ->  | H193: =IF(J193=0,"",J193*Riders!$G$6) ->  | I193: =IF($C193="OUT",2,IF($C193="LB",3,IF(C193="",9,IF(C193="NM",8,1)))) -> 9 | J193: 0
A194: 192 | B194: =IF(Riders!C200<>"",Riders!C200,"") ->  | C194: =IF(Riders!D200<>"",Riders!D200,"") ->  | D194: =IF(Riders!E200<>"",Riders!E200,"") ->  | E194: =IF(Riders!G200<>"",Riders!G200,"") ->  | F194: =Riders!AI200 -> 0 | G194: =Riders!AJ200 ->  | H194: =IF(J194=0,"",J194*Riders!$G$6) ->  | I194: =IF($C194="OUT",2,IF($C194="LB",3,IF(C194="",9,IF(C194="NM",8,1)))) -> 9 | J194: 0
A195: 193 | B195: =IF(Riders!C201<>"",Riders!C201,"") ->  | C195: =IF(Riders!D201<>"",Riders!D201,"") ->  | D195: =IF(Riders!E201<>"",Riders!E201,"") ->  | E195: =IF(Riders!G201<>"",Riders!G201,"") ->  | F195: =Riders!AI201 -> 0 | G195: =Riders!AJ201 ->  | H195: =IF(J195=0,"",J195*Riders!$G$6) ->  | I195: =IF($C195="OUT",2,IF($C195="LB",3,IF(C195="",9,IF(C195="NM",8,1)))) -> 9 | J195: =IF(D195="",0,IF(C195="OUT",0,IF(C195="LB",0,J196+1))) -> 0
A196: 194 | B196: =IF(Riders!C202<>"",Riders!C202,"") ->  | C196: =IF(Riders!D202<>"",Riders!D202,"") ->  | D196: =IF(Riders!E202<>"",Riders!E202,"") ->  | E196: =IF(Riders!G202<>"",Riders!G202,"") ->  | F196: =Riders!AI202 -> 0 | G196: =Riders!AJ202 ->  | H196: =IF(J196=0,"",J196*Riders!$G$6) ->  | I196: =IF($C196="OUT",2,IF($C196="LB",3,IF(C196="",9,IF(C196="NM",8,1)))) -> 9 | J196: 0
A197: 195 | B197: =IF(Riders!C203<>"",Riders!C203,"") ->  | C197: =IF(Riders!D203<>"",Riders!D203,"") ->  | D197: =IF(Riders!E203<>"",Riders!E203,"") ->  | E197: =IF(Riders!G203<>"",Riders!G203,"") ->  | F197: =Riders!AI203 -> 0 | G197: =Riders!AJ203 ->  | H197: =IF(J197=0,"",J197*Riders!$G$6) ->  | I197: =IF($C197="OUT",2,IF($C197="LB",3,IF(C197="",9,IF(C197="NM",8,1)))) -> 9 | J197: 0
A198: 196 | B198: =IF(Riders!C204<>"",Riders!C204,"") ->  | C198: =IF(Riders!D204<>"",Riders!D204,"") ->  | D198: =IF(Riders!E204<>"",Riders!E204,"") ->  | E198: =IF(Riders!G204<>"",Riders!G204,"") ->  | F198: =Riders!AI204 -> 0 | G198: =Riders!AJ204 ->  | H198: =IF(J198=0,"",J198*Riders!$G$6) ->  | I198: =IF($C198="OUT",2,IF($C198="LB",3,IF(C198="",9,IF(C198="NM",8,1)))) -> 9 | J198: 0
A199: 197 | B199: =IF(Riders!C205<>"",Riders!C205,"") ->  | C199: =IF(Riders!D205<>"",Riders!D205,"") ->  | D199: =IF(Riders!E205<>"",Riders!E205,"") ->  | E199: =IF(Riders!G205<>"",Riders!G205,"") ->  | F199: =Riders!AI205 -> 0 | G199: =Riders!AJ205 ->  | H199: =IF(J199=0,"",J199*Riders!$G$6) ->  | I199: =IF($C199="OUT",2,IF($C199="LB",3,IF(C199="",9,IF(C199="NM",8,1)))) -> 9 | J199: 0
A200: 198 | B200: =IF(Riders!C206<>"",Riders!C206,"") ->  | C200: =IF(Riders!D206<>"",Riders!D206,"") ->  | D200: =IF(Riders!E206<>"",Riders!E206,"") ->  | E200: =IF(Riders!G206<>"",Riders!G206,"") ->  | F200: =Riders!AI206 -> 0 | G200: =Riders!AJ206 ->  | H200: =IF(J200=0,"",J200*Riders!$G$6) ->  | I200: =IF($C200="OUT",2,IF($C200="LB",3,IF(C200="",9,IF(C200="NM",8,1)))) -> 9 | J200: 0
... 202 more rows

Sheet By Division
B1: =+'By Overall'!A1 -> Thru Stage 4 | D1: Name of Shoot: | F1: =+Riders!B7 -> MSA May 19 2013 3,1,7,16 | H1: =IF(Riders!E6<>"",Riders!E6,"") -> 2013-05-19
B2: Division | C2: Sub Lvl | D2: Place by Division | E2: MSA # | F2: Rider | G2: Horse Name | H2: Total Score | I2: Total Penalty | J2: Sort Field
B3: =IF(Riders!D13<>"",Riders!D13,"") -> LNP | C3: =IF(Riders!F13<>"",Riders!F13,"") ->  | D3: =IF(F3="","",IF(B3=B2,D2+1,1)) -> 1 | E3: =IF(Riders!C13<>"",Riders!C13,"") -> 2219 | F3: =IF(Riders!E13<>"",Riders!E13,"") -> Shannon Riuz | G3: =IF(Riders!G13<>"",Riders!G13,"") -> Dolly | H3: =Riders!AI13 -> 68.594 | I3: =Riders!AJ13 -> 10 | J3: =IF(OR(B3="OUT",B3="LBAN"),2,IF(B3="NM",3,IF(Riders!D13="",9,1))) -> 1
B4: =IF(Riders!D16<>"",Riders!D16,"") -> LNP | C4: =IF(Riders!F16<>"",Riders!F16,"") ->  | D4: =IF(F4="","",IF(B4=B3,D3+1,1)) -> 2 | E4: =IF(Riders!C16<>"",Riders!C16,"") -> 1791 | F4: =IF(Riders!E16<>"",Riders!E16,"") -> Jasmine Ufifusa | G4: =IF(Riders!G16<>"",Riders!G16,"") -> Garth | H4: =Riders!AI16 -> 83.981 | I4: =Riders!AJ16 -> 20 | J4: =IF(OR(B4="OUT",B4="LBAN"),2,IF(B4="NM",3,IF(Riders!D16="",9,1))) -> 1
B5: =IF(Riders!D15<>"",Riders!D15,"") -> LNP | C5: =IF(Riders!F15<>"",Riders!F15,"") ->  | D5: =IF(F5="","",IF(B5=B4,D4+1,1)) -> 3 | E5: =IF(Riders!C15<>"",Riders!C15,"") -> 1794 | F5: =IF(Riders!E15<>"",Riders!E15,"") -> Sammi O | G5: =IF(Riders!G15<>"",Riders!G15,"") -> Joe | H5: =Riders!AI15 -> 86.608 | I5: =Riders!AJ15 -> 15 | J5: =IF(OR(B5="OUT",B5="LBAN"),2,IF(B5="NM",3,IF(Riders!D15="",9,1))) -> 1
B6: =IF(Riders!D11<>"",Riders!D11,"") -> LNP | C6: =IF(Riders!F11<>"",Riders!F11,"") ->  | D6: =IF(F6="","",IF(B6=B5,D5+1,1)) -> 4 | E6: =IF(Riders!C11<>"",Riders!C11,"") -> 1786 | F6: =IF(Riders!E11<>"",Riders!E11,"") -> Kathy Ujifusa | G6: =IF(Riders!G11<>"",Riders!G11,"") -> Garth | H6: =Riders!AI11 -> 95.434 | I6: =Riders!AJ11 -> 20 | J6: =IF(OR(B6="OUT",B6="LBAN"),2,IF(B6="NM",3,IF(Riders!D11="",9,1))) -> 1
B7: =IF(Riders!D12<>"",Riders!D12,"") -> LNP | C7: =IF(Riders!F12<>"",Riders!F12,"") ->  | D7: =IF(F7="","",IF(B7=B6,D6+1,1)) -> 5 | E7: =IF(Riders!C12<>"",Riders!C12,"") -> 2108 | F7: =IF(Riders!E12<>"",Riders!E12,"") -> Trudy Lawrence | G7: =IF(Riders!G12<>"",Riders!G12,"") -> Ricky | H7: =Riders!AI12 -> 119.793 | I7: =Riders!AJ12 -> 25 | J7: =IF(OR(B7="OUT",B7="LBAN"),2,IF(B7="NM",3,IF(Riders!D12="",9,1))) -> 1
B8: =IF(Riders!D14<>"",Riders!D14,"") -> LNP | C8: =IF(Riders!F14<>"",Riders!F14,"") ->  | D8: =IF(F8="","",IF(B8=B7,D7+1,1)) -> 6 | E8: =IF(Riders!C14<>"",Riders!C14,"") -> 1783 | F8: =IF(Riders!E14<>"",Riders!E14,"") -> Stephanie Brewer | G8: =IF(Riders!G14<>"",Riders!G14,"") -> IMA Texas Bootie | H8: =Riders!AI14 -> 126.43 | I8: =Riders!AJ14 -> 35 | J8: =IF(OR(B8="OUT",B8="LBAN"),2,IF(B8="NM",3,IF(Riders!D14="",9,1))) -> 1
B9: =IF(Riders!D9<>"",Riders!D9,"") -> LPP | C9: =IF(Riders!F9<>"",Riders!F9,"") ->  | D9: =IF(F9="","",IF(B9=B8,D8+1,1)) -> 1 | E9: =IF(Riders!C9<>"",Riders!C9,"") -> 105 | F9: =IF(Riders!E9<>"",Riders!E9,"") -> Diane Holmes | G9: =IF(Riders!G9<>"",Riders!G9,"") -> Billie | H9: =Riders!AI9 -> 62.541 | I9: =Riders!AJ9 -> 5 | J9: =IF(OR(B9="OUT",B9="LBAN"),2,IF(B9="NM",3,IF(Riders!D9="",9,1))) -> 1
B10: =IF(Riders!D17<>"",Riders!D17,"") -> MNP | C10: =IF(Riders!F17<>"",Riders!F17,"") ->  | D10: =IF(F10="","",IF(B10=B9,D9+1,1)) -> 1 | E10: =IF(Riders!C17<>"",Riders!C17,"") -> 2218 | F10: =IF(Riders!E17<>"",Riders!E17,"") -> Tim Ruiz | G10: =IF(Riders!G17<>"",Riders!G17,"") -> Jess | H10: =Riders!AI17 -> 58.332 | I10: =Riders!AJ17 -> 0 | J10: =IF(OR(B10="OUT",B10="LBAN"),2,IF(B10="NM",3,IF(Riders!D17="",9,1))) -> 1
B11: =IF(Riders!D18<>"",Riders!D18,"") -> MNP | C11: =IF(Riders!F18<>"",Riders!F18,"") ->  | D11: =IF(F11="","",IF(B11=B10,D10+1,1)) -> 2 | E11: =IF(Riders!C18<>"",Riders!C18,"") -> 1784 | F11: =IF(Riders!E18<>"",Riders!E18,"") -> Chad Brewer | G11: =IF(Riders!G18<>"",Riders!G18,"") -> Peanut | H11: =Riders!AI18 -> 82.816 | I11: =Riders!AJ18 -> 20 | J11: =IF(OR(B11="OUT",B11="LBAN"),2,IF(B11="NM",3,IF(Riders!D18="",9,1))) -> 1
B12: =IF(Riders!D19<>"",Riders!D19,"") -> MSP | C12: =IF(Riders!F19<>"",Riders!F19,"") ->  | D12: =IF(F12="","",IF(B12=B11,D11+1,1)) -> 1 | E12: =IF(Riders!C19<>"",Riders!C19,"") -> 1792 | F12: =IF(Riders!E19<>"",Riders!E19,"") -> Joel Ostrovsky | G12: =IF(Riders!G19<>"",Riders!G19,"") -> Turbo | H12: =Riders!AI19 -> 64.525 | I12: =Riders!AJ19 -> 5 | J12: =IF(OR(B12="OUT",B12="LBAN"),2,IF(B12="NM",3,IF(Riders!D19="",9,1))) -> 1
B13: =IF(Riders!D10<>"",Riders!D10,"") -> MSP | C13: =IF(Riders!F10<>"",Riders!F10,"") ->  | D13: =IF(F13="","",IF(B13=B12,D12+1,1)) -> 2 | E13: =IF(Riders!C10<>"",Riders!C10,"") -> 1787 | F13: =IF(Riders!E10<>"",Riders!E10,"") -> Lance Ujifusa | G13: =IF(Riders!G10<>"",Riders!G10,"") -> Cash | H13: =Riders!AI10 -> 85.436 | I13: =Riders!AJ10 -> 25 | J13: =IF(OR(B13="OUT",B13="LBAN"),2,IF(B13="NM",3,IF(Riders!D10="",9,1))) -> 1
B14: =IF(Riders!D20<>"",Riders!D20,"") -> OUT | C14: =IF(Riders!F20<>"",Riders!F20,"") ->  | D14: =IF(F14="","",IF(B14=B13,D13+1,1)) -> 1 | E14: =IF(Riders!C20<>"",Riders!C20,"") -> 1795 | F14: =IF(Riders!E20<>"",Riders!E20,"") -> Mitch | G14: =IF(Riders!G20<>"",Riders!G20,"") -> Turbo | H14: =Riders!AI20 -> 207.553 | I14: =Riders!AJ20 -> 0 | J14: =IF(OR(B14="OUT",B14="LBAN"),2,IF(B14="NM",3,IF(Riders!D20="",9,1))) -> 2
B15: =IF(Riders!D22<>"",Riders!D22,"") ->  | C15: =IF(Riders!F22<>"",Riders!F22,"") ->  | D15: =IF(F15="","",IF(B15=B14,D14+1,1)) ->  | E15: =IF(Riders!C22<>"",Riders!C22,"") ->  | F15: =IF(Riders!E22<>"",Riders!E22,"") ->  | G15: =IF(Riders!G22<>"",Riders!G22,"") ->  | H15: =Riders!AI22 -> 0 | I15: =Riders!AJ22 ->  | J15: =IF(OR(B15="OUT",B15="LBAN"),2,IF(B15="NM",3,IF(Riders!D22="",9,1))) -> 9
B16: =IF(Riders!D21<>"",Riders!D21,"") ->  | C16: =IF(Riders!F21<>"",Riders!F21,"") ->  | D16: =IF(F16="","",IF(B16=B15,D15+1,1)) ->  | E16: =IF(Riders!C21<>"",Riders!C21,"") ->  | F16: =IF(Riders!E21<>"",Riders!E21,"") ->  | G16: =IF(Riders!G21<>"",Riders!G21,"") ->  | H16: =Riders!AI21 -> 0 | I16: =Riders!AJ21 ->  | J16: =IF(OR(B16="OUT",B16="LBAN"),2,IF(B16="NM",3,IF(Riders!D21="",9,1))) -> 9
B17: =IF(Riders!D23<>"",Riders!D23,"") ->  | C17: =IF(Riders!F23<>"",Riders!F23,"") ->  | D17: =IF(F17="","",IF(B17=B16,D16+1,1)) ->  | E17: =IF(Riders!C23<>"",Riders!C23,"") ->  | F17: =IF(Riders!E23<>"",Riders!E23,"") ->  | G17: =IF(Riders!G23<>"",Riders!G23,"") ->  | H17: =Riders!AI23 -> 0 | I17: =Riders!AJ23 -> 0 | J17: =IF(OR(B17="OUT",B17="LBAN"),2,IF(B17="NM",3,IF(Riders!D23="",9,1))) -> 9
B18: =IF(Riders!D24<>"",Riders!D24,"") ->  | C18: =IF(Riders!F24<>"",Riders!F24,"") ->  | D18: =IF(F18="","",IF(B18=B17,D17+1,1)) ->  | E18: =IF(Riders!C24<>"",Riders!C24,"") ->  | F18: =IF(Riders!E24<>"",Riders!E24,"") ->  | G18: =IF(Riders!G24<>"",Riders!G24,"") ->  | H18: =Riders!AI24 -> 0 | I18: =Riders!AJ24 -> 0 | J18: =IF(OR(B18="OUT",B18="LBAN"),2,IF(B18="NM",3,IF(Riders!D24="",9,1))) -> 9
B19: =IF(Riders!D25<>"",Riders!D25,"") ->  | C19: =IF(Riders!F25<>"",Riders!F25,"") ->  | D19: =IF(F19="","",IF(B19=B18,D18+1,1)) ->  | E19: =IF(Riders!C25<>"",Riders!C25,"") ->  | F19: =IF(Riders!E25<>"",Riders!E25,"") ->  | G19: =IF(Riders!G25<>"",Riders!G25,"") ->  | H19: =Riders!AI25 -> 0 | I19: =Riders!AJ25 -> 0 | J19: =IF(OR(B19="OUT",B19="LBAN"),2,IF(B19="NM",3,IF(Riders!D25="",9,1))) -> 9
B20: =IF(Riders!D26<>"",Riders!D26,"") ->  | C20: =IF(Riders!F26<>"",Riders!F26,"") ->  | D20: =IF(F20="","",IF(B20=B19,D19+1,1)) ->  | E20: =IF(Riders!C26<>"",Riders!C26,"") ->  | F20: =IF(Riders!E26<>"",Riders!E26,"") ->  | G20: =IF(Riders!G26<>"",Riders!G26,"") ->  | H20: =Riders!AI26 -> 0 | I20: =Riders!AJ26 -> 0 | J20: =IF(OR(B20="OUT",B20="LBAN"),2,IF(B20="NM",3,IF(Riders!D26="",9,1))) -> 9
B21: =IF(Riders!D27<>"",Riders!D27,"") ->  | C21: =IF(Riders!F27<>"",Riders!F27,"") ->  | D21: =IF(F21="","",IF(B21=B20,D20+1,1)) ->  | E21: =IF(Riders!C27<>"",Riders!C27,"") ->  | F21: =IF(Riders!E27<>"",Riders!E27,"") ->  | G21: =IF(Riders!G27<>"",Riders!G27,"") ->  | H21: =Riders!AI27 -> 0 | I21: =Riders!AJ27 ->  | J21: =IF(OR(B21="OUT",B21="LBAN"),2,IF(B21="NM",3,IF(Riders!D27="",9,1))) -> 9
B22: =IF(Riders!D28<>"",Riders!D28,"") ->  | C22: =IF(Riders!F28<>"",Riders!F28,"") ->  | D22: =IF(F22="","",IF(B22=B21,D21+1,1)) ->  | E22: =IF(Riders!C28<>"",Riders!C28,"") ->  | F22: =IF(Riders!E28<>"",Riders!E28,"") ->  | G22: =IF(Riders!G28<>"",Riders!G28,"") ->  | H22: =Riders!AI28 -> 0 | I22: =Riders!AJ28 ->  | J22: =IF(OR(B22="OUT",B22="LBAN"),2,IF(B22="NM",3,IF(Riders!D28="",9,1))) -> 9
B23: =IF(Riders!D29<>"",Riders!D29,"") ->  | C23: =IF(Riders!F29<>"",Riders!F29,"") ->  | D23: =IF(F23="","",IF(B23=B22,D22+1,1)) ->  | E23: =IF(Riders!C29<>"",Riders!C29,"") ->  | F23: =IF(Riders!E29<>"",Riders!E29,"") ->  | G23: =IF(Riders!G29<>"",Riders!G29,"") ->  | H23: =Riders!AI29 -> 0 | I23: =Riders!AJ29 ->  | J23: =IF(OR(B23="OUT",B23="LBAN"),2,IF(B23="NM",3,IF(Riders!D29="",9,1))) -> 9
B24: =IF(Riders!D30<>"",Riders!D30,"") ->  | C24: =IF(Riders!F30<>"",Riders!F30,"") ->  | D24: =IF(F24="","",IF(B24=B23,D23+1,1)) ->  | E24: =IF(Riders!C30<>"",Riders!C30,"") ->  | F24: =IF(Riders!E30<>"",Riders!E30,"") ->  | G24: =IF(Riders!G30<>"",Riders!G30,"") ->  | H24: =Riders!AI30 -> 0 | I24: =Riders!AJ30 ->  | J24: =IF(OR(B24="OUT",B24="LBAN"),2,IF(B24="NM",3,IF(Riders!D30="",9,1))) -> 9
B25: =IF(Riders!D31<>"",Riders!D31,"") ->  | C25: =IF(Riders!F31<>"",Riders!F31,"") ->  | D25: =IF(F25="","",IF(B25=B24,D24+1,1)) ->  | E25: =IF(Riders!C31<>"",Riders!C31,"") ->  | F25: =IF(Riders!E31<>"",Riders!E31,"") ->  | G25: =IF(Riders!G31<>"",Riders!G31,"") ->  | H25: =Riders!AI31 -> 0 | I25: =Riders!AJ31 ->  | J25: =IF(OR(B25="OUT",B25="LBAN"),2,IF(B25="NM",3,IF(Riders!D31="",9,1))) -> 9
B26: =IF(Riders!D32<>"",Riders!D32,"") ->  | C26: =IF(Riders!F32<>"",Riders!F32,"") ->  | D26: =IF(F26="","",IF(B26=B25,D25+1,1)) ->  | E26: =IF(Riders!C32<>"",Riders!C32,"") ->  | F26: =IF(Riders!E32<>"",Riders!E32,"") ->  | G26: =IF(Riders!G32<>"",Riders!G32,"") ->  | H26: =Riders!AI32 -> 0 | I26: =Riders!AJ32 ->  | J26: =IF(OR(B26="OUT",B26="LBAN"),2,IF(B26="NM",3,IF(Riders!D32="",9,1))) -> 9
B27: =IF(Riders!D33<>"",Riders!D33,"") ->  | C27: =IF(Riders!F33<>"",Riders!F33,"") ->  | D27: =IF(F27="","",IF(B27=B26,D26+1,1)) ->  | E27: =IF(Riders!C33<>"",Riders!C33,"") ->  | F27: =IF(Riders!E33<>"",Riders!E33,"") ->  | G27: =IF(Riders!G33<>"",Riders!G33,"") ->  | H27: =Riders!AI33 -> 0 | I27: =Riders!AJ33 ->  | J27: =IF(OR(B27="OUT",B27="LBAN"),2,IF(B27="NM",3,IF(Riders!D33="",9,1))) -> 9
B28: =IF(Riders!D34<>"",Riders!D34,"") ->  | C28: =IF(Riders!F34<>"",Riders!F34,"") ->  | D28: =IF(F28="","",IF(B28=B27,D27+1,1)) ->  | E28: =IF(Riders!C34<>"",Riders!C34,"") ->  | F28: =IF(Riders!E34<>"",Riders!E34,"") ->  | G28: =IF(Riders!G34<>"",Riders!G34,"") ->  | H28: =Riders!AI34 -> 0 | I28: =Riders!AJ34 ->  | J28: =IF(OR(B28="OUT",B28="LBAN"),2,IF(B28="NM",3,IF(Riders!D34="",9,1))) -> 9
B29: =IF(Riders!D35<>"",Riders!D35,"") ->  | C29: =IF(Riders!F35<>"",Riders!F35,"") ->  | D29: =IF(F29="","",IF(B29=B28,D28+1,1)) ->  | E29: =IF(Riders!C35<>"",Riders!C35,"") ->  | F29: =IF(Riders!E35<>"",Riders!E35,"") ->  | G29: =IF(Riders!G35<>"",Riders!G35,"") ->  | H29: =Riders!AI35 -> 0 | I29: =Riders!AJ35 ->  | J29: =IF(OR(B29="OUT",B29="LBAN"),2,IF(B29="NM",3,IF(Riders!D35="",9,1))) -> 9
B30: =IF(Riders!D36<>"",Riders!D36,"") ->  | C30: =IF(Riders!F36<>"",Riders!F36,"") ->  | D30: =IF(F30="","",IF(B30=B29,D29+1,1)) ->  | E30: =IF(Riders!C36<>"",Riders!C36,"") ->  | F30: =IF(Riders!E36<>"",Riders!E36,"") ->  | G30: =IF(Riders!G36<>"",Riders!G36,"") ->  | H30: =Riders!AI36 -> 0 | I30: =Riders!AJ36 ->  | J30: =IF(OR(B30="OUT",B30="LBAN"),2,IF(B30="NM",3,IF(Riders!D36="",9,1))) -> 9
B31: =IF(Riders!D37<>"",Riders!D37,"") ->  | C31: =IF(Riders!F37<>"",Riders!F37,"") ->  | D31: =IF(F31="","",IF(B31=B30,D30+1,1)) ->  | E31: =IF(Riders!C37<>"",Riders!C37,"") ->  | F31: =IF(Riders!E37<>"",Riders!E37,"") ->  | G31: =IF(Riders!G37<>"",Riders!G37,"") ->  | H31: =Riders!AI37 -> 0 | I31: =Riders!AJ37 ->  | J31: =IF(OR(B31="OUT",B31="LBAN"),2,IF(B31="NM",3,IF(Riders!D37="",9,1))) -> 9
B32: =IF(Riders!D38<>"",Riders!D38,"") ->  | C32: =IF(Riders!F38<>"",Riders!F38,"") ->  | D32: =IF(F32="","",IF(B32=B31,D31+1,1)) ->  | E32: =IF(Riders!C38<>"",Riders!C38,"") ->  | F32: =IF(Riders!E38<>"",Riders!E38,"") ->  | G32: =IF(Riders!G38<>"",Riders!G38,"") ->  | H32: =Riders!AI38 -> 0 | I32: =Riders!AJ38 ->  | J32: =IF(OR(B32="OUT",B32="LBAN"),2,IF(B32="NM",3,IF(Riders!D38="",9,1))) -> 9
B33: =IF(Riders!D39<>"",Riders!D39,"") ->  | C33: =IF(Riders!F39<>"",Riders!F39,"") ->  | D33: =IF(F33="","",IF(B33=B32,D32+1,1)) ->  | E33: =IF(Riders!C39<>"",Riders!C39,"") ->  | F33: =IF(Riders!E39<>"",Riders!E39,"") ->  | G33: =IF(Riders!G39<>"",Riders!G39,"") ->  | H33: =Riders!AI39 -> 0 | I33: =Riders!AJ39 ->  | J33: =IF(OR(B33="OUT",B33="LBAN"),2,IF(B33="NM",3,IF(Riders!D39="",9,1))) -> 9
B34: =IF(Riders!D40<>"",Riders!D40,"") ->  | C34: =IF(Riders!F40<>"",Riders!F40,"") ->  | D34: =IF(F34="","",IF(B34=B33,D33+1,1)) ->  | E34: =IF(Riders!C40<>"",Riders!C40,"") ->  | F34: =IF(Riders!E40<>"",Riders!E40,"") ->  | G34: =IF(Riders!G40<>"",Riders!G40,"") ->  | H34: =Riders!AI40 -> 0 | I34: =Riders!AJ40 ->  | J34: =IF(OR(B34="OUT",B34="LBAN"),2,IF(B34="NM",3,IF(Riders!D40="",9,1))) -> 9
B35: =IF(Riders!D41<>"",Riders!D41,"") ->  | C35: =IF(Riders!F41<>"",Riders!F41,"") ->  | D35: =IF(F35="","",IF(B35=B34,D34+1,1)) ->  | E35: =IF(Riders!C41<>"",Riders!C41,"") ->  | F35: =IF(Riders!E41<>"",Riders!E41,"") ->  | G35: =IF(Riders!G41<>"",Riders!G41,"") ->  | H35: =Riders!AI41 -> 0 | I35: =Riders!AJ41 ->  | J35: =IF(OR(B35="OUT",B35="LBAN"),2,IF(B35="NM",3,IF(Riders!D41="",9,1))) -> 9
B36: =IF(Riders!D42<>"",Riders!D42,"") ->  | C36: =IF(Riders!F42<>"",Riders!F42,"") ->  | D36: =IF(F36="","",IF(B36=B35,D35+1,1)) ->  | E36: =IF(Riders!C42<>"",Riders!C42,"") ->  | F36: =IF(Riders!E42<>"",Riders!E42,"") ->  | G36: =IF(Riders!G42<>"",Riders!G42,"") ->  | H36: =Riders!AI42 -> 0 | I36: =Riders!AJ42 ->  | J36: =IF(OR(B36="OUT",B36="LBAN"),2,IF(B36="NM",3,IF(Riders!D42="",9,1))) -> 9
B37: =IF(Riders!D43<>"",Riders!D43,"") ->  | C37: =IF(Riders!F43<>"",Riders!F43,"") ->  | D37: =IF(F37="","",IF(B37=B36,D36+1,1)) ->  | E37: =IF(Riders!C43<>"",Riders!C43,"") ->  | F37: =IF(Riders!E43<>"",Riders!E43,"") ->  | G37: =IF(Riders!G43<>"",Riders!G43,"") ->  | H37: =Riders!AI43 -> 0 | I37: =Riders!AJ43 ->  | J37: =IF(OR(B37="OUT",B37="LBAN"),2,IF(B37="NM",3,IF(Riders!D43="",9,1))) -> 9
B38: =IF(Riders!D44<>"",Riders!D44,"") ->  | C38: =IF(Riders!F44<>"",Riders!F44,"") ->  | D38: =IF(F38="","",IF(B38=B37,D37+1,1)) ->  | E38: =IF(Riders!C44<>"",Riders!C44,"") ->  | F38: =IF(Riders!E44<>"",Riders!E44,"") ->  | G38: =IF(Riders!G44<>"",Riders!G44,"") ->  | H38: =Riders!AI44 -> 0 | I38: =Riders!AJ44 ->  | J38: =IF(OR(B38="OUT",B38="LBAN"),2,IF(B38="NM",3,IF(Riders!D44="",9,1))) -> 9
B39: =IF(Riders!D45<>"",Riders!D45,"") ->  | C39: =IF(Riders!F45<>"",Riders!F45,"") ->  | D39: =IF(F39="","",IF(B39=B38,D38+1,1)) ->  | E39: =IF(Riders!C45<>"",Riders!C45,"") ->  | F39: =IF(Riders!E45<>"",Riders!E45,"") ->  | G39: =IF(Riders!G45<>"",Riders!G45,"") ->  | H39: =Riders!AI45 -> 0 | I39: =Riders!AJ45 ->  | J39: =IF(OR(B39="OUT",B39="LBAN"),2,IF(B39="NM",3,IF(Riders!D45="",9,1))) -> 9
B40: =IF(Riders!D46<>"",Riders!D46,"") ->  | C40: =IF(Riders!F46<>"",Riders!F46,"") ->  | D40: =IF(F40="","",IF(B40=B39,D39+1,1)) ->  | E40: =IF(Riders!C46<>"",Riders!C46,"") ->  | F40: =IF(Riders!E46<>"",Riders!E46,"") ->  | G40: =IF(Riders!G46<>"",Riders!G46,"") ->  | H40: =Riders!AI46 -> 0 | I40: =Riders!AJ46 ->  | J40: =IF(OR(B40="OUT",B40="LBAN"),2,IF(B40="NM",3,IF(Riders!D46="",9,1))) -> 9
B41: =IF(Riders!D47<>"",Riders!D47,"") ->  | C41: =IF(Riders!F47<>"",Riders!F47,"") ->  | D41: =IF(F41="","",IF(B41=B40,D40+1,1)) ->  | E41: =IF(Riders!C47<>"",Riders!C47,"") ->  | F41: =IF(Riders!E47<>"",Riders!E47,"") ->  | G41: =IF(Riders!G47<>"",Riders!G47,"") ->  | H41: =Riders!AI47 -> 0 | I41: =Riders!AJ47 ->  | J41: =IF(OR(B41="OUT",B41="LBAN"),2,IF(B41="NM",3,IF(Riders!D47="",9,1))) -> 9
B42: =IF(Riders!D48<>"",Riders!D48,"") ->  | C42: =IF(Riders!F48<>"",Riders!F48,"") ->  | D42: =IF(F42="","",IF(B42=B41,D41+1,1)) ->  | E42: =IF(Riders!C48<>"",Riders!C48,"") ->  | F42: =IF(Riders!E48<>"",Riders!E48,"") ->  | G42: =IF(Riders!G48<>"",Riders!G48,"") ->  | H42: =Riders!AI48 -> 0 | I42: =Riders!AJ48 ->  | J42: =IF(OR(B42="OUT",B42="LBAN"),2,IF(B42="NM",3,IF(Riders!D48="",9,1))) -> 9
B43: =IF(Riders!D49<>"",Riders!D49,"") ->  | C43: =IF(Riders!F49<>"",Riders!F49,"") ->  | D43: =IF(F43="","",IF(B43=B42,D42+1,1)) ->  | E43: =IF(Riders!C49<>"",Riders!C49,"") ->  | F43: =IF(Riders!E49<>"",Riders!E49,"") ->  | G43: =IF(Riders!G49<>"",Riders!G49,"") ->  | H43: =Riders!AI49 -> 0 | I43: =Riders!AJ49 ->  | J43: =IF(OR(B43="OUT",B43="LBAN"),2,IF(B43="NM",3,IF(Riders!D49="",9,1))) -> 9
B44: =IF(Riders!D50<>"",Riders!D50,"") ->  | C44: =IF(Riders!F50<>"",Riders!F50,"") ->  | D44: =IF(F44="","",IF(B44=B43,D43+1,1)) ->  | E44: =IF(Riders!C50<>"",Riders!C50,"") ->  | F44: =IF(Riders!E50<>"",Riders!E50,"") ->  | G44: =IF(Riders!G50<>"",Riders!G50,"") ->  | H44: =Riders!AI50 -> 0 | I44: =Riders!AJ50 ->  | J44: =IF(OR(B44="OUT",B44="LBAN"),2,IF(B44="NM",3,IF(Riders!D50="",9,1))) -> 9
B45: =IF(Riders!D51<>"",Riders!D51,"") ->  | C45: =IF(Riders!F51<>"",Riders!F51,"") ->  | D45: =IF(F45="","",IF(B45=B44,D44+1,1)) ->  | E45: =IF(Riders!C51<>"",Riders!C51,"") ->  | F45: =IF(Riders!E51<>"",Riders!E51,"") ->  | G45: =IF(Riders!G51<>"",Riders!G51,"") ->  | H45: =Riders!AI51 -> 0 | I45: =Riders!AJ51 ->  | J45: =IF(OR(B45="OUT",B45="LBAN"),2,IF(B45="NM",3,IF(Riders!D51="",9,1))) -> 9
B46: =IF(Riders!D52<>"",Riders!D52,"") ->  | C46: =IF(Riders!F52<>"",Riders!F52,"") ->  | D46: =IF(F46="","",IF(B46=B45,D45+1,1)) ->  | E46: =IF(Riders!C52<>"",Riders!C52,"") ->  | F46: =IF(Riders!E52<>"",Riders!E52,"") ->  | G46: =IF(Riders!G52<>"",Riders!G52,"") ->  | H46: =Riders!AI52 -> 0 | I46: =Riders!AJ52 ->  | J46: =IF(OR(B46="OUT",B46="LBAN"),2,IF(B46="NM",3,IF(Riders!D52="",9,1))) -> 9
B47: =IF(Riders!D53<>"",Riders!D53,"") ->  | C47: =IF(Riders!F53<>"",Riders!F53,"") ->  | D47: =IF(F47="","",IF(B47=B46,D46+1,1)) ->  | E47: =IF(Riders!C53<>"",Riders!C53,"") ->  | F47: =IF(Riders!E53<>"",Riders!E53,"") ->  | G47: =IF(Riders!G53<>"",Riders!G53,"") ->  | H47: =Riders!AI53 -> 0 | I47: =Riders!AJ53 ->  | J47: =IF(OR(B47="OUT",B47="LBAN"),2,IF(B47="NM",3,IF(Riders!D53="",9,1))) -> 9
B48: =IF(Riders!D54<>"",Riders!D54,"") ->  | C48: =IF(Riders!F54<>"",Riders!F54,"") ->  | D48: =IF(F48="","",IF(B48=B47,D47+1,1)) ->  | E48: =IF(Riders!C54<>"",Riders!C54,"") ->  | F48: =IF(Riders!E54<>"",Riders!E54,"") ->  | G48: =IF(Riders!G54<>"",Riders!G54,"") ->  | H48: =Riders!AI54 -> 0 | I48: =Riders!AJ54 ->  | J48: =IF(OR(B48="OUT",B48="LBAN"),2,IF(B48="NM",3,IF(Riders!D54="",9,1))) -> 9
B49: =IF(Riders!D55<>"",Riders!D55,"") ->  | C49: =IF(Riders!F55<>"",Riders!F55,"") ->  | D49: =IF(F49="","",IF(B49=B48,D48+1,1)) ->  | E49: =IF(Riders!C55<>"",Riders!C55,"") ->  | F49: =IF(Riders!E55<>"",Riders!E55,"") ->  | G49: =IF(Riders!G55<>"",Riders!G55,"") ->  | H49: =Riders!AI55 -> 0 | I49: =Riders!AJ55 ->  | J49: =IF(OR(B49="OUT",B49="LBAN"),2,IF(B49="NM",3,IF(Riders!D55="",9,1))) -> 9
B50: =IF(Riders!D56<>"",Riders!D56,"") ->  | C50: =IF(Riders!F56<>"",Riders!F56,"") ->  | D50: =IF(F50="","",IF(B50=B49,D49+1,1)) ->  | E50: =IF(Riders!C56<>"",Riders!C56,"") ->  | F50: =IF(Riders!E56<>"",Riders!E56,"") ->  | G50: =IF(Riders!G56<>"",Riders!G56,"") ->  | H50: =Riders!AI56 -> 0 | I50: =Riders!AJ56 ->  | J50: =IF(OR(B50="OUT",B50="LBAN"),2,IF(B50="NM",3,IF(Riders!D56="",9,1))) -> 9
B51: =IF(Riders!D57<>"",Riders!D57,"") ->  | C51: =IF(Riders!F57<>"",Riders!F57,"") ->  | D51: =IF(F51="","",IF(B51=B50,D50+1,1)) ->  | E51: =IF(Riders!C57<>"",Riders!C57,"") ->  | F51: =IF(Riders!E57<>"",Riders!E57,"") ->  | G51: =IF(Riders!G57<>"",Riders!G57,"") ->  | H51: =Riders!AI57 -> 0 | I51: =Riders!AJ57 ->  | J51: =IF(OR(B51="OUT",B51="LBAN"),2,IF(B51="NM",3,IF(Riders!D57="",9,1))) -> 9
B52: =IF(Riders!D58<>"",Riders!D58,"") ->  | C52: =IF(Riders!F58<>"",Riders!F58,"") ->  | D52: =IF(F52="","",IF(B52=B51,D51+1,1)) ->  | E52: =IF(Riders!C58<>"",Riders!C58,"") ->  | F52: =IF(Riders!E58<>"",Riders!E58,"") ->  | G52: =IF(Riders!G58<>"",Riders!G58,"") ->  | H52: =Riders!AI58 -> 0 | I52: =Riders!AJ58 ->  | J52: =IF(OR(B52="OUT",B52="LBAN"),2,IF(B52="NM",3,IF(Riders!D58="",9,1))) -> 9
B53: =IF(Riders!D59<>"",Riders!D59,"") ->  | C53: =IF(Riders!F59<>"",Riders!F59,"") ->  | D53: =IF(F53="","",IF(B53=B52,D52+1,1)) ->  | E53: =IF(Riders!C59<>"",Riders!C59,"") ->  | F53: =IF(Riders!E59<>"",Riders!E59,"") ->  | G53: =IF(Riders!G59<>"",Riders!G59,"") ->  | H53: =Riders!AI59 -> 0 | I53: =Riders!AJ59 ->  | J53: =IF(OR(B53="OUT",B53="LBAN"),2,IF(B53="NM",3,IF(Riders!D59="",9,1))) -> 9
B54: =IF(Riders!D60<>"",Riders!D60,"") ->  | C54: =IF(Riders!F60<>"",Riders!F60,"") ->  | D54: =IF(F54="","",IF(B54=B53,D53+1,1)) ->  | E54: =IF(Riders!C60<>"",Riders!C60,"") ->  | F54: =IF(Riders!E60<>"",Riders!E60,"") ->  | G54: =IF(Riders!G60<>"",Riders!G60,"") ->  | H54: =Riders!AI60 -> 0 | I54: =Riders!AJ60 ->  | J54: =IF(OR(B54="OUT",B54="LBAN"),2,IF(B54="NM",3,IF(Riders!D60="",9,1))) -> 9
B55: =IF(Riders!D61<>"",Riders!D61,"") ->  | C55: =IF(Riders!F61<>"",Riders!F61,"") ->  | D55: =IF(F55="","",IF(B55=B54,D54+1,1)) ->  | E55: =IF(Riders!C61<>"",Riders!C61,"") ->  | F55: =IF(Riders!E61<>"",Riders!E61,"") ->  | G55: =IF(Riders!G61<>"",Riders!G61,"") ->  | H55: =Riders!AI61 -> 0 | I55: =Riders!AJ61 ->  | J55: =IF(OR(B55="OUT",B55="LBAN"),2,IF(B55="NM",3,IF(Riders!D61="",9,1))) -> 9
B56: =IF(Riders!D62<>"",Riders!D62,"") ->  | C56: =IF(Riders!F62<>"",Riders!F62,"") ->  | D56: =IF(F56="","",IF(B56=B55,D55+1,1)) ->  | E56: =IF(Riders!C62<>"",Riders!C62,"") ->  | F56: =IF(Riders!E62<>"",Riders!E62,"") ->  | G56: =IF(Riders!G62<>"",Riders!G62,"") ->  | H56: =Riders!AI62 -> 0 | I56: =Riders!AJ62 ->  | J56: =IF(OR(B56="OUT",B56="LBAN"),2,IF(B56="NM",3,IF(Riders!D62="",9,1))) -> 9
B57: =IF(Riders!D63<>"",Riders!D63,"") ->  | C57: =IF(Riders!F63<>"",Riders!F63,"") ->  | D57: =IF(F57="","",IF(B57=B56,D56+1,1)) ->  | E57: =IF(Riders!C63<>"",Riders!C63,"") ->  | F57: =IF(Riders!E63<>"",Riders!E63,"") ->  | G57: =IF(Riders!G63<>"",Riders!G63,"") ->  | H57: =Riders!AI63 -> 0 | I57: =Riders!AJ63 ->  | J57: =IF(OR(B57="OUT",B57="LBAN"),2,IF(B57="NM",3,IF(Riders!D63="",9,1))) -> 9
B58: =IF(Riders!D64<>"",Riders!D64,"") ->  | C58: =IF(Riders!F64<>"",Riders!F64,"") ->  | D58: =IF(F58="","",IF(B58=B57,D57+1,1)) ->  | E58: =IF(Riders!C64<>"",Riders!C64,"") ->  | F58: =IF(Riders!E64<>"",Riders!E64,"") ->  | G58: =IF(Riders!G64<>"",Riders!G64,"") ->  | H58: =Riders!AI64 -> 0 | I58: =Riders!AJ64 ->  | J58: =IF(OR(B58="OUT",B58="LBAN"),2,IF(B58="NM",3,IF(Riders!D64="",9,1))) -> 9
B59: =IF(Riders!D65<>"",Riders!D65,"") ->  | C59: =IF(Riders!F65<>"",Riders!F65,"") ->  | D59: =IF(F59="","",IF(B59=B58,D58+1,1)) ->  | E59: =IF(Riders!C65<>"",Riders!C65,"") ->  | F59: =IF(Riders!E65<>"",Riders!E65,"") ->  | G59: =IF(Riders!G65<>"",Riders!G65,"") ->  | H59: =Riders!AI65 -> 0 | I59: =Riders!AJ65 ->  | J59: =IF(OR(B59="OUT",B59="LBAN"),2,IF(B59="NM",3,IF(Riders!D65="",9,1))) -> 9
B60: =IF(Riders!D66<>"",Riders!D66,"") ->  | C60: =IF(Riders!F66<>"",Riders!F66,"") ->  | D60: =IF(F60="","",IF(B60=B59,D59+1,1)) ->  | E60: =IF(Riders!C66<>"",Riders!C66,"") ->  | F60: =IF(Riders!E66<>"",Riders!E66,"") ->  | G60: =IF(Riders!G66<>"",Riders!G66,"") ->  | H60: =Riders!AI66 -> 0 | I60: =Riders!AJ66 ->  | J60: =IF(OR(B60="OUT",B60="LBAN"),2,IF(B60="NM",3,IF(Riders!D66="",9,1))) -> 9
B61: =IF(Riders!D67<>"",Riders!D67,"") ->  | C61: =IF(Riders!F67<>"",Riders!F67,"") ->  | D61: =IF(F61="","",IF(B61=B60,D60+1,1)) ->  | E61: =IF(Riders!C67<>"",Riders!C67,"") ->  | F61: =IF(Riders!E67<>"",Riders!E67,"") ->  | G61: =IF(Riders!G67<>"",Riders!G67,"") ->  | H61: =Riders!AI67 -> 0 | I61: =Riders!AJ67 ->  | J61: =IF(OR(B61="OUT",B61="LBAN"),2,IF(B61="NM",3,IF(Riders!D67="",9,1))) -> 9
B62: =IF(Riders!D68<>"",Riders!D68,"") ->  | C62: =IF(Riders!F68<>"",Riders!F68,"") ->  | D62: =IF(F62="","",IF(B62=B61,D61+1,1)) ->  | E62: =IF(Riders!C68<>"",Riders!C68,"") ->  | F62: =IF(Riders!E68<>"",Riders!E68,"") ->  | G62: =IF(Riders!G68<>"",Riders!G68,"") ->  | H62: =Riders!AI68 -> 0 | I62: =Riders!AJ68 ->  | J62: =IF(OR(B62="OUT",B62="LBAN"),2,IF(B62="NM",3,IF(Riders!D68="",9,1))) -> 9
B63: =IF(Riders!D69<>"",Riders!D69,"") ->  | C63: =IF(Riders!F69<>"",Riders!F69,"") ->  | D63: =IF(F63="","",IF(B63=B62,D62+1,1)) ->  | E63: =IF(Riders!C69<>"",Riders!C69,"") ->  | F63: =IF(Riders!E69<>"",Riders!E69,"") ->  | G63: =IF(Riders!G69<>"",Riders!G69,"") ->  | H63: =Riders!AI69 -> 0 | I63: =Riders!AJ69 ->  | J63: =IF(OR(B63="OUT",B63="LBAN"),2,IF(B63="NM",3,IF(Riders!D69="",9,1))) -> 9
B64: =IF(Riders!D70<>"",Riders!D70,"") ->  | C64: =IF(Riders!F70<>"",Riders!F70,"") ->  | D64: =IF(F64="","",IF(B64=B63,D63+1,1)) ->  | E64: =IF(Riders!C70<>"",Riders!C70,"") ->  | F64: =IF(Riders!E70<>"",Riders!E70,"") ->  | G64: =IF(Riders!G70<>"",Riders!G70,"") ->  | H64: =Riders!AI70 -> 0 | I64: =Riders!AJ70 ->  | J64: =IF(OR(B64="OUT",B64="LBAN"),2,IF(B64="NM",3,IF(Riders!D70="",9,1))) -> 9
B65: =IF(Riders!D71<>"",Riders!D71,"") ->  | C65: =IF(Riders!F71<>"",Riders!F71,"") ->  | D65: =IF(F65="","",IF(B65=B64,D64+1,1)) ->  | E65: =IF(Riders!C71<>"",Riders!C71,"") ->  | F65: =IF(Riders!E71<>"",Riders!E71,"") ->  | G65: =IF(Riders!G71<>"",Riders!G71,"") ->  | H65: =Riders!AI71 -> 0 | I65: =Riders!AJ71 ->  | J65: =IF(OR(B65="OUT",B65="LBAN"),2,IF(B65="NM",3,IF(Riders!D71="",9,1))) -> 9
B66: =IF(Riders!D72<>"",Riders!D72,"") ->  | C66: =IF(Riders!F72<>"",Riders!F72,"") ->  | D66: =IF(F66="","",IF(B66=B65,D65+1,1)) ->  | E66: =IF(Riders!C72<>"",Riders!C72,"") ->  | F66: =IF(Riders!E72<>"",Riders!E72,"") ->  | G66: =IF(Riders!G72<>"",Riders!G72,"") ->  | H66: =Riders!AI72 -> 0 | I66: =Riders!AJ72 ->  | J66: =IF(OR(B66="OUT",B66="LBAN"),2,IF(B66="NM",3,IF(Riders!D72="",9,1))) -> 9
B67: =IF(Riders!D73<>"",Riders!D73,"") ->  | C67: =IF(Riders!F73<>"",Riders!F73,"") ->  | D67: =IF(F67="","",IF(B67=B66,D66+1,1)) ->  | E67: =IF(Riders!C73<>"",Riders!C73,"") ->  | F67: =IF(Riders!E73<>"",Riders!E73,"") ->  | G67: =IF(Riders!G73<>"",Riders!G73,"") ->  | H67: =Riders!AI73 -> 0 | I67: =Riders!AJ73 ->  | J67: =IF(OR(B67="OUT",B67="LBAN"),2,IF(B67="NM",3,IF(Riders!D73="",9,1))) -> 9
B68: =IF(Riders!D74<>"",Riders!D74,"") ->  | C68: =IF(Riders!F74<>"",Riders!F74,"") ->  | D68: =IF(F68="","",IF(B68=B67,D67+1,1)) ->  | E68: =IF(Riders!C74<>"",Riders!C74,"") ->  | F68: =IF(Riders!E74<>"",Riders!E74,"") ->  | G68: =IF(Riders!G74<>"",Riders!G74,"") ->  | H68: =Riders!AI74 -> 0 | I68: =Riders!AJ74 ->  | J68: =IF(OR(B68="OUT",B68="LBAN"),2,IF(B68="NM",3,IF(Riders!D74="",9,1))) -> 9
B69: =IF(Riders!D75<>"",Riders!D75,"") ->  | C69: =IF(Riders!F75<>"",Riders!F75,"") ->  | D69: =IF(F69="","",IF(B69=B68,D68+1,1)) ->  | E69: =IF(Riders!C75<>"",Riders!C75,"") ->  | F69: =IF(Riders!E75<>"",Riders!E75,"") ->  | G69: =IF(Riders!G75<>"",Riders!G75,"") ->  | H69: =Riders!AI75 -> 0 | I69: =Riders!AJ75 ->  | J69: =IF(OR(B69="OUT",B69="LBAN"),2,IF(B69="NM",3,IF(Riders!D75="",9,1))) -> 9
B70: =IF(Riders!D76<>"",Riders!D76,"") ->  | C70: =IF(Riders!F76<>"",Riders!F76,"") ->  | D70: =IF(F70="","",IF(B70=B69,D69+1,1)) ->  | E70: =IF(Riders!C76<>"",Riders!C76,"") ->  | F70: =IF(Riders!E76<>"",Riders!E76,"") ->  | G70: =IF(Riders!G76<>"",Riders!G76,"") ->  | H70: =Riders!AI76 -> 0 | I70: =Riders!AJ76 ->  | J70: =IF(OR(B70="OUT",B70="LBAN"),2,IF(B70="NM",3,IF(Riders!D76="",9,1))) -> 9
B71: =IF(Riders!D77<>"",Riders!D77,"") ->  | C71: =IF(Riders!F77<>"",Riders!F77,"") ->  | D71: =IF(F71="","",IF(B71=B70,D70+1,1)) ->  | E71: =IF(Riders!C77<>"",Riders!C77,"") ->  | F71: =IF(Riders!E77<>"",Riders!E77,"") ->  | G71: =IF(Riders!G77<>"",Riders!G77,"") ->  | H71: =Riders!AI77 -> 0 | I71: =Riders!AJ77 ->  | J71: =IF(OR(B71="OUT",B71="LBAN"),2,IF(B71="NM",3,IF(Riders!D77="",9,1))) -> 9
B72: =IF(Riders!D78<>"",Riders!D78,"") ->  | C72: =IF(Riders!F78<>"",Riders!F78,"") ->  | D72: =IF(F72="","",IF(B72=B71,D71+1,1)) ->  | E72: =IF(Riders!C78<>"",Riders!C78,"") ->  | F72: =IF(Riders!E78<>"",Riders!E78,"") ->  | G72: =IF(Riders!G78<>"",Riders!G78,"") ->  | H72: =Riders!AI78 -> 0 | I72: =Riders!AJ78 ->  | J72: =IF(OR(B72="OUT",B72="LBAN"),2,IF(B72="NM",3,IF(Riders!D78="",9,1))) -> 9
B73: =IF(Riders!D79<>"",Riders!D79,"") ->  | C73: =IF(Riders!F79<>"",Riders!F79,"") ->  | D73: =IF(F73="","",IF(B73=B72,D72+1,1)) ->  | E73: =IF(Riders!C79<>"",Riders!C79,"") ->  | F73: =IF(Riders!E79<>"",Riders!E79,"") ->  | G73: =IF(Riders!G79<>"",Riders!G79,"") ->  | H73: =Riders!AI79 -> 0 | I73: =Riders!AJ79 ->  | J73: =IF(OR(B73="OUT",B73="LBAN"),2,IF(B73="NM",3,IF(Riders!D79="",9,1))) -> 9
B74: =IF(Riders!D80<>"",Riders!D80,"") ->  | C74: =IF(Riders!F80<>"",Riders!F80,"") ->  | D74: =IF(F74="","",IF(B74=B73,D73+1,1)) ->  | E74: =IF(Riders!C80<>"",Riders!C80,"") ->  | F74: =IF(Riders!E80<>"",Riders!E80,"") ->  | G74: =IF(Riders!G80<>"",Riders!G80,"") ->  | H74: =Riders!AI80 -> 0 | I74: =Riders!AJ80 ->  | J74: =IF(OR(B74="OUT",B74="LBAN"),2,IF(B74="NM",3,IF(Riders!D80="",9,1))) -> 9
B75: =IF(Riders!D81<>"",Riders!D81,"") ->  | C75: =IF(Riders!F81<>"",Riders!F81,"") ->  | D75: =IF(F75="","",IF(B75=B74,D74+1,1)) ->  | E75: =IF(Riders!C81<>"",Riders!C81,"") ->  | F75: =IF(Riders!E81<>"",Riders!E81,"") ->  | G75: =IF(Riders!G81<>"",Riders!G81,"") ->  | H75: =Riders!AI81 -> 0 | I75: =Riders!AJ81 ->  | J75: =IF(OR(B75="OUT",B75="LBAN"),2,IF(B75="NM",3,IF(Riders!D81="",9,1))) -> 9
B76: =IF(Riders!D82<>"",Riders!D82,"") ->  | C76: =IF(Riders!F82<>"",Riders!F82,"") ->  | D76: =IF(F76="","",IF(B76=B75,D75+1,1)) ->  | E76: =IF(Riders!C82<>"",Riders!C82,"") ->  | F76: =IF(Riders!E82<>"",Riders!E82,"") ->  | G76: =IF(Riders!G82<>"",Riders!G82,"") ->  | H76: =Riders!AI82 -> 0 | I76: =Riders!AJ82 ->  | J76: =IF(OR(B76="OUT",B76="LBAN"),2,IF(B76="NM",3,IF(Riders!D82="",9,1))) -> 9
B77: =IF(Riders!D83<>"",Riders!D83,"") ->  | C77: =IF(Riders!F83<>"",Riders!F83,"") ->  | D77: =IF(F77="","",IF(B77=B76,D76+1,1)) ->  | E77: =IF(Riders!C83<>"",Riders!C83,"") ->  | F77: =IF(Riders!E83<>"",Riders!E83,"") ->  | G77: =IF(Riders!G83<>"",Riders!G83,"") ->  | H77: =Riders!AI83 -> 0 | I77: =Riders!AJ83 ->  | J77: =IF(OR(B77="OUT",B77="LBAN"),2,IF(B77="NM",3,IF(Riders!D83="",9,1))) -> 9
B78: =IF(Riders!D84<>"",Riders!D84,"") ->  | C78: =IF(Riders!F84<>"",Riders!F84,"") ->  | D78: =IF(F78="","",IF(B78=B77,D77+1,1)) ->  | E78: =IF(Riders!C84<>"",Riders!C84,"") ->  | F78: =IF(Riders!E84<>"",Riders!E84,"") ->  | G78: =IF(Riders!G84<>"",Riders!G84,"") ->  | H78: =Riders!AI84 -> 0 | I78: =Riders!AJ84 ->  | J78: =IF(OR(B78="OUT",B78="LBAN"),2,IF(B78="NM",3,IF(Riders!D84="",9,1))) -> 9
B79: =IF(Riders!D85<>"",Riders!D85,"") ->  | C79: =IF(Riders!F85<>"",Riders!F85,"") ->  | D79: =IF(F79="","",IF(B79=B78,D78+1,1)) ->  | E79: =IF(Riders!C85<>"",Riders!C85,"") ->  | F79: =IF(Riders!E85<>"",Riders!E85,"") ->  | G79: =IF(Riders!G85<>"",Riders!G85,"") ->  | H79: =Riders!AI85 -> 0 | I79: =Riders!AJ85 ->  | J79: =IF(OR(B79="OUT",B79="LBAN"),2,IF(B79="NM",3,IF(Riders!D85="",9,1))) -> 9
B80: =IF(Riders!D86<>"",Riders!D86,"") ->  | C80: =IF(Riders!F86<>"",Riders!F86,"") ->  | D80: =IF(F80="","",IF(B80=B79,D79+1,1)) ->  | E80: =IF(Riders!C86<>"",Riders!C86,"") ->  | F80: =IF(Riders!E86<>"",Riders!E86,"") ->  | G80: =IF(Riders!G86<>"",Riders!G86,"") ->  | H80: =Riders!AI86 -> 0 | I80: =Riders!AJ86 ->  | J80: =IF(OR(B80="OUT",B80="LBAN"),2,IF(B80="NM",3,IF(Riders!D86="",9,1))) -> 9
B81: =IF(Riders!D87<>"",Riders!D87,"") ->  | C81: =IF(Riders!F87<>"",Riders!F87,"") ->  | D81: =IF(F81="","",IF(B81=B80,D80+1,1)) ->  | E81: =IF(Riders!C87<>"",Riders!C87,"") ->  | F81: =IF(Riders!E87<>"",Riders!E87,"") ->  | G81: =IF(Riders!G87<>"",Riders!G87,"") ->  | H81: =Riders!AI87 -> 0 | I81: =Riders!AJ87 ->  | J81: =IF(OR(B81="OUT",B81="LBAN"),2,IF(B81="NM",3,IF(Riders!D87="",9,1))) -> 9
B82: =IF(Riders!D88<>"",Riders!D88,"") ->  | C82: =IF(Riders!F88<>"",Riders!F88,"") ->  | D82: =IF(F82="","",IF(B82=B81,D81+1,1)) ->  | E82: =IF(Riders!C88<>"",Riders!C88,"") ->  | F82: =IF(Riders!E88<>"",Riders!E88,"") ->  | G82: =IF(Riders!G88<>"",Riders!G88,"") ->  | H82: =Riders!AI88 -> 0 | I82: =Riders!AJ88 ->  | J82: =IF(OR(B82="OUT",B82="LBAN"),2,IF(B82="NM",3,IF(Riders!D88="",9,1))) -> 9
B83: =IF(Riders!D89<>"",Riders!D89,"") ->  | C83: =IF(Riders!F89<>"",Riders!F89,"") ->  | D83: =IF(F83="","",IF(B83=B82,D82+1,1)) ->  | E83: =IF(Riders!C89<>"",Riders!C89,"") ->  | F83: =IF(Riders!E89<>"",Riders!E89,"") ->  | G83: =IF(Riders!G89<>"",Riders!G89,"") ->  | H83: =Riders!AI89 -> 0 | I83: =Riders!AJ89 ->  | J83: =IF(OR(B83="OUT",B83="LBAN"),2,IF(B83="NM",3,IF(Riders!D89="",9,1))) -> 9
B84: =IF(Riders!D90<>"",Riders!D90,"") ->  | C84: =IF(Riders!F90<>"",Riders!F90,"") ->  | D84: =IF(F84="","",IF(B84=B83,D83+1,1)) ->  | E84: =IF(Riders!C90<>"",Riders!C90,"") ->  | F84: =IF(Riders!E90<>"",Riders!E90,"") ->  | G84: =IF(Riders!G90<>"",Riders!G90,"") ->  | H84: =Riders!AI90 -> 0 | I84: =Riders!AJ90 ->  | J84: =IF(OR(B84="OUT",B84="LBAN"),2,IF(B84="NM",3,IF(Riders!D90="",9,1))) -> 9
B85: =IF(Riders!D91<>"",Riders!D91,"") ->  | C85: =IF(Riders!F91<>"",Riders!F91,"") ->  | D85: =IF(F85="","",IF(B85=B84,D84+1,1)) ->  | E85: =IF(Riders!C91<>"",Riders!C91,"") ->  | F85: =IF(Riders!E91<>"",Riders!E91,"") ->  | G85: =IF(Riders!G91<>"",Riders!G91,"") ->  | H85: =Riders!AI91 -> 0 | I85: =Riders!AJ91 ->  | J85: =IF(OR(B85="OUT",B85="LBAN"),2,IF(B85="NM",3,IF(Riders!D91="",9,1))) -> 9
B86: =IF(Riders!D92<>"",Riders!D92,"") ->  | C86: =IF(Riders!F92<>"",Riders!F92,"") ->  | D86: =IF(F86="","",IF(B86=B85,D85+1,1)) ->  | E86: =IF(Riders!C92<>"",Riders!C92,"") ->  | F86: =IF(Riders!E92<>"",Riders!E92,"") ->  | G86: =IF(Riders!G92<>"",Riders!G92,"") ->  | H86: =Riders!AI92 -> 0 | I86: =Riders!AJ92 ->  | J86: =IF(OR(B86="OUT",B86="LBAN"),2,IF(B86="NM",3,IF(Riders!D92="",9,1))) -> 9
B87: =IF(Riders!D93<>"",Riders!D93,"") ->  | C87: =IF(Riders!F93<>"",Riders!F93,"") ->  | D87: =IF(F87="","",IF(B87=B86,D86+1,1)) ->  | E87: =IF(Riders!C93<>"",Riders!C93,"") ->  | F87: =IF(Riders!E93<>"",Riders!E93,"") ->  | G87: =IF(Riders!G93<>"",Riders!G93,"") ->  | H87: =Riders!AI93 -> 0 | I87: =Riders!AJ93 ->  | J87: =IF(OR(B87="OUT",B87="LBAN"),2,IF(B87="NM",3,IF(Riders!D93="",9,1))) -> 9
B88: =IF(Riders!D94<>"",Riders!D94,"") ->  | C88: =IF(Riders!F94<>"",Riders!F94,"") ->  | D88: =IF(F88="","",IF(B88=B87,D87+1,1)) ->  | E88: =IF(Riders!C94<>"",Riders!C94,"") ->  | F88: =IF(Riders!E94<>"",Riders!E94,"") ->  | G88: =IF(Riders!G94<>"",Riders!G94,"") ->  | H88: =Riders!AI94 -> 0 | I88: =Riders!AJ94 ->  | J88: =IF(OR(B88="OUT",B88="LBAN"),2,IF(B88="NM",3,IF(Riders!D94="",9,1))) -> 9
B89: =IF(Riders!D95<>"",Riders!D95,"") ->  | C89: =IF(Riders!F95<>"",Riders!F95,"") ->  | D89: =IF(F89="","",IF(B89=B88,D88+1,1)) ->  | E89: =IF(Riders!C95<>"",Riders!C95,"") ->  | F89: =IF(Riders!E95<>"",Riders!E95,"") ->  | G89: =IF(Riders!G95<>"",Riders!G95,"") ->  | H89: =Riders!AI95 -> 0 | I89: =Riders!AJ95 ->  | J89: =IF(OR(B89="OUT",B89="LBAN"),2,IF(B89="NM",3,IF(Riders!D95="",9,1))) -> 9
B90: =IF(Riders!D96<>"",Riders!D96,"") ->  | C90: =IF(Riders!F96<>"",Riders!F96,"") ->  | D90: =IF(F90="","",IF(B90=B89,D89+1,1)) ->  | E90: =IF(Riders!C96<>"",Riders!C96,"") ->  | F90: =IF(Riders!E96<>"",Riders!E96,"") ->  | G90: =IF(Riders!G96<>"",Riders!G96,"") ->  | H90: =Riders!AI96 -> 0 | I90: =Riders!AJ96 ->  | J90: =IF(OR(B90="OUT",B90="LBAN"),2,IF(B90="NM",3,IF(Riders!D96="",9,1))) -> 9
B91: =IF(Riders!D97<>"",Riders!D97,"") ->  | C91: =IF(Riders!F97<>"",Riders!F97,"") ->  | D91: =IF(F91="","",IF(B91=B90,D90+1,1)) ->  | E91: =IF(Riders!C97<>"",Riders!C97,"") ->  | F91: =IF(Riders!E97<>"",Riders!E97,"") ->  | G91: =IF(Riders!G97<>"",Riders!G97,"") ->  | H91: =Riders!AI97 -> 0 | I91: =Riders!AJ97 ->  | J91: =IF(OR(B91="OUT",B91="LBAN"),2,IF(B91="NM",3,IF(Riders!D97="",9,1))) -> 9
B92: =IF(Riders!D98<>"",Riders!D98,"") ->  | C92: =IF(Riders!F98<>"",Riders!F98,"") ->  | D92: =IF(F92="","",IF(B92=B91,D91+1,1)) ->  | E92: =IF(Riders!C98<>"",Riders!C98,"") ->  | F92: =IF(Riders!E98<>"",Riders!E98,"") ->  | G92: =IF(Riders!G98<>"",Riders!G98,"") ->  | H92: =Riders!AI98 -> 0 | I92: =Riders!AJ98 ->  | J92: =IF(OR(B92="OUT",B92="LBAN"),2,IF(B92="NM",3,IF(Riders!D98="",9,1))) -> 9
B93: =IF(Riders!D99<>"",Riders!D99,"") ->  | C93: =IF(Riders!F99<>"",Riders!F99,"") ->  | D93: =IF(F93="","",IF(B93=B92,D92+1,1)) ->  | E93: =IF(Riders!C99<>"",Riders!C99,"") ->  | F93: =IF(Riders!E99<>"",Riders!E99,"") ->  | G93: =IF(Riders!G99<>"",Riders!G99,"") ->  | H93: =Riders!AI99 -> 0 | I93: =Riders!AJ99 ->  | J93: =IF(OR(B93="OUT",B93="LBAN"),2,IF(B93="NM",3,IF(Riders!D99="",9,1))) -> 9
B94: =IF(Riders!D100<>"",Riders!D100,"") ->  | C94: =IF(Riders!F100<>"",Riders!F100,"") ->  | D94: =IF(F94="","",IF(B94=B93,D93+1,1)) ->  | E94: =IF(Riders!C100<>"",Riders!C100,"") ->  | F94: =IF(Riders!E100<>"",Riders!E100,"") ->  | G94: =IF(Riders!G100<>"",Riders!G100,"") ->  | H94: =Riders!AI100 -> 0 | I94: =Riders!AJ100 ->  | J94: =IF(OR(B94="OUT",B94="LBAN"),2,IF(B94="NM",3,IF(Riders!D100="",9,1))) -> 9
B95: =IF(Riders!D101<>"",Riders!D101,"") ->  | C95: =IF(Riders!F101<>"",Riders!F101,"") ->  | D95: =IF(F95="","",IF(B95=B94,D94+1,1)) ->  | E95: =IF(Riders!C101<>"",Riders!C101,"") ->  | F95: =IF(Riders!E101<>"",Riders!E101,"") ->  | G95: =IF(Riders!G101<>"",Riders!G101,"") ->  | H95: =Riders!AI101 -> 0 | I95: =Riders!AJ101 ->  | J95: =IF(OR(B95="OUT",B95="LBAN"),2,IF(B95="NM",3,IF(Riders!D101="",9,1))) -> 9
B96: =IF(Riders!D102<>"",Riders!D102,"") ->  | C96: =IF(Riders!F102<>"",Riders!F102,"") ->  | D96: =IF(F96="","",IF(B96=B95,D95+1,1)) ->  | E96: =IF(Riders!C102<>"",Riders!C102,"") ->  | F96: =IF(Riders!E102<>"",Riders!E102,"") ->  | G96: =IF(Riders!G102<>"",Riders!G102,"") ->  | H96: =Riders!AI102 -> 0 | I96: =Riders!AJ102 ->  | J96: =IF(OR(B96="OUT",B96="LBAN"),2,IF(B96="NM",3,IF(Riders!D102="",9,1))) -> 9
B97: =IF(Riders!D103<>"",Riders!D103,"") ->  | C97: =IF(Riders!F103<>"",Riders!F103,"") ->  | D97: =IF(F97="","",IF(B97=B96,D96+1,1)) ->  | E97: =IF(Riders!C103<>"",Riders!C103,"") ->  | F97: =IF(Riders!E103<>"",Riders!E103,"") ->  | G97: =IF(Riders!G103<>"",Riders!G103,"") ->  | H97: =Riders!AI103 -> 0 | I97: =Riders!AJ103 ->  | J97: =IF(OR(B97="OUT",B97="LBAN"),2,IF(B97="NM",3,IF(Riders!D103="",9,1))) -> 9
B98: =IF(Riders!D104<>"",Riders!D104,"") ->  | C98: =IF(Riders!F104<>"",Riders!F104,"") ->  | D98: =IF(F98="","",IF(B98=B97,D97+1,1)) ->  | E98: =IF(Riders!C104<>"",Riders!C104,"") ->  | F98: =IF(Riders!E104<>"",Riders!E104,"") ->  | G98: =IF(Riders!G104<>"",Riders!G104,"") ->  | H98: =Riders!AI104 -> 0 | I98: =Riders!AJ104 ->  | J98: =IF(OR(B98="OUT",B98="LBAN"),2,IF(B98="NM",3,IF(Riders!D104="",9,1))) -> 9
B99: =IF(Riders!D105<>"",Riders!D105,"") ->  | C99: =IF(Riders!F105<>"",Riders!F105,"") ->  | D99: =IF(F99="","",IF(B99=B98,D98+1,1)) ->  | E99: =IF(Riders!C105<>"",Riders!C105,"") ->  | F99: =IF(Riders!E105<>"",Riders!E105,"") ->  | G99: =IF(Riders!G105<>"",Riders!G105,"") ->  | H99: =Riders!AI105 -> 0 | I99: =Riders!AJ105 ->  | J99: =IF(OR(B99="OUT",B99="LBAN"),2,IF(B99="NM",3,IF(Riders!D105="",9,1))) -> 9
B100: =IF(Riders!D106<>"",Riders!D106,"") ->  | C100: =IF(Riders!F106<>"",Riders!F106,"") ->  | D100: =IF(F100="","",IF(B100=B99,D99+1,1)) ->  | E100: =IF(Riders!C106<>"",Riders!C106,"") ->  | F100: =IF(Riders!E106<>"",Riders!E106,"") ->  | G100: =IF(Riders!G106<>"",Riders!G106,"") ->  | H100: =Riders!AI106 -> 0 | I100: =Riders!AJ106 ->  | J100: =IF(OR(B100="OUT",B100="LBAN"),2,IF(B100="NM",3,IF(Riders!D106="",9,1))) -> 9
B101: =IF(Riders!D107<>"",Riders!D107,"") ->  | C101: =IF(Riders!F107<>"",Riders!F107,"") ->  | D101: =IF(F101="","",IF(B101=B100,D100+1,1)) ->  | E101: =IF(Riders!C107<>"",Riders!C107,"") ->  | F101: =IF(Riders!E107<>"",Riders!E107,"") ->  | G101: =IF(Riders!G107<>"",Riders!G107,"") ->  | H101: =Riders!AI107 -> 0 | I101: =Riders!AJ107 ->  | J101: =IF(OR(B101="OUT",B101="LBAN"),2,IF(B101="NM",3,IF(Riders!D107="",9,1))) -> 9
B102: =IF(Riders!D108<>"",Riders!D108,"") ->  | C102: =IF(Riders!F108<>"",Riders!F108,"") ->  | D102: =IF(F102="","",IF(B102=B101,D101+1,1)) ->  | E102: =IF(Riders!C108<>"",Riders!C108,"") ->  | F102: =IF(Riders!E108<>"",Riders!E108,"") ->  | G102: =IF(Riders!G108<>"",Riders!G108,"") ->  | H102: =Riders!AI108 -> 0 | I102: =Riders!AJ108 ->  | J102: =IF(OR(B102="OUT",B102="LBAN"),2,IF(B102="NM",3,IF(Riders!D108="",9,1))) -> 9
B103: =IF(Riders!D109<>"",Riders!D109,"") ->  | C103: =IF(Riders!F109<>"",Riders!F109,"") ->  | D103: =IF(F103="","",IF(B103=B102,D102+1,1)) ->  | E103: =IF(Riders!C109<>"",Riders!C109,"") ->  | F103: =IF(Riders!E109<>"",Riders!E109,"") ->  | G103: =IF(Riders!G109<>"",Riders!G109,"") ->  | H103: =Riders!AI109 -> 0 | I103: =Riders!AJ109 ->  | J103: =IF(OR(B103="OUT",B103="LBAN"),2,IF(B103="NM",3,IF(Riders!D109="",9,1))) -> 9
B104: =IF(Riders!D110<>"",Riders!D110,"") ->  | C104: =IF(Riders!F110<>"",Riders!F110,"") ->  | D104: =IF(F104="","",IF(B104=B103,D103+1,1)) ->  | E104: =IF(Riders!C110<>"",Riders!C110,"") ->  | F104: =IF(Riders!E110<>"",Riders!E110,"") ->  | G104: =IF(Riders!G110<>"",Riders!G110,"") ->  | H104: =Riders!AI110 -> 0 | I104: =Riders!AJ110 ->  | J104: =IF(OR(B104="OUT",B104="LBAN"),2,IF(B104="NM",3,IF(Riders!D110="",9,1))) -> 9
B105: =IF(Riders!D111<>"",Riders!D111,"") ->  | C105: =IF(Riders!F111<>"",Riders!F111,"") ->  | D105: =IF(F105="","",IF(B105=B104,D104+1,1)) ->  | E105: =IF(Riders!C111<>"",Riders!C111,"") ->  | F105: =IF(Riders!E111<>"",Riders!E111,"") ->  | G105: =IF(Riders!G111<>"",Riders!G111,"") ->  | H105: =Riders!AI111 -> 0 | I105: =Riders!AJ111 ->  | J105: =IF(OR(B105="OUT",B105="LBAN"),2,IF(B105="NM",3,IF(Riders!D111="",9,1))) -> 9
B106: =IF(Riders!D112<>"",Riders!D112,"") ->  | C106: =IF(Riders!F112<>"",Riders!F112,"") ->  | D106: =IF(F106="","",IF(B106=B105,D105+1,1)) ->  | E106: =IF(Riders!C112<>"",Riders!C112,"") ->  | F106: =IF(Riders!E112<>"",Riders!E112,"") ->  | G106: =IF(Riders!G112<>"",Riders!G112,"") ->  | H106: =Riders!AI112 -> 0 | I106: =Riders!AJ112 ->  | J106: =IF(OR(B106="OUT",B106="LBAN"),2,IF(B106="NM",3,IF(Riders!D112="",9,1))) -> 9
B107: =IF(Riders!D113<>"",Riders!D113,"") ->  | C107: =IF(Riders!F113<>"",Riders!F113,"") ->  | D107: =IF(F107="","",IF(B107=B106,D106+1,1)) ->  | E107: =IF(Riders!C113<>"",Riders!C113,"") ->  | F107: =IF(Riders!E113<>"",Riders!E113,"") ->  | G107: =IF(Riders!G113<>"",Riders!G113,"") ->  | H107: =Riders!AI113 -> 0 | I107: =Riders!AJ113 ->  | J107: =IF(OR(B107="OUT",B107="LBAN"),2,IF(B107="NM",3,IF(Riders!D113="",9,1))) -> 9
B108: =IF(Riders!D114<>"",Riders!D114,"") ->  | C108: =IF(Riders!F114<>"",Riders!F114,"") ->  | D108: =IF(F108="","",IF(B108=B107,D107+1,1)) ->  | E108: =IF(Riders!C114<>"",Riders!C114,"") ->  | F108: =IF(Riders!E114<>"",Riders!E114,"") ->  | G108: =IF(Riders!G114<>"",Riders!G114,"") ->  | H108: =Riders!AI114 -> 0 | I108: =Riders!AJ114 ->  | J108: =IF(OR(B108="OUT",B108="LBAN"),2,IF(B108="NM",3,IF(Riders!D114="",9,1))) -> 9
B109: =IF(Riders!D115<>"",Riders!D115,"") ->  | C109: =IF(Riders!F115<>"",Riders!F115,"") ->  | D109: =IF(F109="","",IF(B109=B108,D108+1,1)) ->  | E109: =IF(Riders!C115<>"",Riders!C115,"") ->  | F109: =IF(Riders!E115<>"",Riders!E115,"") ->  | G109: =IF(Riders!G115<>"",Riders!G115,"") ->  | H109: =Riders!AI115 -> 0 | I109: =Riders!AJ115 ->  | J109: =IF(OR(B109="OUT",B109="LBAN"),2,IF(B109="NM",3,IF(Riders!D115="",9,1))) -> 9
B110: =IF(Riders!D116<>"",Riders!D116,"") ->  | C110: =IF(Riders!F116<>"",Riders!F116,"") ->  | D110: =IF(F110="","",IF(B110=B109,D109+1,1)) ->  | E110: =IF(Riders!C116<>"",Riders!C116,"") ->  | F110: =IF(Riders!E116<>"",Riders!E116,"") ->  | G110: =IF(Riders!G116<>"",Riders!G116,"") ->  | H110: =Riders!AI116 -> 0 | I110: =Riders!AJ116 ->  | J110: =IF(OR(B110="OUT",B110="LBAN"),2,IF(B110="NM",3,IF(Riders!D116="",9,1))) -> 9
B111: =IF(Riders!D117<>"",Riders!D117,"") ->  | C111: =IF(Riders!F117<>"",Riders!F117,"") ->  | D111: =IF(F111="","",IF(B111=B110,D110+1,1)) ->  | E111: =IF(Riders!C117<>"",Riders!C117,"") ->  | F111: =IF(Riders!E117<>"",Riders!E117,"") ->  | G111: =IF(Riders!G117<>"",Riders!G117,"") ->  | H111: =Riders!AI117 -> 0 | I111: =Riders!AJ117 ->  | J111: =IF(OR(B111="OUT",B111="LBAN"),2,IF(B111="NM",3,IF(Riders!D117="",9,1))) -> 9
B112: =IF(Riders!D118<>"",Riders!D118,"") ->  | C112: =IF(Riders!F118<>"",Riders!F118,"") ->  | D112: =IF(F112="","",IF(B112=B111,D111+1,1)) ->  | E112: =IF(Riders!C118<>"",Riders!C118,"") ->  | F112: =IF(Riders!E118<>"",Riders!E118,"") ->  | G112: =IF(Riders!G118<>"",Riders!G118,"") ->  | H112: =Riders!AI118 -> 0 | I112: =Riders!AJ118 ->  | J112: =IF(OR(B112="OUT",B112="LBAN"),2,IF(B112="NM",3,IF(Riders!D118="",9,1))) -> 9
B113: =IF(Riders!D119<>"",Riders!D119,"") ->  | C113: =IF(Riders!F119<>"",Riders!F119,"") ->  | D113: =IF(F113="","",IF(B113=B112,D112+1,1)) ->  | E113: =IF(Riders!C119<>"",Riders!C119,"") ->  | F113: =IF(Riders!E119<>"",Riders!E119,"") ->  | G113: =IF(Riders!G119<>"",Riders!G119,"") ->  | H113: =Riders!AI119 -> 0 | I113: =Riders!AJ119 ->  | J113: =IF(OR(B113="OUT",B113="LBAN"),2,IF(B113="NM",3,IF(Riders!D119="",9,1))) -> 9
B114: =IF(Riders!D120<>"",Riders!D120,"") ->  | C114: =IF(Riders!F120<>"",Riders!F120,"") ->  | D114: =IF(F114="","",IF(B114=B113,D113+1,1)) ->  | E114: =IF(Riders!C120<>"",Riders!C120,"") ->  | F114: =IF(Riders!E120<>"",Riders!E120,"") ->  | G114: =IF(Riders!G120<>"",Riders!G120,"") ->  | H114: =Riders!AI120 -> 0 | I114: =Riders!AJ120 ->  | J114: =IF(OR(B114="OUT",B114="LBAN"),2,IF(B114="NM",3,IF(Riders!D120="",9,1))) -> 9
B115: =IF(Riders!D121<>"",Riders!D121,"") ->  | C115: =IF(Riders!F121<>"",Riders!F121,"") ->  | D115: =IF(F115="","",IF(B115=B114,D114+1,1)) ->  | E115: =IF(Riders!C121<>"",Riders!C121,"") ->  | F115: =IF(Riders!E121<>"",Riders!E121,"") ->  | G115: =IF(Riders!G121<>"",Riders!G121,"") ->  | H115: =Riders!AI121 -> 0 | I115: =Riders!AJ121 ->  | J115: =IF(OR(B115="OUT",B115="LBAN"),2,IF(B115="NM",3,IF(Riders!D121="",9,1))) -> 9
B116: =IF(Riders!D122<>"",Riders!D122,"") ->  | C116: =IF(Riders!F122<>"",Riders!F122,"") ->  | D116: =IF(F116="","",IF(B116=B115,D115+1,1)) ->  | E116: =IF(Riders!C122<>"",Riders!C122,"") ->  | F116: =IF(Riders!E122<>"",Riders!E122,"") ->  | G116: =IF(Riders!G122<>"",Riders!G122,"") ->  | H116: =Riders!AI122 -> 0 | I116: =Riders!AJ122 ->  | J116: =IF(OR(B116="OUT",B116="LBAN"),2,IF(B116="NM",3,IF(Riders!D122="",9,1))) -> 9
B117: =IF(Riders!D123<>"",Riders!D123,"") ->  | C117: =IF(Riders!F123<>"",Riders!F123,"") ->  | D117: =IF(F117="","",IF(B117=B116,D116+1,1)) ->  | E117: =IF(Riders!C123<>"",Riders!C123,"") ->  | F117: =IF(Riders!E123<>"",Riders!E123,"") ->  | G117: =IF(Riders!G123<>"",Riders!G123,"") ->  | H117: =Riders!AI123 -> 0 | I117: =Riders!AJ123 ->  | J117: =IF(OR(B117="OUT",B117="LBAN"),2,IF(B117="NM",3,IF(Riders!D123="",9,1))) -> 9
B118: =IF(Riders!D124<>"",Riders!D124,"") ->  | C118: =IF(Riders!F124<>"",Riders!F124,"") ->  | D118: =IF(F118="","",IF(B118=B117,D117+1,1)) ->  | E118: =IF(Riders!C124<>"",Riders!C124,"") ->  | F118: =IF(Riders!E124<>"",Riders!E124,"") ->  | G118: =IF(Riders!G124<>"",Riders!G124,"") ->  | H118: =Riders!AI124 -> 0 | I118: =Riders!AJ124 ->  | J118: =IF(OR(B118="OUT",B118="LBAN"),2,IF(B118="NM",3,IF(Riders!D124="",9,1))) -> 9
B119: =IF(Riders!D125<>"",Riders!D125,"") ->  | C119: =IF(Riders!F125<>"",Riders!F125,"") ->  | D119: =IF(F119="","",IF(B119=B118,D118+1,1)) ->  | E119: =IF(Riders!C125<>"",Riders!C125,"") ->  | F119: =IF(Riders!E125<>"",Riders!E125,"") ->  | G119: =IF(Riders!G125<>"",Riders!G125,"") ->  | H119: =Riders!AI125 -> 0 | I119: =Riders!AJ125 ->  | J119: =IF(OR(B119="OUT",B119="LBAN"),2,IF(B119="NM",3,IF(Riders!D125="",9,1))) -> 9
B120: =IF(Riders!D126<>"",Riders!D126,"") ->  | C120: =IF(Riders!F126<>"",Riders!F126,"") ->  | D120: =IF(F120="","",IF(B120=B119,D119+1,1)) ->  | E120: =IF(Riders!C126<>"",Riders!C126,"") ->  | F120: =IF(Riders!E126<>"",Riders!E126,"") ->  | G120: =IF(Riders!G126<>"",Riders!G126,"") ->  | H120: =Riders!AI126 -> 0 | I120: =Riders!AJ126 ->  | J120: =IF(OR(B120="OUT",B120="LBAN"),2,IF(B120="NM",3,IF(Riders!D126="",9,1))) -> 9
B121: =IF(Riders!D127<>"",Riders!D127,"") ->  | C121: =IF(Riders!F127<>"",Riders!F127,"") ->  | D121: =IF(F121="","",IF(B121=B120,D120+1,1)) ->  | E121: =IF(Riders!C127<>"",Riders!C127,"") ->  | F121: =IF(Riders!E127<>"",Riders!E127,"") ->  | G121: =IF(Riders!G127<>"",Riders!G127,"") ->  | H121: =Riders!AI127 -> 0 | I121: =Riders!AJ127 ->  | J121: =IF(OR(B121="OUT",B121="LBAN"),2,IF(B121="NM",3,IF(Riders!D127="",9,1))) -> 9
B122: =IF(Riders!D128<>"",Riders!D128,"") ->  | C122: =IF(Riders!F128<>"",Riders!F128,"") ->  | D122: =IF(F122="","",IF(B122=B121,D121+1,1)) ->  | E122: =IF(Riders!C128<>"",Riders!C128,"") ->  | F122: =IF(Riders!E128<>"",Riders!E128,"") ->  | G122: =IF(Riders!G128<>"",Riders!G128,"") ->  | H122: =Riders!AI128 -> 0 | I122: =Riders!AJ128 ->  | J122: =IF(OR(B122="OUT",B122="LBAN"),2,IF(B122="NM",3,IF(Riders!D128="",9,1))) -> 9
B123: =IF(Riders!D129<>"",Riders!D129,"") ->  | C123: =IF(Riders!F129<>"",Riders!F129,"") ->  | D123: =IF(F123="","",IF(B123=B122,D122+1,1)) ->  | E123: =IF(Riders!C129<>"",Riders!C129,"") ->  | F123: =IF(Riders!E129<>"",Riders!E129,"") ->  | G123: =IF(Riders!G129<>"",Riders!G129,"") ->  | H123: =Riders!AI129 -> 0 | I123: =Riders!AJ129 ->  | J123: =IF(OR(B123="OUT",B123="LBAN"),2,IF(B123="NM",3,IF(Riders!D129="",9,1))) -> 9
B124: =IF(Riders!D130<>"",Riders!D130,"") ->  | C124: =IF(Riders!F130<>"",Riders!F130,"") ->  | D124: =IF(F124="","",IF(B124=B123,D123+1,1)) ->  | E124: =IF(Riders!C130<>"",Riders!C130,"") ->  | F124: =IF(Riders!E130<>"",Riders!E130,"") ->  | G124: =IF(Riders!G130<>"",Riders!G130,"") ->  | H124: =Riders!AI130 -> 0 | I124: =Riders!AJ130 ->  | J124: =IF(OR(B124="OUT",B124="LBAN"),2,IF(B124="NM",3,IF(Riders!D130="",9,1))) -> 9
B125: =IF(Riders!D131<>"",Riders!D131,"") ->  | C125: =IF(Riders!F131<>"",Riders!F131,"") ->  | D125: =IF(F125="","",IF(B125=B124,D124+1,1)) ->  | E125: =IF(Riders!C131<>"",Riders!C131,"") ->  | F125: =IF(Riders!E131<>"",Riders!E131,"") ->  | G125: =IF(Riders!G131<>"",Riders!G131,"") ->  | H125: =Riders!AI131 -> 0 | I125: =Riders!AJ131 ->  | J125: =IF(OR(B125="OUT",B125="LBAN"),2,IF(B125="NM",3,IF(Riders!D131="",9,1))) -> 9
B126: =IF(Riders!D132<>"",Riders!D132,"") ->  | C126: =IF(Riders!F132<>"",Riders!F132,"") ->  | D126: =IF(F126="","",IF(B126=B125,D125+1,1)) ->  | E126: =IF(Riders!C132<>"",Riders!C132,"") ->  | F126: =IF(Riders!E132<>"",Riders!E132,"") ->  | G126: =IF(Riders!G132<>"",Riders!G132,"") ->  | H126: =Riders!AI132 -> 0 | I126: =Riders!AJ132 ->  | J126: =IF(OR(B126="OUT",B126="LBAN"),2,IF(B126="NM",3,IF(Riders!D132="",9,1))) -> 9
B127: =IF(Riders!D133<>"",Riders!D133,"") ->  | C127: =IF(Riders!F133<>"",Riders!F133,"") ->  | D127: =IF(F127="","",IF(B127=B126,D126+1,1)) ->  | E127: =IF(Riders!C133<>"",Riders!C133,"") ->  | F127: =IF(Riders!E133<>"",Riders!E133,"") ->  | G127: =IF(Riders!G133<>"",Riders!G133,"") ->  | H127: =Riders!AI133 -> 0 | I127: =Riders!AJ133 ->  | J127: =IF(OR(B127="OUT",B127="LBAN"),2,IF(B127="NM",3,IF(Riders!D133="",9,1))) -> 9
B128: =IF(Riders!D134<>"",Riders!D134,"") ->  | C128: =IF(Riders!F134<>"",Riders!F134,"") ->  | D128: =IF(F128="","",IF(B128=B127,D127+1,1)) ->  | E128: =IF(Riders!C134<>"",Riders!C134,"") ->  | F128: =IF(Riders!E134<>"",Riders!E134,"") ->  | G128: =IF(Riders!G134<>"",Riders!G134,"") ->  | H128: =Riders!AI134 -> 0 | I128: =Riders!AJ134 ->  | J128: =IF(OR(B128="OUT",B128="LBAN"),2,IF(B128="NM",3,IF(Riders!D134="",9,1))) -> 9
B129: =IF(Riders!D135<>"",Riders!D135,"") ->  | C129: =IF(Riders!F135<>"",Riders!F135,"") ->  | D129: =IF(F129="","",IF(B129=B128,D128+1,1)) ->  | E129: =IF(Riders!C135<>"",Riders!C135,"") ->  | F129: =IF(Riders!E135<>"",Riders!E135,"") ->  | G129: =IF(Riders!G135<>"",Riders!G135,"") ->  | H129: =Riders!AI135 -> 0 | I129: =Riders!AJ135 ->  | J129: =IF(OR(B129="OUT",B129="LBAN"),2,IF(B129="NM",3,IF(Riders!D135="",9,1))) -> 9
B130: =IF(Riders!D136<>"",Riders!D136,"") ->  | C130: =IF(Riders!F136<>"",Riders!F136,"") ->  | D130: =IF(F130="","",IF(B130=B129,D129+1,1)) ->  | E130: =IF(Riders!C136<>"",Riders!C136,"") ->  | F130: =IF(Riders!E136<>"",Riders!E136,"") ->  | G130: =IF(Riders!G136<>"",Riders!G136,"") ->  | H130: =Riders!AI136 -> 0 | I130: =Riders!AJ136 ->  | J130: =IF(OR(B130="OUT",B130="LBAN"),2,IF(B130="NM",3,IF(Riders!D136="",9,1))) -> 9
B131: =IF(Riders!D137<>"",Riders!D137,"") ->  | C131: =IF(Riders!F137<>"",Riders!F137,"") ->  | D131: =IF(F131="","",IF(B131=B130,D130+1,1)) ->  | E131: =IF(Riders!C137<>"",Riders!C137,"") ->  | F131: =IF(Riders!E137<>"",Riders!E137,"") ->  | G131: =IF(Riders!G137<>"",Riders!G137,"") ->  | H131: =Riders!AI137 -> 0 | I131: =Riders!AJ137 ->  | J131: =IF(OR(B131="OUT",B131="LBAN"),2,IF(B131="NM",3,IF(Riders!D137="",9,1))) -> 9
B132: =IF(Riders!D138<>"",Riders!D138,"") ->  | C132: =IF(Riders!F138<>"",Riders!F138,"") ->  | D132: =IF(F132="","",IF(B132=B131,D131+1,1)) ->  | E132: =IF(Riders!C138<>"",Riders!C138,"") ->  | F132: =IF(Riders!E138<>"",Riders!E138,"") ->  | G132: =IF(Riders!G138<>"",Riders!G138,"") ->  | H132: =Riders!AI138 -> 0 | I132: =Riders!AJ138 ->  | J132: =IF(OR(B132="OUT",B132="LBAN"),2,IF(B132="NM",3,IF(Riders!D138="",9,1))) -> 9
B133: =IF(Riders!D139<>"",Riders!D139,"") ->  | C133: =IF(Riders!F139<>"",Riders!F139,"") ->  | D133: =IF(F133="","",IF(B133=B132,D132+1,1)) ->  | E133: =IF(Riders!C139<>"",Riders!C139,"") ->  | F133: =IF(Riders!E139<>"",Riders!E139,"") ->  | G133: =IF(Riders!G139<>"",Riders!G139,"") ->  | H133: =Riders!AI139 -> 0 | I133: =Riders!AJ139 ->  | J133: =IF(OR(B133="OUT",B133="LBAN"),2,IF(B133="NM",3,IF(Riders!D139="",9,1))) -> 9
B134: =IF(Riders!D140<>"",Riders!D140,"") ->  | C134: =IF(Riders!F140<>"",Riders!F140,"") ->  | D134: =IF(F134="","",IF(B134=B133,D133+1,1)) ->  | E134: =IF(Riders!C140<>"",Riders!C140,"") ->  | F134: =IF(Riders!E140<>"",Riders!E140,"") ->  | G134: =IF(Riders!G140<>"",Riders!G140,"") ->  | H134: =Riders!AI140 -> 0 | I134: =Riders!AJ140 ->  | J134: =IF(OR(B134="OUT",B134="LBAN"),2,IF(B134="NM",3,IF(Riders!D140="",9,1))) -> 9
B135: =IF(Riders!D141<>"",Riders!D141,"") ->  | C135: =IF(Riders!F141<>"",Riders!F141,"") ->  | D135: =IF(F135="","",IF(B135=B134,D134+1,1)) ->  | E135: =IF(Riders!C141<>"",Riders!C141,"") ->  | F135: =IF(Riders!E141<>"",Riders!E141,"") ->  | G135: =IF(Riders!G141<>"",Riders!G141,"") ->  | H135: =Riders!AI141 -> 0 | I135: =Riders!AJ141 ->  | J135: =IF(OR(B135="OUT",B135="LBAN"),2,IF(B135="NM",3,IF(Riders!D141="",9,1))) -> 9
B136: =IF(Riders!D142<>"",Riders!D142,"") ->  | C136: =IF(Riders!F142<>"",Riders!F142,"") ->  | D136: =IF(F136="","",IF(B136=B135,D135+1,1)) ->  | E136: =IF(Riders!C142<>"",Riders!C142,"") ->  | F136: =IF(Riders!E142<>"",Riders!E142,"") ->  | G136: =IF(Riders!G142<>"",Riders!G142,"") ->  | H136: =Riders!AI142 -> 0 | I136: =Riders!AJ142 ->  | J136: =IF(OR(B136="OUT",B136="LBAN"),2,IF(B136="NM",3,IF(Riders!D142="",9,1))) -> 9
B137: =IF(Riders!D143<>"",Riders!D143,"") ->  | C137: =IF(Riders!F143<>"",Riders!F143,"") ->  | D137: =IF(F137="","",IF(B137=B136,D136+1,1)) ->  | E137: =IF(Riders!C143<>"",Riders!C143,"") ->  | F137: =IF(Riders!E143<>"",Riders!E143,"") ->  | G137: =IF(Riders!G143<>"",Riders!G143,"") ->  | H137: =Riders!AI143 -> 0 | I137: =Riders!AJ143 ->  | J137: =IF(OR(B137="OUT",B137="LBAN"),2,IF(B137="NM",3,IF(Riders!D143="",9,1))) -> 9
B138: =IF(Riders!D144<>"",Riders!D144,"") ->  | C138: =IF(Riders!F144<>"",Riders!F144,"") ->  | D138: =IF(F138="","",IF(B138=B137,D137+1,1)) ->  | E138: =IF(Riders!C144<>"",Riders!C144,"") ->  | F138: =IF(Riders!E144<>"",Riders!E144,"") ->  | G138: =IF(Riders!G144<>"",Riders!G144,"") ->  | H138: =Riders!AI144 -> 0 | I138: =Riders!AJ144 ->  | J138: =IF(OR(B138="OUT",B138="LBAN"),2,IF(B138="NM",3,IF(Riders!D144="",9,1))) -> 9
B139: =IF(Riders!D145<>"",Riders!D145,"") ->  | C139: =IF(Riders!F145<>"",Riders!F145,"") ->  | D139: =IF(F139="","",IF(B139=B138,D138+1,1)) ->  | E139: =IF(Riders!C145<>"",Riders!C145,"") ->  | F139: =IF(Riders!E145<>"",Riders!E145,"") ->  | G139: =IF(Riders!G145<>"",Riders!G145,"") ->  | H139: =Riders!AI145 -> 0 | I139: =Riders!AJ145 ->  | J139: =IF(OR(B139="OUT",B139="LBAN"),2,IF(B139="NM",3,IF(Riders!D145="",9,1))) -> 9
B140: =IF(Riders!D146<>"",Riders!D146,"") ->  | C140: =IF(Riders!F146<>"",Riders!F146,"") ->  | D140: =IF(F140="","",IF(B140=B139,D139+1,1)) ->  | E140: =IF(Riders!C146<>"",Riders!C146,"") ->  | F140: =IF(Riders!E146<>"",Riders!E146,"") ->  | G140: =IF(Riders!G146<>"",Riders!G146,"") ->  | H140: =Riders!AI146 -> 0 | I140: =Riders!AJ146 ->  | J140: =IF(OR(B140="OUT",B140="LBAN"),2,IF(B140="NM",3,IF(Riders!D146="",9,1))) -> 9
B141: =IF(Riders!D147<>"",Riders!D147,"") ->  | C141: =IF(Riders!F147<>"",Riders!F147,"") ->  | D141: =IF(F141="","",IF(B141=B140,D140+1,1)) ->  | E141: =IF(Riders!C147<>"",Riders!C147,"") ->  | F141: =IF(Riders!E147<>"",Riders!E147,"") ->  | G141: =IF(Riders!G147<>"",Riders!G147,"") ->  | H141: =Riders!AI147 -> 0 | I141: =Riders!AJ147 ->  | J141: =IF(OR(B141="OUT",B141="LBAN"),2,IF(B141="NM",3,IF(Riders!D147="",9,1))) -> 9
B142: =IF(Riders!D148<>"",Riders!D148,"") ->  | C142: =IF(Riders!F148<>"",Riders!F148,"") ->  | D142: =IF(F142="","",IF(B142=B141,D141+1,1)) ->  | E142: =IF(Riders!C148<>"",Riders!C148,"") ->  | F142: =IF(Riders!E148<>"",Riders!E148,"") ->  | G142: =IF(Riders!G148<>"",Riders!G148,"") ->  | H142: =Riders!AI148 -> 0 | I142: =Riders!AJ148 ->  | J142: =IF(OR(B142="OUT",B142="LBAN"),2,IF(B142="NM",3,IF(Riders!D148="",9,1))) -> 9
B143: =IF(Riders!D149<>"",Riders!D149,"") ->  | C143: =IF(Riders!F149<>"",Riders!F149,"") ->  | D143: =IF(F143="","",IF(B143=B142,D142+1,1)) ->  | E143: =IF(Riders!C149<>"",Riders!C149,"") ->  | F143: =IF(Riders!E149<>"",Riders!E149,"") ->  | G143: =IF(Riders!G149<>"",Riders!G149,"") ->  | H143: =Riders!AI149 -> 0 | I143: =Riders!AJ149 ->  | J143: =IF(OR(B143="OUT",B143="LBAN"),2,IF(B143="NM",3,IF(Riders!D149="",9,1))) -> 9
B144: =IF(Riders!D150<>"",Riders!D150,"") ->  | C144: =IF(Riders!F150<>"",Riders!F150,"") ->  | D144: =IF(F144="","",IF(B144=B143,D143+1,1)) ->  | E144: =IF(Riders!C150<>"",Riders!C150,"") ->  | F144: =IF(Riders!E150<>"",Riders!E150,"") ->  | G144: =IF(Riders!G150<>"",Riders!G150,"") ->  | H144: =Riders!AI150 -> 0 | I144: =Riders!AJ150 ->  | J144: =IF(OR(B144="OUT",B144="LBAN"),2,IF(B144="NM",3,IF(Riders!D150="",9,1))) -> 9
B145: =IF(Riders!D151<>"",Riders!D151,"") ->  | C145: =IF(Riders!F151<>"",Riders!F151,"") ->  | D145: =IF(F145="","",IF(B145=B144,D144+1,1)) ->  | E145: =IF(Riders!C151<>"",Riders!C151,"") ->  | F145: =IF(Riders!E151<>"",Riders!E151,"") ->  | G145: =IF(Riders!G151<>"",Riders!G151,"") ->  | H145: =Riders!AI151 -> 0 | I145: =Riders!AJ151 ->  | J145: =IF(OR(B145="OUT",B145="LBAN"),2,IF(B145="NM",3,IF(Riders!D151="",9,1))) -> 9
B146: =IF(Riders!D152<>"",Riders!D152,"") ->  | C146: =IF(Riders!F152<>"",Riders!F152,"") ->  | D146: =IF(F146="","",IF(B146=B145,D145+1,1)) ->  | E146: =IF(Riders!C152<>"",Riders!C152,"") ->  | F146: =IF(Riders!E152<>"",Riders!E152,"") ->  | G146: =IF(Riders!G152<>"",Riders!G152,"") ->  | H146: =Riders!AI152 -> 0 | I146: =Riders!AJ152 ->  | J146: =IF(OR(B146="OUT",B146="LBAN"),2,IF(B146="NM",3,IF(Riders!D152="",9,1))) -> 9
B147: =IF(Riders!D153<>"",Riders!D153,"") ->  | C147: =IF(Riders!F153<>"",Riders!F153,"") ->  | D147: =IF(F147="","",IF(B147=B146,D146+1,1)) ->  | E147: =IF(Riders!C153<>"",Riders!C153,"") ->  | F147: =IF(Riders!E153<>"",Riders!E153,"") ->  | G147: =IF(Riders!G153<>"",Riders!G153,"") ->  | H147: =Riders!AI153 -> 0 | I147: =Riders!AJ153 ->  | J147: =IF(OR(B147="OUT",B147="LBAN"),2,IF(B147="NM",3,IF(Riders!D153="",9,1))) -> 9
B148: =IF(Riders!D154<>"",Riders!D154,"") ->  | C148: =IF(Riders!F154<>"",Riders!F154,"") ->  | D148: =IF(F148="","",IF(B148=B147,D147+1,1)) ->  | E148: =IF(Riders!C154<>"",Riders!C154,"") ->  | F148: =IF(Riders!E154<>"",Riders!E154,"") ->  | G148: =IF(Riders!G154<>"",Riders!G154,"") ->  | H148: =Riders!AI154 -> 0 | I148: =Riders!AJ154 ->  | J148: =IF(OR(B148="OUT",B148="LBAN"),2,IF(B148="NM",3,IF(Riders!D154="",9,1))) -> 9
B149: =IF(Riders!D155<>"",Riders!D155,"") ->  | C149: =IF(Riders!F155<>"",Riders!F155,"") ->  | D149: =IF(F149="","",IF(B149=B148,D148+1,1)) ->  | E149: =IF(Riders!C155<>"",Riders!C155,"") ->  | F149: =IF(Riders!E155<>"",Riders!E155,"") ->  | G149: =IF(Riders!G155<>"",Riders!G155,"") ->  | H149: =Riders!AI155 -> 0 | I149: =Riders!AJ155 ->  | J149: =IF(OR(B149="OUT",B149="LBAN"),2,IF(B149="NM",3,IF(Riders!D155="",9,1))) -> 9
B150: =IF(Riders!D156<>"",Riders!D156,"") ->  | C150: =IF(Riders!F156<>"",Riders!F156,"") ->  | D150: =IF(F150="","",IF(B150=B149,D149+1,1)) ->  | E150: =IF(Riders!C156<>"",Riders!C156,"") ->  | F150: =IF(Riders!E156<>"",Riders!E156,"") ->  | G150: =IF(Riders!G156<>"",Riders!G156,"") ->  | H150: =Riders!AI156 -> 0 | I150: =Riders!AJ156 ->  | J150: =IF(OR(B150="OUT",B150="LBAN"),2,IF(B150="NM",3,IF(Riders!D156="",9,1))) -> 9
B151: =IF(Riders!D157<>"",Riders!D157,"") ->  | C151: =IF(Riders!F157<>"",Riders!F157,"") ->  | D151: =IF(F151="","",IF(B151=B150,D150+1,1)) ->  | E151: =IF(Riders!C157<>"",Riders!C157,"") ->  | F151: =IF(Riders!E157<>"",Riders!E157,"") ->  | G151: =IF(Riders!G157<>"",Riders!G157,"") ->  | H151: =Riders!AI157 -> 0 | I151: =Riders!AJ157 ->  | J151: =IF(OR(B151="OUT",B151="LBAN"),2,IF(B151="NM",3,IF(Riders!D157="",9,1))) -> 9
B152: =IF(Riders!D158<>"",Riders!D158,"") ->  | C152: =IF(Riders!F158<>"",Riders!F158,"") ->  | D152: =IF(F152="","",IF(B152=B151,D151+1,1)) ->  | E152: =IF(Riders!C158<>"",Riders!C158,"") ->  | F152: =IF(Riders!E158<>"",Riders!E158,"") ->  | G152: =IF(Riders!G158<>"",Riders!G158,"") ->  | H152: =Riders!AI158 -> 0 | I152: =Riders!AJ158 ->  | J152: =IF(OR(B152="OUT",B152="LBAN"),2,IF(B152="NM",3,IF(Riders!D158="",9,1))) -> 9
B153: =IF(Riders!D159<>"",Riders!D159,"") ->  | C153: =IF(Riders!F159<>"",Riders!F159,"") ->  | D153: =IF(F153="","",IF(B153=B152,D152+1,1)) ->  | E153: =IF(Riders!C159<>"",Riders!C159,"") ->  | F153: =IF(Riders!E159<>"",Riders!E159,"") ->  | G153: =IF(Riders!G159<>"",Riders!G159,"") ->  | H153: =Riders!AI159 -> 0 | I153: =Riders!AJ159 ->  | J153: =IF(OR(B153="OUT",B153="LBAN"),2,IF(B153="NM",3,IF(Riders!D159="",9,1))) -> 9
B154: =IF(Riders!D160<>"",Riders!D160,"") ->  | C154: =IF(Riders!F160<>"",Riders!F160,"") ->  | D154: =IF(F154="","",IF(B154=B153,D153+1,1)) ->  | E154: =IF(Riders!C160<>"",Riders!C160,"") ->  | F154: =IF(Riders!E160<>"",Riders!E160,"") ->  | G154: =IF(Riders!G160<>"",Riders!G160,"") ->  | H154: =Riders!AI160 -> 0 | I154: =Riders!AJ160 ->  | J154: =IF(OR(B154="OUT",B154="LBAN"),2,IF(B154="NM",3,IF(Riders!D160="",9,1))) -> 9
B155: =IF(Riders!D161<>"",Riders!D161,"") ->  | C155: =IF(Riders!F161<>"",Riders!F161,"") ->  | D155: =IF(F155="","",IF(B155=B154,D154+1,1)) ->  | E155: =IF(Riders!C161<>"",Riders!C161,"") ->  | F155: =IF(Riders!E161<>"",Riders!E161,"") ->  | G155: =IF(Riders!G161<>"",Riders!G161,"") ->  | H155: =Riders!AI161 -> 0 | I155: =Riders!AJ161 ->  | J155: =IF(OR(B155="OUT",B155="LBAN"),2,IF(B155="NM",3,IF(Riders!D161="",9,1))) -> 9
B156: =IF(Riders!D162<>"",Riders!D162,"") ->  | C156: =IF(Riders!F162<>"",Riders!F162,"") ->  | D156: =IF(F156="","",IF(B156=B155,D155+1,1)) ->  | E156: =IF(Riders!C162<>"",Riders!C162,"") ->  | F156: =IF(Riders!E162<>"",Riders!E162,"") ->  | G156: =IF(Riders!G162<>"",Riders!G162,"") ->  | H156: =Riders!AI162 -> 0 | I156: =Riders!AJ162 ->  | J156: =IF(OR(B156="OUT",B156="LBAN"),2,IF(B156="NM",3,IF(Riders!D162="",9,1))) -> 9
B157: =IF(Riders!D163<>"",Riders!D163,"") ->  | C157: =IF(Riders!F163<>"",Riders!F163,"") ->  | D157: =IF(F157="","",IF(B157=B156,D156+1,1)) ->  | E157: =IF(Riders!C163<>"",Riders!C163,"") ->  | F157: =IF(Riders!E163<>"",Riders!E163,"") ->  | G157: =IF(Riders!G163<>"",Riders!G163,"") ->  | H157: =Riders!AI163 -> 0 | I157: =Riders!AJ163 ->  | J157: =IF(OR(B157="OUT",B157="LBAN"),2,IF(B157="NM",3,IF(Riders!D163="",9,1))) -> 9
B158: =IF(Riders!D164<>"",Riders!D164,"") ->  | C158: =IF(Riders!F164<>"",Riders!F164,"") ->  | D158: =IF(F158="","",IF(B158=B157,D157+1,1)) ->  | E158: =IF(Riders!C164<>"",Riders!C164,"") ->  | F158: =IF(Riders!E164<>"",Riders!E164,"") ->  | G158: =IF(Riders!G164<>"",Riders!G164,"") ->  | H158: =Riders!AI164 -> 0 | I158: =Riders!AJ164 ->  | J158: =IF(OR(B158="OUT",B158="LBAN"),2,IF(B158="NM",3,IF(Riders!D164="",9,1))) -> 9
B159: =IF(Riders!D165<>"",Riders!D165,"") ->  | C159: =IF(Riders!F165<>"",Riders!F165,"") ->  | D159: =IF(F159="","",IF(B159=B158,D158+1,1)) ->  | E159: =IF(Riders!C165<>"",Riders!C165,"") ->  | F159: =IF(Riders!E165<>"",Riders!E165,"") ->  | G159: =IF(Riders!G165<>"",Riders!G165,"") ->  | H159: =Riders!AI165 -> 0 | I159: =Riders!AJ165 ->  | J159: =IF(OR(B159="OUT",B159="LBAN"),2,IF(B159="NM",3,IF(Riders!D165="",9,1))) -> 9
B160: =IF(Riders!D166<>"",Riders!D166,"") ->  | C160: =IF(Riders!F166<>"",Riders!F166,"") ->  | D160: =IF(F160="","",IF(B160=B159,D159+1,1)) ->  | E160: =IF(Riders!C166<>"",Riders!C166,"") ->  | F160: =IF(Riders!E166<>"",Riders!E166,"") ->  | G160: =IF(Riders!G166<>"",Riders!G166,"") ->  | H160: =Riders!AI166 -> 0 | I160: =Riders!AJ166 ->  | J160: =IF(OR(B160="OUT",B160="LBAN"),2,IF(B160="NM",3,IF(Riders!D166="",9,1))) -> 9
B161: =IF(Riders!D167<>"",Riders!D167,"") ->  | C161: =IF(Riders!F167<>"",Riders!F167,"") ->  | D161: =IF(F161="","",IF(B161=B160,D160+1,1)) ->  | E161: =IF(Riders!C167<>"",Riders!C167,"") ->  | F161: =IF(Riders!E167<>"",Riders!E167,"") ->  | G161: =IF(Riders!G167<>"",Riders!G167,"") ->  | H161: =Riders!AI167 -> 0 | I161: =Riders!AJ167 ->  | J161: =IF(OR(B161="OUT",B161="LBAN"),2,IF(B161="NM",3,IF(Riders!D167="",9,1))) -> 9
B162: =IF(Riders!D168<>"",Riders!D168,"") ->  | C162: =IF(Riders!F168<>"",Riders!F168,"") ->  | D162: =IF(F162="","",IF(B162=B161,D161+1,1)) ->  | E162: =IF(Riders!C168<>"",Riders!C168,"") ->  | F162: =IF(Riders!E168<>"",Riders!E168,"") ->  | G162: =IF(Riders!G168<>"",Riders!G168,"") ->  | H162: =Riders!AI168 -> 0 | I162: =Riders!AJ168 ->  | J162: =IF(OR(B162="OUT",B162="LBAN"),2,IF(B162="NM",3,IF(Riders!D168="",9,1))) -> 9
B163: =IF(Riders!D169<>"",Riders!D169,"") ->  | C163: =IF(Riders!F169<>"",Riders!F169,"") ->  | D163: =IF(F163="","",IF(B163=B162,D162+1,1)) ->  | E163: =IF(Riders!C169<>"",Riders!C169,"") ->  | F163: =IF(Riders!E169<>"",Riders!E169,"") ->  | G163: =IF(Riders!G169<>"",Riders!G169,"") ->  | H163: =Riders!AI169 -> 0 | I163: =Riders!AJ169 ->  | J163: =IF(OR(B163="OUT",B163="LBAN"),2,IF(B163="NM",3,IF(Riders!D169="",9,1))) -> 9
B164: =IF(Riders!D170<>"",Riders!D170,"") ->  | C164: =IF(Riders!F170<>"",Riders!F170,"") ->  | D164: =IF(F164="","",IF(B164=B163,D163+1,1)) ->  | E164: =IF(Riders!C170<>"",Riders!C170,"") ->  | F164: =IF(Riders!E170<>"",Riders!E170,"") ->  | G164: =IF(Riders!G170<>"",Riders!G170,"") ->  | H164: =Riders!AI170 -> 0 | I164: =Riders!AJ170 ->  | J164: =IF(OR(B164="OUT",B164="LBAN"),2,IF(B164="NM",3,IF(Riders!D170="",9,1))) -> 9
B165: =IF(Riders!D171<>"",Riders!D171,"") ->  | C165: =IF(Riders!F171<>"",Riders!F171,"") ->  | D165: =IF(F165="","",IF(B165=B164,D164+1,1)) ->  | E165: =IF(Riders!C171<>"",Riders!C171,"") ->  | F165: =IF(Riders!E171<>"",Riders!E171,"") ->  | G165: =IF(Riders!G171<>"",Riders!G171,"") ->  | H165: =Riders!AI171 -> 0 | I165: =Riders!AJ171 ->  | J165: =IF(OR(B165="OUT",B165="LBAN"),2,IF(B165="NM",3,IF(Riders!D171="",9,1))) -> 9
B166: =IF(Riders!D172<>"",Riders!D172,"") ->  | C166: =IF(Riders!F172<>"",Riders!F172,"") ->  | D166: =IF(F166="","",IF(B166=B165,D165+1,1)) ->  | E166: =IF(Riders!C172<>"",Riders!C172,"") ->  | F166: =IF(Riders!E172<>"",Riders!E172,"") ->  | G166: =IF(Riders!G172<>"",Riders!G172,"") ->  | H166: =Riders!AI172 -> 0 | I166: =Riders!AJ172 ->  | J166: =IF(OR(B166="OUT",B166="LBAN"),2,IF(B166="NM",3,IF(Riders!D172="",9,1))) -> 9
B167: =IF(Riders!D173<>"",Riders!D173,"") ->  | C167: =IF(Riders!F173<>"",Riders!F173,"") ->  | D167: =IF(F167="","",IF(B167=B166,D166+1,1)) ->  | E167: =IF(Riders!C173<>"",Riders!C173,"") ->  | F167: =IF(Riders!E173<>"",Riders!E173,"") ->  | G167: =IF(Riders!G173<>"",Riders!G173,"") ->  | H167: =Riders!AI173 -> 0 | I167: =Riders!AJ173 ->  | J167: =IF(OR(B167="OUT",B167="LBAN"),2,IF(B167="NM",3,IF(Riders!D173="",9,1))) -> 9
B168: =IF(Riders!D174<>"",Riders!D174,"") ->  | C168: =IF(Riders!F174<>"",Riders!F174,"") ->  | D168: =IF(F168="","",IF(B168=B167,D167+1,1)) ->  | E168: =IF(Riders!C174<>"",Riders!C174,"") ->  | F168: =IF(Riders!E174<>"",Riders!E174,"") ->  | G168: =IF(Riders!G174<>"",Riders!G174,"") ->  | H168: =Riders!AI174 -> 0 | I168: =Riders!AJ174 ->  | J168: =IF(OR(B168="OUT",B168="LBAN"),2,IF(B168="NM",3,IF(Riders!D174="",9,1))) -> 9
B169: =IF(Riders!D175<>"",Riders!D175,"") ->  | C169: =IF(Riders!F175<>"",Riders!F175,"") ->  | D169: =IF(F169="","",IF(B169=B168,D168+1,1)) ->  | E169: =IF(Riders!C175<>"",Riders!C175,"") ->  | F169: =IF(Riders!E175<>"",Riders!E175,"") ->  | G169: =IF(Riders!G175<>"",Riders!G175,"") ->  | H169: =Riders!AI175 -> 0 | I169: =Riders!AJ175 ->  | J169: =IF(OR(B169="OUT",B169="LBAN"),2,IF(B169="NM",3,IF(Riders!D175="",9,1))) -> 9
B170: =IF(Riders!D176<>"",Riders!D176,"") ->  | C170: =IF(Riders!F176<>"",Riders!F176,"") ->  | D170: =IF(F170="","",IF(B170=B169,D169+1,1)) ->  | E170: =IF(Riders!C176<>"",Riders!C176,"") ->  | F170: =IF(Riders!E176<>"",Riders!E176,"") ->  | G170: =IF(Riders!G176<>"",Riders!G176,"") ->  | H170: =Riders!AI176 -> 0 | I170: =Riders!AJ176 ->  | J170: =IF(OR(B170="OUT",B170="LBAN"),2,IF(B170="NM",3,IF(Riders!D176="",9,1))) -> 9
B171: =IF(Riders!D177<>"",Riders!D177,"") ->  | C171: =IF(Riders!F177<>"",Riders!F177,"") ->  | D171: =IF(F171="","",IF(B171=B170,D170+1,1)) ->  | E171: =IF(Riders!C177<>"",Riders!C177,"") ->  | F171: =IF(Riders!E177<>"",Riders!E177,"") ->  | G171: =IF(Riders!G177<>"",Riders!G177,"") ->  | H171: =Riders!AI177 -> 0 | I171: =Riders!AJ177 ->  | J171: =IF(OR(B171="OUT",B171="LBAN"),2,IF(B171="NM",3,IF(Riders!D177="",9,1))) -> 9
B172: =IF(Riders!D178<>"",Riders!D178,"") ->  | C172: =IF(Riders!F178<>"",Riders!F178,"") ->  | D172: =IF(F172="","",IF(B172=B171,D171+1,1)) ->  | E172: =IF(Riders!C178<>"",Riders!C178,"") ->  | F172: =IF(Riders!E178<>"",Riders!E178,"") ->  | G172: =IF(Riders!G178<>"",Riders!G178,"") ->  | H172: =Riders!AI178 -> 0 | I172: =Riders!AJ178 ->  | J172: =IF(OR(B172="OUT",B172="LBAN"),2,IF(B172="NM",3,IF(Riders!D178="",9,1))) -> 9
B173: =IF(Riders!D179<>"",Riders!D179,"") ->  | C173: =IF(Riders!F179<>"",Riders!F179,"") ->  | D173: =IF(F173="","",IF(B173=B172,D172+1,1)) ->  | E173: =IF(Riders!C179<>"",Riders!C179,"") ->  | F173: =IF(Riders!E179<>"",Riders!E179,"") ->  | G173: =IF(Riders!G179<>"",Riders!G179,"") ->  | H173: =Riders!AI179 -> 0 | I173: =Riders!AJ179 ->  | J173: =IF(OR(B173="OUT",B173="LBAN"),2,IF(B173="NM",3,IF(Riders!D179="",9,1))) -> 9
B174: =IF(Riders!D180<>"",Riders!D180,"") ->  | C174: =IF(Riders!F180<>"",Riders!F180,"") ->  | D174: =IF(F174="","",IF(B174=B173,D173+1,1)) ->  | E174: =IF(Riders!C180<>"",Riders!C180,"") ->  | F174: =IF(Riders!E180<>"",Riders!E180,"") ->  | G174: =IF(Riders!G180<>"",Riders!G180,"") ->  | H174: =Riders!AI180 -> 0 | I174: =Riders!AJ180 ->  | J174: =IF(OR(B174="OUT",B174="LBAN"),2,IF(B174="NM",3,IF(Riders!D180="",9,1))) -> 9
B175: =IF(Riders!D181<>"",Riders!D181,"") ->  | C175: =IF(Riders!F181<>"",Riders!F181,"") ->  | D175: =IF(F175="","",IF(B175=B174,D174+1,1)) ->  | E175: =IF(Riders!C181<>"",Riders!C181,"") ->  | F175: =IF(Riders!E181<>"",Riders!E181,"") ->  | G175: =IF(Riders!G181<>"",Riders!G181,"") ->  | H175: =Riders!AI181 -> 0 | I175: =Riders!AJ181 ->  | J175: =IF(OR(B175="OUT",B175="LBAN"),2,IF(B175="NM",3,IF(Riders!D181="",9,1))) -> 9
B176: =IF(Riders!D182<>"",Riders!D182,"") ->  | C176: =IF(Riders!F182<>"",Riders!F182,"") ->  | D176: =IF(F176="","",IF(B176=B175,D175+1,1)) ->  | E176: =IF(Riders!C182<>"",Riders!C182,"") ->  | F176: =IF(Riders!E182<>"",Riders!E182,"") ->  | G176: =IF(Riders!G182<>"",Riders!G182,"") ->  | H176: =Riders!AI182 -> 0 | I176: =Riders!AJ182 ->  | J176: =IF(OR(B176="OUT",B176="LBAN"),2,IF(B176="NM",3,IF(Riders!D182="",9,1))) -> 9
B177: =IF(Riders!D183<>"",Riders!D183,"") ->  | C177: =IF(Riders!F183<>"",Riders!F183,"") ->  | D177: =IF(F177="","",IF(B177=B176,D176+1,1)) ->  | E177: =IF(Riders!C183<>"",Riders!C183,"") ->  | F177: =IF(Riders!E183<>"",Riders!E183,"") ->  | G177: =IF(Riders!G183<>"",Riders!G183,"") ->  | H177: =Riders!AI183 -> 0 | I177: =Riders!AJ183 ->  | J177: =IF(OR(B177="OUT",B177="LBAN"),2,IF(B177="NM",3,IF(Riders!D183="",9,1))) -> 9
B178: =IF(Riders!D184<>"",Riders!D184,"") ->  | C178: =IF(Riders!F184<>"",Riders!F184,"") ->  | D178: =IF(F178="","",IF(B178=B177,D177+1,1)) ->  | E178: =IF(Riders!C184<>"",Riders!C184,"") ->  | F178: =IF(Riders!E184<>"",Riders!E184,"") ->  | G178: =IF(Riders!G184<>"",Riders!G184,"") ->  | H178: =Riders!AI184 -> 0 | I178: =Riders!AJ184 ->  | J178: =IF(OR(B178="OUT",B178="LBAN"),2,IF(B178="NM",3,IF(Riders!D184="",9,1))) -> 9
B179: =IF(Riders!D185<>"",Riders!D185,"") ->  | C179: =IF(Riders!F185<>"",Riders!F185,"") ->  | D179: =IF(F179="","",IF(B179=B178,D178+1,1)) ->  | E179: =IF(Riders!C185<>"",Riders!C185,"") ->  | F179: =IF(Riders!E185<>"",Riders!E185,"") ->  | G179: =IF(Riders!G185<>"",Riders!G185,"") ->  | H179: =Riders!AI185 -> 0 | I179: =Riders!AJ185 ->  | J179: =IF(OR(B179="OUT",B179="LBAN"),2,IF(B179="NM",3,IF(Riders!D185="",9,1))) -> 9
B180: =IF(Riders!D186<>"",Riders!D186,"") ->  | C180: =IF(Riders!F186<>"",Riders!F186,"") ->  | D180: =IF(F180="","",IF(B180=B179,D179+1,1)) ->  | E180: =IF(Riders!C186<>"",Riders!C186,"") ->  | F180: =IF(Riders!E186<>"",Riders!E186,"") ->  | G180: =IF(Riders!G186<>"",Riders!G186,"") ->  | H180: =Riders!AI186 -> 0 | I180: =Riders!AJ186 ->  | J180: =IF(OR(B180="OUT",B180="LBAN"),2,IF(B180="NM",3,IF(Riders!D186="",9,1))) -> 9
B181: =IF(Riders!D187<>"",Riders!D187,"") ->  | C181: =IF(Riders!F187<>"",Riders!F187,"") ->  | D181: =IF(F181="","",IF(B181=B180,D180+1,1)) ->  | E181: =IF(Riders!C187<>"",Riders!C187,"") ->  | F181: =IF(Riders!E187<>"",Riders!E187,"") ->  | G181: =IF(Riders!G187<>"",Riders!G187,"") ->  | H181: =Riders!AI187 -> 0 | I181: =Riders!AJ187 ->  | J181: =IF(OR(B181="OUT",B181="LBAN"),2,IF(B181="NM",3,IF(Riders!D187="",9,1))) -> 9
B182: =IF(Riders!D188<>"",Riders!D188,"") ->  | C182: =IF(Riders!F188<>"",Riders!F188,"") ->  | D182: =IF(F182="","",IF(B182=B181,D181+1,1)) ->  | E182: =IF(Riders!C188<>"",Riders!C188,"") ->  | F182: =IF(Riders!E188<>"",Riders!E188,"") ->  | G182: =IF(Riders!G188<>"",Riders!G188,"") ->  | H182: =Riders!AI188 -> 0 | I182: =Riders!AJ188 ->  | J182: =IF(OR(B182="OUT",B182="LBAN"),2,IF(B182="NM",3,IF(Riders!D188="",9,1))) -> 9
B183: =IF(Riders!D189<>"",Riders!D189,"") ->  | C183: =IF(Riders!F189<>"",Riders!F189,"") ->  | D183: =IF(F183="","",IF(B183=B182,D182+1,1)) ->  | E183: =IF(Riders!C189<>"",Riders!C189,"") ->  | F183: =IF(Riders!E189<>"",Riders!E189,"") ->  | G183: =IF(Riders!G189<>"",Riders!G189,"") ->  | H183: =Riders!AI189 -> 0 | I183: =Riders!AJ189 ->  | J183: =IF(OR(B183="OUT",B183="LBAN"),2,IF(B183="NM",3,IF(Riders!D189="",9,1))) -> 9
B184: =IF(Riders!D190<>"",Riders!D190,"") ->  | C184: =IF(Riders!F190<>"",Riders!F190,"") ->  | D184: =IF(F184="","",IF(B184=B183,D183+1,1)) ->  | E184: =IF(Riders!C190<>"",Riders!C190,"") ->  | F184: =IF(Riders!E190<>"",Riders!E190,"") ->  | G184: =IF(Riders!G190<>"",Riders!G190,"") ->  | H184: =Riders!AI190 -> 0 | I184: =Riders!AJ190 ->  | J184: =IF(OR(B184="OUT",B184="LBAN"),2,IF(B184="NM",3,IF(Riders!D190="",9,1))) -> 9
B185: =IF(Riders!D191<>"",Riders!D191,"") ->  | C185: =IF(Riders!F191<>"",Riders!F191,"") ->  | D185: =IF(F185="","",IF(B185=B184,D184+1,1)) ->  | E185: =IF(Riders!C191<>"",Riders!C191,"") ->  | F185: =IF(Riders!E191<>"",Riders!E191,"") ->  | G185: =IF(Riders!G191<>"",Riders!G191,"") ->  | H185: =Riders!AI191 -> 0 | I185: =Riders!AJ191 ->  | J185: =IF(OR(B185="OUT",B185="LBAN"),2,IF(B185="NM",3,IF(Riders!D191="",9,1))) -> 9
B186: =IF(Riders!D192<>"",Riders!D192,"") ->  | C186: =IF(Riders!F192<>"",Riders!F192,"") ->  | D186: =IF(F186="","",IF(B186=B185,D185+1,1)) ->  | E186: =IF(Riders!C192<>"",Riders!C192,"") ->  | F186: =IF(Riders!E192<>"",Riders!E192,"") ->  | G186: =IF(Riders!G192<>"",Riders!G192,"") ->  | H186: =Riders!AI192 -> 0 | I186: =Riders!AJ192 ->  | J186: =IF(OR(B186="OUT",B186="LBAN"),2,IF(B186="NM",3,IF(Riders!D192="",9,1))) -> 9
B187: =IF(Riders!D193<>"",Riders!D193,"") ->  | C187: =IF(Riders!F193<>"",Riders!F193,"") ->  | D187: =IF(F187="","",IF(B187=B186,D186+1,1)) ->  | E187: =IF(Riders!C193<>"",Riders!C193,"") ->  | F187: =IF(Riders!E193<>"",Riders!E193,"") ->  | G187: =IF(Riders!G193<>"",Riders!G193,"") ->  | H187: =Riders!AI193 -> 0 | I187: =Riders!AJ193 ->  | J187: =IF(OR(B187="OUT",B187="LBAN"),2,IF(B187="NM",3,IF(Riders!D193="",9,1))) -> 9
B188: =IF(Riders!D194<>"",Riders!D194,"") ->  | C188: =IF(Riders!F194<>"",Riders!F194,"") ->  | D188: =IF(F188="","",IF(B188=B187,D187+1,1)) ->  | E188: =IF(Riders!C194<>"",Riders!C194,"") ->  | F188: =IF(Riders!E194<>"",Riders!E194,"") ->  | G188: =IF(Riders!G194<>"",Riders!G194,"") ->  | H188: =Riders!AI194 -> 0 | I188: =Riders!AJ194 ->  | J188: =IF(OR(B188="OUT",B188="LBAN"),2,IF(B188="NM",3,IF(Riders!D194="",9,1))) -> 9
B189: =IF(Riders!D195<>"",Riders!D195,"") ->  | C189: =IF(Riders!F195<>"",Riders!F195,"") ->  | D189: =IF(F189="","",IF(B189=B188,D188+1,1)) ->  | E189: =IF(Riders!C195<>"",Riders!C195,"") ->  | F189: =IF(Riders!E195<>"",Riders!E195,"") ->  | G189: =IF(Riders!G195<>"",Riders!G195,"") ->  | H189: =Riders!AI195 -> 0 | I189: =Riders!AJ195 ->  | J189: =IF(OR(B189="OUT",B189="LBAN"),2,IF(B189="NM",3,IF(Riders!D195="",9,1))) -> 9
B190: =IF(Riders!D196<>"",Riders!D196,"") ->  | C190: =IF(Riders!F196<>"",Riders!F196,"") ->  | D190: =IF(F190="","",IF(B190=B189,D189+1,1)) ->  | E190: =IF(Riders!C196<>"",Riders!C196,"") ->  | F190: =IF(Riders!E196<>"",Riders!E196,"") ->  | G190: =IF(Riders!G196<>"",Riders!G196,"") ->  | H190: =Riders!AI196 -> 0 | I190: =Riders!AJ196 ->  | J190: =IF(OR(B190="OUT",B190="LBAN"),2,IF(B190="NM",3,IF(Riders!D196="",9,1))) -> 9
B191: =IF(Riders!D197<>"",Riders!D197,"") ->  | C191: =IF(Riders!F197<>"",Riders!F197,"") ->  | D191: =IF(F191="","",IF(B191=B190,D190+1,1)) ->  | E191: =IF(Riders!C197<>"",Riders!C197,"") ->  | F191: =IF(Riders!E197<>"",Riders!E197,"") ->  | G191: =IF(Riders!G197<>"",Riders!G197,"") ->  | H191: =Riders!AI197 -> 0 | I191: =Riders!AJ197 ->  | J191: =IF(OR(B191="OUT",B191="LBAN"),2,IF(B191="NM",3,IF(Riders!D197="",9,1))) -> 9
B192: =IF(Riders!D198<>"",Riders!D198,"") ->  | C192: =IF(Riders!F198<>"",Riders!F198,"") ->  | D192: =IF(F192="","",IF(B192=B191,D191+1,1)) ->  | E192: =IF(Riders!C198<>"",Riders!C198,"") ->  | F192: =IF(Riders!E198<>"",Riders!E198,"") ->  | G192: =IF(Riders!G198<>"",Riders!G198,"") ->  | H192: =Riders!AI198 -> 0 | I192: =Riders!AJ198 ->  | J192: =IF(OR(B192="OUT",B192="LBAN"),2,IF(B192="NM",3,IF(Riders!D198="",9,1))) -> 9
B193: =IF(Riders!D199<>"",Riders!D199,"") ->  | C193: =IF(Riders!F199<>"",Riders!F199,"") ->  | D193: =IF(F193="","",IF(B193=B192,D192+1,1)) ->  | E193: =IF(Riders!C199<>"",Riders!C199,"") ->  | F193: =IF(Riders!E199<>"",Riders!E199,"") ->  | G193: =IF(Riders!G199<>"",Riders!G199,"") ->  | H193: =Riders!AI199 -> 0 | I193: =Riders!AJ199 ->  | J193: =IF(OR(B193="OUT",B193="LBAN"),2,IF(B193="NM",3,IF(Riders!D199="",9,1))) -> 9
B194: =IF(Riders!D200<>"",Riders!D200,"") ->  | C194: =IF(Riders!F200<>"",Riders!F200,"") ->  | D194: =IF(F194="","",IF(B194=B193,D193+1,1)) ->  | E194: =IF(Riders!C200<>"",Riders!C200,"") ->  | F194: =IF(Riders!E200<>"",Riders!E200,"") ->  | G194: =IF(Riders!G200<>"",Riders!G200,"") ->  | H194: =Riders!AI200 -> 0 | I194: =Riders!AJ200 ->  | J194: =IF(OR(B194="OUT",B194="LBAN"),2,IF(B194="NM",3,IF(Riders!D200="",9,1))) -> 9
B195: =IF(Riders!D201<>"",Riders!D201,"") ->  | C195: =IF(Riders!F201<>"",Riders!F201,"") ->  | D195: =IF(F195="","",IF(B195=B194,D194+1,1)) ->  | E195: =IF(Riders!C201<>"",Riders!C201,"") ->  | F195: =IF(Riders!E201<>"",Riders!E201,"") ->  | G195: =IF(Riders!G201<>"",Riders!G201,"") ->  | H195: =Riders!AI201 -> 0 | I195: =Riders!AJ201 ->  | J195: =IF(OR(B195="OUT",B195="LBAN"),2,IF(B195="NM",3,IF(Riders!D201="",9,1))) -> 9
B196: =IF(Riders!D202<>"",Riders!D202,"") ->  | C196: =IF(Riders!F202<>"",Riders!F202,"") ->  | D196: =IF(F196="","",IF(B196=B195,D195+1,1)) ->  | E196: =IF(Riders!C202<>"",Riders!C202,"") ->  | F196: =IF(Riders!E202<>"",Riders!E202,"") ->  | G196: =IF(Riders!G202<>"",Riders!G202,"") ->  | H196: =Riders!AI202 -> 0 | I196: =Riders!AJ202 ->  | J196: =IF(OR(B196="OUT",B196="LBAN"),2,IF(B196="NM",3,IF(Riders!D202="",9,1))) -> 9
